Workbook

Sheet Cover

Sheet Data
A1: DateTime | B1: ROI Generation (MW) | C1: ROI Generation (MWh) | D1: ROI Demand (MW) | E1: ROI Demand (MWh) | F1: ROI Renewable Curtailment (MW) | G1: ROI Renewable Curtailment (MWh) | H1: ROI Renewables Constained (MW) | I1: ROI Renewables Constrained (MWh) | J1: ROI Cumulative Renewables Unnused (MW) | K1: ROI Cumulative Renewables Unnused (MWh) | L1: NI Generation (MW) | M1: NI Generation (MWh) | N1: NI Demand (MW) | O1: NI Demand (MWh) | P1: NI Renewable Curtailment (MW) | Q1: NI Renewable Curtailment (MWh) | R1: NI Renewables Constrained (MW) | S1: NI Renewables Constrained (MWh) | T1: NI Cumulative Renewables Unnused (MW) | U1: NI Cumulative Renewables Unnused (MWh) | V1: AI Generation (MW) | W1: AI Generation (MWh) | X1: AI Demand (MW) | Y1: AI Demand (MWh) | Z1: AI Renewable Curtailment (MW) | AA1: AI Renewable Curtailment (MWh) | AB1: AI Renewables Constrained (MW) | AC1: AI Renewables Constrained (MWh) | AD1: AI Cumulative Renewables Unnused (MW) | AE1: AI Cumulative Renewables Unnused (MWh) | AF1: ROI Carbon Intensity (gCO2/kWh) | AG1: ROI Carbon Intensity (tCO2/MWh) | AH1: NI Carbon Intensity (gCO2/kWh) | AI1: NI Carbon Intensity (tCO2/MWh) | AJ1: AI Carbon Intensity (gCO2/kWh) | AK1: AI Carbon Intensity (tCO2/MWh) | AL1: Tie-Line Imports Carbon Intensity (gCO2/kWh) | AM1: Tie-Line Imports Carbon Intensity (tCO2/MWh) | AN1: GB Carbon Intensity (gCO2/kWh) | AO1: GB Carbon Intensity (tCO2/MWh) | AP1: EWIC Flow (MW) | AQ1: EWIC Flow (MWh) | AR1: Moyle Flow (MW) | AS1: Moyle Flow (MWh) | AT1: Tie-Line Flow (MW) | AU1: Tie-Line Flow (MWh) | AV1: AI Interconnection (MW) | AW1: AI Interconnection (MWh)
A2: 2024-01-01 | B2: 3123 | C2: =B2/4 -> 781 | D2: 3463 | E2: =D2/4 -> 866 | F2: 585.14 | G2: =F2/4 -> 146.285 | H2: 26.258 | I2: =H2/4 -> 6.5645 | J2: =F2+H2 -> 611.398 | K2: =G2+I2 -> 152.8495 | L2: 716 | M2: =L2/4 -> 179 | N2: 585 | O2: =N2/4 -> 146 | P2: 139.62 | Q2: =P2/4 -> 34.905 | R2: 192.594 | S2: =R2/4 -> 48.1485 | T2: =P2+R2 -> 332.214 | U2: =Q2+S2 -> 83.0535 | V2: =B2+L2 -> 3839 | W2: =V2/4 -> 960 | X2: =D2+N2 -> 4047 | Y2: =X2/4 -> 1012 | Z2: =F2+P2 -> 724.76 | AA2: =Z2/4 -> 181.19 | AB2: =H2+R2 -> 218.852 | AC2: =AB2/4 -> 54.713 | AD2: =Z2+AB2 -> 943.612 | AE2: =AA2+AC2 -> 235.903 | AF2: 120 | AG2: =AF2/1000 -> 0.12 | AH2: 310 | AI2: =AH2/1000 -> 0.31 | AJ2: 148 | AK2: =AJ2/1000 -> 0.148 | AL2: 167 | AM2: =AL2/1000 -> 0.167 | AN2: 68 | AO2: =AN2/1000 -> 0.068 | AP2: 106 | AQ2: =AP2/4 -> 27 | AR2: 189 | AS2: =AR2/4 -> 47 | AT2: 308.06 | AU2: =AT2/4 -> 77.015 | AV2: =AP2+AR2 -> 295 | AW2: =AV2/4 -> 73.852
A3: 2024-01-01T00:15:00 | B3: 3128 | C3: =B3/4 -> 782 | D3: 3428 | E3: =D3/4 -> 857 | F3: 585.14 | G3: 146.285 | H3: 26.258 | I3: =H3/4 -> 6.5645 | J3: =F3+H3 -> 611.398 | K3: 152.8495 | L3: 703 | M3: =L3/4 -> 176 | N3: 571 | O3: =N3/4 -> 143 | P3: 139.62 | Q3: 34.905 | R3: 192.594 | S3: =R3/4 -> 48.1485 | T3: =P3+R3 -> 332.214 | U3: 83.0535 | V3: 3830 | W3: =V3/4 -> 958 | X3: 3999 | Y3: =X3/4 -> 1000 | Z3: 724.76 | AA3: =Z3/4 -> 181.19 | AB3: =H3+R3 -> 218.852 | AC3: =AB3/4 -> 54.713 | AD3: =Z3+AB3 -> 943.612 | AE3: 235.903 | AF3: 129 | AG3: =AF3/1000 -> 0.129 | AH3: 329 | AI3: =AH3/1000 -> 0.329 | AJ3: 157 | AK3: =AJ3/1000 -> 0.157 | AL3: 186 | AM3: =AL3/1000 -> 0.186 | AN3: 68 | AO3: 0.068 | AP3: 87 | AQ3: =AP3/4 -> 22 | AR3: 160 | AS3: =AR3/4 -> 40 | AT3: 279.58 | AU3: =AT3/4 -> 69.895 | AV3: =AP3+AR3 -> 247 | AW3: =AV3/4 -> 61.796
A4: 2024-01-01T00:30:00 | B4: 3138 | C4: 785 | D4: 3394 | E4: 849 | F4: 555.92 | G4: 138.98 | H4: 24.804 | I4: 6.201 | J4: 580.724 | K4: 145.181 | L4: 800 | M4: 200 | N4: 564 | O4: 141 | P4: 111.54 | Q4: 27.885 | R4: 81.128 | S4: 20.282 | T4: 192.668 | U4: 48.167 | V4: 3938 | W4: 984 | X4: 3958 | Y4: 989 | Z4: 667.46 | AA4: 166.865 | AB4: 105.932 | AC4: 26.483 | AD4: 773.392 | AE4: 193.348 | AF4: 131 | AG4: 0.131 | AH4: 348 | AI4: 0.348 | AJ4: 161 | AK4: 0.161 | AL4: 275 | AM4: 0.275 | AN4: 69 | AO4: 0.069 | AP4: 16 | AQ4: 4 | AR4: 84 | AS4: 21 | AT4: 306.58 | AU4: 76.645 | AV4: 101 | AW4: 25.133
A5: 2024-01-01T00:45:00 | B5: 3113 | C5: 778 | D5: 3365 | E5: 841 | F5: 555.92 | G5: 138.98 | H5: 24.804 | I5: 6.201 | J5: 580.724 | K5: 145.181 | L5: 878 | M5: 219 | N5: 563 | O5: 141 | P5: 111.54 | Q5: 27.885 | R5: 81.128 | S5: 20.282 | T5: 192.668 | U5: 48.167 | V5: 3991 | W5: 998 | X5: 3928 | Y5: 982 | Z5: 667.46 | AA5: 166.865 | AB5: 105.932 | AC5: 26.483 | AD5: 773.392 | AE5: 193.348 | AF5: 136 | AG5: 0.136 | AH5: 350 | AI5: 0.35 | AJ5: 166 | AK5: 0.166 | AL5: 329 | AM5: 0.329 | AN5: 69 | AO5: 0.069 | AP5: 0 | AQ5: 0 | AR5: 26 | AS5: 6 | AT5: 326.14 | AU5: 81.535 | AV5: 26 | AW5: 6.476
A6: 2024-01-01T01:00:00 | B6: 3043 | C6: 761 | D6: 3333 | E6: 833 | F6: 473.82 | G6: 118.455 | H6: 25.284 | I6: 6.321 | J6: 499.104 | K6: 124.776 | L6: 873 | M6: 218 | N6: 577 | O6: 144 | P6: 107.24 | Q6: 26.81 | R6: 74.008 | S6: 18.502 | T6: 181.248 | U6: 45.312 | V6: 3915 | W6: 979 | X6: 3911 | Y6: 978 | Z6: 581.06 | AA6: 145.265 | AB6: 99.292 | AC6: 24.823 | AD6: 680.352 | AE6: 170.088 | AF6: 134 | AG6: 0.134 | AH6: 349 | AI6: 0.349 | AJ6: 164 | AK6: 0.164 | AL6: 289 | AM6: 0.289 | AN6: 68 | AO6: 0.068 | AP6: 0 | AQ6: 0 | AR6: 80 | AS6: 20 | AT6: 363.06 | AU6: 90.765 | AV6: 80 | AW6: 20.057
A7: 2024-01-01T01:15:00 | B7: 2992 | C7: 748 | D7: 3285 | E7: 821 | F7: 473.82 | G7: 118.455 | H7: 25.284 | I7: 6.321 | J7: 499.104 | K7: 124.776 | L7: 793 | M7: 198 | N7: 579 | O7: 145 | P7: 107.24 | Q7: 26.81 | R7: 74.008 | S7: 18.502 | T7: 181.248 | U7: 45.312 | V7: 3785 | W7: 946 | X7: 3864 | Y7: 966 | Z7: 581.06 | AA7: 145.265 | AB7: 99.292 | AC7: 24.823 | AD7: 680.352 | AE7: 170.088 | AF7: 135 | AG7: 0.135 | AH7: 326 | AI7: 0.326 | AJ7: 163 | AK7: 0.163 | AL7: 217 | AM7: 0.217 | AN7: 68 | AO7: 0.068 | AP7: 4 | AQ7: 1 | AR7: 157 | AS7: 39 | AT7: 359.8 | AU7: 89.95 | AV7: 161 | AW7: 40.314
A8: 2024-01-01T01:30:00 | B8: 2896 | C8: 724 | D8: 3241 | E8: 810 | F8: 446.84 | G8: 111.71 | H8: 24.08 | I8: 6.02 | J8: 470.92 | K8: 117.73 | L8: 705 | M8: 176 | N8: 568 | O8: 142 | P8: 151.24 | Q8: 37.81 | R8: 241.498 | S8: 60.3745 | T8: 392.738 | U8: 98.1845 | V8: 3601 | W8: 900 | X8: 3809 | Y8: 952 | Z8: 598.08 | AA8: 149.52 | AB8: 265.578 | AC8: 66.3945 | AD8: 863.658 | AE8: 215.9145 | AF8: 138 | AG8: 0.138 | AH8: 336 | AI8: 0.336 | AJ8: 167 | AK8: 0.167 | AL8: 166 | AM8: 0.166 | AN8: 66 | AO8: 0.066 | AP8: 63 | AQ8: 16 | AR8: 232 | AS8: 58 | AT8: 356.43 | AU8: 89.1075 | AV8: 295 | AW8: 73.631
A9: 2024-01-01T01:45:00 | B9: 2789 | C9: 697 | D9: 3198 | E9: 800 | F9: 446.84 | G9: 111.71 | H9: 24.08 | I9: 6.02 | J9: 470.92 | K9: 117.73 | L9: 628 | M9: 157 | N9: 557 | O9: 139 | P9: 151.24 | Q9: 37.81 | R9: 241.498 | S9: 60.3745 | T9: 392.738 | U9: 98.1845 | V9: 3417 | W9: 854 | X9: 3756 | Y9: 939 | Z9: 598.08 | AA9: 149.52 | AB9: 265.578 | AC9: 66.3945 | AD9: 863.658 | AE9: 215.9145 | AF9: 138 | AG9: 0.138 | AH9: 335 | AI9: 0.335 | AJ9: 167 | AK9: 0.167 | AL9: 117 | AM9: 0.117 | AN9: 66 | AO9: 0.066 | AP9: 119 | AQ9: 30 | AR9: 305 | AS9: 76 | AT9: 361.11 | AU9: 90.2775 | AV9: 425 | AW9: 106.199
A10: 2024-01-01T02:00:00 | B10: 2801 | C10: 700 | D10: 3191 | E10: 798 | F10: 385.16 | G10: 96.29 | H10: 12.304 | I10: 3.076 | J10: 397.464 | K10: 99.366 | L10: 606 | M10: 151 | N10: 549 | O10: 137 | P10: 155.3 | Q10: 38.825 | R10: 321.186 | S10: 80.2965 | T10: 476.486 | U10: 119.1215 | V10: 3407 | W10: 852 | X10: 3740 | Y10: 935 | Z10: 540.46 | AA10: 135.115 | AB10: 333.49 | AC10: 83.3725 | AD10: 873.95 | AE10: 218.4875 | AF10: 138 | AG10: 0.138 | AH10: 341 | AI10: 0.341 | AJ10: 168 | AK10: 0.168 | AL10: 113 | AM10: 0.113 | AN10: 74 | AO10: 0.074 | AP10: 82 | AQ10: 21 | AR10: 334 | AS10: =AR10/4 -> 84 | AT10: 377.81 | AU10: 94.4525 | AV10: 417 | AW10: 104.174
A11: 2024-01-01T02:15:00 | B11: 2726 | C11: 681 | D11: 3165 | E11: 791 | F11: 385.16 | G11: 96.29 | H11: 12.304 | I11: 3.076 | J11: 397.464 | K11: 99.366 | L11: 590 | M11: 147 | N11: 538 | O11: 134 | P11: 155.3 | Q11: 38.825 | R11: 321.186 | S11: 80.2965 | T11: 476.486 | U11: 119.1215 | V11: 3316 | W11: 829 | X11: 3702 | Y11: 926 | Z11: 540.46 | AA11: 135.115 | AB11: 333.49 | AC11: 83.3725 | AD11: 873.95 | AE11: 218.4875 | AF11: 141 | AG11: 0.141 | AH11: 346 | AI11: 0.346 | AJ11: 170 | AK11: 0.17 | AL11: 111 | AM11: 0.111 | AN11: 74 | AO11: 0.074 | AP11: 139 | AQ11: 35 | AR11: 334 | AS11: 84 | AT11: 373.97 | AU11: 93.4925 | AV11: 473 | AW11: 118.275
A12: 2024-01-01T02:30:00 | B12: 2623 | C12: 656 | D12: 3136 | E12: 784 | F12: 396.96 | G12: 99.24 | H12: 1.402 | I12: 0.3505 | J12: 398.362 | K12: 99.5905 | L12: 577 | M12: 144 | N12: 525 | O12: 131 | P12: 128.76 | Q12: 32.19 | R12: 320.042 | S12: 80.0105 | T12: 448.802 | U12: 112.2005 | V12: 3199 | W12: 800 | X12: 3660 | Y12: 915 | Z12: 525.72 | AA12: 131.43 | AB12: 321.444 | AC12: 80.361 | AD12: 847.164 | AE12: 211.791 | AF12: 142 | AG12: 0.142 | AH12: 353 | AI12: 0.353 | AJ12: 172 | AK12: 0.172 | AL12: 108 | AM12: 0.108 | AN12: 70 | AO12: 0.07 | AP12: 214 | AQ12: 53 | AR12: 334 | AS12: 84 | AT12: 373.06 | AU12: 93.265 | AV12: 548 | AW12: 137.027
A13: 2024-01-01T02:45:00 | B13: 2527 | C13: 632 | D13: 3097 | E13: 774 | F13: 396.96 | G13: 99.24 | H13: 1.402 | I13: 0.3505 | J13: 398.362 | K13: 99.5905 | L13: 547 | M13: 137 | N13: 511 | O13: 128 | P13: 128.76 | Q13: 32.19 | R13: 320.042 | S13: 80.0105 | T13: 448.802 | U13: 112.2005 | V13: 3074 | W13: 769 | X13: 3609 | Y13: 902 | Z13: 525.72 | AA13: 131.43 | AB13: 321.444 | AC13: 80.361 | AD13: 847.164 | AE13: 211.791 | AF13: 143 | AG13: 0.143 | AH13: 356 | AI13: 0.356 | AJ13: 173 | AK13: 0.173 | AL13: 98 | AM13: 0.098 | AN13: 70 | AO13: 0.07 | AP13: 285 | AQ13: 71 | AR13: 334 | AS13: 84 | AT13: 357.71 | AU13: 89.4275 | AV13: 620 | AW13: 154.932
A14: 2024-01-01T03:00:00 | B14: 2491 | C14: 623 | D14: 3067 | E14: 767 | F14: 460.8 | G14: 115.2 | H14: 0.546 | I14: 0.1365 | J14: 461.346 | K14: 115.3365 | L14: 536 | M14: 134 | N14: 507 | O14: 127 | P14: 132.64 | Q14: 33.16 | R14: 351.962 | S14: 87.9905 | T14: 484.602 | U14: 121.1505 | V14: 3027 | W14: 757 | X14: 3573 | Y14: 893 | Z14: 593.44 | AA14: 148.36 | AB14: 352.508 | AC14: 88.127 | AD14: 945.948 | AE14: 236.487 | AF14: 148 | AG14: 0.148 | AH14: 373 | AI14: 0.373 | AJ14: 179 | AK14: 0.179 | AL14: 94 | AM14: 0.094 | AN14: 69 | AO14: 0.069 | AP14: 297 | AQ14: 74 | AR14: 334 | AS14: 84 | AT14: 350.67 | AU14: 87.6675 | AV14: 631 | AW14: 157.847
A15: 2024-01-01T03:15:00 | B15: 2392 | C15: 598 | D15: 3036 | E15: 759 | F15: 460.8 | G15: 115.2 | H15: 0.546 | I15: 0.1365 | J15: 461.346 | K15: 115.3365 | L15: 530 | M15: 132 | N15: 499 | O15: 125 | P15: 132.64 | Q15: 33.16 | R15: 351.962 | S15: 87.9905 | T15: 484.602 | U15: 121.1505 | V15: 2922 | W15: 730 | X15: 3535 | Y15: 884 | Z15: 593.44 | AA15: 148.36 | AB15: 352.508 | AC15: 88.127 | AD15: 945.948 | AE15: 236.487 | AF15: 148 | AG15: 0.148 | AH15: 378 | AI15: 0.378 | AJ15: 180 | AK15: 0.18 | AL15: 95 | AM15: 0.095 | AN15: 69 | AO15: 0.069 | AP15: 367 | AQ15: 92 | AR15: 334 | AS15: 84 | AT15: 350.39 | AU15: 87.5975 | AV15: 701 | AW15: 175.211
A16: 2024-01-01T03:30:00 | B16: 2275 | C16: 569 | D16: 2998 | E16: 749 | F16: 427.38 | G16: 106.845 | H16: 0.952 | I16: =H16/4 -> 0.238 | J16: 428.332 | K16: 107.083 | L16: 523 | M16: 131 | N16: 489 | O16: 122 | P16: 102.26 | Q16: 25.565 | R16: 342.15 | S16: 85.5375 | T16: 444.41 | U16: 111.1025 | V16: 2798 | W16: 700 | X16: 3487 | Y16: 872 | Z16: 529.64 | AA16: 132.41 | AB16: 343.102 | AC16: 85.7755 | AD16: 872.742 | AE16: 218.1855 | AF16: 145 | AG16: 0.145 | AH16: 381 | AI16: 0.381 | AJ16: 177 | AK16: 0.177 | AL16: 96 | AM16: 0.096 | AN16: 67 | AO16: 0.067 | AP16: 442 | AQ16: 110 | AR16: 334 | AS16: 84 | AT16: 354.32 | AU16: 88.58 | AV16: 776 | AW16: 193.953
A17: 2024-01-01T03:45:00 | B17: 2173 | C17: 543 | D17: 2968 | E17: 742 | F17: 427.38 | G17: 106.845 | H17: 0.952 | I17: 0.238 | J17: 428.332 | K17: 107.083 | L17: 519 | M17: 130 | N17: 484 | O17: 121 | P17: 102.26 | Q17: 25.565 | R17: 342.15 | S17: 85.5375 | T17: 444.41 | U17: 111.1025 | V17: 2692 | W17: 673 | X17: 3452 | Y17: 863 | Z17: 529.64 | AA17: 132.41 | AB17: 343.102 | AC17: 85.7755 | AD17: 872.742 | AE17: 218.1855 | AF17: 147 | AG17: 0.147 | AH17: 385 | AI17: 0.385 | AJ17: 180 | AK17: 0.18 | AL17: 97 | AM17: 0.097 | AN17: 67 | AO17: 0.067 | AP17: 509 | AQ17: 127 | AR17: 334 | AS17: 84 | AT17: 357.99 | AU17: 89.4975 | AV17: 843 | AW17: 210.686
A18: 2024-01-01T04:00:00 | B18: 2181 | C18: 545 | D18: 2943 | E18: 736 | F18: 388.84 | G18: 97.21 | H18: 6.468 | I18: 1.617 | J18: =F18+H18 -> 395.308 | K18: 98.827 | L18: 524 | M18: 131 | N18: 484 | O18: 121 | P18: 79.96 | Q18: 19.99 | R18: 303.27 | S18: 75.8175 | T18: 383.23 | U18: 95.8075 | V18: 2705 | W18: 676 | X18: 3427 | Y18: 857 | Z18: 468.8 | AA18: 117.2 | AB18: 309.738 | AC18: 77.4345 | AD18: 778.538 | AE18: 194.6345 | AF18: 148 | AG18: 0.148 | AH18: 385 | AI18: 0.385 | AJ18: 180 | AK18: 0.18 | AL18: 97 | AM18: 0.097 | AN18: 63 | AO18: 0.063 | AP18: 470 | AQ18: 117 | AR18: 334 | AS18: 84 | AT18: 361.15 | AU18: 90.2875 | AV18: 804 | AW18: 201.006
A19: 2024-01-01T04:15:00 | B19: 2203 | C19: 551 | D19: 2936 | E19: 734 | F19: 388.84 | G19: 97.21 | H19: 6.468 | I19: 1.617 | J19: 395.308 | K19: 98.827 | L19: 532 | M19: 133 | N19: 481 | O19: 120 | P19: 79.96 | Q19: 19.99 | R19: 303.27 | S19: 75.8175 | T19: 383.23 | U19: 95.8075 | V19: 2734 | W19: 684 | X19: 3417 | Y19: 854 | Z19: 468.8 | AA19: 117.2 | AB19: 309.738 | AC19: 77.4345 | AD19: 778.538 | AE19: 194.6345 | AF19: 148 | AG19: 0.148 | AH19: 390 | AI19: 0.39 | AJ19: 181 | AK19: 0.181 | AL19: 106 | AM19: 0.106 | AN19: 63 | AO19: 0.063 | AP19: 430 | AQ19: 108 | AR19: 334 | AS19: 84 | AT19: 372.04 | AU19: 93.01 | AV19: 764 | AW19: 191.122
A20: 2024-01-01T04:30:00 | B20: 2173 | C20: 543 | D20: 2928 | E20: 732 | F20: 260.72 | G20: 65.18 | H20: 11.972 | I20: 2.993 | J20: 272.692 | K20: 68.173 | L20: 528 | M20: 132 | N20: 481 | O20: 120 | P20: 91.36 | Q20: 22.84 | R20: 296.566 | S20: 74.1415 | T20: 387.926 | U20: 96.9815 | V20: 2701 | W20: 675 | X20: 3409 | Y20: 852 | Z20: 352.08 | AA20: 88.02 | AB20: 308.538 | AC20: 77.1345 | AD20: 660.618 | AE20: 165.1545 | AF20: 151 | AG20: 0.151 | AH20: 396 | AI20: 0.396 | AJ20: 185 | AK20: 0.185 | AL20: 101 | AM20: 0.101 | AN20: 59 | AO20: 0.059 | AP20: 457 | AQ20: 114 | AR20: 334 | AS20: 84 | AT20: 370.02 | AU20: 92.505 | AV20: 792 | AW20: 197.925
A21: 2024-01-01T04:45:00 | B21: 2128 | C21: 532 | D21: 2932 | E21: 733 | F21: 260.72 | G21: 65.18 | H21: 11.972 | I21: 2.993 | J21: 272.692 | K21: 68.173 | L21: 527 | M21: 132 | N21: 477 | O21: 119 | P21: 91.36 | Q21: 22.84 | R21: 296.566 | S21: 74.1415 | T21: 387.926 | U21: 96.9815 | V21: 2655 | W21: 664 | X21: 3409 | Y21: 852 | Z21: 352.08 | AA21: 88.02 | AB21: 308.538 | AC21: 77.1345 | AD21: 660.618 | AE21: 165.1545 | AF21: 149 | AG21: 0.149 | AH21: 389 | AI21: 0.389 | AJ21: 182 | AK21: 0.182 | AL21: 102 | AM21: 0.102 | AN21: 59 | AO21: 0.059 | AP21: 506 | AQ21: 126 | AR21: 334 | AS21: 84 | AT21: 369.44 | AU21: 92.36 | AV21: 840 | AW21: 210.044
A22: 2024-01-01T05:00:00 | B22: 2080 | C22: 520 | D22: 2917 | E22: 729 | F22: 162.66 | G22: 40.665 | H22: 6.336 | I22: 1.584 | J22: 168.996 | K22: 42.249 | L22: 537 | M22: 134 | N22: 483 | O22: 121 | P22: 82.26 | Q22: 20.565 | R22: 290.718 | S22: 72.6795 | T22: 372.978 | U22: 93.2445 | V22: 2617 | W22: 654 | X22: 3400 | Y22: 850 | Z22: 244.92 | AA22: 61.23 | AB22: 297.054 | AC22: 74.2635 | AD22: 541.974 | AE22: 135.4935 | AF22: 149 | AG22: 0.149 | AH22: 395 | AI22: 0.395 | AJ22: 183 | AK22: 0.183 | AL22: 105 | AM22: 0.105 | AN22: 58 | AO22: 0.058 | AP22: 530 | AQ22: 132 | AR22: 334 | AS22: 84 | AT22: 377.05 | AU22: 94.2625 | AV22: 864 | AW22: 216.053
A23: 2024-01-01T05:15:00 | B23: 2071 | C23: 518 | D23: 2911 | E23: 728 | F23: 162.66 | G23: 40.665 | H23: 6.336 | I23: 1.584 | J23: 168.996 | K23: 42.249 | L23: 545 | M23: 136 | N23: 488 | O23: 122 | P23: 82.26 | Q23: 20.565 | R23: 290.718 | S23: 72.6795 | T23: 372.978 | U23: 93.2445 | V23: 2616 | W23: 654 | X23: 3398 | Y23: 850 | Z23: 244.92 | AA23: 61.23 | AB23: 297.054 | AC23: 74.2635 | AD23: 541.974 | AE23: 135.4935 | AF23: 169 | AG23: 0.169 | AH23: 398 | AI23: 0.398 | AJ23: 201 | AK23: 0.201 | AL23: 108 | AM23: 0.108 | AN23: 58 | AO23: 0.058 | AP23: 530 | AQ23: 132 | AR23: 334 | AS23: 84 | AT23: 379.55 | AU23: 94.8875 | AV23: 864 | AW23: 216.044
A24: 2024-01-01T05:30:00 | B24: 2099 | C24: 525 | D24: 2932 | E24: 733 | F24: 43.56 | G24: 10.89 | H24: 4.974 | I24: 1.2435 | J24: 48.534 | K24: 12.1335 | L24: 545 | M24: 136 | N24: 493 | O24: 123 | P24: 76.3 | Q24: 19.075 | R24: 254.884 | S24: 63.721 | T24: 331.184 | U24: 82.796 | V24: 2643 | W24: 661 | X24: 3425 | Y24: 856 | Z24: 119.86 | AA24: 29.965 | AB24: 259.858 | AC24: 64.9645 | AD24: 379.718 | AE24: 94.9295 | AF24: 170 | AG24: 0.17 | AH24: 396 | AI24: 0.396 | AJ24: 202 | AK24: 0.202 | AL24: 106 | AM24: 0.106 | AN24: 61 | AO24: 0.061 | AP24: 530 | AQ24: 132 | AR24: 334 | AS24: 84 | AT24: 373.45 | AU24: 93.3625 | AV24: 864 | AW24: 216.043
A25: 2024-01-01T05:45:00 | B25: 2136 | C25: 534 | D25: 2948 | E25: 737 | F25: 43.56 | G25: 10.89 | H25: 4.974 | I25: 1.2435 | J25: 48.534 | K25: 12.1335 | L25: 533 | M25: 133 | N25: 504 | O25: 126 | P25: 76.3 | Q25: 19.075 | R25: 254.884 | S25: 63.721 | T25: 331.184 | U25: 82.796 | V25: 2669 | W25: 667 | X25: 3452 | Y25: 863 | Z25: 119.86 | AA25: 29.965 | AB25: 259.858 | AC25: 64.9645 | AD25: 379.718 | AE25: 94.9295 | AF25: 171 | AG25: 0.171 | AH25: 390 | AI25: 0.39 | AJ25: 202 | AK25: 0.202 | AL25: 88 | AM25: 0.088 | AN25: 61 | AO25: 0.061 | AP25: 530 | AQ25: 132 | AR25: 334 | AS25: 84 | AT25: 351.72 | AU25: 87.93 | AV25: 864 | AW25: 216.047
A26: 2024-01-01T06:00:00 | B26: 2158 | C26: 540 | D26: 2990 | E26: 747 | F26: 0 | G26: 0 | H26: 0 | I26: 0 | J26: 0 | K26: 0 | L26: 572 | M26: 143 | N26: 523 | O26: 131 | P26: 11.78 | Q26: 2.945 | R26: 234.008 | S26: 58.502 | T26: 245.788 | U26: 61.447 | V26: 2730 | W26: 682 | X26: 3513 | Y26: 878 | Z26: 11.78 | AA26: 2.945 | AB26: 234.008 | AC26: 58.502 | AD26: 245.788 | AE26: 61.447 | AF26: 174 | AG26: 0.174 | AH26: 379 | AI26: 0.379 | AJ26: 204 | AK26: 0.204 | AL26: 100 | AM26: 0.100 | AN26: 60 | AO26: 0.06 | AP26: 530 | AQ26: 132 | AR26: 334 | AS26: 84 | AT26: 368.37 | AU26: 92.0925 | AV26: 864 | AW26: 216.050
A27: 2024-01-01T06:15:00 | B27: 2166 | C27: 541 | D27: 3004 | E27: 751 | F27: 0 | G27: 0 | H27: 0 | I27: 0 | J27: 0 | K27: 0 | L27: 586 | M27: 146 | N27: 535 | O27: 134 | P27: 11.78 | Q27: 2.945 | R27: 234.008 | S27: 58.502 | T27: 245.788 | U27: 61.447 | V27: 2751 | W27: 688 | X27: 3539 | Y27: 885 | Z27: 11.78 | AA27: 2.945 | AB27: 234.008 | AC27: 58.502 | AD27: 245.788 | AE27: 61.447 | AF27: 180 | AG27: 0.18 | AH27: 342 | AI27: 0.342 | AJ27: 204 | AK27: 0.204 | AL27: 97 | AM27: 0.097 | AN27: 60 | AO27: 0.06 | AP27: 530 | AQ27: 132 | AR27: 334 | AS27: 84 | AT27: 371.24 | AU27: 92.81 | AV27: 864 | AW27: 216.050
A28: 2024-01-01T06:30:00 | B28: 2120 | C28: 530 | D28: 3015 | E28: 754 | F28: 0 | G28: 0 | H28: 0 | I28: 0 | J28: 0 | K28: 0 | L28: 603 | M28: 151 | N28: 547 | O28: 137 | P28: 0 | Q28: 0 | R28: 207.404 | S28: 51.851 | T28: 207.404 | U28: 51.851 | V28: 2723 | W28: 681 | X28: 3562 | Y28: 891 | Z28: 0 | AA28: 0 | AB28: 207.404 | AC28: 51.851 | AD28: 207.404 | AE28: 51.851 | AF28: 178 | AG28: 0.178 | AH28: 355 | AI28: 0.355 | AJ28: 205 | AK28: 0.205 | AL28: 105 | AM28: 0.105 | AN28: 63 | AO28: 0.063 | AP28: 530 | AQ28: 132 | AR28: 334 | AS28: 84 | AT28: 372.76 | AU28: 93.19 | AV28: 864 | AW28: 216.057
A29: 2024-01-01T06:45:00 | B29: 2113 | C29: 528 | D29: 3024 | E29: 756 | F29: 0 | G29: 0 | H29: 0 | I29: 0 | J29: 0 | K29: 0 | L29: 612 | M29: 153 | N29: 560 | O29: 140 | P29: 0 | Q29: 0 | R29: 207.404 | S29: 51.851 | T29: 207.404 | U29: 51.851 | V29: 2725 | W29: 681 | X29: 3584 | Y29: 896 | Z29: 0 | AA29: 0 | AB29: 207.404 | AC29: 51.851 | AD29: 207.404 | AE29: 51.851 | AF29: 182 | AG29: 0.182 | AH29: 345 | AI29: 0.345 | AJ29: 207 | AK29: 0.207 | AL29: 101 | AM29: 0.101 | AN29: 63 | AO29: 0.063 | AP29: 530 | AQ29: 132 | AR29: 334 | AS29: 84 | AT29: 369.89 | AU29: 92.4725 | AV29: 864 | AW29: 216.048
A30: 2024-01-01T07:00:00 | B30: 2158 | C30: 539 | D30: 3077 | E30: 769 | F30: 0 | G30: 0 | H30: 0 | I30: 0 | J30: 0 | K30: 0 | L30: 640 | M30: 160 | N30: 581 | O30: 145 | P30: 0 | Q30: 0 | R30: 127.608 | S30: 31.902 | T30: 127.608 | U30: 31.902 | V30: 2798 | W30: 699 | X30: 3658 | Y30: 914 | Z30: 0 | AA30: 0 | AB30: 127.608 | AC30: 31.902 | AD30: 127.608 | AE30: 31.902 | AF30: 187 | AG30: 0.187 | AH30: 329 | AI30: 0.329 | AJ30: 209 | AK30: 0.209 | AL30: 102 | AM30: 0.102 | AN30: 61 | AO30: 0.061 | AP30: 530 | AQ30: 132 | AR30: 334 | AS30: 84 | AT30: 379.47 | AU30: 94.8675 | AV30: 864 | AW30: 216.051
A31: 2024-01-01T07:15:00 | B31: 2196 | C31: 549 | D31: 3108 | E31: 777 | F31: 0 | G31: 0 | H31: 0 | I31: 0 | J31: 0 | K31: 0 | L31: 641 | M31: 160 | N31: 589 | O31: 147 | P31: 0 | Q31: 0 | R31: 127.608 | S31: 31.902 | T31: 127.608 | U31: 31.902 | V31: 2837 | W31: 709 | X31: 3697 | Y31: 924 | Z31: 0 | AA31: 0 | AB31: 127.608 | AC31: 31.902 | AD31: 127.608 | AE31: 31.902 | AF31: 190 | AG31: 0.19 | AH31: 317 | AI31: 0.317 | AJ31: 210 | AK31: 0.21 | AL31: 96 | AM31: 0.096 | AN31: 61 | AO31: 0.061 | AP31: 530 | AQ31: 132 | AR31: 334 | AS31: 84 | AT31: 371.15 | AU31: 92.7875 | AV31: 864 | AW31: 216.042
A32: 2024-01-01T07:30:00 | B32: 2190 | C32: 548 | D32: 3121 | E32: 780 | F32: 0 | G32: 0 | H32: 0 | I32: 0 | J32: 0 | K32: 0 | L32: 637 | M32: 159 | N32: 598 | O32: 150 | P32: 0 | Q32: 0 | R32: 111.058 | S32: 27.7645 | T32: 111.058 | U32: 27.7645 | V32: 2827 | W32: 707 | X32: 3719 | Y32: 930 | Z32: 0 | AA32: 0 | AB32: 111.058 | AC32: 27.7645 | AD32: 111.058 | AE32: 27.7645 | AF32: 196 | AG32: 0.196 | AH32: 318 | AI32: 0.318 | AJ32: 215 | AK32: 0.215 | AL32: 86 | AM32: 0.086 | AN32: 62 | AO32: 0.062 | AP32: 530 | AQ32: 132 | AR32: 368 | AS32: 92 | AT32: 390.16 | AU32: 97.54 | AV32: 898 | AW32: 224.376
A33: 2024-01-01T07:45:00 | B33: 2171 | C33: 543 | D33: 3137 | E33: 784 | F33: 0 | G33: 0 | H33: 0 | I33: 0 | J33: 0 | K33: 0 | L33: 626 | M33: 157 | N33: 617 | O33: 154 | P33: 0 | Q33: 0 | R33: 111.058 | S33: 27.7645 | T33: 111.058 | U33: 27.7645 | V33: 2797 | W33: 699 | X33: 3755 | Y33: 939 | Z33: 0 | AA33: 0 | AB33: 111.058 | AC33: 27.7645 | AD33: 111.058 | AE33: 27.7645 | AF33: 192 | AG33: 0.192 | AH33: 299 | AI33: 0.299 | AJ33: 209 | AK33: 0.209 | AL33: 67 | AM33: 0.067 | AN33: 62 | AO33: 0.062 | AP33: 530 | AQ33: 132 | AR33: 432 | AS33: 108 | AT33: 425.82 | AU33: 106.455 | AV33: 962 | AW33: 240.581
A34: 2024-01-01T08:00:00 | B34: 2192 | C34: 548 | D34: 3124 | E34: 781 | F34: 0 | G34: 0 | H34: 0 | I34: 0 | J34: 0 | K34: 0 | L34: 598 | M34: 149 | N34: 633 | O34: 158 | P34: 0 | Q34: 0 | R34: 170.238 | S34: 42.5595 | T34: 170.238 | U34: 42.5595 | V34: 2790 | W34: 698 | X34: 3757 | Y34: 939 | Z34: 0 | AA34: 0 | AB34: 170.238 | AC34: 42.5595 | AD34: 170.238 | AE34: 42.5595 | AF34: 195 | AG34: 0.195 | AH34: 294 | AI34: 0.294 | AJ34: 211 | AK34: 0.211 | AL34: 56 | AM34: 0.056 | AN34: 56 | AO34: 0.056 | AP34: 530 | AQ34: 132 | AR34: 442 | AS34: 110 | AT34: 391.48 | AU34: 97.87 | AV34: 972 | AW34: 242.947
A35: 2024-01-01T08:15:00 | B35: 2216 | C35: 554 | D35: 3136 | E35: 784 | F35: 0 | G35: 0 | H35: 0 | I35: 0 | J35: 0 | K35: 0 | L35: 587 | M35: 147 | N35: 634 | O35: 158 | P35: 0 | Q35: 0 | R35: 170.238 | S35: 42.5595 | T35: 170.238 | U35: 42.5595 | V35: 2802 | W35: 701 | X35: 3769 | Y35: 942 | Z35: 0 | AA35: 0 | AB35: 170.238 | AC35: 42.5595 | AD35: 170.238 | AE35: 42.5595 | AF35: 202 | AG35: 0.202 | AH35: 290 | AI35: 0.29 | AJ35: 216 | AK35: 0.216 | AL35: 56 | AM35: 0.056 | AN35: 56 | AO35: 0.056 | AP35: 530 | AQ35: 132 | AR35: 442 | AS35: 110 | AT35: 379.31 | AU35: 94.8275 | AV35: 972 | AW35: 242.930
A36: 2024-01-01T08:30:00 | B36: 2252 | C36: 563 | D36: 3141 | E36: 785 | F36: 0 | G36: 0 | H36: 0 | I36: 0 | J36: 0 | K36: 0 | L36: 560 | M36: 140 | N36: 639 | O36: 160 | P36: 0 | Q36: 0 | R36: 170.336 | S36: 42.584 | T36: 170.336 | U36: 42.584 | V36: 2812 | W36: 703 | X36: 3780 | Y36: 945 | Z36: 0 | AA36: 0 | AB36: 170.336 | AC36: 42.584 | AD36: 170.336 | AE36: 42.584 | AF36: 197 | AG36: 0.197 | AH36: 284 | AI36: 0.284 | AJ36: 211 | AK36: 0.211 | AL36: 49 | AM36: 0.049 | AN36: 49 | AO36: 0.049 | AP36: 530 | AQ36: 132 | AR36: 442 | AS36: 110 | AT36: 348.92 | AU36: 87.23 | AV36: 972 | AW36: 242.930
A37: 2024-01-01T08:45:00 | B37: 2304 | C37: 576 | D37: 3178 | E37: 795 | F37: 0 | G37: 0 | H37: 0 | I37: 0 | J37: 0 | K37: 0 | L37: 565 | M37: 141 | N37: 657 | O37: 164 | P37: 0 | Q37: 0 | R37: 170.336 | S37: 42.584 | T37: 170.336 | U37: 42.584 | V37: 2869 | W37: 717 | X37: 3835 | Y37: 959 | Z37: 0 | AA37: 0 | AB37: 170.336 | AC37: 42.584 | AD37: 170.336 | AE37: 42.584 | AF37: 191 | AG37: 0.191 | AH37: 265 | AI37: 0.265 | AJ37: 204 | AK37: 0.204 | AL37: 49 | AM37: 0.049 | AN37: 49 | AO37: 0.049 | AP37: 530 | AQ37: 132 | AR37: 442 | AS37: 110 | AT37: 333.67 | AU37: 83.4175 | AV37: 972 | AW37: 242.934
A38: 2024-01-01T09:00:00 | B38: 2358 | C38: 590 | D38: 3237 | E38: 809 | F38: 0 | G38: 0 | H38: 0 | I38: 0 | J38: 0 | K38: 0 | L38: 592 | M38: 148 | N38: 681 | O38: 170 | P38: 0 | Q38: 0 | R38: 149.828 | S38: 37.457 | T38: 149.828 | U38: 37.457 | V38: 2950 | W38: 738 | X38: 3918 | Y38: 979 | Z38: 0 | AA38: 0 | AB38: 149.828 | AC38: 37.457 | AD38: 149.828 | AE38: 37.457 | AF38: 177 | AG38: 0.177 | AH38: 274 | AI38: 0.274 | AJ38: 193 | AK38: 0.193 | AL38: 48 | AM38: 0.048 | AN38: 48 | AO38: 0.048 | AP38: 530 | AQ38: 132 | AR38: 442 | AS38: 110 | AT38: 338.62 | AU38: 84.655 | AV38: 972 | AW38: 242.936
A39: 2024-01-01T09:15:00 | B39: 2413 | C39: 603 | D39: 3295 | E39: 824 | F39: 0 | G39: 0 | H39: 0 | I39: 0 | J39: 0 | K39: 0 | L39: 614 | M39: 154 | N39: 700 | O39: 175 | P39: 0 | Q39: 0 | R39: 149.828 | S39: 37.457 | T39: 149.828 | U39: 37.457 | V39: 3027 | W39: 757 | X39: 3994 | Y39: 999 | Z39: 0 | AA39: 0 | AB39: 149.828 | AC39: 37.457 | AD39: 149.828 | AE39: 37.457 | AF39: 172 | AG39: 0.172 | AH39: 271 | AI39: 0.271 | AJ39: 189 | AK39: 0.189 | AL39: 48 | AM39: 0.048 | AN39: 48 | AO39: 0.048 | AP39: 530 | AQ39: 132 | AR39: 442 | AS39: 110 | AT39: 340.24 | AU39: 85.06 | AV39: 972 | AW39: 242.938
A40: 2024-01-01T09:30:00 | B40: 2450 | C40: 612 | D40: 3357 | E40: 839 | F40: 0 | G40: 0 | H40: 0 | I40: 0 | J40: 0 | K40: 0 | L40: 661 | M40: 165 | N40: 720 | O40: 180 | P40: 0 | Q40: 0 | R40: 72.232 | S40: 18.058 | T40: 72.232 | U40: 18.058 | V40: 3111 | W40: 778 | X40: 4077 | Y40: 1019 | Z40: 0 | AA40: 0 | AB40: 72.232 | AC40: 18.058 | AD40: 72.232 | AE40: 18.058 | AF40: 167 | AG40: 0.167 | AH40: 259 | AI40: 0.259 | AJ40: 183 | AK40: 0.183 | AL40: 50 | AM40: 0.050 | AN40: 50 | AO40: 0.05 | AP40: 530 | AQ40: 132 | AR40: 442 | AS40: 110 | AT40: 365.35 | AU40: 91.3375 | AV40: 972 | AW40: 242.936
A41: 2024-01-01T09:45:00 | B41: 2500 | C41: 625 | D41: 3417 | E41: 854 | F41: 0 | G41: 0 | H41: 0 | I41: 0 | J41: 0 | K41: 0 | L41: 686 | M41: 172 | N41: 738 | O41: 184 | P41: 0 | Q41: 0 | R41: 72.232 | S41: 18.058 | T41: 72.232 | U41: 18.058 | V41: 3187 | W41: 797 | X41: 4155 | Y41: 1039 | Z41: 0 | AA41: 0 | AB41: 72.232 | AC41: 18.058 | AD41: 72.232 | AE41: 18.058 | AF41: 157 | AG41: 0.157 | AH41: 253 | AI41: 0.253 | AJ41: 174 | AK41: 0.174 | AL41: 50 | AM41: 0.050 | AN41: 50 | AO41: 0.05 | AP41: 530 | AQ41: 132 | AR41: 442 | AS41: 110 | AT41: 374.89 | AU41: 93.7225 | AV41: 972 | AW41: 242.935
A42: 2024-01-01T10:00:00 | B42: 2581 | C42: 645 | D42: 3484 | E42: 871 | F42: 0 | G42: 0 | H42: 0 | I42: 0 | J42: 0 | K42: 0 | L42: 727 | M42: 182 | N42: 758 | O42: 190 | P42: 0 | Q42: 0 | R42: 20.99 | S42: 5.2475 | T42: 20.99 | U42: 5.2475 | V42: 3308 | W42: 827 | X42: 4242 | Y42: 1061 | Z42: 0 | AA42: 0 | AB42: 20.99 | AC42: 5.2475 | AD42: 20.99 | AE42: 5.2475 | AF42: 155 | AG42: 0.155 | AH42: 250 | AI42: 0.25 | AJ42: 172 | AK42: 0.172 | AL42: 52 | AM42: 0.052 | AN42: 52 | AO42: 0.052 | AP42: 530 | AQ42: 132 | AR42: 408 | AS42: 102 | AT42: 361.75 | AU42: 90.4375 | AV42: 938 | AW42: 234.541
A43: 2024-01-01T10:15:00 | B43: 2689 | C43: 672 | D43: 3548 | E43: 887 | F43: 0 | G43: 0 | H43: 0 | I43: 0 | J43: 0 | K43: 0 | L43: 758 | M43: 190 | N43: 775 | O43: 194 | P43: 0 | Q43: 0 | R43: 20.99 | S43: 5.2475 | T43: 20.99 | U43: 5.2475 | V43: 3447 | W43: 862 | X43: 4324 | Y43: 1081 | Z43: 0 | AA43: 0 | AB43: 20.99 | AC43: 5.2475 | AD43: 20.99 | AE43: 5.2475 | AF43: 153 | AG43: 0.153 | AH43: 251 | AI43: 0.251 | AJ43: 171 | AK43: 0.171 | AL43: 52 | AM43: 0.052 | AN43: 52 | AO43: 0.052 | AP43: 530 | AQ43: 132 | AR43: 349 | AS43: 87 | AT43: 318.82 | AU43: 79.705 | AV43: 879 | AW43: 219.667
A44: 2024-01-01T10:30:00 | B44: 2811 | C44: 703 | D44: 3606 | E44: 902 | F44: 0 | G44: 0 | H44: 0 | I44: 0 | J44: 0 | K44: 0 | L44: 715 | M44: 179 | N44: 790 | O44: 198 | P44: 0 | Q44: 0 | R44: 0 | S44: 0 | T44: 0 | U44: 0 | V44: 3526 | W44: 882 | X44: 4397 | Y44: 1099 | Z44: 0 | AA44: 0 | AB44: 0 | AC44: 0 | AD44: 0 | AE44: 0 | AF44: 148 | AG44: 0.148 | AH44: 242 | AI44: 0.242 | AJ44: 165 | AK44: 0.165 | AL44: 57 | AM44: 0.057 | AN44: 57 | AO44: 0.057 | AP44: 530 | AQ44: 132 | AR44: 343 | AS44: 86 | AT44: 254.12 | AU44: 63.53 | AV44: 873 | AW44: 218.355
A45: 2024-01-01T10:45:00 | B45: 2913 | C45: 728 | D45: 3659 | E45: 915 | F45: 0 | G45: 0 | H45: 0 | I45: 0 | J45: 0 | K45: 0 | L45: 684 | M45: 171 | N45: 808 | O45: 202 | P45: 0 | Q45: 0 | R45: 0 | S45: 0 | T45: 0 | U45: 0 | V45: 3597 | W45: 899 | X45: 4466 | Y45: 1117 | Z45: 0 | AA45: 0 | AB45: 0 | AC45: 0 | AD45: 0 | AE45: 0 | AF45: 143 | AG45: 0.143 | AH45: 234 | AI45: 0.234 | AJ45: 159 | AK45: 0.159 | AL45: 57 | AM45: 0.057 | AN45: 57 | AO45: 0.057 | AP45: 530 | AQ45: 132 | AR45: 343 | AS45: 86 | AT45: 204.04 | AU45: 51.01 | AV45: 873 | AW45: 218.359
A46: 2024-01-01T11:00:00 | B46: 3007 | C46: 752 | D46: 3715 | E46: 929 | F46: 0 | G46: 0 | H46: 0 | I46: 0 | J46: 0 | K46: 0 | L46: 671 | M46: 168 | N46: 831 | O46: 208 | P46: 0 | Q46: 0 | R46: 0 | S46: 0 | T46: 0 | U46: 0 | V46: 3678 | W46: 920 | X46: 4546 | Y46: 1136 | Z46: 0 | AA46: 0 | AB46: 0 | AC46: 0 | AD46: 0 | AE46: 0 | AF46: 142 | AG46: 0.142 | AH46: 229 | AI46: 0.229 | AJ46: 157 | AK46: 0.157 | AL46: 64 | AM46: 0.064 | AN46: 64 | AO46: 0.064 | AP46: 530 | AQ46: 132 | AR46: 344 | AS46: 86 | AT46: 165.73 | AU46: 41.4325 | AV46: 873 | AW46: 218.375
A47: 2024-01-01T11:15:00 | B47: 3104 | C47: 776 | D47: 3766 | E47: 941 | F47: 0 | G47: 0 | H47: 0 | I47: 0 | J47: 0 | K47: 0 | L47: 671 | M47: 168 | N47: 850 | O47: 213 | P47: 0 | Q47: 0 | R47: 0 | S47: 0 | T47: 0 | U47: 0 | V47: 3775 | W47: 944 | X47: 4616 | Y47: 1154 | Z47: 0 | AA47: 0 | AB47: 0 | AC47: 0 | AD47: 0 | AE47: 0 | AF47: 139 | AG47: 0.139 | AH47: 224 | AI47: 0.224 | AJ47: 155 | AK47: 0.155 | AL47: 64 | AM47: 0.064 | AN47: 64 | AO47: 0.064 | AP47: 530 | AQ47: 132 | AR47: 315 | AS47: 79 | AT47: 119.55 | AU47: 29.8875 | AV47: 845 | AW47: 211.156
A48: 2024-01-01T11:30:00 | B48: 3209 | C48: 802 | D48: 3824 | E48: 956 | F48: 0 | G48: 0 | H48: 0 | I48: 0 | J48: 0 | K48: 0 | L48: 659 | M48: 165 | N48: 869 | O48: 217 | P48: 0 | Q48: 0 | R48: 0 | S48: 0 | T48: 0 | U48: 0 | V48: 3869 | W48: 967 | X48: 4694 | Y48: 1173 | Z48: 0 | AA48: 0 | AB48: 0 | AC48: 0 | AD48: 0 | AE48: 0 | AF48: 142 | AG48: 0.142 | AH48: 226 | AI48: 0.226 | AJ48: 157 | AK48: 0.157 | AL48: 74 | AM48: 0.074 | AN48: 74 | AO48: 0.074 | AP48: 530 | AQ48: 132 | AR48: 302 | AS48: 75 | AT48: 74.64 | AU48: 18.66 | AV48: 832 | AW48: 207.887
A49: 2024-01-01T11:45:00 | B49: 3343 | C49: 836 | D49: 3907 | E49: 977 | F49: 0 | G49: 0 | H49: 0 | I49: 0 | J49: 0 | K49: 0 | L49: 628 | M49: 157 | N49: 887 | O49: 222 | P49: 0 | Q49: 0 | R49: 0 | S49: 0 | T49: 0 | U49: 0 | V49: 3971 | W49: 993 | X49: 4794 | Y49: 1199 | Z49: 0 | AA49: 0 | AB49: 0 | AC49: 0 | AD49: 0 | AE49: 0 | AF49: 137 | AG49: 0.137 | AH49: 213 | AI49: 0.213 | AJ49: 151 | AK49: 0.151 | AL49: 74 | AM49: 0.074 | AN49: 74 | AO49: 0.074 | AP49: 530 | AQ49: 132 | AR49: 303 | AS49: 76 | AT49: 22.13 | AU49: 5.5325 | AV49: 833 | AW49: 208.137
A50: 2024-01-01T12:00:00 | B50: 3386 | C50: 846 | D50: 3958 | E50: 989 | F50: 0 | G50: 0 | H50: 0 | I50: 0 | J50: 0 | K50: 0 | L50: 640 | M50: 160 | N50: 909 | O50: 227 | P50: 0 | Q50: 0 | R50: 0 | S50: 0 | T50: 0 | U50: 0 | V50: 4026 | W50: 1006 | X50: 4867 | Y50: 1217 | Z50: 0 | AA50: 0 | AB50: 0 | AC50: 0 | AD50: 0 | AE50: 0 | AF50: 133 | AG50: 0.133 | AH50: 206 | AI50: 0.206 | AJ50: 147 | AK50: 0.147 | AL50: 84 | AM50: 0.084 | AN50: 84 | AO50: 0.084 | AP50: 530 | AQ50: 132 | AR50: 319 | AS50: 80 | AT50: 30.69 | AU50: 7.6725 | AV50: 849 | AW50: 212.276
A51: 2024-01-01T12:15:00 | B51: 3449 | C51: 862 | D51: 4010 | E51: 1002 | F51: 0 | G51: 0 | H51: 0 | I51: 0 | J51: 0 | K51: 0 | L51: 650 | M51: 163 | N51: 931 | O51: 233 | P51: 0 | Q51: 0 | R51: 0 | S51: 0 | T51: 0 | U51: 0 | V51: 4099 | W51: 1025 | X51: 4941 | Y51: 1235 | Z51: 0 | AA51: 0 | AB51: 0 | AC51: 0 | AD51: 0 | AE51: 0 | AF51: 137 | AG51: 0.137 | AH51: 210 | AI51: 0.21 | AJ51: 150 | AK51: 0.15 | AL51: 84 | AM51: 0.084 | AN51: 84 | AO51: 0.084 | AP51: 530 | AQ51: 132 | AR51: 320 | AS51: 80 | AT51: 20.2 | AU51: 5.05 | AV51: 850 | AW51: 212.562
A52: 2024-01-01T12:30:00 | B52: 3476 | C52: 869 | D52: 4050 | E52: 1013 | F52: 0 | G52: 0 | H52: 0 | I52: 0 | J52: 0 | K52: 0 | L52: 673 | M52: 168 | N52: 949 | O52: 237 | P52: 0 | Q52: 0 | R52: 0 | S52: 0 | T52: 0 | U52: 0 | V52: 4149 | W52: 1037 | X52: 4999 | Y52: 1250 | Z52: 0 | AA52: 0 | AB52: 0 | AC52: 0 | AD52: 0 | AE52: 0 | AF52: 135 | AG52: 0.135 | AH52: 206 | AI52: 0.206 | AJ52: 148 | AK52: 0.148 | AL52: 94 | AM52: 0.094 | AN52: 94 | AO52: 0.094 | AP52: 530 | AQ52: 132 | AR52: 329 | AS52: 82 | AT52: 32.14 | AU52: 8.035 | AV52: 859 | AW52: 214.644
A53: 2024-01-01T12:45:00 | B53: 3539 | C53: 885 | D53: 4108 | E53: 1027 | F53: 0 | G53: 0 | H53: 0 | I53: 0 | J53: 0 | K53: 0 | L53: 686 | M53: 172 | N53: 959 | O53: 240 | P53: 0 | Q53: 0 | R53: 0 | S53: 0 | T53: 0 | U53: 0 | V53: 4225 | W53: 1056 | X53: 5067 | Y53: 1267 | Z53: 0 | AA53: 0 | AB53: 0 | AC53: 0 | AD53: 0 | AE53: 0 | AF53: 135 | AG53: 0.135 | AH53: 197 | AI53: 0.197 | AJ53: 147 | AK53: 0.147 | AL53: 94 | AM53: 0.094 | AN53: 94 | AO53: 0.094 | AP53: 530 | AQ53: 132 | AR53: 321 | AS53: 80 | AT53: 27.48 | AU53: 6.87 | AV53: 851 | AW53: 212.769
A54: 2024-01-01T13:00:00 | B54: 3598 | C54: 899 | D54: 4133 | E54: 1033 | F54: 0 | G54: 0 | H54: 0 | I54: 0 | J54: 0 | K54: 0 | L54: 708 | M54: 177 | N54: 964 | O54: 241 | P54: 0 | Q54: 0 | R54: 0 | S54: 0 | T54: 0 | U54: 0 | V54: 4306 | W54: 1076 | X54: 5098 | Y54: 1274 | Z54: 0 | AA54: 0 | AB54: 0 | AC54: 0 | AD54: 0 | AE54: 0 | AF54: 136 | AG54: 0.136 | AH54: 200 | AI54: 0.2 | AJ54: 148 | AK54: 0.148 | AL54: 104 | AM54: 0.104 | AN54: 104 | AO54: 0.104 | AP54: 530 | AQ54: 133 | AR54: 269 | AS54: 67 | AT54: -5.46 | AU54: -1.365 | AV54: 799 | AW54: 199.819
A55: 2024-01-01T13:15:00 | B55: 3600 | C55: 900 | D55: 4151 | E55: 1038 | F55: 0 | G55: 0 | H55: 0 | I55: 0 | J55: 0 | K55: 0 | L55: 733 | M55: 183 | N55: 963 | O55: 241 | P55: 0 | Q55: 0 | R55: 0 | S55: 0 | T55: 0 | U55: 0 | V55: 4333 | W55: 1083 | X55: 5115 | Y55: 1279 | Z55: 0 | AA55: 0 | AB55: 0 | AC55: 0 | AD55: 0 | AE55: 0 | AF55: 140 | AG55: 0.14 | AH55: 189 | AI55: 0.189 | AJ55: 149 | AK55: 0.149 | AL55: 104 | AM55: 0.104 | AN55: 104 | AO55: 0.104 | AP55: 529 | AQ55: 132 | AR55: 260 | AS55: 65 | AT55: 9.66 | AU55: 2.415 | AV55: 789 | AW55: 197.248
A56: 2024-01-01T13:30:00 | B56: 3669 | C56: 917 | D56: 4160 | E56: 1040 | F56: 0 | G56: 0 | H56: 0 | I56: 0 | J56: 0 | K56: 0 | L56: 759 | M56: 190 | N56: 964 | O56: 241 | P56: 0 | Q56: 0 | R56: 0 | S56: 0 | T56: 0 | U56: 0 | V56: 4428 | W56: 1107 | X56: 5123 | Y56: 1281 | Z56: 0 | AA56: 0 | AB56: 0 | AC56: 0 | AD56: 0 | AE56: 0 | AF56: 137 | AG56: 0.137 | AH56: 192 | AI56: 0.192 | AJ56: 147 | AK56: 0.147 | AL56: 113 | AM56: 0.113 | AN56: 113 | AO56: 0.113 | AP56: 483 | AQ56: 121 | AR56: 217 | AS56: 54 | AT56: -6.6 | AU56: -1.65 | AV56: 700 | AW56: 175.093
A57: 2024-01-01T13:45:00 | B57: 3711 | C57: 928 | D57: 4170 | E57: 1042 | F57: 0 | G57: 0 | H57: 0 | I57: 0 | J57: 0 | K57: 0 | L57: 759 | M57: 190 | N57: 960 | O57: 240 | P57: 0 | Q57: 0 | R57: 0 | S57: 0 | T57: 0 | U57: 0 | V57: 4470 | W57: 1118 | X57: 5130 | Y57: 1282 | Z57: 0 | AA57: 0 | AB57: 0 | AC57: 0 | AD57: 0 | AE57: 0 | AF57: 140 | AG57: 0.14 | AH57: 195 | AI57: 0.195 | AJ57: 150 | AK57: 0.15 | AL57: 113 | AM57: 0.113 | AN57: 113 | AO57: 0.113 | AP57: 456 | AQ57: 114 | AR57: 212 | AS57: 53 | AT57: -8.6 | AU57: -2.15 | AV57: 668 | AW57: 166.888
A58: 2024-01-01T14:00:00 | B58: 3632 | C58: 908 | D58: 4192 | E58: 1048 | F58: 134.92 | G58: 33.73 | H58: 0 | I58: 0 | J58: 134.92 | K58: 33.73 | L58: 773 | M58: 193 | N58: 952 | O58: 238 | P58: 5.5 | Q58: 1.375 | R58: 0 | S58: 0 | T58: 5.5 | U58: 1.375 | V58: 4406 | W58: 1101 | X58: 5144 | Y58: 1286 | Z58: 140.42 | AA58: 35.105 | AB58: 0 | AC58: 0 | AD58: 140.42 | AE58: 35.105 | AF58: 126 | AG58: 0.126 | AH58: 189 | AI58: 0.189 | AJ58: 138 | AK58: 0.138 | AL58: 117 | AM58: 0.117 | AN58: 117 | AO58: 0.117 | AP58: 519 | AQ58: 130 | AR58: 228 | AS58: 57 | AT58: 27.94 | AU58: 6.985 | AV58: 747 | AW58: 186.842
A59: 2024-01-01T14:15:00 | B59: 3575 | C59: 894 | D59: 4197 | E59: 1049 | F59: 134.92 | G59: 33.73 | H59: 0 | I59: 0 | J59: 134.92 | K59: 33.73 | L59: 834 | M59: 209 | N59: 949 | O59: 237 | P59: 5.5 | Q59: 1.375 | R59: 0 | S59: 0 | T59: 5.5 | U59: 1.375 | V59: 4409 | W59: 1102 | X59: 5146 | Y59: 1286 | Z59: 140.42 | AA59: 35.105 | AB59: 0 | AC59: 0 | AD59: 140.42 | AE59: 35.105 | AF59: 121 | AG59: 0.121 | AH59: 199 | AI59: 0.199 | AJ59: 135 | AK59: 0.135 | AL59: 117 | AM59: 0.117 | AN59: 117 | AO59: 0.117 | AP59: 509 | AQ59: 127 | AR59: 232 | AS59: 58 | AT59: 98.96 | AU59: 24.74 | AV59: 742 | AW59: 185.375
A60: 2024-01-01T14:30:00 | B60: 3587 | C60: 897 | D60: 4187 | E60: 1047 | F60: 248.22 | G60: 62.055 | H60: 0 | I60: 0 | J60: 248.22 | K60: 62.055 | L60: 841 | M60: 210 | N60: 943 | O60: 236 | P60: 86.86 | Q60: 21.715 | R60: 0 | S60: 0 | T60: 86.86 | U60: 21.715 | V60: 4428 | W60: 1107 | X60: 5129 | Y60: 1282 | Z60: 335.08 | AA60: 83.77 | AB60: 0 | AC60: 0 | AD60: 335.08 | AE60: 83.77 | AF60: 119 | AG60: 0.119 | AH60: 198 | AI60: 0.198 | AJ60: 133 | AK60: 0.133 | AL60: 120 | AM60: 0.120 | AN60: 120 | AO60: 0.12 | AP60: 437 | AQ60: 109 | AR60: 267 | AS60: 67 | AT60: 147.14 | AU60: 36.785 | AV60: 705 | AW60: 176.178
A61: 2024-01-01T14:45:00 | B61: 3617 | C61: 904 | D61: 4183 | E61: 1046 | F61: 248.22 | G61: 62.055 | H61: 0 | I61: 0 | J61: 248.22 | K61: 62.055 | L61: 861 | M61: 215 | N61: 945 | O61: 236 | P61: 86.86 | Q61: 21.715 | R61: 0 | S61: 0 | T61: 86.86 | U61: 21.715 | V61: 4479 | W61: 1120 | X61: 5129 | Y61: 1282 | Z61: 335.08 | AA61: 83.77 | AB61: 0 | AC61: 0 | AD61: 335.08 | AE61: 83.77 | AF61: 118 | AG61: 0.118 | AH61: 203 | AI61: 0.203 | AJ61: 134 | AK61: 0.134 | AL61: 120 | AM61: 0.120 | AN61: 120 | AO61: 0.12 | AP61: 386 | AQ61: 97 | AR61: 268 | AS61: 67 | AT61: 167.38 | AU61: 41.845 | AV61: 654 | AW61: 163.490
A62: 2024-01-01T15:00:00 | B62: 3586 | C62: 897 | D62: 4197 | E62: 1049 | F62: 41.38 | G62: 10.345 | H62: 0 | I62: 0 | J62: 41.38 | K62: 10.345 | L62: 926 | M62: 232 | N62: 955 | O62: 239 | P62: 52.06 | Q62: 13.015 | R62: 0 | S62: 0 | T62: 52.06 | U62: 13.015 | V62: 4512 | W62: 1128 | X62: 5151 | Y62: 1288 | Z62: 93.44 | AA62: 23.36 | AB62: 0 | AC62: 0 | AD62: 93.44 | AE62: 23.36 | AF62: 114 | AG62: 0.114 | AH62: 204 | AI62: 0.204 | AJ62: 131 | AK62: 0.131 | AL62: 115 | AM62: 0.115 | AN62: 115 | AO62: 0.115 | AP62: 411 | AQ62: 103 | AR62: 229 | AS62: 57 | AT62: 185.03 | AU62: 46.2575 | AV62: 640 | AW62: 159.956
A63: 2024-01-01T15:15:00 | B63: 3601 | C63: 900 | D63: 4217 | E63: 1054 | F63: 41.38 | G63: 10.345 | H63: 0 | I63: 0 | J63: 41.38 | K63: 10.345 | L63: 1002 | M63: 251 | N63: 962 | O63: 240 | P63: 52.06 | Q63: 13.015 | R63: 0 | S63: 0 | T63: 52.06 | U63: 13.015 | V63: 4603 | W63: 1151 | X63: 5179 | Y63: 1295 | Z63: 93.44 | AA63: 23.36 | AB63: 0 | AC63: 0 | AD63: 93.44 | AE63: 23.36 | AF63: 99 | AG63: 0.099 | AH63: 195 | AI63: 0.195 | AJ63: 116 | AK63: 0.116 | AL63: 127 | AM63: 0.127 | AN63: 115 | AO63: 0.115 | AP63: 343 | AQ63: 86 | AR63: 230 | AS63: 58 | AT63: 256.28 | AU63: 64.07 | AV63: 573 | AW63: 143.167
A64: 2024-01-01T15:30:00 | B64: 3609 | C64: 902 | D64: 4214 | E64: 1053 | F64: 7.06 | G64: 1.765 | H64: 0 | I64: 0 | J64: 7.06 | K64: 1.765 | L64: 1077 | M64: 269 | N64: 971 | O64: 243 | P64: 0 | Q64: 0 | R64: 0 | S64: 0 | T64: 0 | U64: 0 | V64: 4686 | W64: 1172 | X64: 5185 | Y64: 1296 | Z64: 7.06 | AA64: 1.765 | AB64: 0 | AC64: 0 | AD64: 7.06 | AE64: 1.765 | AF64: 99 | AG64: 0.099 | AH64: 191 | AI64: 0.191 | AJ64: 116 | AK64: 0.116 | AL64: 141 | AM64: 0.141 | AN64: 118 | AO64: 0.118 | AP64: 268 | AQ64: 67 | AR64: 226 | AS64: 56 | AT64: 320.75 | AU64: 80.1875 | AV64: 493 | AW64: 123.283
A65: 2024-01-01T15:45:00 | B65: 3710 | C65: 927 | D65: 4224 | E65: 1056 | F65: 7.06 | G65: 1.765 | H65: 0 | I65: 0 | J65: 7.06 | K65: 1.765 | L65: 1154 | M65: 289 | N65: 989 | O65: 247 | P65: 0 | Q65: 0 | R65: 0 | S65: 0 | T65: 0 | U65: 0 | V65: 4864 | W65: 1216 | X65: 5212 | Y65: 1303 | Z65: 7.06 | AA65: 1.765 | AB65: 0 | AC65: 0 | AD65: 7.06 | AE65: 1.765 | AF65: 103 | AG65: 0.103 | AH65: 186 | AI65: 0.186 | AJ65: 119 | AK65: 0.119 | AL65: 153 | AM65: 0.153 | AN65: 118 | AO65: 0.118 | AP65: 193 | AQ65: 48 | AR65: 152 | AS65: 38 | AT65: 305.5 | AU65: 76.375 | AV65: 344 | AW65: 86.113
A66: 2024-01-01T16:00:00 | B66: 3909 | C66: 977 | D66: 4272 | E66: 1068 | F66: 0 | G66: =F66/4 -> 0 | H66: 0 | I66: 0 | J66: 0 | K66: 0 | L66: 1169 | M66: 292 | N66: 1002 | O66: 251 | P66: 0 | Q66: =P66/4 -> 0 | R66: 0 | S66: 0 | T66: 0 | U66: 0 | V66: =B66+L66 -> 5078 | W66: 1270 | X66: =D66+N66 -> 5274 | Y66: 1319 | Z66: =F66+P66 -> 0 | AA66: 0 | AB66: 0 | AC66: 0 | AD66: 0 | AE66: 0 | AF66: 109 | AG66: 0.109 | AH66: 191 | AI66: 0.191 | AJ66: 125 | AK66: 0.125 | AL66: 168 | AM66: 0.168 | AN66: 118 | AO66: =AN66/1000 -> 0.118 | AP66: 118 | AQ66: 29 | AR66: 76 | AS66: 19 | AT66: 228.48 | AU66: 57.12 | AV66: 194 | AW66: 48.443
A67: 2024-01-01T16:15:00 | B67: 4028 | C67: =B67/4 -> 1007 | D67: 4322 | E67: =D67/4 -> 1080 | F67: 0 | G67: 0 | H67: 0 | I67: =H67/4 -> 0 | J67: =F67+H67 -> 0 | K67: 0 | L67: 1236 | M67: =L67/4 -> 309 | N67: 1028 | O67: =N67/4 -> 257 | P67: 0 | Q67: 0 | R67: 0 | S67: =R67/4 -> 0 | T67: =P67+R67 -> 0 | U67: 0 | V67: 5264 | W67: =V67/4 -> 1316 | X67: 5350 | Y67: =X67/4 -> 1337 | Z67: 0 | AA67: =Z67/4 -> 0 | AB67: =H67+R67 -> 0 | AC67: =AB67/4 -> 0 | AD67: =Z67+AB67 -> 0 | AE67: 0 | AF67: 121 | AG67: =AF67/1000 -> 0.121 | AH67: 183 | AI67: =AH67/1000 -> 0.183 | AJ67: 133 | AK67: =AJ67/1000 -> 0.133 | AL67: 172 | AM67: =AL67/1000 -> 0.172 | AN67: 118 | AO67: 0.118 | AP67: 43 | AQ67: =AP67/4 -> 11 | AR67: 43 | AS67: =AR67/4 -> 11 | AT67: 235.65 | AU67: =AT67/4 -> 58.9125 | AV67: =AP67+AR67 -> 86 | AW67: =AV67/4 -> 21.488
A68: 2024-01-01T16:30:00 | B68: 4035 | C68: 1009 | D68: 4390 | E68: 1098 | F68: 0 | G68: 0 | H68: 3.504 | I68: 0.876 | J68: 3.504 | K68: 0.876 | L68: 1301 | M68: 325 | N68: 1059 | O68: 265 | P68: 0 | Q68: 0 | R68: 0 | S68: 0 | T68: 0 | U68: 0 | V68: 5335 | W68: 1334 | X68: 5449 | Y68: 1362 | Z68: 0 | AA68: 0 | AB68: 3.504 | AC68: 0.876 | AD68: 3.504 | AE68: 0.876 | AF68: 120 | AG68: 0.12 | AH68: 177 | AI68: 0.177 | AJ68: 131 | AK68: 0.131 | AL68: 158 | AM68: 0.158 | AN68: 117 | AO68: 0.117 | AP68: 0 | AQ68: 0 | AR68: 115 | AS68: 29 | AT68: 340.6 | AU68: 85.15 | AV68: 115 | AW68: 28.711
A69: 2024-01-01T16:45:00 | B69: 3996 | C69: 999 | D69: 4431 | E69: 1108 | F69: 0 | G69: 0 | H69: 3.504 | I69: 0.876 | J69: 3.504 | K69: 0.876 | L69: 1337 | M69: 334 | N69: 1080 | O69: 270 | P69: 0 | Q69: 0 | R69: 0 | S69: 0 | T69: 0 | U69: 0 | V69: 5333 | W69: 1333 | X69: 5511 | Y69: 1378 | Z69: 0 | AA69: 0 | AB69: 3.504 | AC69: 0.876 | AD69: 3.504 | AE69: 0.876 | AF69: 119 | AG69: 0.119 | AH69: 172 | AI69: 0.172 | AJ69: 129 | AK69: 0.129 | AL69: 149 | AM69: 0.149 | AN69: 117 | AO69: 0.117 | AP69: 0 | AQ69: 0 | AR69: 178 | AS69: 45 | AT69: 421.6 | AU69: 105.4 | AV69: 178 | AW69: 44.563
A70: 2024-01-01T17:00:00 | B70: 4031 | C70: 1008 | D70: 4459 | E70: 1115 | F70: 0 | G70: 0 | H70: 13.402 | I70: 3.3505 | J70: 13.402 | K70: 3.3505 | L70: 1334 | M70: 333 | N70: 1087 | O70: 272 | P70: 0 | Q70: 0 | R70: 78.31 | S70: 19.5775 | T70: 78.31 | U70: 19.5775 | V70: 5365 | W70: 1341 | X70: 5547 | Y70: 1387 | Z70: 0 | AA70: 0 | AB70: 91.712 | AC70: 22.928 | AD70: 91.712 | AE70: 22.928 | AF70: 112 | AG70: 0.112 | AH70: 175 | AI70: 0.175 | AJ70: 124 | AK70: 0.124 | AL70: 150 | AM70: 0.150 | AN70: 117 | AO70: 0.117 | AP70: 0 | AQ70: 0 | AR70: 181 | AS70: 45 | AT70: 414.72 | AU70: 103.68 | AV70: 181 | AW70: 45.206
A71: 2024-01-01T17:15:00 | B71: 4080 | C71: 1020 | D71: 4466 | E71: 1116 | F71: 0 | G71: 0 | H71: 13.402 | I71: 3.3505 | J71: 13.402 | K71: 3.3505 | L71: 1276 | M71: 319 | N71: 1074 | O71: 268 | P71: 0 | Q71: 0 | R71: 78.31 | S71: 19.5775 | T71: 78.31 | U71: 19.5775 | V71: 5356 | W71: 1339 | X71: 5539 | Y71: 1385 | Z71: 0 | AA71: 0 | AB71: 91.712 | AC71: 22.928 | AD71: 91.712 | AE71: 22.928 | AF71: 117 | AG71: 0.117 | AH71: 172 | AI71: 0.172 | AJ71: 128 | AK71: 0.128 | AL71: 146 | AM71: 0.146 | AN71: 117 | AO71: 0.117 | AP71: 0 | AQ71: 0 | AR71: 181 | AS71: 45 | AT71: 372.9 | AU71: 93.225 | AV71: 181 | AW71: 45.244
A72: 2024-01-01T17:30:00 | B72: 4038 | C72: 1009 | D72: 4453 | E72: 1113 | F72: 0 | G72: 0 | H72: 36.722 | I72: 9.1805 | J72: 36.722 | K72: 9.1805 | L72: 1262 | M72: 316 | N72: 1056 | O72: 264 | P72: 0 | Q72: 0 | R72: 150.694 | S72: 37.6735 | T72: 150.694 | U72: 37.6735 | V72: 5300 | W72: 1325 | X72: 5509 | Y72: 1377 | Z72: 0 | AA72: 0 | AB72: 187.416 | AC72: 46.854 | AD72: 187.416 | AE72: 46.854 | AF72: 114 | AG72: 0.114 | AH72: 173 | AI72: 0.173 | AJ72: 125 | AK72: 0.125 | AL72: 142 | AM72: 0.142 | AN72: 112 | AO72: 0.112 | AP72: 0 | AQ72: 0 | AR72: 210 | AS72: 52 | AT72: 402.71 | AU72: 100.6775 | AV72: 210 | AW72: 52.476
A73: 2024-01-01T17:45:00 | B73: 4061 | C73: 1015 | D73: 4434 | E73: 1109 | F73: 0 | G73: 0 | H73: 36.722 | I73: 9.1805 | J73: 36.722 | K73: 9.1805 | L73: 1236 | M73: 309 | N73: 1032 | O73: 258 | P73: 0 | Q73: 0 | R73: 150.694 | S73: 37.6735 | T73: 150.694 | U73: 37.6735 | V73: 5297 | W73: 1324 | X73: 5466 | Y73: 1366 | Z73: 0 | AA73: 0 | AB73: 187.416 | AC73: 46.854 | AD73: 187.416 | AE73: 46.854 | AF73: 111 | AG73: 0.111 | AH73: 180 | AI73: 0.18 | AJ73: 124 | AK73: 0.124 | AL73: 149 | AM73: 0.149 | AN73: 112 | AO73: 0.112 | AP73: 0 | AQ73: 0 | AR73: 168 | AS73: 42 | AT73: 360.04 | AU73: 90.01 | AV73: 168 | AW73: 41.915
A74: 2024-01-01T18:00:00 | B74: 4101 | C74: 1025 | D74: 4406 | E74: 1101 | F74: 0 | G74: 0 | H74: 34.05 | I74: 8.5125 | J74: 34.05 | K74: 8.5125 | L74: 1239 | M74: 310 | N74: 1008 | O74: 252 | P74: 0 | Q74: 0 | R74: 144.288 | S74: 36.072 | T74: 144.288 | U74: 36.072 | V74: 5340 | W74: 1335 | X74: 5414 | Y74: 1353 | Z74: 0 | AA74: 0 | AB74: 178.338 | AC74: 44.5845 | AD74: 178.338 | AE74: 44.5845 | AF74: 114 | AG74: 0.114 | AH74: 185 | AI74: 0.185 | AJ74: 127 | AK74: 0.127 | AL74: 162 | AM74: 0.162 | AN74: 106 | AO74: 0.106 | AP74: -21 | AQ74: -5 | AR74: 93 | AS74: 23 | AT74: 310.15 | AU74: 77.5375 | AV74: 71 | AW74: 17.763
A75: 2024-01-01T18:15:00 | B75: 4051 | C75: 1013 | D75: 4367 | E75: 1092 | F75: 0 | G75: 0 | H75: 34.05 | I75: 8.5125 | J75: 34.05 | K75: 8.5125 | L75: 1220 | M75: 305 | N75: 984 | O75: 246 | P75: 0 | Q75: 0 | R75: 144.288 | S75: 36.072 | T75: 144.288 | U75: 36.072 | V75: 5271 | W75: 1318 | X75: 5351 | Y75: 1338 | Z75: 0 | AA75: 0 | AB75: 178.338 | AC75: 44.5845 | AD75: 178.338 | AE75: 44.5845 | AF75: 111 | AG75: 0.111 | AH75: 184 | AI75: 0.184 | AJ75: 124 | AK75: 0.124 | AL75: 160 | AM75: 0.160 | AN75: 106 | AO75: 0.106 | AP75: -23 | AQ75: -6 | AR75: 105 | AS75: 26 | AT75: 326.88 | AU75: 81.72 | AV75: 83 | AW75: 20.739
A76: 2024-01-01T18:30:00 | B76: 3862 | C76: 966 | D76: 4305 | E76: 1076 | F76: 0 | G76: 0 | H76: 29.992 | I76: 7.498 | J76: 29.992 | K76: 7.498 | L76: 1187 | M76: 297 | N76: 955 | O76: 239 | P76: 0 | Q76: 0 | R76: 223.954 | S76: 55.9885 | T76: 223.954 | U76: 55.9885 | V76: 5049 | W76: 1262 | X76: 5261 | Y76: 1315 | Z76: 0 | AA76: 0 | AB76: 253.946 | AC76: 63.4865 | AD76: 253.946 | AE76: 63.4865 | AF76: 103 | AG76: 0.103 | AH76: 189 | AI76: 0.189 | AJ76: 119 | AK76: 0.119 | AL76: 149 | AM76: 0.149 | AN76: 98 | AO76: 0.098 | AP76: 36 | AQ76: 9 | AR76: 182 | AS76: 46 | AT76: 399 | AU76: 99.75 | AV76: 218 | AW76: 54.435
A77: 2024-01-01T18:45:00 | B77: 3796 | C77: 949 | D77: 4255 | E77: 1064 | F77: 0 | G77: 0 | H77: 29.992 | I77: 7.498 | J77: 29.992 | K77: 7.498 | L77: 1124 | M77: 281 | N77: 929 | O77: 232 | P77: 0 | Q77: 0 | R77: 223.954 | S77: 55.9885 | T77: 223.954 | U77: 55.9885 | V77: 4920 | W77: 1230 | X77: 5184 | Y77: 1296 | Z77: 0 | AA77: 0 | AB77: 253.946 | AC77: 63.4865 | AD77: 253.946 | AE77: 63.4865 | AF77: 100 | AG77: 0.1 | AH77: 195 | AI77: 0.195 | AJ77: 117 | AK77: 0.117 | AL77: 147 | AM77: 0.147 | AN77: 98 | AO77: 0.098 | AP77: 80 | AQ77: 20 | AR77: 188 | AS77: 47 | AT77: 372.07 | AU77: 93.0175 | AV77: 268 | AW77: 66.985
A78: 2024-01-01T19:00:00 | B78: 3882 | C78: 970 | D78: 4229 | E78: 1057 | F78: 127.7 | G78: 31.925 | H78: 33.884 | I78: 8.471 | J78: 161.584 | K78: 40.396 | L78: 1132 | M78: 283 | N78: 912 | O78: 228 | P78: 0 | Q78: 0 | R78: 254.768 | S78: 63.692 | T78: 254.768 | U78: 63.692 | V78: 5013 | W78: 1253 | X78: 5141 | Y78: 1285 | Z78: 127.7 | AA78: 31.925 | AB78: 288.652 | AC78: 72.163 | AD78: 416.352 | AE78: 104.088 | AF78: 83 | AG78: 0.083 | AH78: 210 | AI78: 0.21 | AJ78: 106 | AK78: 0.106 | AL78: 168 | AM78: 0.168 | AN78: 87 | AO78: 0.087 | AP78: 18 | AQ78: 4 | AR78: 113 | AS78: 28 | AT78: 320.62 | AU78: 80.155 | AV78: 131 | AW78: 32.806
A79: 2024-01-01T19:15:00 | B79: 3836 | C79: 959 | D79: 4174 | E79: 1044 | F79: 127.7 | G79: 31.925 | H79: 33.884 | I79: 8.471 | J79: 161.584 | K79: 40.396 | L79: 1123 | M79: 281 | N79: 895 | O79: 224 | P79: 0 | Q79: 0 | R79: 254.768 | S79: 63.692 | T79: 254.768 | U79: 63.692 | V79: 4958 | W79: 1240 | X79: 5070 | Y79: 1267 | Z79: 127.7 | AA79: 31.925 | AB79: 288.652 | AC79: 72.163 | AD79: 416.352 | AE79: 104.088 | AF79: 83 | AG79: 0.083 | AH79: 213 | AI79: 0.213 | AJ79: 106 | AK79: 0.106 | AL79: 170 | AM79: 0.170 | AN79: 87 | AO79: 0.087 | AP79: 0 | AQ79: 0 | AR79: 118 | AS79: 29 | AT79: 331.21 | AU79: 82.8025 | AV79: 118 | AW79: 29.432
A80: 2024-01-01T19:30:00 | B80: 3697 | C80: 924 | D80: 4120 | E80: 1030 | F80: 372.3 | G80: 93.075 | H80: 35.202 | I80: 8.8005 | J80: 407.502 | K80: 101.8755 | L80: 1109 | M80: 277 | N80: 882 | O80: 221 | P80: 0 | Q80: 0 | R80: 275.02 | S80: 68.755 | T80: 275.02 | U80: 68.755 | V80: 4806 | W80: 1201 | X80: 5002 | Y80: 1251 | Z80: 372.3 | AA80: 93.075 | AB80: 310.222 | AC80: 77.5555 | AD80: 682.522 | AE80: 170.6305 | AF80: 83 | AG80: 0.083 | AH80: 212 | AI80: 0.212 | AJ80: 106 | AK80: 0.106 | AL80: 149 | AM80: 0.149 | AN80: 76 | AO80: 0.076 | AP80: 8 | AQ80: 2 | AR80: 194 | AS80: 48 | AT80: 407.83 | AU80: 101.9575 | AV80: 202 | AW80: 50.521
A81: 2024-01-01T19:45:00 | B81: 3653 | C81: 913 | D81: 4068 | E81: 1017 | F81: 372.3 | G81: 93.075 | H81: 35.202 | I81: 8.8005 | J81: 407.502 | K81: 101.8755 | L81: 1061 | M81: 265 | N81: 867 | O81: 217 | P81: 0 | Q81: 0 | R81: 275.02 | S81: 68.755 | T81: 275.02 | U81: 68.755 | V81: 4713 | W81: 1178 | X81: 4935 | Y81: 1234 | Z81: 372.3 | AA81: 93.075 | AB81: 310.222 | AC81: 77.5555 | AD81: 682.522 | AE81: 170.6305 | AF81: 82 | AG81: 0.082 | AH81: 213 | AI81: 0.213 | AJ81: 105 | AK81: 0.105 | AL81: 141 | AM81: 0.141 | AN81: 76 | AO81: 0.076 | AP81: 8 | AQ81: 2 | AR81: 214 | AS81: 53 | AT81: 397.62 | AU81: 99.405 | AV81: 221 | AW81: 55.335
A82: 2024-01-01T20:00:00 | B82: 3699 | C82: 925 | D82: 4045 | E82: 1011 | F82: 339.68 | G82: 84.92 | H82: 42.354 | I82: 10.5885 | J82: 382.034 | K82: 95.5085 | L82: 1051 | M82: 263 | N82: 851 | O82: 213 | P82: 0 | Q82: 0 | R82: 279.618 | S82: 69.9045 | T82: 279.618 | U82: 69.9045 | V82: 4751 | W82: 1188 | X82: 4896 | Y82: 1224 | Z82: 339.68 | AA82: 84.92 | AB82: 321.972 | AC82: 80.493 | AD82: 661.652 | AE82: 165.413 | AF82: 83 | AG82: 0.083 | AH82: 218 | AI82: 0.218 | AJ82: 107 | AK82: 0.107 | AL82: 153 | AM82: 0.153 | AN82: 66 | AO82: 0.066 | AP82: 0 | AQ82: 0 | AR82: 149 | AS82: 37 | AT82: 336.24 | AU82: 84.06 | AV82: 149 | AW82: 37.368
A83: 2024-01-01T20:15:00 | B83: 3643 | C83: 911 | D83: 3978 | E83: 995 | F83: 339.68 | G83: 84.92 | H83: 42.354 | I83: 10.5885 | J83: 382.034 | K83: 95.5085 | L83: 1033 | M83: 258 | N83: 833 | O83: 208 | P83: 0 | Q83: 0 | R83: 279.618 | S83: 69.9045 | T83: 279.618 | U83: 69.9045 | V83: 4676 | W83: 1169 | X83: 4811 | Y83: 1203 | Z83: 339.68 | AA83: 84.92 | AB83: 321.972 | AC83: 80.493 | AD83: 661.652 | AE83: 165.413 | AF83: 84 | AG83: 0.084 | AH83: 224 | AI83: 0.224 | AJ83: 108 | AK83: 0.108 | AL83: 159 | AM83: 0.159 | AN83: 66 | AO83: 0.066 | AP83: 0 | AQ83: 0 | AR83: 140 | AS83: 35 | AT83: 327.3 | AU83: 81.825 | AV83: 140 | AW83: 35.086
A84: 2024-01-01T20:30:00 | B84: 3570 | C84: 893 | D84: 3920 | E84: 980 | F84: 476.34 | G84: 119.085 | H84: 32.27 | I84: 8.0675 | J84: 508.61 | K84: 127.1525 | L84: 1027 | M84: 257 | N84: 824 | O84: 206 | P84: 0 | Q84: 0 | R84: 235.432 | S84: 58.858 | T84: 235.432 | U84: 58.858 | V84: 4597 | W84: 1149 | X84: 4744 | Y84: 1186 | Z84: 476.34 | AA84: 119.085 | AB84: 267.702 | AC84: 66.9255 | AD84: 744.042 | AE84: 186.0105 | AF84: 86 | AG84: 0.086 | AH84: 226 | AI84: 0.226 | AJ84: 110 | AK84: 0.11 | AL84: 152 | AM84: 0.152 | AN84: 54 | AO84: 0.054 | AP84: 0 | AQ84: 0 | AR84: 152 | AS84: 38 | AT84: 342.76 | AU84: 85.69 | AV84: 152 | AW84: 38.031
A85: 2024-01-01T20:45:00 | B85: 3496 | C85: 874 | D85: 3845 | E85: 961 | F85: 476.34 | G85: 119.085 | H85: 32.27 | I85: 8.0675 | J85: 508.61 | K85: 127.1525 | L85: 1016 | M85: 254 | N85: 816 | O85: 204 | P85: 0 | Q85: 0 | R85: 235.432 | S85: 58.858 | T85: 235.432 | U85: 58.858 | V85: 4512 | W85: 1128 | X85: 4661 | Y85: 1165 | Z85: 476.34 | AA85: 119.085 | AB85: 267.702 | AC85: 66.9255 | AD85: 744.042 | AE85: 186.0105 | AF85: 89 | AG85: 0.089 | AH85: 229 | AI85: 0.229 | AJ85: 113 | AK85: 0.113 | AL85: 153 | AM85: 0.153 | AN85: 54 | AO85: 0.054 | AP85: 0 | AQ85: 0 | AR85: 152 | AS85: 38 | AT85: 341.14 | AU85: 85.285 | AV85: 152 | AW85: 38.076
A86: 2024-01-01T21:00:00 | B86: 3478 | C86: 869 | D86: 3800 | E86: 950 | F86: 644.18 | G86: 161.045 | H86: 27.808 | I86: 6.952 | J86: 671.988 | K86: 167.997 | L86: 1009 | M86: 252 | N86: 806 | O86: 201 | P86: 0 | Q86: 0 | R86: 202.68 | S86: 50.67 | T86: 202.68 | U86: 50.67 | V86: 4487 | W86: 1122 | X86: 4606 | Y86: 1151 | Z86: 644.18 | AA86: 161.045 | AB86: 230.488 | AC86: 57.622 | AD86: 874.668 | AE86: 218.667 | AF86: 90 | AG86: 0.09 | AH86: 231 | AI86: 0.231 | AJ86: 115 | AK86: 0.115 | AL86: 161 | AM86: 0.161 | AN86: 47 | AO86: 0.047 | AP86: 0 | AQ86: 0 | AR86: 125 | AS86: 31 | AT86: 316.13 | AU86: 79.0325 | AV86: 125 | AW86: 31.226
A87: 2024-01-01T21:15:00 | B87: 3392 | C87: 848 | D87: 3731 | E87: 933 | F87: 644.18 | G87: 161.045 | H87: 27.808 | I87: 6.952 | J87: 671.988 | K87: 167.997 | L87: 972 | M87: 243 | N87: 793 | O87: 198 | P87: 0 | Q87: 0 | R87: 202.68 | S87: 50.67 | T87: 202.68 | U87: 50.67 | V87: 4364 | W87: 1091 | X87: 4524 | Y87: 1131 | Z87: 644.18 | AA87: 161.045 | AB87: 230.488 | AC87: 57.622 | AD87: 874.668 | AE87: 218.667 | AF87: 91 | AG87: 0.091 | AH87: 234 | AI87: 0.234 | AJ87: 116 | AK87: 0.116 | AL87: 143 | AM87: 0.143 | AN87: 47 | AO87: 0.047 | AP87: 2 | AQ87: 0 | AR87: 168 | AS87: 42 | AT87: 334.29 | AU87: 83.5725 | AV87: 170 | AW87: 42.421
A88: 2024-01-01T21:30:00 | B88: 3248 | C88: 812 | D88: 3667 | E88: 917 | F88: 810.16 | G88: 202.54 | H88: 28.29 | I88: 7.0725 | J88: 838.45 | K88: 209.6125 | L88: 930 | M88: 233 | N88: 779 | O88: 195 | P88: 0 | Q88: 0 | R88: 190.596 | S88: 47.649 | T88: 190.596 | U88: 47.649 | V88: 4178 | W88: 1045 | X88: 4446 | Y88: 1112 | Z88: 810.16 | AA88: 202.54 | AB88: 218.886 | AC88: 54.7215 | AD88: 1029.046 | AE88: 257.2615 | AF88: 92 | AG88: 0.092 | AH88: 234 | AI88: 0.234 | AJ88: 116 | AK88: 0.116 | AL88: 120 | AM88: 0.120 | AN88: 43 | AO88: 0.043 | AP88: 53 | AQ88: 13 | AR88: 225 | AS88: 56 | AT88: 365.47 | AU88: 91.3675 | AV88: 278 | AW88: 69.462
A89: 2024-01-01T21:45:00 | B89: 3240 | C89: 810 | D89: 3617 | E89: 904 | F89: 810.16 | G89: 202.54 | H89: 28.29 | I89: 7.0725 | J89: 838.45 | K89: 209.6125 | L89: 902 | M89: 225 | N89: 764 | O89: 191 | P89: 0 | Q89: 0 | R89: 190.596 | S89: 47.649 | T89: 190.596 | U89: 47.649 | V89: 4141 | W89: 1035 | X89: 4381 | Y89: 1095 | Z89: 810.16 | AA89: 202.54 | AB89: 218.886 | AC89: 54.7215 | AD89: 1029.046 | AE89: 257.2615 | AF89: 96 | AG89: 0.096 | AH89: 241 | AI89: 0.241 | AJ89: 121 | AK89: 0.121 | AL89: 131 | AM89: 0.131 | AN89: 43 | AO89: 0.043 | AP89: 70 | AQ89: 18 | AR89: 171 | AS89: 43 | AT89: 297.34 | AU89: 74.335 | AV89: 241 | AW89: 60.155
A90: 2024-01-01T22:00:00 | B90: 3257 | C90: 814 | D90: 3579 | E90: 895 | F90: 760.66 | G90: 190.165 | H90: 26.452 | I90: 6.613 | J90: 787.112 | K90: 196.778 | L90: 980 | M90: 245 | N90: 757 | O90: 189 | P90: 0 | Q90: 0 | R90: 30.79 | S90: 7.6975 | T90: 30.79 | U90: 7.6975 | V90: 4236 | W90: 1059 | X90: 4336 | Y90: 1084 | Z90: 760.66 | AA90: 190.165 | AB90: 57.242 | AC90: 14.3105 | AD90: 817.902 | AE90: 204.4755 | AF90: 97 | AG90: 0.097 | AH90: 253 | AI90: 0.253 | AJ90: 124 | AK90: 0.124 | AL90: 190 | AM90: 0.190 | AN90: 44 | AO90: 0.044 | AP90: 8 | AQ90: 2 | AR90: 95 | AS90: 24 | AT90: 303.05 | AU90: 75.7625 | AV90: 103 | AW90: 25.651
A91: 2024-01-01T22:15:00 | B91: 3271 | C91: 818 | D91: 3521 | E91: 880 | F91: 760.66 | G91: 190.165 | H91: 26.452 | I91: 6.613 | J91: 787.112 | K91: 196.778 | L91: 969 | M91: 242 | N91: 741 | O91: 185 | P91: 0 | Q91: 0 | R91: 30.79 | S91: 7.6975 | T91: 30.79 | U91: 7.6975 | V91: 4240 | W91: 1060 | X91: 4262 | Y91: 1066 | Z91: 760.66 | AA91: 190.165 | AB91: 57.242 | AC91: 14.3105 | AD91: 817.902 | AE91: 204.4755 | AF91: 97 | AG91: 0.097 | AH91: 250 | AI91: 0.25 | AJ91: 124 | AK91: 0.124 | AL91: 228 | AM91: 0.228 | AN91: 44 | AO91: 0.044 | AP91: 0 | AQ91: 0 | AR91: 27 | AS91: 7 | AT91: 242.03 | AU91: 60.5075 | AV91: 27 | AW91: 6.776
A92: 2024-01-01T22:30:00 | B92: 3179 | C92: 795 | D92: 3449 | E92: 862 | F92: 768.78 | G92: 192.195 | H92: 24.6 | I92: 6.15 | J92: 793.38 | K92: 198.345 | L92: 937 | M92: 234 | N92: 726 | O92: 181 | P92: 0 | Q92: 0 | R92: 7.55 | S92: 1.8875 | T92: 7.55 | U92: 1.8875 | V92: 4117 | W92: 1029 | X92: 4175 | Y92: 1044 | Z92: 768.78 | AA92: 192.195 | AB92: 32.15 | AC92: 8.0375 | AD92: 800.93 | AE92: 200.2325 | AF92: 100 | AG92: 0.1 | AH92: 258 | AI92: 0.258 | AJ92: 127 | AK92: 0.127 | AL92: 207 | AM92: 0.207 | AN92: 46 | AO92: 0.046 | AP92: 0 | AQ92: 0 | AR92: 67 | AS92: 17 | AT92: 262.07 | AU92: 65.5175 | AV92: 67 | AW92: 16.657
A93: 2024-01-01T22:45:00 | B93: 3062 | C93: 765 | D93: 3387 | E93: 847 | F93: 768.78 | G93: 192.195 | H93: 24.6 | I93: 6.15 | J93: 793.38 | K93: 198.345 | L93: 906 | M93: 226 | N93: 703 | O93: 176 | P93: 0 | Q93: 0 | R93: 7.55 | S93: 1.8875 | T93: 7.55 | U93: 1.8875 | V93: 3968 | W93: 992 | X93: 4089 | Y93: 1022 | Z93: 768.78 | AA93: 192.195 | AB93: 32.15 | AC93: 8.0375 | AD93: 800.93 | AE93: 200.2325 | AF93: 100 | AG93: 0.1 | AH93: 255 | AI93: 0.255 | AJ93: 127 | AK93: 0.127 | AL93: 171 | AM93: 0.171 | AN93: 46 | AO93: 0.046 | AP93: 0 | AQ93: 0 | AR93: 137 | AS93: 34 | AT93: 324.32 | AU93: 81.08 | AV93: 137 | AW93: 34.218
A94: 2024-01-01T23:00:00 | B94: 3014 | C94: 753 | D94: 3412 | E94: 853 | F94: 879.06 | G94: 219.765 | H94: 22.348 | I94: 5.587 | J94: 901.408 | K94: 225.352 | L94: 892 | M94: 223 | N94: 683 | O94: 171 | P94: 0 | Q94: 0 | R94: 36.974 | S94: 9.2435 | T94: 36.974 | U94: 9.2435 | V94: 3906 | W94: 976 | X94: 4095 | Y94: 1024 | Z94: 879.06 | AA94: 219.765 | AB94: 59.322 | AC94: 14.8305 | AD94: 938.382 | AE94: 234.5955 | AF94: 104 | AG94: 0.104 | AH94: 273 | AI94: 0.273 | AJ94: 132 | AK94: 0.132 | AL94: 173 | AM94: 0.173 | AN94: 49 | AO94: 0.049 | AP94: 35 | AQ94: 9 | AR94: 169 | AS94: 42 | AT94: 365.78 | AU94: 91.445 | AV94: 204 | AW94: 50.998
A95: 2024-01-01T23:15:00 | B95: 2901 | C95: 725 | D95: 3373 | E95: 843 | F95: 879.06 | G95: 219.765 | H95: 22.348 | I95: 5.587 | J95: 901.408 | K95: 225.352 | L95: 792 | M95: 198 | N95: 664 | O95: 166 | P95: 0 | Q95: 0 | R95: 36.974 | S95: 9.2435 | T95: 36.974 | U95: 9.2435 | V95: 3693 | W95: 923 | X95: 4036 | Y95: 1009 | Z95: 879.06 | AA95: 219.765 | AB95: 59.322 | AC95: 14.8305 | AD95: 938.382 | AE95: 234.5955 | AF95: 102 | AG95: 0.102 | AH95: 273 | AI95: 0.273 | AJ95: 130 | AK95: 0.13 | AL95: 126 | AM95: 0.126 | AN95: 49 | AO95: 0.049 | AP95: 110 | AQ95: 28 | AR95: 243 | AS95: 61 | AT95: 359.27 | AU95: 89.8175 | AV95: 353 | AW95: 88.295
A96: 2024-01-01T23:30:00 | B96: 2834 | C96: 709 | D96: 3314 | E96: 829 | F96: 1128.4 | G96: 282.1 | H96: 22.59 | I96: 5.6475 | J96: 1150.99 | K96: 287.7475 | L96: 711 | M96: 178 | N96: 642 | O96: 161 | P96: 20.04 | Q96: 5.01 | R96: 181.504 | S96: 45.376 | T96: 201.544 | U96: 50.386 | V96: 3546 | W96: 886 | X96: 3956 | Y96: 989 | Z96: 1148.44 | AA96: 287.11 | AB96: 204.094 | AC96: 51.0235 | AD96: 1352.534 | AE96: 338.1335 | AF96: 106 | AG96: 0.106 | AH96: 288 | AI96: 0.288 | AJ96: 136 | AK96: 0.136 | AL96: 105 | AM96: 0.105 | AN96: 51 | AO96: 0.051 | AP96: 185 | AQ96: 46 | AR96: 235 | AS96: 59 | AT96: 291.01 | AU96: 72.7525 | AV96: 421 | AW96: 105.155
A97: 2024-01-01T23:45:00 | B97: 2728 | C97: 682 | D97: 3258 | E97: 814 | F97: 1128.4 | G97: 282.1 | H97: 22.59 | I97: 5.6475 | J97: 1150.99 | K97: 287.7475 | L97: 648 | M97: 162 | N97: 620 | O97: 155 | P97: 20.04 | Q97: 5.01 | R97: 181.504 | S97: 45.376 | T97: 201.544 | U97: 50.386 | V97: 3376 | W97: 844 | X97: 3878 | Y97: 970 | Z97: 1148.44 | AA97: 287.11 | AB97: 204.094 | AC97: 51.0235 | AD97: 1352.534 | AE97: 338.1335 | AF97: 106 | AG97: 0.106 | AH97: 300 | AI97: 0.3 | AJ97: 137 | AK97: 0.137 | AL97: 75 | AM97: 0.075 | AN97: 51 | AO97: 0.051 | AP97: 247 | AQ97: 62 | AR97: 261 | AS97: 65 | AT97: 274.75 | AU97: 68.6875 | AV97: 508 | AW97: 126.994
A98: 2024-01-02 | B98: 2710 | C98: 678 | D98: 3232 | E98: 808 | F98: 1238.76 | G98: 309.69 | H98: 0 | I98: 0 | J98: 1238.76 | K98: 309.69 | L98: 619 | M98: 155 | N98: 604 | O98: 151 | P98: 57.06 | Q98: 14.265 | R98: 285.348 | S98: 71.337 | T98: 342.408 | U98: 85.602 | V98: 3329 | W98: 832 | X98: 3836 | Y98: 959 | Z98: 1295.82 | AA98: 323.955 | AB98: 285.348 | AC98: 71.337 | AD98: 1581.168 | AE98: 395.292 | AF98: 112 | AG98: 0.112 | AH98: 308 | AI98: 0.308 | AJ98: 143 | AK98: 0.143 | AL98: 62 | AM98: 0.062 | AN98: 50 | AO98: 0.05 | AP98: 201 | AQ98: 50 | AR98: 311 | AS98: 78 | AT98: 312.12 | AU98: 78.03 | AV98: 512 | AW98: 128.025
A99: 2024-01-02T00:15:00 | B99: 2721 | C99: 680 | D99: 3197 | E99: 799 | F99: 1238.76 | G99: 309.69 | H99: 0 | I99: 0 | J99: 1238.76 | K99: 309.69 | L99: 619 | M99: 155 | N99: 590 | O99: 148 | P99: 57.06 | Q99: 14.265 | R99: 285.348 | S99: 71.337 | T99: 342.408 | U99: 85.602 | V99: 3340 | W99: 835 | X99: 3787 | Y99: 947 | Z99: 1295.82 | AA99: 323.955 | AB99: 285.348 | AC99: 71.337 | AD99: 1581.168 | AE99: 395.292 | AF99: 113 | AG99: 0.113 | AH99: 316 | AI99: 0.316 | AJ99: 144 | AK99: 0.144 | AL99: 72 | AM99: 0.072 | AN99: 50 | AO99: 0.05 | AP99: 126 | AQ99: 32 | AR99: 325 | AS99: 81 | AT99: 338.85 | AU99: 84.7125 | AV99: 451 | AW99: 112.738
A100: 2024-01-02T00:30:00 | B100: 2731 | C100: 683 | D100: 3145 | E100: 786 | F100: 1188.64 | G100: 297.16 | H100: 0 | I100: 0 | J100: 1188.64 | K100: 297.16 | L100: 615 | M100: 154 | N100: 574 | O100: 144 | P100: 53.54 | Q100: 13.385 | R100: 310.448 | S100: 77.612 | T100: 363.988 | U100: 90.997 | V100: 3346 | W100: 836 | X100: 3720 | Y100: 930 | Z100: 1242.18 | AA100: 310.545 | AB100: 310.448 | AC100: 77.612 | AD100: 1552.628 | AE100: 388.157 | AF100: 115 | AG100: 0.115 | AH100: 323 | AI100: 0.323 | AJ100: 147 | AK100: 0.147 | AL100: 84 | AM100: 0.084 | AN100: 54 | AO100: 0.054 | AP100: 51 | AQ100: 13 | AR100: 325 | AS100: 81 | AT100: 352.33 | AU100: 88.0825 | AV100: 376 | AW100: 93.976
A101: 2024-01-02T00:45:00 | B101: 2696 | C101: 674 | D101: 3096 | E101: 774 | F101: 1188.64 | G101: 297.16 | H101: 0 | I101: 0 | J101: 1188.64 | K101: 297.16 | L101: 606 | M101: 151 | N101: 561 | O101: 140 | P101: 53.54 | Q101: 13.385 | R101: 310.448 | S101: 77.612 | T101: 363.988 | U101: 90.997 | V101: 3302 | W101: 826 | X101: 3657 | Y101: 914 | Z101: 1242.18 | AA101: 310.545 | AB101: 310.448 | AC101: 77.612 | AD101: 1552.628 | AE101: 388.157 | AF101: 116 | AG101: 0.116 | AH101: 335 | AI101: 0.335 | AJ101: 149 | AK101: 0.149 | AL101: 88 | AM101: 0.088 | AN101: 54 | AO101: 0.054 | AP101: 41 | AQ101: 10 | AR101: 325 | AS101: 81 | AT101: 356.74 | AU101: 89.185 | AV101: 366 | AW101: 91.402
A102: 2024-01-02T01:00:00 | B102: 2603 | C102: 651 | D102: 3061 | E102: 765 | F102: 1296.22 | G102: 324.055 | H102: 0 | I102: 0 | J102: 1296.22 | K102: 324.055 | L102: 600 | M102: 150 | N102: 571 | O102: 143 | P102: 67.94 | Q102: 16.985 | R102: 338.12 | S102: 84.53 | T102: 406.06 | U102: 101.515 | V102: 3202 | W102: 801 | X102: 3632 | Y102: 908 | Z102: 1364.16 | AA102: 341.04 | AB102: 338.12 | AC102: 84.53 | AD102: 1702.28 | AE102: 425.57 | AF102: 117 | AG102: 0.117 | AH102: 334 | AI102: 0.334 | AJ102: 150 | AK102: 0.15 | AL102: 79 | AM102: 0.079 | AN102: 57 | AO102: 0.057 | AP102: 116 | AQ102: 29 | AR102: 325 | AS102: 81 | AT102: 339.28 | AU102: 84.82 | AV102: 440 | AW102: 110.064
A103: 2024-01-02T01:15:00 | B103: 2497 | C103: 624 | D103: 3019 | E103: 755 | F103: 1296.22 | G103: 324.055 | H103: 0 | I103: 0 | J103: 1296.22 | K103: 324.055 | L103: 588 | M103: 147 | N103: 571 | O103: 143 | P103: 67.94 | Q103: 16.985 | R103: 338.12 | S103: 84.53 | T103: 406.06 | U103: 101.515 | V103: 3085 | W103: 771 | X103: 3590 | Y103: 898 | Z103: 1364.16 | AA103: 341.04 | AB103: 338.12 | AC103: 84.53 | AD103: 1702.28 | AE103: 425.57 | AF103: 118 | AG103: 0.118 | AH103: 328 | AI103: 0.328 | AJ103: 151 | AK103: 0.151 | AL103: 71 | AM103: 0.071 | AN103: 57 | AO103: 0.057 | AP103: 191 | AQ103: 48 | AR103: 325 | AS103: 81 | AT103: 330.01 | AU103: 82.5025 | AV103: 515 | AW103: 128.799
A104: 2024-01-02T01:30:00 | B104: 2391 | C104: 598 | D104: 2975 | E104: 744 | F104: 1366.82 | G104: 341.705 | H104: 0 | I104: 0 | J104: 1366.82 | K104: 341.705 | L104: 592 | M104: 148 | N104: 559 | O104: 140 | P104: 72.4 | Q104: 18.1 | R104: 367.324 | S104: 91.831 | T104: 439.724 | U104: 109.931 | V104: 2983 | W104: 746 | X104: 3534 | Y104: 883 | Z104: 1439.22 | AA104: 359.805 | AB104: 367.324 | AC104: 91.831 | AD104: 1806.544 | AE104: 451.636 | AF104: 122 | AG104: 0.122 | AH104: 335 | AI104: 0.335 | AJ104: 156 | AK104: 0.156 | AL104: 87 | AM104: 0.087 | AN104: 59 | AO104: 0.059 | AP104: 266 | AQ104: 66 | AR104: 295 | AS104: 74 | AT104: 315.6 | AU104: 78.9 | AV104: 561 | AW104: 140.236
A105: 2024-01-02T01:45:00 | B105: 2314 | C105: 579 | D105: 2960 | E105: 740 | F105: 1366.82 | G105: 341.705 | H105: 0 | I105: 0 | J105: 1366.82 | K105: 341.705 | L105: 587 | M105: 147 | N105: 549 | O105: 137 | P105: 72.4 | Q105: 18.1 | R105: 367.324 | S105: 91.831 | T105: 439.724 | U105: 109.931 | V105: 2901 | W105: 725 | X105: 3509 | Y105: 877 | Z105: 1439.22 | AA105: 359.805 | AB105: 367.324 | AC105: 91.831 | AD105: 1806.544 | AE105: 451.636 | AF105: 123 | AG105: 0.123 | AH105: 339 | AI105: 0.339 | AJ105: 157 | AK105: 0.157 | AL105: 92 | AM105: 0.092 | AN105: 59 | AO105: 0.059 | AP105: 341 | AQ105: 85 | AR105: 281 | AS105: 70 | AT105: 303.77 | AU105: 75.9425 | AV105: 622 | AW105: 155.463
A106: 2024-01-02T02:00:00 | B106: 2215 | C106: 554 | D106: 2996 | E106: 749 | F106: 1393.82 | G106: 348.455 | H106: 0 | I106: 0 | J106: 1393.82 | K106: 348.455 | L106: 598 | M106: 149 | N106: 544 | O106: 136 | P106: 72.42 | Q106: 18.105 | R106: 331.312 | S106: 82.828 | T106: 403.732 | U106: 100.933 | V106: 2813 | W106: 703 | X106: 3539 | Y106: 885 | Z106: 1466.24 | AA106: 366.56 | AB106: 331.312 | AC106: 82.828 | AD106: 1797.552 | AE106: 449.388 | AF106: 122 | AG106: 0.122 | AH106: 347 | AI106: 0.347 | AJ106: 157 | AK106: 0.157 | AL106: 96 | AM106: 0.096 | AN106: 54 | AO106: 0.054 | AP106: 416 | AQ106: 104 | AR106: 324 | AS106: 81 | AT106: 364.72 | AU106: 91.18 | AV106: 739 | AW106: 184.821
A107: 2024-01-02T02:15:00 | B107: 2165 | C107: 541 | D107: 2986 | E107: 746 | F107: 1393.82 | G107: 348.455 | H107: 0 | I107: 0 | J107: 1393.82 | K107: 348.455 | L107: 556 | M107: 139 | N107: 539 | O107: 135 | P107: 72.42 | Q107: 18.105 | R107: 331.312 | S107: 82.828 | T107: 403.732 | U107: 100.933 | V107: 2721 | W107: 680 | X107: 3525 | Y107: 881 | Z107: 1466.24 | AA107: 366.56 | AB107: 331.312 | AC107: 82.828 | AD107: 1797.552 | AE107: 449.388 | AF107: 121 | AG107: 0.121 | AH107: 347 | AI107: 0.347 | AJ107: 155 | AK107: 0.155 | AL107: 69 | AM107: 0.069 | AN107: 54 | AO107: 0.054 | AP107: 491 | AQ107: 123 | AR107: 321 | AS107: 80 | AT107: 326.21 | AU107: 81.5525 | AV107: 812 | AW107: 202.967
A108: 2024-01-02T02:30:00 | B108: 2136 | C108: 534 | D108: 2951 | E108: 738 | F108: 1427.16 | G108: 356.79 | H108: 0 | I108: 0 | J108: 1427.16 | K108: 356.79 | L108: 545 | M108: 136 | N108: 530 | O108: 132 | P108: 74.98 | Q108: 18.745 | R108: 368.176 | S108: 92.044 | T108: 443.156 | U108: 110.789 | V108: 2681 | W108: 670 | X108: 3481 | Y108: 870 | Z108: 1502.14 | AA108: 375.535 | AB108: 368.176 | AC108: 92.044 | AD108: 1870.316 | AE108: 467.579 | AF108: 136 | AG108: 0.136 | AH108: 349 | AI108: 0.349 | AJ108: 168 | AK108: 0.168 | AL108: 69 | AM108: 0.069 | AN108: 54 | AO108: 0.054 | AP108: 530 | AQ108: 132 | AR108: 277 | AS108: 69 | AT108: 278.16 | AU108: 69.54 | AV108: 807 | AW108: 201.764
A109: 2024-01-02T02:45:00 | B109: 2050 | C109: 513 | D109: 2906 | E109: 727 | F109: 1427.16 | G109: 356.79 | H109: 0 | I109: 0 | J109: 1427.16 | K109: 356.79 | L109: 540 | M109: 135 | N109: 521 | O109: 130 | P109: 74.98 | Q109: 18.745 | R109: 368.176 | S109: 92.044 | T109: 443.156 | U109: 110.789 | V109: 2591 | W109: 648 | X109: 3428 | Y109: 857 | Z109: 1502.14 | AA109: 375.535 | AB109: 368.176 | AC109: 92.044 | AD109: 1870.316 | AE109: 467.579 | AF109: 140 | AG109: 0.14 | AH109: 361 | AI109: 0.361 | AJ109: 173 | AK109: 0.173 | AL109: 72 | AM109: 0.072 | AN109: 54 | AO109: 0.054 | AP109: 530 | AQ109: 132 | AR109: 315 | AS109: 79 | AT109: 319.5 | AU109: 79.875 | AV109: 845 | AW109: 211.317
A110: 2024-01-02T03:00:00 | B110: 2064 | C110: 516 | D110: 2905 | E110: 726 | F110: 1334.48 | G110: 333.62 | H110: 0 | I110: 0 | J110: 1334.48 | K110: 333.62 | L110: 545 | M110: 136 | N110: 523 | O110: 131 | P110: 75.76 | Q110: 18.94 | R110: 395.622 | S110: 98.9055 | T110: 471.382 | U110: 117.8455 | V110: 2610 | W110: 652 | X110: 3428 | Y110: 857 | Z110: 1410.24 | AA110: 352.56 | AB110: 395.622 | AC110: 98.9055 | AD110: 1805.862 | AE110: 451.4655 | AF110: 141 | AG110: 0.141 | AH110: 362 | AI110: 0.362 | AJ110: 174 | AK110: 0.174 | AL110: 76 | AM110: 0.076 | AN110: 56 | AO110: 0.056 | AP110: 500 | AQ110: 125 | AR110: 325 | AS110: 81 | AT110: 333.31 | AU110: 83.3275 | AV110: 825 | AW110: 206.135
A111: 2024-01-02T03:15:00 | B111: 2070 | C111: 517 | D111: 2906 | E111: 726 | F111: 1334.48 | G111: 333.62 | H111: 0 | I111: 0 | J111: 1334.48 | K111: 333.62 | L111: 547 | M111: 137 | N111: 516 | O111: 129 | P111: 75.76 | Q111: 18.94 | R111: 395.622 | S111: 98.9055 | T111: 471.382 | U111: 117.8455 | V111: 2617 | W111: 654 | X111: 3422 | Y111: 855 | Z111: 1410.24 | AA111: 352.56 | AB111: 395.622 | AC111: 98.9055 | AD111: 1805.862 | AE111: 451.4655 | AF111: 157 | AG111: 0.157 | AH111: 363 | AI111: 0.363 | AJ111: 188 | AK111: 0.188 | AL111: 83 | AM111: 0.083 | AN111: 56 | AO111: 0.056 | AP111: 489 | AQ111: 122 | AR111: 325 | AS111: 81 | AT111: 341.64 | AU111: 85.41 | AV111: 813 | AW111: 203.285
A112: 2024-01-02T03:30:00 | B112: 2010 | C112: 503 | D112: 2879 | E112: 720 | F112: 1290.54 | G112: 322.635 | H112: 0 | I112: 0 | J112: 1290.54 | K112: 322.635 | L112: 543 | M112: 136 | N112: 508 | O112: 127 | P112: 76.94 | Q112: 19.235 | R112: 390.85 | S112: 97.7125 | T112: 467.79 | U112: 116.9475 | V112: 2554 | W112: 638 | X112: 3387 | Y112: 847 | Z112: 1367.48 | AA112: 341.87 | AB112: 390.85 | AC112: 97.7125 | AD112: 1758.33 | AE112: 439.5825 | AF112: 159 | AG112: 0.159 | AH112: 369 | AI112: 0.369 | AJ112: 190 | AK112: 0.19 | AL112: 88 | AM112: 0.088 | AN112: 57 | AO112: 0.057 | AP112: 516 | AQ112: 129 | AR112: 325 | AS112: 81 | AT112: 346.6 | AU112: 86.65 | AV112: 840 | AW112: 210.021
A113: 2024-01-02T03:45:00 | B113: 1986 | C113: 497 | D113: 2859 | E113: 715 | F113: 1290.54 | G113: 322.635 | H113: 0 | I113: 0 | J113: 1290.54 | K113: 322.635 | L113: 543 | M113: 136 | N113: 505 | O113: 126 | P113: 76.94 | Q113: 19.235 | R113: 390.85 | S113: 97.7125 | T113: 467.79 | U113: 116.9475 | V113: 2530 | W113: 632 | X113: 3363 | Y113: 841 | Z113: 1367.48 | AA113: 341.87 | AB113: 390.85 | AC113: 97.7125 | AD113: 1758.33 | AE113: 439.5825 | AF113: 159 | AG113: 0.159 | AH113: 371 | AI113: 0.371 | AJ113: 191 | AK113: 0.191 | AL113: 90 | AM113: 0.090 | AN113: 57 | AO113: 0.057 | AP113: 518 | AQ113: 129 | AR113: 325 | AS113: 81 | AT113: 348.31 | AU113: 87.0775 | AV113: 842 | AW113: 210.583
A114: 2024-01-02T04:00:00 | B114: 1979 | C114: 495 | D114: 2867 | E114: 717 | F114: 1154.72 | G114: 288.68 | H114: 0 | I114: 0 | J114: 1154.72 | K114: 288.68 | L114: 545 | M114: 136 | N114: 504 | O114: 126 | P114: 74.94 | Q114: 18.735 | R114: 314.096 | S114: 78.524 | T114: 389.036 | U114: 97.259 | V114: 2524 | W114: 631 | X114: 3372 | Y114: 843 | Z114: 1229.66 | AA114: 307.415 | AB114: 314.096 | AC114: 78.524 | AD114: 1543.756 | AE114: 385.939 | AF114: 160 | AG114: 0.16 | AH114: 372 | AI114: 0.372 | AJ114: 191 | AK114: 0.191 | AL114: 92 | AM114: 0.092 | AN114: 57 | AO114: 0.057 | AP114: 530 | AQ114: 132 | AR114: 325 | AS114: 81 | AT114: 352.24 | AU114: 88.06 | AV114: 854 | AW114: 213.616
A115: 2024-01-02T04:15:00 | B115: 1972 | C115: 493 | D115: 2864 | E115: 716 | F115: 1154.72 | G115: 288.68 | H115: 0 | I115: 0 | J115: 1154.72 | K115: 288.68 | L115: 546 | M115: 137 | N115: 502 | O115: 126 | P115: 74.94 | Q115: 18.735 | R115: 314.096 | S115: 78.524 | T115: 389.036 | U115: 97.259 | V115: 2518 | W115: 629 | X115: 3366 | Y115: 841 | Z115: 1229.66 | AA115: 307.415 | AB115: 314.096 | AC115: 78.524 | AD115: 1543.756 | AE115: 385.939 | AF115: 159 | AG115: 0.159 | AH115: 375 | AI115: 0.375 | AJ115: 190 | AK115: 0.19 | AL115: 95 | AM115: 0.095 | AN115: 57 | AO115: 0.057 | AP115: 530 | AQ115: 132 | AR115: 325 | AS115: 81 | AT115: 355.47 | AU115: 88.8675 | AV115: 855 | AW115: 213.626
A116: 2024-01-02T04:30:00 | B116: 1960 | C116: 490 | D116: 2848 | E116: 712 | F116: 1016.7 | G116: 254.175 | H116: 0 | I116: 0 | J116: 1016.7 | K116: 254.175 | L116: 543 | M116: 136 | N116: 502 | O116: 126 | P116: 80.72 | Q116: 20.18 | R116: 236.576 | S116: 59.144 | T116: 317.296 | U116: 79.324 | V116: 2503 | W116: 626 | X116: 3350 | Y116: 838 | Z116: 1097.42 | AA116: 274.355 | AB116: 236.576 | AC116: 59.144 | AD116: 1333.996 | AE116: 333.499 | AF116: 159 | AG116: 0.159 | AH116: 371 | AI116: 0.371 | AJ116: 191 | AK116: 0.191 | AL116: 94 | AM116: 0.094 | AN116: 59 | AO116: 0.059 | AP116: 530 | AQ116: 132 | AR116: 325 | AS116: 81 | AT116: 351.38 | AU116: 87.845 | AV116: 855 | AW116: 213.630
A117: 2024-01-02T04:45:00 | B117: 1999 | C117: 500 | D117: 2876 | E117: 719 | F117: 1016.7 | G117: 254.175 | H117: 0 | I117: 0 | J117: 1016.7 | K117: 254.175 | L117: 532 | M117: 133 | N117: 503 | O117: 126 | P117: 80.72 | Q117: 20.18 | R117: 236.576 | S117: 59.144 | T117: 317.296 | U117: 79.324 | V117: 2531 | W117: 633 | X117: 3379 | Y117: 845 | Z117: 1097.42 | AA117: 274.355 | AB117: 236.576 | AC117: 59.144 | AD117: 1333.996 | AE117: 333.499 | AF117: 164 | AG117: 0.164 | AH117: 369 | AI117: 0.369 | AJ117: 194 | AK117: 0.194 | AL117: 84 | AM117: 0.084 | AN117: 59 | AO117: 0.059 | AP117: 530 | AQ117: 132 | AR117: 325 | AS117: 81 | AT117: 341.3 | AU117: 85.325 | AV117: 855 | AW117: 213.630
A118: 2024-01-02T05:00:00 | B118: 2041 | C118: 510 | D118: 2914 | E118: 729 | F118: 909.24 | G118: 227.31 | H118: 0 | I118: 0 | J118: 909.24 | K118: 227.31 | L118: 536 | M118: 134 | N118: 510 | O118: 128 | P118: 80 | Q118: 20 | R118: 149.548 | S118: 37.387 | T118: 229.548 | U118: 57.387 | V118: 2577 | W118: 644 | X118: 3425 | Y118: 856 | Z118: 989.24 | AA118: 247.31 | AB118: 149.548 | AC118: 37.387 | AD118: 1138.788 | AE118: 284.697 | AF118: 169 | AG118: 0.169 | AH118: 378 | AI118: 0.378 | AJ118: 200 | AK118: 0.2 | AL118: 87 | AM118: 0.087 | AN118: 64 | AO118: 0.064 | AP118: 530 | AQ118: 132 | AR118: 325 | AS118: 81 | AT118: 336.94 | AU118: 84.235 | AV118: 855 | AW118: 213.631
A119: 2024-01-02T05:15:00 | B119: 2057 | C119: 514 | D119: 2921 | E119: 730 | F119: 909.24 | G119: 227.31 | H119: 0 | I119: 0 | J119: 909.24 | K119: 227.31 | L119: 531 | M119: 133 | N119: 515 | O119: 129 | P119: 80 | Q119: 20 | R119: 149.548 | S119: 37.387 | T119: 229.548 | U119: 57.387 | V119: 2589 | W119: 647 | X119: 3436 | Y119: 859 | Z119: 989.24 | AA119: 247.31 | AB119: 149.548 | AC119: 37.387 | AD119: 1138.788 | AE119: 284.697 | AF119: 168 | AG119: 0.168 | AH119: 375 | AI119: 0.375 | AJ119: 198 | AK119: 0.198 | AL119: 79 | AM119: 0.079 | AN119: 64 | AO119: 0.064 | AP119: 530 | AQ119: 132 | AR119: 325 | AS119: 81 | AT119: 326.88 | AU119: 81.72 | AV119: 855 | AW119: 213.630
A120: 2024-01-02T05:30:00 | B120: 2084 | C120: 521 | D120: 2943 | E120: 736 | F120: 732.56 | G120: 183.14 | H120: 0 | I120: 0 | J120: 732.56 | K120: 183.14 | L120: 539 | M120: 135 | N120: 528 | O120: 132 | P120: 71.46 | Q120: 17.865 | R120: 48.802 | S120: 12.2005 | T120: 120.262 | U120: 30.0655 | V120: 2623 | W120: 656 | X120: 3471 | Y120: 868 | Z120: 804.02 | AA120: 201.005 | AB120: 48.802 | AC120: 12.2005 | AD120: 852.822 | AE120: 213.2055 | AF120: 172 | AG120: 0.172 | AH120: 368 | AI120: 0.368 | AJ120: 201 | AK120: 0.201 | AL120: 75 | AM120: 0.075 | AN120: 66 | AO120: 0.066 | AP120: 530 | AQ120: 132 | AR120: 325 | AS120: 81 | AT120: 322.55 | AU120: 80.6375 | AV120: 855 | AW120: 213.639
A121: 2024-01-02T05:45:00 | B121: 2101 | C121: 525 | D121: 2986 | E121: 747 | F121: 732.56 | G121: 183.14 | H121: 0 | I121: 0 | J121: 732.56 | K121: 183.14 | L121: 583 | M121: 146 | N121: 547 | O121: 137 | P121: 71.46 | Q121: 17.865 | R121: 48.802 | S121: 12.2005 | T121: 120.262 | U121: 30.0655 | V121: 2684 | W121: 671 | X121: 3533 | Y121: 883 | Z121: 804.02 | AA121: 201.005 | AB121: 48.802 | AC121: 12.2005 | AD121: 852.822 | AE121: 213.2055 | AF121: 171 | AG121: 0.171 | AH121: 366 | AI121: 0.366 | AJ121: 201 | AK121: 0.201 | AL121: 96 | AM121: 0.096 | AN121: 66 | AO121: 0.066 | AP121: 530 | AQ121: 132 | AR121: 325 | AS121: 81 | AT121: 348.26 | AU121: 87.065 | AV121: 855 | AW121: 213.640
A122: 2024-01-02T06:00:00 | B122: 2219 | C122: 555 | D122: 3126 | E122: 782 | F122: 235.8 | G122: 58.95 | H122: 0 | I122: 0 | J122: 235.8 | K122: 58.95 | L122: 650 | M122: 162 | N122: 591 | O122: 148 | P122: 19.46 | Q122: 4.865 | R122: 0 | S122: 0 | T122: 19.46 | U122: 4.865 | V122: 2868 | W122: 717 | X122: 3718 | Y122: 929 | Z122: 255.26 | AA122: 63.815 | AB122: 0 | AC122: 0 | AD122: 255.26 | AE122: 63.815 | AF122: 163 | AG122: 0.163 | AH122: 342 | AI122: 0.342 | AJ122: 191 | AK122: 0.191 | AL122: 112 | AM122: 0.112 | AN122: 71 | AO122: 0.071 | AP122: 530 | AQ122: 132 | AR122: 324 | AS122: 81 | AT122: 371.13 | AU122: 92.7825 | AV122: 854 | AW122: 213.614
A123: 2024-01-02T06:15:00 | B123: 2323 | C123: 581 | D123: 3203 | E123: 801 | F123: 235.8 | G123: 58.95 | H123: 0 | I123: 0 | J123: 235.8 | K123: 58.95 | L123: 650 | M123: 163 | N123: 623 | O123: 156 | P123: 19.46 | Q123: 4.865 | R123: 0 | S123: 0 | T123: 19.46 | U123: 4.865 | V123: 2974 | W123: 743 | X123: 3827 | Y123: 957 | Z123: 255.26 | AA123: 63.815 | AB123: 0 | AC123: 0 | AD123: 255.26 | AE123: 63.815 | AF123: 165 | AG123: 0.165 | AH123: 301 | AI123: 0.301 | AJ123: 187 | AK123: 0.187 | AL123: 89 | AM123: 0.089 | AN123: 71 | AO123: 0.071 | AP123: 530 | AQ123: 133 | AR123: 324 | AS123: 81 | AT123: 339.49 | AU123: 84.8725 | AV123: 854 | AW123: 213.616
A124: 2024-01-02T06:30:00 | B124: 2406 | C124: 601 | D124: 3272 | E124: 818 | F124: 76.76 | G124: 19.19 | H124: 0 | I124: 0 | J124: 76.76 | K124: 19.19 | L124: 661 | M124: 165 | N124: 651 | O124: 163 | P124: 0 | Q124: 0 | R124: 0 | S124: 0 | T124: 0 | U124: 0 | V124: 3066 | W124: 767 | X124: 3923 | Y124: 981 | Z124: 76.76 | AA124: 19.19 | AB124: 0 | AC124: 0 | AD124: 76.76 | AE124: 19.19 | AF124: 169 | AG124: 0.169 | AH124: 291 | AI124: 0.291 | AJ124: 188 | AK124: 0.188 | AL124: 89 | AM124: 0.089 | AN124: 83 | AO124: 0.083 | AP124: 530 | AQ124: 132 | AR124: 324 | AS124: 81 | AT124: 322.6 | AU124: 80.65 | AV124: 854 | AW124: 213.612
A125: 2024-01-02T06:45:00 | B125: 2505 | C125: 626 | D125: 3347 | E125: 837 | F125: 76.76 | G125: 19.19 | H125: 0 | I125: 0 | J125: 76.76 | K125: 19.19 | L125: 650 | M125: 163 | N125: 677 | O125: 169 | P125: 0 | Q125: 0 | R125: 0 | S125: 0 | T125: 0 | U125: 0 | V125: 3155 | W125: 789 | X125: 4025 | Y125: 1006 | Z125: 76.76 | AA125: 19.19 | AB125: 0 | AC125: 0 | AD125: 76.76 | AE125: 19.19 | AF125: 174 | AG125: 0.174 | AH125: 287 | AI125: 0.287 | AJ125: 193 | AK125: 0.193 | AL125: 83 | AM125: 0.083 | AN125: 83 | AO125: 0.083 | AP125: 530 | AQ125: 132 | AR125: 339 | AS125: 85 | AT125: 298.31 | AU125: 74.5775 | AV125: 869 | AW125: 217.158
A126: 2024-01-02T07:00:00 | B126: 2612 | C126: 653 | D126: 3495 | E126: 874 | F126: 32.2 | G126: 8.05 | H126: 0 | I126: 0 | J126: 32.2 | K126: 8.05 | L126: 666 | M126: 167 | N126: 724 | O126: 181 | P126: 0 | Q126: 0 | R126: 0 | S126: 0 | T126: 0 | U126: 0 | V126: 3278 | W126: 820 | X126: 4219 | Y126: 1055 | Z126: 32.2 | AA126: 8.05 | AB126: 0 | AC126: 0 | AD126: 32.2 | AE126: 8.05 | AF126: 190 | AG126: 0.19 | AH126: 265 | AI126: 0.265 | AJ126: 203 | AK126: 0.203 | AL126: 96 | AM126: 0.096 | AN126: 96 | AO126: 0.096 | AP126: 530 | AQ126: 132 | AR126: 407 | AS126: 102 | AT126: 337.84 | AU126: 84.46 | AV126: 937 | AW126: 234.314
A127: 2024-01-02T07:15:00 | B127: 2655 | C127: 664 | D127: 3580 | E127: 895 | F127: 32.2 | G127: 8.05 | H127: 0 | I127: 0 | J127: 32.2 | K127: 8.05 | L127: 708 | M127: 177 | N127: 760 | O127: 190 | P127: 0 | Q127: 0 | R127: 0 | S127: 0 | T127: 0 | U127: 0 | V127: 3362 | W127: 841 | X127: 4340 | Y127: 1085 | Z127: 32.2 | AA127: 8.05 | AB127: 0 | AC127: 0 | AD127: 32.2 | AE127: 8.05 | AF127: 189 | AG127: 0.189 | AH127: 256 | AI127: 0.256 | AJ127: 201 | AK127: 0.201 | AL127: 96 | AM127: 0.096 | AN127: 96 | AO127: 0.096 | AP127: 530 | AQ127: 132 | AR127: 442 | AS127: 110 | AT127: 379.47 | AU127: 94.8675 | AV127: 972 | AW127: 242.959
A128: 2024-01-02T07:30:00 | B128: 2739 | C128: 685 | D128: 3649 | E128: 912 | F128: 3.48 | G128: 0.87 | H128: 0 | I128: 0 | J128: 3.48 | K128: 0.87 | L128: 723 | M128: 181 | N128: 791 | O128: 198 | P128: 0 | Q128: 0 | R128: 0 | S128: 0 | T128: 0 | U128: 0 | V128: 3463 | W128: 866 | X128: 4440 | Y128: 1110 | Z128: 3.48 | AA128: 0.87 | AB128: 0 | AC128: 0 | AD128: 3.48 | AE128: 0.87 | AF128: 194 | AG128: 0.194 | AH128: 235 | AI128: 0.235 | AJ128: 201 | AK128: 0.201 | AL128: 108 | AM128: 0.108 | AN128: 108 | AO128: 0.108 | AP128: 530 | AQ128: 132 | AR128: 442 | AS128: 110 | AT128: 364.18 | AU128: 91.045 | AV128: 972 | AW128: 242.953
A129: 2024-01-02T07:45:00 | B129: 2793 | C129: 698 | D129: 3729 | E129: 932 | F129: 3.48 | G129: 0.87 | H129: 0 | I129: 0 | J129: 3.48 | K129: 0.87 | L129: 780 | M129: 195 | N129: 820 | O129: 205 | P129: 0 | Q129: 0 | R129: 0 | S129: 0 | T129: 0 | U129: 0 | V129: 3572 | W129: 893 | X129: 4549 | Y129: 1137 | Z129: 3.48 | AA129: 0.87 | AB129: 0 | AC129: 0 | AD129: 3.48 | AE129: 0.87 | AF129: 192 | AG129: 0.192 | AH129: 231 | AI129: 0.231 | AJ129: 199 | AK129: 0.199 | AL129: 108 | AM129: 0.108 | AN129: 108 | AO129: 0.108 | AP129: 530 | AQ129: 132 | AR129: 442 | AS129: 110 | AT129: 390.21 | AU129: 97.5525 | AV129: 972 | AW129: 242.945
A130: 2024-01-02T08:00:00 | B130: 2864 | C130: 716 | D130: 3799 | E130: 950 | F130: 0 | G130: =F130/4 -> 0 | H130: 0 | I130: 0 | J130: 0 | K130: 0 | L130: 814 | M130: 204 | N130: 856 | O130: 214 | P130: 0 | Q130: =P130/4 -> 0 | R130: 0 | S130: 0 | T130: 0 | U130: 0 | V130: =B130+L130 -> 3678 | W130: 920 | X130: =D130+N130 -> 4655 | Y130: 1164 | Z130: =F130+P130 -> 0 | AA130: 0 | AB130: 0 | AC130: 0 | AD130: 0 | AE130: 0 | AF130: 193 | AG130: 0.193 | AH130: 224 | AI130: 0.224 | AJ130: 199 | AK130: 0.199 | AL130: 103 | AM130: 0.103 | AN130: 103 | AO130: =AN130/1000 -> 0.103 | AP130: 530 | AQ130: 132 | AR130: 442 | AS130: 110 | AT130: 388.37 | AU130: 97.0925 | AV130: 972 | AW130: 242.928
A131: 2024-01-02T08:15:00 | B131: 2946 | C131: =B131/4 -> 736 | D131: 3876 | E131: =D131/4 -> 969 | F131: 0 | G131: 0 | H131: 0 | I131: =H131/4 -> 0 | J131: =F131+H131 -> 0 | K131: 0 | L131: 837 | M131: =L131/4 -> 209 | N131: 884 | O131: =N131/4 -> 221 | P131: 0 | Q131: 0 | R131: 0 | S131: =R131/4 -> 0 | T131: =P131+R131 -> 0 | U131: 0 | V131: 3783 | W131: =V131/4 -> 946 | X131: 4760 | Y131: =X131/4 -> 1190 | Z131: 0 | AA131: =Z131/4 -> 0 | AB131: =H131+R131 -> 0 | AC131: =AB131/4 -> 0 | AD131: =Z131+AB131 -> 0 | AE131: 0 | AF131: 196 | AG131: =AF131/1000 -> 0.196 | AH131: 214 | AI131: =AH131/1000 -> 0.214 | AJ131: 199 | AK131: =AJ131/1000 -> 0.199 | AL131: 103 | AM131: =AL131/1000 -> 0.103 | AN131: 103 | AO131: 0.103 | AP131: 530 | AQ131: =AP131/4 -> 132 | AR131: 442 | AS131: =AR131/4 -> 110 | AT131: 384.11 | AU131: =AT131/4 -> 96.0275 | AV131: =AP131+AR131 -> 972 | AW131: =AV131/4 -> 242.927
A132: 2024-01-02T08:30:00 | B132: 3038 | C132: 759 | D132: 3939 | E132: 985 | F132: 0 | G132: 0 | H132: 0 | I132: 0 | J132: 0 | K132: 0 | L132: 831 | M132: 208 | N132: 906 | O132: 227 | P132: 0 | Q132: 0 | R132: 0 | S132: 0 | T132: 0 | U132: 0 | V132: 3868 | W132: 967 | X132: 4845 | Y132: 1211 | Z132: 0 | AA132: 0 | AB132: 0 | AC132: 0 | AD132: 0 | AE132: 0 | AF132: 191 | AG132: 0.191 | AH132: 205 | AI132: 0.205 | AJ132: 193 | AK132: 0.193 | AL132: 113 | AM132: 0.113 | AN132: 113 | AO132: 0.113 | AP132: 530 | AQ132: 132 | AR132: 442 | AS132: 110 | AT132: 354.39 | AU132: 88.5975 | AV132: 972 | AW132: 242.923
A133: 2024-01-02T08:45:00 | B133: 3102 | C133: 776 | D133: 3980 | E133: 995 | F133: 0 | G133: 0 | H133: 0 | I133: 0 | J133: 0 | K133: 0 | L133: 830 | M133: 208 | N133: 930 | O133: 233 | P133: 0 | Q133: 0 | R133: 0 | S133: 0 | T133: 0 | U133: 0 | V133: 3933 | W133: 983 | X133: 4910 | Y133: 1227 | Z133: 0 | AA133: 0 | AB133: 0 | AC133: 0 | AD133: 0 | AE133: 0 | AF133: 192 | AG133: 0.192 | AH133: 203 | AI133: 0.203 | AJ133: 194 | AK133: 0.194 | AL133: 113 | AM133: 0.113 | AN133: 113 | AO133: 0.113 | AP133: 530 | AQ133: 132 | AR133: 442 | AS133: 110 | AT133: 330.45 | AU133: 82.6125 | AV133: 972 | AW133: 242.924
A134: 2024-01-02T09:00:00 | B134: 3228 | C134: 807 | D134: 4054 | E134: 1014 | F134: 0 | G134: 0 | H134: 0 | I134: 0 | J134: 0 | K134: 0 | L134: 807 | M134: 202 | N134: 958 | O134: 240 | P134: 0 | Q134: 0 | R134: 0 | S134: 0 | T134: 0 | U134: 0 | V134: 4036 | W134: 1009 | X134: 5012 | Y134: 1253 | Z134: 0 | AA134: 0 | AB134: 0 | AC134: 0 | AD134: 0 | AE134: 0 | AF134: 195 | AG134: 0.195 | AH134: 200 | AI134: 0.2 | AJ134: 196 | AK134: 0.196 | AL134: 120 | AM134: 0.120 | AN134: 120 | AO134: 0.12 | AP134: 530 | AQ134: 132 | AR134: 442 | AS134: 110 | AT134: 279.79 | AU134: 69.9475 | AV134: 972 | AW134: 242.924
A135: 2024-01-02T09:15:00 | B135: 3316 | C135: 829 | D135: 4098 | E135: 1024 | F135: 0 | G135: 0 | H135: 0 | I135: 0 | J135: 0 | K135: 0 | L135: 784 | M135: 196 | N135: 979 | O135: 245 | P135: 0 | Q135: 0 | R135: 0 | S135: 0 | T135: 0 | U135: 0 | V135: 4100 | W135: 1025 | X135: 5077 | Y135: 1269 | Z135: 0 | AA135: 0 | AB135: 0 | AC135: 0 | AD135: 0 | AE135: 0 | AF135: 202 | AG135: 0.202 | AH135: 189 | AI135: 0.189 | AJ135: 200 | AK135: 0.2 | AL135: 120 | AM135: 0.120 | AN135: 120 | AO135: 0.12 | AP135: 530 | AQ135: 132 | AR135: 442 | AS135: 110 | AT135: 235.25 | AU135: 58.8125 | AV135: 972 | AW135: 242.917
A136: 2024-01-02T09:30:00 | B136: 3324 | C136: 831 | D136: 4135 | E136: 1034 | F136: 0 | G136: 0 | H136: 0 | I136: 0 | J136: 0 | K136: 0 | L136: 827 | M136: 207 | N136: 992 | O136: 248 | P136: 0 | Q136: 0 | R136: 0 | S136: 0 | T136: 0 | U136: 0 | V136: 4152 | W136: 1038 | X136: 5127 | Y136: 1282 | Z136: 0 | AA136: 0 | AB136: 0 | AC136: 0 | AD136: 0 | AE136: 0 | AF136: 203 | AG136: 0.203 | AH136: 183 | AI136: 0.183 | AJ136: 200 | AK136: 0.2 | AL136: 129 | AM136: 0.129 | AN136: 129 | AO136: 0.129 | AP136: 530 | AQ136: 132 | AR136: 442 | AS136: 110 | AT136: 263.49 | AU136: 65.8725 | AV136: 972 | AW136: 242.919
A137: 2024-01-02T09:45:00 | B137: 3414 | C137: 853 | D137: 4176 | E137: 1044 | F137: 0 | G137: 0 | H137: 0 | I137: 0 | J137: 0 | K137: 0 | L137: 796 | M137: 199 | N137: 1009 | O137: 252 | P137: 0 | Q137: 0 | R137: 0 | S137: 0 | T137: 0 | U137: 0 | V137: 4210 | W137: 1052 | X137: 5185 | Y137: 1296 | Z137: 0 | AA137: 0 | AB137: 0 | AC137: 0 | AD137: 0 | AE137: 0 | AF137: 196 | AG137: 0.196 | AH137: 209 | AI137: 0.209 | AJ137: 198 | AK137: 0.198 | AL137: 129 | AM137: 0.129 | AN137: 129 | AO137: 0.129 | AP137: 530 | AQ137: 132 | AR137: 442 | AS137: 110 | AT137: 215.74 | AU137: 53.935 | AV137: 972 | AW137: 242.921
A138: 2024-01-02T10:00:00 | B138: 3523 | C138: 881 | D138: 4229 | E138: 1057 | F138: 0 | G138: 0 | H138: 0 | I138: 0 | J138: 0 | K138: 0 | L138: 750 | M138: 187 | N138: 1020 | O138: 255 | P138: 0 | Q138: 0 | R138: 0 | S138: 0 | T138: 0 | U138: 0 | V138: 4272 | W138: 1068 | X138: 5249 | Y138: 1312 | Z138: 0 | AA138: 0 | AB138: 0 | AC138: 0 | AD138: 0 | AE138: 0 | AF138: 192 | AG138: 0.192 | AH138: 185 | AI138: 0.185 | AJ138: 190 | AK138: 0.19 | AL138: 136 | AM138: 0.136 | AN138: 136 | AO138: 0.136 | AP138: 530 | AQ138: 132 | AR138: 442 | AS138: 110 | AT138: 158.99 | AU138: 39.7475 | AV138: 972 | AW138: 242.927
A139: 2024-01-02T10:15:00 | B139: 3560 | C139: 890 | D139: 4258 | E139: 1064 | F139: 0 | G139: 0 | H139: 0 | I139: 0 | J139: 0 | K139: 0 | L139: 753 | M139: 188 | N139: 1030 | O139: 258 | P139: 0 | Q139: 0 | R139: 0 | S139: 0 | T139: 0 | U139: 0 | V139: 4313 | W139: 1078 | X139: 5288 | Y139: 1322 | Z139: 0 | AA139: 0 | AB139: 0 | AC139: 0 | AD139: 0 | AE139: 0 | AF139: 189 | AG139: 0.189 | AH139: 185 | AI139: 0.185 | AJ139: 188 | AK139: 0.188 | AL139: 136 | AM139: 0.136 | AN139: 136 | AO139: 0.136 | AP139: 530 | AQ139: 132 | AR139: 442 | AS139: 110 | AT139: 150.75 | AU139: 37.6875 | AV139: 972 | AW139: 242.922
A140: 2024-01-02T10:30:00 | B140: 3616 | C140: 904 | D140: 4293 | E140: 1073 | F140: 0 | G140: 0 | H140: 0 | I140: 0 | J140: 0 | K140: 0 | L140: 746 | M140: 186 | N140: 1045 | O140: 261 | P140: 0 | Q140: 0 | R140: 0 | S140: 0 | T140: 0 | U140: 0 | V140: 4362 | W140: 1090 | X140: 5338 | Y140: 1335 | Z140: 0 | AA140: 0 | AB140: 0 | AC140: 0 | AD140: 0 | AE140: 0 | AF140: 191 | AG140: 0.191 | AH140: 178 | AI140: 0.178 | AJ140: 189 | AK140: 0.189 | AL140: 141 | AM140: 0.141 | AN140: 141 | AO140: 0.141 | AP140: 530 | AQ140: 132 | AR140: 442 | AS140: 110 | AT140: 129.87 | AU140: 32.4675 | AV140: 972 | AW140: 242.925
A141: 2024-01-02T10:45:00 | B141: 3624 | C141: 906 | D141: 4328 | E141: 1082 | F141: 0 | G141: 0 | H141: 0 | I141: 0 | J141: 0 | K141: 0 | L141: 783 | M141: 196 | N141: 1056 | O141: 264 | P141: 0 | Q141: 0 | R141: 0 | S141: 0 | T141: 0 | U141: 0 | V141: 4408 | W141: 1102 | X141: 5384 | Y141: 1346 | Z141: 0 | AA141: 0 | AB141: 0 | AC141: 0 | AD141: 0 | AE141: 0 | AF141: 179 | AG141: 0.179 | AH141: 182 | AI141: 0.182 | AJ141: 179 | AK141: 0.179 | AL141: 141 | AM141: 0.141 | AN141: 141 | AO141: 0.141 | AP141: 530 | AQ141: 132 | AR141: 442 | AS141: 110 | AT141: 157.63 | AU141: 39.4075 | AV141: 972 | AW141: 242.923
A142: 2024-01-02T11:00:00 | B142: 3690 | C142: 923 | D142: 4378 | E142: 1095 | F142: 0 | G142: 0 | H142: 0 | I142: 0 | J142: 0 | K142: 0 | L142: 773 | M142: 193 | N142: 1061 | O142: 265 | P142: 0 | Q142: 0 | R142: 0 | S142: 0 | T142: 0 | U142: 0 | V142: 4464 | W142: 1116 | X142: 5439 | Y142: 1360 | Z142: 0 | AA142: 0 | AB142: 0 | AC142: 0 | AD142: 0 | AE142: 0 | AF142: 181 | AG142: 0.181 | AH142: 190 | AI142: 0.19 | AJ142: 182 | AK142: 0.182 | AL142: 147 | AM142: 0.147 | AN142: 147 | AO142: 0.147 | AP142: 530 | AQ142: 132 | AR142: 442 | AS142: 110 | AT142: 143.56 | AU142: 35.89 | AV142: 972 | AW142: 242.904
A143: 2024-01-02T11:15:00 | B143: 3748 | C143: 937 | D143: 4411 | E143: 1103 | F143: 0 | G143: 0 | H143: 0 | I143: 0 | J143: 0 | K143: 0 | L143: 753 | M143: 188 | N143: 1070 | O143: 268 | P143: 0 | Q143: 0 | R143: 0 | S143: 0 | T143: 0 | U143: 0 | V143: 4501 | W143: 1125 | X143: 5481 | Y143: 1370 | Z143: 0 | AA143: 0 | AB143: 0 | AC143: 0 | AD143: 0 | AE143: 0 | AF143: 177 | AG143: 0.177 | AH143: 176 | AI143: 0.176 | AJ143: 177 | AK143: 0.177 | AL143: 147 | AM143: 0.147 | AN143: 147 | AO143: 0.147 | AP143: 530 | AQ143: 132 | AR143: 442 | AS143: 110 | AT143: 113.93 | AU143: 28.4825 | AV143: 972 | AW143: 242.912
A144: 2024-01-02T11:30:00 | B144: 3808 | C144: 952 | D144: 4426 | E144: 1106 | F144: 0 | G144: 0 | H144: 0 | I144: 0 | J144: 0 | K144: 0 | L144: 715 | M144: 179 | N144: 1078 | O144: 269 | P144: 0 | Q144: 0 | R144: 7.954 | S144: 1.9885 | T144: 7.954 | U144: 1.9885 | V144: 4523 | W144: 1131 | X144: 5503 | Y144: 1376 | Z144: 0 | AA144: 0 | AB144: 7.954 | AC144: 1.9885 | AD144: 7.954 | AE144: 1.9885 | AF144: 173 | AG144: 0.173 | AH144: 174 | AI144: 0.174 | AJ144: 173 | AK144: 0.173 | AL144: 146 | AM144: 0.146 | AN144: 146 | AO144: 0.146 | AP144: 530 | AQ144: 132 | AR144: 442 | AS144: 110 | AT144: 66.59 | AU144: 16.6475 | AV144: 972 | AW144: 242.916
A145: 2024-01-02T11:45:00 | B145: 3872 | C145: 968 | D145: 4459 | E145: 1115 | F145: 0 | G145: 0 | H145: 0 | I145: 0 | J145: 0 | K145: 0 | L145: 705 | M145: 176 | N145: 1083 | O145: 271 | P145: 0 | Q145: 0 | R145: 7.954 | S145: 1.9885 | T145: 7.954 | U145: 1.9885 | V145: 4576 | W145: 1144 | X145: 5543 | Y145: 1386 | Z145: 0 | AA145: 0 | AB145: 7.954 | AC145: 1.9885 | AD145: 7.954 | AE145: 1.9885 | AF145: 157 | AG145: 0.157 | AH145: 170 | AI145: 0.17 | AJ145: 159 | AK145: 0.159 | AL145: 146 | AM145: 0.146 | AN145: 146 | AO145: 0.146 | AP145: 520 | AQ145: 130 | AR145: 442 | AS145: 110 | AT145: 47.41 | AU145: 11.8525 | AV145: 961 | AW145: 240.372
A146: 2024-01-02T12:00:00 | B146: 3941 | C146: 985 | D146: 4477 | E146: 1119 | F146: 0 | G146: 0 | H146: 0 | I146: 0 | J146: 0 | K146: 0 | L146: 721 | M146: 180 | N146: 1090 | O146: 272 | P146: 0 | Q146: 0 | R146: 46.51 | S146: 11.6275 | T146: 46.51 | U146: 11.6275 | V146: 4662 | W146: 1165 | X146: 5567 | Y146: 1392 | Z146: 0 | AA146: 0 | AB146: 46.51 | AC146: 11.6275 | AD146: 46.51 | AE146: 11.6275 | AF146: 150 | AG146: 0.15 | AH146: 174 | AI146: 0.174 | AJ146: 155 | AK146: 0.155 | AL146: 149 | AM146: 0.149 | AN146: 149 | AO146: 0.149 | AP146: 453 | AQ146: 113 | AR146: 442 | AS146: 110 | AT146: 59.25 | AU146: 14.8125 | AV146: 895 | AW146: 223.766
A147: 2024-01-02T12:15:00 | B147: 4027 | C147: 1007 | D147: 4497 | E147: 1124 | F147: 0 | G147: 0 | H147: 0 | I147: 0 | J147: 0 | K147: 0 | L147: 745 | M147: 186 | N147: 1102 | O147: 276 | P147: 0 | Q147: 0 | R147: 46.51 | S147: 11.6275 | T147: 46.51 | U147: 11.6275 | V147: 4772 | W147: 1193 | X147: 5599 | Y147: 1400 | Z147: 0 | AA147: 0 | AB147: 46.51 | AC147: 11.6275 | AD147: 46.51 | AE147: 11.6275 | AF147: 161 | AG147: 0.161 | AH147: 177 | AI147: 0.177 | AJ147: 164 | AK147: 0.164 | AL147: 149 | AM147: 0.149 | AN147: 149 | AO147: 0.149 | AP147: 378 | AQ147: 95 | AR147: 442 | AS147: 110 | AT147: 70.8 | AU147: 17.7 | AV147: 820 | AW147: 205.017
A148: 2024-01-02T12:30:00 | B148: 4132 | C148: 1033 | D148: 4518 | E148: 1130 | F148: 0 | G148: 0 | H148: 0 | I148: 0 | J148: 0 | K148: 0 | L148: 721 | M148: 180 | N148: 1107 | O148: 277 | P148: 0 | Q148: 0 | R148: 20.034 | S148: 5.0085 | T148: 20.034 | U148: 5.0085 | V148: 4853 | W148: 1213 | X148: 5625 | Y148: 1406 | Z148: 0 | AA148: 0 | AB148: 20.034 | AC148: 5.0085 | AD148: 20.034 | AE148: 5.0085 | AF148: 163 | AG148: 0.163 | AH148: 187 | AI148: 0.187 | AJ148: 168 | AK148: 0.168 | AL148: 153 | AM148: 0.153 | AN148: 153 | AO148: 0.153 | AP148: 317 | AQ148: 79 | AR148: 442 | AS148: 110 | AT148: 42.93 | AU148: 10.7325 | AV148: 759 | AW148: 189.627
A149: 2024-01-02T12:45:00 | B149: 4229 | C149: 1057 | D149: 4525 | E149: 1131 | F149: 0 | G149: 0 | H149: 0 | I149: 0 | J149: 0 | K149: 0 | L149: 714 | M149: 178 | N149: 1108 | O149: 277 | P149: 0 | Q149: 0 | R149: 20.034 | S149: 5.0085 | T149: 20.034 | U149: 5.0085 | V149: 4942 | W149: 1236 | X149: 5633 | Y149: 1408 | Z149: 0 | AA149: 0 | AB149: 20.034 | AC149: 5.0085 | AD149: 20.034 | AE149: 5.0085 | AF149: 165 | AG149: 0.165 | AH149: 168 | AI149: 0.168 | AJ149: 165 | AK149: 0.165 | AL149: 153 | AM149: 0.153 | AN149: 153 | AO149: 0.153 | AP149: 242 | AQ149: 61 | AR149: 442 | AS149: 110 | AT149: 33.25 | AU149: 8.3125 | AV149: 684 | AW149: 171.019
A150: 2024-01-02T13:00:00 | B150: 4291 | C150: 1073 | D150: 4533 | E150: 1133 | F150: 0 | G150: 0 | H150: 11.42 | I150: 2.855 | J150: 11.42 | K150: 2.855 | L150: 729 | M150: 182 | N150: 1108 | O150: 277 | P150: 0 | Q150: 0 | R150: 14.488 | S150: 3.622 | T150: 14.488 | U150: 3.622 | V150: 5020 | W150: 1255 | X150: 5641 | Y150: 1410 | Z150: 0 | AA150: 0 | AB150: 25.908 | AC150: 6.477 | AD150: 25.908 | AE150: 6.477 | AF150: 167 | AG150: 0.167 | AH150: 168 | AI150: 0.168 | AJ150: 167 | AK150: 0.167 | AL150: 154 | AM150: 0.154 | AN150: 154 | AO150: 0.154 | AP150: 167 | AQ150: 42 | AR150: 442 | AS150: 110 | AT150: 47.87 | AU150: 11.9675 | AV150: 609 | AW150: 152.262
A151: 2024-01-02T13:15:00 | B151: 4368 | C151: 1092 | D151: 4531 | E151: 1133 | F151: 0 | G151: 0 | H151: 11.42 | I151: 2.855 | J151: 11.42 | K151: 2.855 | L151: 720 | M151: 180 | N151: 1098 | O151: 274 | P151: 0 | Q151: 0 | R151: 14.488 | S151: 3.622 | T151: 14.488 | U151: 3.622 | V151: 5088 | W151: 1272 | X151: 5629 | Y151: 1407 | Z151: 0 | AA151: 0 | AB151: 25.908 | AC151: 6.477 | AD151: 25.908 | AE151: 6.477 | AF151: 169 | AG151: 0.169 | AH151: 168 | AI151: 0.168 | AJ151: 169 | AK151: 0.169 | AL151: 154 | AM151: 0.154 | AN151: 154 | AO151: 0.154 | AP151: 92 | AQ151: 23 | AR151: 438 | AS151: 110 | AT151: 46.11 | AU151: 11.5275 | AV151: 531 | AW151: 132.698
A152: 2024-01-02T13:30:00 | B152: 4359 | C152: 1090 | D152: 4506 | E152: 1126 | F152: 0 | G152: 0 | H152: 18.064 | I152: 4.516 | J152: 18.064 | K152: 4.516 | L152: 738 | M152: 184 | N152: 1094 | O152: 273 | P152: 0 | Q152: 0 | R152: 31.832 | S152: 7.958 | T152: 31.832 | U152: 7.958 | V152: 5096 | W152: 1274 | X152: 5600 | Y152: 1400 | Z152: 0 | AA152: 0 | AB152: 49.896 | AC152: 12.474 | AD152: 49.896 | AE152: 12.474 | AF152: 167 | AG152: 0.167 | AH152: 172 | AI152: 0.172 | AJ152: 168 | AK152: 0.168 | AL152: 155 | AM152: 0.155 | AN152: 155 | AO152: 0.155 | AP152: 86 | AQ152: 22 | AR152: 415 | AS152: 104 | AT152: 43.26 | AU152: 10.815 | AV152: 501 | AW152: 125.258
A153: 2024-01-02T13:45:00 | B153: 4367 | C153: 1092 | D153: 4489 | E153: 1122 | F153: 0 | G153: 0 | H153: 18.064 | I153: 4.516 | J153: 18.064 | K153: 4.516 | L153: 729 | M153: 182 | N153: 1088 | O153: 272 | P153: 0 | Q153: 0 | R153: 31.832 | S153: 7.958 | T153: 31.832 | U153: 7.958 | V153: 5095 | W153: 1274 | X153: 5577 | Y153: 1394 | Z153: 0 | AA153: 0 | AB153: 49.896 | AC153: 12.474 | AD153: 49.896 | AE153: 12.474 | AF153: 164 | AG153: 0.164 | AH153: 169 | AI153: 0.169 | AJ153: 165 | AK153: 0.165 | AL153: 155 | AM153: 0.155 | AN153: 155 | AO153: 0.155 | AP153: 62 | AQ153: 16 | AR153: 413 | AS153: 103 | AT153: 37.5 | AU153: 9.375 | AV153: 475 | AW153: 118.790
A154: 2024-01-02T14:00:00 | B154: 4454 | C154: 1113 | D154: 4507 | E154: 1127 | F154: 0 | G154: 0 | H154: 12.568 | I154: 3.142 | J154: 12.568 | K154: 3.142 | L154: 725 | M154: 181 | N154: 1083 | O154: 271 | P154: 0 | Q154: 0 | R154: 30.598 | S154: 7.6495 | T154: 30.598 | U154: 7.6495 | V154: 5179 | W154: 1295 | X154: 5590 | Y154: 1398 | Z154: 0 | AA154: 0 | AB154: 43.166 | AC154: 10.7915 | AD154: 43.166 | AE154: 10.7915 | AF154: 163 | AG154: 0.163 | AH154: 172 | AI154: 0.172 | AJ154: 165 | AK154: 0.165 | AL154: 155 | AM154: 0.155 | AN154: 155 | AO154: 0.155 | AP154: 5 | AQ154: 1 | AR154: 398 | AS154: 100 | AT154: 23.6 | AU154: 5.9 | AV154: 404 | AW154: 100.901
A155: 2024-01-02T14:15:00 | B155: 4430 | C155: 1108 | D155: 4493 | E155: 1123 | F155: 0 | G155: 0 | H155: 12.568 | I155: 3.142 | J155: 12.568 | K155: 3.142 | L155: 739 | M155: 185 | N155: 1087 | O155: 272 | P155: 0 | Q155: 0 | R155: 30.598 | S155: 7.6495 | T155: 30.598 | U155: 7.6495 | V155: 5169 | W155: 1292 | X155: 5579 | Y155: 1395 | Z155: 0 | AA155: 0 | AB155: 43.166 | AC155: 10.7915 | AD155: 43.166 | AE155: 10.7915 | AF155: 161 | AG155: 0.161 | AH155: 179 | AI155: 0.179 | AJ155: 164 | AK155: 0.164 | AL155: 155 | AM155: 0.155 | AN155: 155 | AO155: 0.155 | AP155: 20 | AQ155: 5 | AR155: 387 | AS155: 97 | AT155: 26.27 | AU155: 6.5675 | AV155: 407 | AW155: 101.766
A156: 2024-01-02T14:30:00 | B156: 4440 | C156: 1110 | D156: 4502 | E156: 1126 | F156: 0 | G156: 0 | H156: 17.934 | I156: 4.4835 | J156: 17.934 | K156: 4.4835 | L156: 727 | M156: 182 | N156: 1081 | O156: 270 | P156: 0 | Q156: 0 | R156: 35.754 | S156: 8.9385 | T156: 35.754 | U156: 8.9385 | V156: 5167 | W156: 1292 | X156: 5583 | Y156: 1396 | Z156: 0 | AA156: 0 | AB156: 53.688 | AC156: 13.422 | AD156: 53.688 | AE156: 13.422 | AF156: 167 | AG156: 0.167 | AH156: 176 | AI156: 0.176 | AJ156: 168 | AK156: 0.168 | AL156: 153 | AM156: 0.153 | AN156: 153 | AO156: 0.153 | AP156: 91 | AQ156: 23 | AR156: 326 | AS156: 82 | AT156: -41.56 | AU156: -10.39 | AV156: 417 | AW156: 104.258
A157: 2024-01-02T14:45:00 | B157: 4416 | C157: 1104 | D157: 4506 | E157: 1126 | F157: 0 | G157: 0 | H157: 17.934 | I157: 4.4835 | J157: 17.934 | K157: 4.4835 | L157: 748 | M157: 187 | N157: 1076 | O157: 269 | P157: 0 | Q157: 0 | R157: 35.754 | S157: 8.9385 | T157: 35.754 | U157: 8.9385 | V157: 5164 | W157: 1291 | X157: 5582 | Y157: 1396 | Z157: 0 | AA157: 0 | AB157: 53.688 | AC157: 13.422 | AD157: 53.688 | AE157: 13.422 | AF157: 165 | AG157: 0.165 | AH157: 175 | AI157: 0.175 | AJ157: 167 | AK157: 0.167 | AL157: 153 | AM157: 0.153 | AN157: 153 | AO157: 0.153 | AP157: 104 | AQ157: 26 | AR157: 312 | AS157: 78 | AT157: -32.36 | AU157: -8.09 | AV157: 415 | AW157: 103.820
A158: 2024-01-02T15:00:00 | B158: 4427 | C158: 1107 | D158: 4506 | E158: 1126 | F158: 0 | G158: 0 | H158: 21.838 | I158: 5.4595 | J158: 21.838 | K158: 5.4595 | L158: 747 | M158: 187 | N158: 1083 | O158: 271 | P158: 0 | Q158: 0 | R158: 59.968 | S158: 14.992 | T158: 59.968 | U158: 14.992 | V158: 5174 | W158: 1293 | X158: 5589 | Y158: 1397 | Z158: 0 | AA158: 0 | AB158: 81.806 | AC158: 20.4515 | AD158: 81.806 | AE158: 20.4515 | AF158: 171 | AG158: 0.171 | AH158: 181 | AI158: 0.181 | AJ158: 173 | AK158: 0.173 | AL158: 148 | AM158: 0.148 | AN158: 148 | AO158: 0.148 | AP158: 91 | AQ158: 23 | AR158: 326 | AS158: 82 | AT158: -23.8 | AU158: -5.95 | AV158: 417 | AW158: 104.330
A159: 2024-01-02T15:15:00 | B159: 4353 | C159: 1088 | D159: 4513 | E159: 1128 | F159: 0 | G159: 0 | H159: 21.838 | I159: 5.4595 | J159: 21.838 | K159: 5.4595 | L159: 760 | M159: 190 | N159: 1090 | O159: 272 | P159: 0 | Q159: 0 | R159: 59.968 | S159: 14.992 | T159: 59.968 | U159: 14.992 | V159: 5113 | W159: 1278 | X159: 5602 | Y159: 1401 | Z159: 0 | AA159: 0 | AB159: 81.806 | AC159: 20.4515 | AD159: 81.806 | AE159: 20.4515 | AF159: 172 | AG159: 0.172 | AH159: 175 | AI159: 0.175 | AJ159: 172 | AK159: 0.172 | AL159: 148 | AM159: 0.148 | AN159: 148 | AO159: 0.148 | AP159: 165 | AQ159: 41 | AR159: 327 | AS159: 82 | AT159: -18.31 | AU159: -4.5775 | AV159: 492 | AW159: 123.106
A160: 2024-01-02T15:30:00 | B160: 4295 | C160: 1074 | D160: 4514 | E160: 1129 | F160: 0 | G160: 0 | H160: 20.936 | I160: 5.234 | J160: 20.936 | K160: 5.234 | L160: 765 | M160: 191 | N160: 1098 | O160: 274 | P160: 0 | Q160: 0 | R160: 60.07 | S160: 15.0175 | T160: 60.07 | U160: 15.0175 | V160: 5061 | W160: 1265 | X160: 5612 | Y160: 1403 | Z160: 0 | AA160: 0 | AB160: 81.006 | AC160: 20.2515 | AD160: 81.006 | AE160: 20.2515 | AF160: 168 | AG160: 0.168 | AH160: 169 | AI160: 0.169 | AJ160: 169 | AK160: 0.169 | AL160: 147 | AM160: 0.147 | AN160: 147 | AO160: 0.147 | AP160: 240 | AQ160: 60 | AR160: 315 | AS160: 79 | AT160: -30.96 | AU160: -7.74 | AV160: 556 | AW160: 138.910
A161: 2024-01-02T15:45:00 | B161: 4217 | C161: 1054 | D161: 4557 | E161: 1139 | F161: 0 | G161: 0 | H161: 20.936 | I161: 5.234 | J161: 20.936 | K161: 5.234 | L161: 776 | M161: 194 | N161: 1112 | O161: 278 | P161: 0 | Q161: 0 | R161: 60.07 | S161: 15.0175 | T161: 60.07 | U161: 15.0175 | V161: 4994 | W161: 1248 | X161: 5670 | Y161: 1417 | Z161: 0 | AA161: 0 | AB161: 81.006 | AC161: 20.2515 | AD161: 81.006 | AE161: 20.2515 | AF161: 155 | AG161: 0.155 | AH161: 167 | AI161: 0.167 | AJ161: 157 | AK161: 0.157 | AL161: 147 | AM161: 0.147 | AN161: 147 | AO161: 0.147 | AP161: 315 | AQ161: 79 | AR161: 366 | AS161: 91 | AT161: 15.34 | AU161: 3.835 | AV161: 681 | AW161: 170.293
A162: 2024-01-02T16:00:00 | B162: 4203 | C162: 1051 | D162: 4602 | E162: 1151 | F162: 0 | G162: 0 | H162: 23.002 | I162: 5.7505 | J162: 23.002 | K162: 5.7505 | L162: 781 | M162: 195 | N162: 1141 | O162: 285 | P162: 0 | Q162: 0 | R162: 68.552 | S162: 17.138 | T162: 68.552 | U162: 17.138 | V162: 4984 | W162: 1246 | X162: 5744 | Y162: 1436 | Z162: 0 | AA162: 0 | AB162: 91.554 | AC162: 22.8885 | AD162: 91.554 | AE162: 22.8885 | AF162: 149 | AG162: 0.149 | AH162: 168 | AI162: 0.168 | AJ162: 153 | AK162: 0.153 | AL162: 144 | AM162: 0.144 | AN162: 144 | AO162: 0.144 | AP162: 319 | AQ162: 80 | AR162: 432 | AS162: 108 | AT162: 59.51 | AU162: 14.8775 | AV162: 751 | AW162: 187.647
A163: 2024-01-02T16:15:00 | B163: 4282 | C163: 1071 | D163: 4641 | E163: 1160 | F163: 0 | G163: 0 | H163: 23.002 | I163: 5.7505 | J163: 23.002 | K163: 5.7505 | L163: 782 | M163: 195 | N163: 1174 | O163: 294 | P163: 0 | Q163: 0 | R163: 68.552 | S163: 17.138 | T163: 68.552 | U163: 17.138 | V163: 5064 | W163: 1266 | X163: 5815 | Y163: 1454 | Z163: 0 | AA163: 0 | AB163: 91.554 | AC163: 22.8885 | AD163: 91.554 | AE163: 22.8885 | AF163: 156 | AG163: 0.156 | AH163: 163 | AI163: 0.163 | AJ163: 158 | AK163: 0.158 | AL163: 144 | AM163: 0.144 | AN163: 144 | AO163: 0.144 | AP163: 303 | AQ163: 76 | AR163: 442 | AS163: 110 | AT163: 36.35 | AU163: 9.0875 | AV163: 745 | AW163: 186.245
A164: 2024-01-02T16:30:00 | B164: 4371 | C164: 1093 | D164: 4709 | E164: 1177 | F164: 0 | G164: 0 | H164: 24.226 | I164: 6.0565 | J164: 24.226 | K164: 6.0565 | L164: 807 | M164: 202 | N164: 1220 | O164: 305 | P164: 0 | Q164: 0 | R164: 79.874 | S164: 19.9685 | T164: 79.874 | U164: 19.9685 | V164: 5178 | W164: 1294 | X164: 5928 | Y164: 1482 | Z164: 0 | AA164: 0 | AB164: 104.1 | AC164: 26.025 | AD164: 104.1 | AE164: 26.025 | AF164: 165 | AG164: 0.165 | AH164: 168 | AI164: 0.168 | AJ164: 166 | AK164: 0.166 | AL164: 142 | AM164: 0.142 | AN164: 142 | AO164: 0.142 | AP164: 341 | AQ164: 85 | AR164: 408 | AS164: 102 | AT164: -17.68 | AU164: -4.42 | AV164: 749 | AW164: 187.236
A165: 2024-01-02T16:45:00 | B165: 4409 | C165: 1102 | D165: 4809 | E165: 1202 | F165: 0 | G165: 0 | H165: 24.226 | I165: 6.0565 | J165: 24.226 | K165: 6.0565 | L165: 852 | M165: 213 | N165: 1254 | O165: 314 | P165: 0 | Q165: 0 | R165: 79.874 | S165: 19.9685 | T165: 79.874 | U165: 19.9685 | V165: 5261 | W165: 1315 | X165: 6064 | Y165: 1516 | Z165: 0 | AA165: 0 | AB165: 104.1 | AC165: 26.025 | AD165: 104.1 | AE165: 26.025 | AF165: 171 | AG165: 0.171 | AH165: 165 | AI165: 0.165 | AJ165: 170 | AK165: 0.17 | AL165: 142 | AM165: 0.142 | AN165: 142 | AO165: 0.142 | AP165: 416 | AQ165: 104 | AR165: 390 | AS165: 97 | AT165: -28.12 | AU165: -7.03 | AV165: 806 | AW165: 201.386
A166: 2024-01-02T17:00:00 | B166: 4391 | C166: 1098 | D166: 4883 | E166: 1221 | F166: 0 | G166: 0 | H166: 26.95 | I166: 6.7375 | J166: 26.95 | K166: 6.7375 | L166: 839 | M166: 210 | N166: 1273 | O166: 318 | P166: 0 | Q166: 0 | R166: 65.662 | S166: 16.4155 | T166: 65.662 | U166: 16.4155 | V166: 5231 | W166: 1308 | X166: 6156 | Y166: 1539 | Z166: 0 | AA166: 0 | AB166: 92.612 | AC166: 23.153 | AD166: 92.612 | AE166: 23.153 | AF166: 169 | AG166: 0.169 | AH166: 160 | AI166: 0.16 | AJ166: 167 | AK166: 0.167 | AL166: 141 | AM166: 0.141 | AN166: 141 | AO166: 0.141 | AP166: 491 | AQ166: 123 | AR166: 440 | AS166: 110 | AT166: -8.58 | AU166: -2.145 | AV166: 931 | AW166: 232.694
A167: 2024-01-02T17:15:00 | B167: 4395 | C167: 1099 | D167: 4932 | E167: 1233 | F167: 0 | G167: 0 | H167: 26.95 | I167: 6.7375 | J167: 26.95 | K167: 6.7375 | L167: 844 | M167: 211 | N167: 1285 | O167: 321 | P167: 0 | Q167: 0 | R167: 65.662 | S167: 16.4155 | T167: 65.662 | U167: 16.4155 | V167: 5238 | W167: 1310 | X167: 6216 | Y167: 1554 | Z167: 0 | AA167: 0 | AB167: 92.612 | AC167: 23.153 | AD167: 92.612 | AE167: 23.153 | AF167: 169 | AG167: 0.169 | AH167: 160 | AI167: 0.16 | AJ167: 167 | AK167: 0.167 | AL167: 141 | AM167: 0.141 | AN167: 141 | AO167: 0.141 | AP167: 530 | AQ167: 132 | AR167: 442 | AS167: 110 | AT167: -12.18 | AU167: -3.045 | AV167: 972 | AW167: 242.957
A168: 2024-01-02T17:30:00 | B168: 4402 | C168: 1101 | D168: 4950 | E168: 1238 | F168: 0 | G168: 0 | H168: 28.026 | I168: 7.0065 | J168: 28.026 | K168: 7.0065 | L168: 850 | M168: 213 | N168: 1277 | O168: 319 | P168: 0 | Q168: 0 | R168: 77.416 | S168: 19.354 | T168: 77.416 | U168: 19.354 | V168: 5252 | W168: 1313 | X168: 6227 | Y168: 1557 | Z168: 0 | AA168: 0 | AB168: 105.442 | AC168: 26.3605 | AD168: 105.442 | AE168: 26.3605 | AF168: 176 | AG168: 0.176 | AH168: 161 | AI168: 0.161 | AJ168: 173 | AK168: 0.173 | AL168: 139 | AM168: 0.139 | AN168: 139 | AO168: 0.139 | AP168: 530 | AQ168: 132 | AR168: 442 | AS168: 110 | AT168: -0.18 | AU168: -0.045 | AV168: 972 | AW168: 242.958
A169: 2024-01-02T17:45:00 | B169: 4363 | C169: 1091 | D169: 4940 | E169: 1235 | F169: 0 | G169: 0 | H169: 28.026 | I169: 7.0065 | J169: 28.026 | K169: 7.0065 | L169: 861 | M169: 215 | N169: 1259 | O169: 315 | P169: 0 | Q169: 0 | R169: 77.416 | S169: 19.354 | T169: 77.416 | U169: 19.354 | V169: 5224 | W169: 1306 | X169: 6199 | Y169: 1550 | Z169: 0 | AA169: 0 | AB169: 105.442 | AC169: 26.3605 | AD169: 105.442 | AE169: 26.3605 | AF169: 173 | AG169: 0.173 | AH169: 164 | AI169: 0.164 | AJ169: 171 | AK169: 0.171 | AL169: 139 | AM169: 0.139 | AN169: 139 | AO169: 0.139 | AP169: 530 | AQ169: 132 | AR169: 442 | AS169: 110 | AT169: 28.43 | AU169: 7.1075 | AV169: 972 | AW169: 242.958
A170: 2024-01-02T18:00:00 | B170: 4291 | C170: 1073 | D170: 4898 | E170: 1224 | F170: 0 | G170: 0 | H170: 29.22 | I170: 7.305 | J170: 29.22 | K170: 7.305 | L170: 867 | M170: 217 | N170: 1235 | O170: 309 | P170: 0 | Q170: 0 | R170: 88.612 | S170: 22.153 | T170: 88.612 | U170: 22.153 | V170: 5157 | W170: 1289 | X170: 6133 | Y170: 1533 | Z170: 0 | AA170: 0 | AB170: 117.832 | AC170: 29.458 | AD170: 117.832 | AE170: 29.458 | AF170: 175 | AG170: 0.175 | AH170: 167 | AI170: 0.167 | AJ170: 174 | AK170: 0.174 | AL170: 134 | AM170: 0.134 | AN170: 134 | AO170: 0.134 | AP170: 530 | AQ170: 132 | AR170: 442 | AS170: 110 | AT170: 58.91 | AU170: 14.7275 | AV170: 972 | AW170: 242.955
A171: 2024-01-02T18:15:00 | B171: 4183 | C171: 1046 | D171: 4841 | E171: 1210 | F171: 0 | G171: 0 | H171: 29.22 | I171: 7.305 | J171: 29.22 | K171: 7.305 | L171: 891 | M171: 223 | N171: 1206 | O171: 301 | P171: 0 | Q171: 0 | R171: 88.612 | S171: 22.153 | T171: 88.612 | U171: 22.153 | V171: 5073 | W171: 1268 | X171: 6047 | Y171: 1512 | Z171: 0 | AA171: 0 | AB171: 117.832 | AC171: 29.458 | AD171: 117.832 | AE171: 29.458 | AF171: 180 | AG171: 0.18 | AH171: 174 | AI171: 0.174 | AJ171: 179 | AK171: 0.179 | AL171: 134 | AM171: 0.134 | AN171: 134 | AO171: 0.134 | AP171: 530 | AQ171: 132 | AR171: 442 | AS171: 110 | AT171: 111.07 | AU171: 27.7675 | AV171: 972 | AW171: 242.951
A172: 2024-01-02T18:30:00 | B172: 4069 | C172: 1017 | D172: 4778 | E172: 1195 | F172: 0 | G172: 0 | H172: 30.154 | I172: 7.5385 | J172: 30.154 | K172: 7.5385 | L172: 911 | M172: 228 | N172: 1178 | O172: 294 | P172: 0 | Q172: 0 | R172: 100.912 | S172: 25.228 | T172: 100.912 | U172: 25.228 | V172: 4980 | W172: 1245 | X172: 5956 | Y172: 1489 | Z172: 0 | AA172: 0 | AB172: 131.066 | AC172: 32.7665 | AD172: 131.066 | AE172: 32.7665 | AF172: 184 | AG172: 0.184 | AH172: 184 | AI172: 0.184 | AJ172: 184 | AK172: 0.184 | AL172: 130 | AM172: 0.130 | AN172: 130 | AO172: 0.13 | AP172: 530 | AQ172: 132 | AR172: 442 | AS172: 110 | AT172: 159.89 | AU172: 39.9725 | AV172: 972 | AW172: 242.946
A173: 2024-01-02T18:45:00 | B173: 4000 | C173: 1000 | D173: 4704 | E173: 1176 | F173: 0 | G173: 0 | H173: 30.154 | I173: 7.5385 | J173: 30.154 | K173: 7.5385 | L173: 881 | M173: 220 | N173: 1153 | O173: 288 | P173: 0 | Q173: 0 | R173: 100.912 | S173: 25.228 | T173: 100.912 | U173: 25.228 | V173: 4881 | W173: 1220 | X173: 5857 | Y173: 1464 | Z173: 0 | AA173: 0 | AB173: 131.066 | AC173: 32.7665 | AD173: 131.066 | AE173: 32.7665 | AF173: 189 | AG173: 0.189 | AH173: 182 | AI173: 0.182 | AJ173: 187 | AK173: 0.187 | AL173: 130 | AM173: 0.130 | AN173: 130 | AO173: 0.13 | AP173: 530 | AQ173: 132 | AR173: 442 | AS173: 110 | AT173: 155.96 | AU173: 38.99 | AV173: 972 | AW173: 242.948
A174: 2024-01-02T19:00:00 | B174: 3942 | C174: 986 | D174: 4671 | E174: 1168 | F174: 0 | G174: 0 | H174: 29.806 | I174: 7.4515 | J174: 29.806 | K174: 7.4515 | L174: 888 | M174: 222 | N174: 1138 | O174: 284 | P174: 0 | Q174: 0 | R174: 108.74 | S174: 27.185 | T174: 108.74 | U174: 27.185 | V174: 4831 | W174: 1208 | X174: 5809 | Y174: 1452 | Z174: 0 | AA174: 0 | AB174: 138.546 | AC174: 34.6365 | AD174: 138.546 | AE174: 34.6365 | AF174: 190 | AG174: 0.19 | AH174: 185 | AI174: 0.185 | AJ174: 189 | AK174: 0.189 | AL174: 127 | AM174: 0.127 | AN174: 127 | AO174: 0.127 | AP174: 530 | AQ174: 132 | AR174: 442 | AS174: 110 | AT174: 179.8 | AU174: 44.95 | AV174: 972 | AW174: 242.948
A175: 2024-01-02T19:15:00 | B175: 3880 | C175: 970 | D175: 4638 | E175: 1160 | F175: 0 | G175: 0 | H175: 29.806 | I175: 7.4515 | J175: 29.806 | K175: 7.4515 | L175: 900 | M175: 225 | N175: 1119 | O175: 280 | P175: 0 | Q175: 0 | R175: 108.74 | S175: 27.185 | T175: 108.74 | U175: 27.185 | V175: 4780 | W175: 1195 | X175: 5757 | Y175: 1439 | Z175: 0 | AA175: 0 | AB175: 138.546 | AC175: 34.6365 | AD175: 138.546 | AE175: 34.6365 | AF175: 186 | AG175: 0.186 | AH175: 184 | AI175: 0.184 | AJ175: 186 | AK175: 0.186 | AL175: 127 | AM175: 0.127 | AN175: 127 | AO175: 0.127 | AP175: 530 | AQ175: 132 | AR175: 442 | AS175: 110 | AT175: 211.25 | AU175: 52.8125 | AV175: 972 | AW175: 242.942
A176: 2024-01-02T19:30:00 | B176: 3791 | C176: 948 | D176: 4587 | E176: 1147 | F176: 0 | G176: 0 | H176: 30.31 | I176: 7.5775 | J176: 30.31 | K176: 7.5775 | L176: 913 | M176: 228 | N176: 1096 | O176: 274 | P176: 0 | Q176: 0 | R176: 113.77 | S176: 28.4425 | T176: 113.77 | U176: 28.4425 | V176: 4704 | W176: 1176 | X176: 5683 | Y176: 1421 | Z176: 0 | AA176: 0 | AB176: 144.08 | AC176: 36.02 | AD176: 144.08 | AE176: 36.02 | AF176: 183 | AG176: 0.183 | AH176: 189 | AI176: 0.189 | AJ176: 184 | AK176: 0.184 | AL176: 121 | AM176: 0.121 | AN176: 121 | AO176: 0.121 | AP176: 530 | AQ176: 132 | AR176: 442 | AS176: 110 | AT176: 248.12 | AU176: 62.03 | AV176: 972 | AW176: 242.943
A177: 2024-01-02T19:45:00 | B177: 3729 | C177: 932 | D177: 4529 | E177: 1132 | F177: 0 | G177: 0 | H177: 30.31 | I177: 7.5775 | J177: 30.31 | K177: 7.5775 | L177: 895 | M177: 224 | N177: 1073 | O177: 268 | P177: 0 | Q177: 0 | R177: 113.77 | S177: 28.4425 | T177: 113.77 | U177: 28.4425 | V177: 4624 | W177: 1156 | X177: 5602 | Y177: 1400 | Z177: 0 | AA177: 0 | AB177: 144.08 | AC177: 36.02 | AD177: 144.08 | AE177: 36.02 | AF177: 186 | AG177: 0.186 | AH177: 197 | AI177: 0.197 | AJ177: 188 | AK177: 0.188 | AL177: 121 | AM177: 0.121 | AN177: 121 | AO177: 0.121 | AP177: 530 | AQ177: 132 | AR177: 442 | AS177: 110 | AT177: 251.58 | AU177: 62.895 | AV177: 972 | AW177: 242.947
A178: 2024-01-02T20:00:00 | B178: 3684 | C178: 921 | D178: 4475 | E178: 1119 | F178: 0 | G178: 0 | H178: 29.512 | I178: 7.378 | J178: 29.512 | K178: 7.378 | L178: 861 | M178: 215 | N178: 1048 | O178: 262 | P178: 0 | Q178: 0 | R178: 106.748 | S178: 26.687 | T178: 106.748 | U178: 26.687 | V178: 4545 | W178: 1136 | X178: 5523 | Y178: 1381 | Z178: 0 | AA178: 0 | AB178: 136.26 | AC178: 34.065 | AD178: 136.26 | AE178: 34.065 | AF178: 197 | AG178: 0.197 | AH178: 189 | AI178: 0.189 | AJ178: 195 | AK178: 0.195 | AL178: 112 | AM178: 0.112 | AN178: 112 | AO178: 0.112 | AP178: 530 | AQ178: 132 | AR178: 442 | AS178: 110 | AT178: 243.19 | AU178: 60.7975 | AV178: 972 | AW178: 242.951
A179: 2024-01-02T20:15:00 | B179: 3601 | C179: 900 | D179: 4406 | E179: 1101 | F179: 0 | G179: 0 | H179: 29.512 | I179: 7.378 | J179: 29.512 | K179: 7.378 | L179: 855 | M179: 214 | N179: 1030 | O179: 257 | P179: 0 | Q179: 0 | R179: 106.748 | S179: 26.687 | T179: 106.748 | U179: 26.687 | V179: 4456 | W179: 1114 | X179: 5435 | Y179: 1359 | Z179: 0 | AA179: 0 | AB179: 136.26 | AC179: 34.065 | AD179: 136.26 | AE179: 34.065 | AF179: 194 | AG179: 0.194 | AH179: 193 | AI179: 0.193 | AJ179: 194 | AK179: 0.194 | AL179: 112 | AM179: 0.112 | AN179: 112 | AO179: 0.112 | AP179: 530 | AQ179: 132 | AR179: 442 | AS179: 110 | AT179: 257.61 | AU179: 64.4025 | AV179: 972 | AW179: 242.944
A180: 2024-01-02T20:30:00 | B180: 3524 | C180: 881 | D180: 4342 | E180: 1086 | F180: 0 | G180: 0 | H180: 32.442 | I180: 8.1105 | J180: 32.442 | K180: 8.1105 | L180: 849 | M180: 212 | N180: 1008 | O180: 252 | P180: 0 | Q180: 0 | R180: 108.504 | S180: 27.126 | T180: 108.504 | U180: 27.126 | V180: 4373 | W180: 1093 | X180: 5351 | Y180: 1338 | Z180: 0 | AA180: 0 | AB180: 140.946 | AC180: 35.2365 | AD180: 140.946 | AE180: 35.2365 | AF180: 198 | AG180: 0.198 | AH180: 197 | AI180: 0.197 | AJ180: 198 | AK180: 0.198 | AL180: 102 | AM180: 0.102 | AN180: 102 | AO180: 0.102 | AP180: 530 | AQ180: 132 | AR180: 442 | AS180: 110 | AT180: 270.62 | AU180: 67.655 | AV180: 972 | AW180: 242.943
A181: 2024-01-02T20:45:00 | B181: 3435 | C181: 859 | D181: 4288 | E181: 1072 | F181: 0 | G181: 0 | H181: 32.442 | I181: 8.1105 | J181: 32.442 | K181: 8.1105 | L181: 864 | M181: 216 | N181: 990 | O181: 247 | P181: 0 | Q181: 0 | R181: 108.504 | S181: 27.126 | T181: 108.504 | U181: 27.126 | V181: 4298 | W181: 1075 | X181: 5278 | Y181: 1320 | Z181: 0 | AA181: 0 | AB181: 140.946 | AC181: 35.2365 | AD181: 140.946 | AE181: 35.2365 | AF181: 198 | AG181: 0.198 | AH181: 200 | AI181: 0.2 | AJ181: 198 | AK181: 0.198 | AL181: 102 | AM181: 0.102 | AN181: 102 | AO181: 0.102 | AP181: 530 | AQ181: 132 | AR181: 442 | AS181: 110 | AT181: 305.46 | AU181: 76.365 | AV181: 972 | AW181: 242.945
A182: 2024-01-02T21:00:00 | B182: 3386 | C182: 846 | D182: 4244 | E182: 1061 | F182: 0 | G182: 0 | H182: 28.814 | I182: 7.2035 | J182: 28.814 | K182: 7.2035 | L182: 846 | M182: 212 | N182: 968 | O182: 242 | P182: 0 | Q182: 0 | R182: 104.73 | S182: 26.1825 | T182: 104.73 | U182: 26.1825 | V182: 4232 | W182: 1058 | X182: 5212 | Y182: 1303 | Z182: 0 | AA182: 0 | AB182: 133.544 | AC182: 33.386 | AD182: 133.544 | AE182: 33.386 | AF182: 194 | AG182: 0.194 | AH182: 204 | AI182: 0.204 | AJ182: 196 | AK182: 0.196 | AL182: 96 | AM182: 0.096 | AN182: 96 | AO182: 0.096 | AP182: 530 | AQ182: 132 | AR182: 442 | AS182: 110 | AT182: 310.82 | AU182: 77.705 | AV182: 972 | AW182: 242.942
A183: 2024-01-02T21:15:00 | B183: 3328 | C183: 832 | D183: 4183 | E183: 1046 | F183: 0 | G183: 0 | H183: 28.814 | I183: 7.2035 | J183: 28.814 | K183: 7.2035 | L183: 819 | M183: 205 | N183: 943 | O183: 236 | P183: 0 | Q183: 0 | R183: 104.73 | S183: 26.1825 | T183: 104.73 | U183: 26.1825 | V183: 4148 | W183: 1037 | X183: 5125 | Y183: 1281 | Z183: 0 | AA183: 0 | AB183: 133.544 | AC183: 33.386 | AD183: 133.544 | AE183: 33.386 | AF183: 188 | AG183: 0.188 | AH183: 205 | AI183: 0.205 | AJ183: 191 | AK183: 0.191 | AL183: 96 | AM183: 0.096 | AN183: 96 | AO183: 0.096 | AP183: 530 | AQ183: 133 | AR183: 442 | AS183: 110 | AT183: 308.7 | AU183: 77.175 | AV183: 972 | AW183: 242.945
A184: 2024-01-02T21:30:00 | B184: 3238 | C184: 810 | D184: 4118 | E184: 1030 | F184: 0 | G184: 0 | H184: 33.672 | I184: 8.418 | J184: 33.672 | K184: 8.418 | L184: 822 | M184: 206 | N184: 921 | O184: 230 | P184: 0 | Q184: 0 | R184: 109.48 | S184: 27.37 | T184: 109.48 | U184: 27.37 | V184: 4060 | W184: 1015 | X184: 5039 | Y184: 1260 | Z184: 0 | AA184: 0 | AB184: 143.152 | AC184: 35.788 | AD184: 143.152 | AE184: 35.788 | AF184: 186 | AG184: 0.186 | AH184: 216 | AI184: 0.216 | AJ184: 191 | AK184: 0.191 | AL184: 86 | AM184: 0.086 | AN184: 86 | AO184: 0.086 | AP184: 530 | AQ184: 132 | AR184: 442 | AS184: 110 | AT184: 333.11 | AU184: 83.2775 | AV184: 972 | AW184: 242.937
A185: 2024-01-02T21:45:00 | B185: 3162 | C185: 790 | D185: 4049 | E185: 1012 | F185: 0 | G185: 0 | H185: 33.672 | I185: 8.418 | J185: 33.672 | K185: 8.418 | L185: 808 | M185: 202 | N185: 901 | O185: 225 | P185: 0 | Q185: 0 | R185: 109.48 | S185: 27.37 | T185: 109.48 | U185: 27.37 | V185: 3969 | W185: 992 | X185: 4949 | Y185: 1237 | Z185: 0 | AA185: 0 | AB185: 143.152 | AC185: 35.788 | AD185: 143.152 | AE185: 35.788 | AF185: 184 | AG185: 0.184 | AH185: 221 | AI185: 0.221 | AJ185: 190 | AK185: 0.19 | AL185: 86 | AM185: 0.086 | AN185: 86 | AO185: 0.086 | AP185: 530 | AQ185: 132 | AR185: 442 | AS185: 110 | AT185: 340.11 | AU185: 85.0275 | AV185: 972 | AW185: 242.936
A186: 2024-01-02T22:00:00 | B186: 3122 | C186: 781 | D186: 3986 | E186: 997 | F186: 0 | G186: 0 | H186: 32.778 | I186: 8.1945 | J186: 32.778 | K186: 8.1945 | L186: 758 | M186: 189 | N186: 873 | O186: 218 | P186: 0 | Q186: 0 | R186: 106.766 | S186: 26.6915 | T186: 106.766 | U186: 26.6915 | V186: 3880 | W186: 970 | X186: 4859 | Y186: 1215 | Z186: 0 | AA186: 0 | AB186: 139.544 | AC186: 34.886 | AD186: 139.544 | AE186: 34.886 | AF186: 185 | AG186: 0.185 | AH186: 224 | AI186: 0.224 | AJ186: 192 | AK186: 0.192 | AL186: 75 | AM186: 0.075 | AN186: 75 | AO186: 0.075 | AP186: 530 | AQ186: 132 | AR186: 442 | AS186: 110 | AT186: 317.74 | AU186: 79.435 | AV186: 972 | AW186: 242.947
A187: 2024-01-02T22:15:00 | B187: 3016 | C187: 754 | D187: 3911 | E187: 978 | F187: 0 | G187: 0 | H187: 32.778 | I187: 8.1945 | J187: 32.778 | K187: 8.1945 | L187: 765 | M187: 191 | N187: 846 | O187: 212 | P187: 0 | Q187: 0 | R187: 106.766 | S187: 26.6915 | T187: 106.766 | U187: 26.6915 | V187: 3780 | W187: 945 | X187: 4758 | Y187: 1189 | Z187: 0 | AA187: 0 | AB187: 139.544 | AC187: 34.886 | AD187: 139.544 | AE187: 34.886 | AF187: 176 | AG187: 0.176 | AH187: 227 | AI187: 0.227 | AJ187: 185 | AK187: 0.185 | AL187: 75 | AM187: 0.075 | AN187: 75 | AO187: 0.075 | AP187: 530 | AQ187: 132 | AR187: 442 | AS187: 110 | AT187: 349.57 | AU187: 87.3925 | AV187: 972 | AW187: 242.956
A188: 2024-01-02T22:30:00 | B188: 2897 | C188: 724 | D188: 3822 | E188: 955 | F188: 0 | G188: 0 | H188: 32.65 | I188: 8.1625 | J188: 32.65 | K188: 8.1625 | L188: 765 | M188: 191 | N188: 818 | O188: 205 | P188: 0 | Q188: 0 | R188: 112.204 | S188: 28.051 | T188: 112.204 | U188: 28.051 | V188: 3662 | W188: 915 | X188: 4640 | Y188: 1160 | Z188: 0 | AA188: 0 | AB188: 144.854 | AC188: 36.2135 | AD188: 144.854 | AE188: 36.2135 | AF188: 171 | AG188: 0.171 | AH188: 240 | AI188: 0.24 | AJ188: 183 | AK188: 0.183 | AL188: 69 | AM188: 0.069 | AN188: 69 | AO188: 0.069 | AP188: 530 | AQ188: 132 | AR188: 442 | AS188: 110 | AT188: 379.39 | AU188: 94.8475 | AV188: 972 | AW188: 242.955
A189: 2024-01-02T22:45:00 | B189: 2821 | C189: 705 | D189: 3758 | E189: 939 | F189: 0 | G189: 0 | H189: 32.65 | I189: 8.1625 | J189: 32.65 | K189: 8.1625 | L189: 747 | M189: 187 | N189: 789 | O189: 197 | P189: 0 | Q189: 0 | R189: 112.204 | S189: 28.051 | T189: 112.204 | U189: 28.051 | V189: 3568 | W189: 892 | X189: 4547 | Y189: 1137 | Z189: 0 | AA189: 0 | AB189: 144.854 | AC189: 36.2135 | AD189: 144.854 | AE189: 36.2135 | AF189: 167 | AG189: 0.167 | AH189: 232 | AI189: 0.232 | AJ189: 178 | AK189: 0.178 | AL189: 69 | AM189: 0.069 | AN189: 69 | AO189: 0.069 | AP189: 530 | AQ189: 132 | AR189: 442 | AS189: 110 | AT189: 390.38 | AU189: 97.595 | AV189: 972 | AW189: 242.954
A190: 2024-01-02T23:00:00 | B190: 2873 | C190: 718 | D190: 3774 | E190: 943 | F190: 0 | G190: 0 | H190: 46.198 | I190: 11.5495 | J190: 46.198 | K190: 11.5495 | L190: 777 | M190: 194 | N190: 763 | O190: 191 | P190: 0 | Q190: 0 | R190: 238.37 | S190: 59.5925 | T190: 238.37 | U190: 59.5925 | V190: 3650 | W190: 913 | X190: 4537 | Y190: 1134 | Z190: 0 | AA190: 0 | AB190: 284.568 | AC190: 71.142 | AD190: 284.568 | AE190: 71.142 | AF190: 169 | AG190: 0.169 | AH190: 242 | AI190: 0.242 | AJ190: 181 | AK190: 0.181 | AL190: 77 | AM190: 0.077 | AN190: 72 | AO190: 0.072 | AP190: 494 | AQ190: 124 | AR190: 442 | AS190: 110 | AT190: 448.45 | AU190: 112.1125 | AV190: 936 | AW190: 234.032
A191: 2024-01-02T23:15:00 | B191: 2960 | C191: 740 | D191: 3745 | E191: 936 | F191: 0 | G191: 0 | H191: 46.198 | I191: 11.5495 | J191: 46.198 | K191: 11.5495 | L191: 697 | M191: 174 | N191: 736 | O191: 184 | P191: 0 | Q191: 0 | R191: 238.37 | S191: 59.5925 | T191: 238.37 | U191: 59.5925 | V191: 3656 | W191: 914 | X191: 4481 | Y191: 1120 | Z191: 0 | AA191: 0 | AB191: 284.568 | AC191: 71.142 | AD191: 284.568 | AE191: 71.142 | AF191: 186 | AG191: 0.186 | AH191: 250 | AI191: 0.25 | AJ191: 197 | AK191: 0.197 | AL191: 72 | AM191: 0.072 | AN191: 72 | AO191: 0.072 | AP191: 450 | AQ191: 113 | AR191: 442 | AS191: 110 | AT191: 394.51 | AU191: 98.6275 | AV191: 892 | AW191: 222.963
A192: 2024-01-02T23:30:00 | B192: 2870 | C192: 718 | D192: 3677 | E192: 919 | F192: 0 | G192: 0 | H192: 43.284 | I192: 10.821 | J192: 43.284 | K192: 10.821 | L192: 633 | M192: 158 | N192: 711 | O192: 178 | P192: 0 | Q192: 0 | R192: 249.504 | S192: 62.376 | T192: 249.504 | U192: 62.376 | V192: 3503 | W192: 876 | X192: 4388 | Y192: 1097 | Z192: 0 | AA192: 0 | AB192: 292.788 | AC192: 73.197 | AD192: 292.788 | AE192: 73.197 | AF192: 194 | AG192: 0.194 | AH192: 263 | AI192: 0.263 | AJ192: 205 | AK192: 0.205 | AL192: 70 | AM192: 0.070 | AN192: 70 | AO192: 0.07 | AP192: 512 | AQ192: 128 | AR192: 442 | AS192: 110 | AT192: 355.87 | AU192: 88.9675 | AV192: 954 | AW192: 238.414
A193: 2024-01-02T23:45:00 | B193: 2804 | C193: 701 | D193: 3599 | E193: 900 | F193: 0 | G193: 0 | H193: 43.284 | I193: 10.821 | J193: 43.284 | K193: 10.821 | L193: 611 | M193: 153 | N193: 687 | O193: 172 | P193: 0 | Q193: 0 | R193: 249.504 | S193: 62.376 | T193: 249.504 | U193: 62.376 | V193: 3415 | W193: 854 | X193: 4286 | Y193: 1072 | Z193: 0 | AA193: 0 | AB193: 292.788 | AC193: 73.197 | AD193: 292.788 | AE193: 73.197 | AF193: 192 | AG193: 0.192 | AH193: 272 | AI193: 0.272 | AJ193: 205 | AK193: 0.205 | AL193: 70 | AM193: 0.070 | AN193: 70 | AO193: 0.07 | AP193: 530 | AQ193: 132 | AR193: 409 | AS193: 102 | AT193: 323.46 | AU193: 80.865 | AV193: 939 | AW193: 234.645
A194: 2024-01-03 | B194: 2821 | C194: 705 | D194: 3561 | E194: 890 | F194: 0 | G194: =F194/4 -> 0 | H194: 0 | I194: 0 | J194: 0 | K194: 0 | L194: 607 | M194: 152 | N194: 668 | O194: 167 | P194: 0 | Q194: =P194/4 -> 0 | R194: 59.168 | S194: 14.792 | T194: 59.168 | U194: 14.792 | V194: =B194+L194 -> 3428 | W194: 857 | X194: =D194+N194 -> 4229 | Y194: 1057 | Z194: =F194+P194 -> 0 | AA194: 0 | AB194: 59.168 | AC194: 14.792 | AD194: 59.168 | AE194: 14.792 | AF194: 194 | AG194: 0.194 | AH194: 278 | AI194: 0.278 | AJ194: 208 | AK194: 0.208 | AL194: 69 | AM194: 0.069 | AN194: 69 | AO194: =AN194/1000 -> 0.069 | AP194: 530 | AQ194: 132 | AR194: 339 | AS194: 85 | AT194: 268.97 | AU194: 67.2425 | AV194: 869 | AW194: 217.350
A195: 2024-01-03T00:15:00 | B195: 2796 | C195: =B195/4 -> 699 | D195: 3507 | E195: =D195/4 -> 877 | F195: 0 | G195: 0 | H195: 0 | I195: =H195/4 -> 0 | J195: =F195+H195 -> 0 | K195: 0 | L195: 608 | M195: =L195/4 -> 152 | N195: 650 | O195: =N195/4 -> 163 | P195: 0 | Q195: 0 | R195: 59.168 | S195: =R195/4 -> 14.792 | T195: =P195+R195 -> 59.168 | U195: 14.792 | V195: 3405 | W195: =V195/4 -> 851 | X195: 4158 | Y195: =X195/4 -> 1039 | Z195: 0 | AA195: =Z195/4 -> 0 | AB195: =H195+R195 -> 59.168 | AC195: =AB195/4 -> 14.792 | AD195: =Z195+AB195 -> 59.168 | AE195: 14.792 | AF195: 195 | AG195: =AF195/1000 -> 0.195 | AH195: 283 | AI195: =AH195/1000 -> 0.283 | AJ195: 209 | AK195: =AJ195/1000 -> 0.209 | AL195: 69 | AM195: =AL195/1000 -> 0.069 | AN195: 69 | AO195: 0.069 | AP195: 496 | AQ195: =AP195/4 -> 124 | AR195: 324 | AS195: =AR195/4 -> 81 | AT195: 271.09 | AU195: =AT195/4 -> 67.7725 | AV195: =AP195+AR195 -> 820 | AW195: =AV195/4 -> 205.010
A196: 2024-01-03T00:30:00 | B196: 2782 | C196: 695 | D196: 3447 | E196: 862 | F196: 0 | G196: 0 | H196: 0 | I196: 0 | J196: 0 | K196: 0 | L196: 619 | M196: 155 | N196: 636 | O196: 159 | P196: 0 | Q196: 0 | R196: 29.902 | S196: 7.4755 | T196: 29.902 | U196: 7.4755 | V196: 3401 | W196: 850 | X196: 4083 | Y196: 1021 | Z196: 0 | AA196: 0 | AB196: 29.902 | AC196: 7.4755 | AD196: 29.902 | AE196: 7.4755 | AF196: 194 | AG196: 0.194 | AH196: 295 | AI196: 0.295 | AJ196: 209 | AK196: 0.209 | AL196: 69 | AM196: 0.069 | AN196: 69 | AO196: 0.069 | AP196: 426 | AQ196: 107 | AR196: 324 | AS196: 81 | AT196: 295.27 | AU196: 73.8175 | AV196: 750 | AW196: 187.569
A197: 2024-01-03T00:45:00 | B197: 2727 | C197: 682 | D197: 3390 | E197: 847 | F197: 0 | G197: 0 | H197: 0 | I197: 0 | J197: 0 | K197: 0 | L197: 664 | M197: 166 | N197: 628 | O197: 157 | P197: 0 | Q197: 0 | R197: 29.902 | S197: 7.4755 | T197: 29.902 | U197: 7.4755 | V197: 3391 | W197: 848 | X197: 4017 | Y197: 1004 | Z197: 0 | AA197: 0 | AB197: 29.902 | AC197: 7.4755 | AD197: 29.902 | AE197: 7.4755 | AF197: 199 | AG197: 0.199 | AH197: 302 | AI197: 0.302 | AJ197: 215 | AK197: 0.215 | AL197: 93 | AM197: 0.093 | AN197: 69 | AO197: 0.069 | AP197: 369 | AQ197: 92 | AR197: 324 | AS197: 81 | AT197: 349.2 | AU197: 87.3 | AV197: 693 | AW197: 173.309
A198: 2024-01-03T01:00:00 | B198: 2709 | C198: 677 | D198: 3352 | E198: 838 | F198: 0 | G198: 0 | H198: 0 | I198: 0 | J198: 0 | K198: 0 | L198: 669 | M198: 167 | N198: 644 | O198: 161 | P198: 0 | Q198: 0 | R198: 37.796 | S198: 9.449 | T198: 37.796 | U198: 9.449 | V198: 3378 | W198: 844 | X198: 3996 | Y198: 999 | Z198: 0 | AA198: 0 | AB198: 37.796 | AC198: 9.449 | AD198: 37.796 | AE198: 9.449 | AF198: 198 | AG198: 0.198 | AH198: 304 | AI198: 0.304 | AJ198: 214 | AK198: 0.214 | AL198: 85 | AM198: 0.085 | AN198: 68 | AO198: 0.068 | AP198: 365 | AQ198: 91 | AR198: 324 | AS198: 81 | AT198: 339.3 | AU198: 84.825 | AV198: 689 | AW198: 172.199
A199: 2024-01-03T01:15:00 | B199: 2593 | C199: 648 | D199: 3308 | E199: 827 | F199: 0 | G199: 0 | H199: 0 | I199: 0 | J199: 0 | K199: 0 | L199: 669 | M199: 167 | N199: 645 | O199: 161 | P199: 0 | Q199: 0 | R199: 37.796 | S199: 9.449 | T199: 37.796 | U199: 9.449 | V199: 3262 | W199: 816 | X199: 3953 | Y199: 988 | Z199: 0 | AA199: 0 | AB199: 37.796 | AC199: 9.449 | AD199: 37.796 | AE199: 9.449 | AF199: 194 | AG199: 0.194 | AH199: 297 | AI199: 0.297 | AJ199: 210 | AK199: 0.21 | AL199: 84 | AM199: 0.084 | AN199: 68 | AO199: 0.068 | AP199: 440 | AQ199: 110 | AR199: 324 | AS199: 81 | AT199: 338.18 | AU199: 84.545 | AV199: 764 | AW199: 190.929
A200: 2024-01-03T01:30:00 | B200: 2581 | C200: 645 | D200: 3265 | E200: 816 | F200: 0 | G200: 0 | H200: 0 | I200: 0 | J200: 0 | K200: 0 | L200: 674 | M200: 169 | N200: 640 | O200: 160 | P200: 0 | Q200: 0 | R200: 31.032 | S200: 7.758 | T200: 31.032 | U200: 7.758 | V200: 3255 | W200: 814 | X200: 3905 | Y200: 976 | Z200: 0 | AA200: 0 | AB200: 31.032 | AC200: 7.758 | AD200: 31.032 | AE200: 7.758 | AF200: 199 | AG200: 0.199 | AH200: 301 | AI200: 0.301 | AJ200: 216 | AK200: 0.216 | AL200: 88 | AM200: 0.088 | AN200: 66 | AO200: 0.066 | AP200: 511 | AQ200: 128 | AR200: 324 | AS200: 81 | AT200: 348.66 | AU200: 87.165 | AV200: 835 | AW200: 208.849
... 925 more rows

Sheet AI Codes
B2: AHCI | D2: Average Hourly Carbon Intensity
B3: AMCI | D3: Average Monthly Carbon Intensity
B4: ICEGB | D4: Interconnector Emissions Using GB Grid Emissions Factors at Time Of Transfers | G4: Note that imports were counted as zero
B5: ICEIE | D5: Emissions from Replacing Interconnector Flows Using Irish Grid Emissions Factors at Time Of Transfers - NI Factors for Moyle and ROI Factors for EWIC | G5: Note that exports were counted as zero
B6: ICES | D6: Resultant Emissions Mitigated by GB Imports (ICEIE - ICEGB) --- Note that negative emissions (exports) were counted as zero
B7: ICEIEWC | D7: Emissions from Replacing Interconnector Flows Using 100% of ROI Curtailed Renewables for EWIC and 100% of NI Curtailed Renewables for Moyle, then using NI Factors for remaining Moyle flow and ROI Factors for remaining EWIC flow
B8: ICESWC | D8: Resultant Emissions Mitigated by GB Imports in Curtailment Scenario (ICEIEWC - ICEGB) --- Note that negative emissions (exports) were counted as zero
B9: ICESWCVWC | D9: Resultant emissions avoided in the 0% renewable curtailement scenario compared to the real 2024 renewables curtailment scenario
B10: GEP | D10: Percentage of generation and emissions for each source | G10: Note that exports were counted as zero
B11: ICEUCC | D11: Emissions from Replacing Interconnector Flows Using 100% of ROI Curtailed & Constrained Renewables for EWIC and 100% of NI Curtailed & Constrained Renewables for Moyle, then using GB Factors for remaining Moyle & EWIC flows | G11: Note that exports were counted as zero

Sheet AHCI
A1: Hour | B1: Average ROI Carbon Intensity (tCO2/MWh) | C1: Average NI Carbon Intensity (tCO2/MWh) | D1: Average AI Carbon Intensity (tCO2/MWh) | E1: Average GB Carbon Intensity (tCO2/MWh)
A2: 00:00:00 | B2: 0.219 | C2: 0.300 | D2: 0.231 | E2: 0.108
A3: 01:00:00 | B3: 0.222 | C3: 0.309 | D3: 0.235 | E3: 0.106
A4: 02:00:00 | B4: 0.222 | C4: 0.315 | D4: 0.236 | E4: 0.105
A5: 03:00:00 | B5: 0.223 | C5: 0.321 | D5: 0.237 | E5: 0.104
A6: 04:00:00 | B6: 0.225 | C6: 0.326 | D6: 0.240 | E6: 0.105
A7: 05:00:00 | B7: 0.231 | C7: 0.321 | D7: 0.244 | E7: 0.111
A8: 06:00:00 | B8: 0.230 | C8: 0.289 | D8: 0.239 | E8: 0.125
A9: 07:00:00 | B9: 0.226 | C9: 0.252 | D9: 0.230 | E9: 0.134
A10: 08:00:00 | B10: 0.222 | C10: 0.229 | D10: 0.223 | E10: 0.132
A11: 09:00:00 | B11: 0.216 | C11: 0.217 | D11: 0.215 | E11: 0.127
A12: 10:00:00 | B12: 0.211 | C12: 0.214 | D12: 0.211 | E12: 0.121
A13: 11:00:00 | B13: 0.206 | C13: 0.212 | D13: 0.207 | E13: 0.117
A14: 12:00:00 | B14: 0.204 | C14: 0.211 | D14: 0.205 | E14: 0.115
A15: 13:00:00 | B15: 0.203 | C15: 0.213 | D15: 0.204 | E15: 0.115
A16: 14:00:00 | B16: 0.203 | C16: 0.219 | D16: 0.205 | E16: 0.117
A17: 15:00:00 | B17: 0.205 | C17: 0.222 | D17: 0.208 | E17: 0.122
A18: 16:00:00 | B18: 0.210 | C18: 0.218 | D18: 0.211 | E18: 0.132
A19: 17:00:00 | B19: 0.213 | C19: 0.211 | D19: 0.213 | E19: 0.144
A20: 18:00:00 | B20: 0.214 | C20: 0.215 | D20: 0.214 | E20: 0.151
A21: 19:00:00 | B21: 0.215 | C21: 0.221 | D21: 0.216 | E21: 0.153
A22: 20:00:00 | B22: 0.215 | C22: 0.227 | D22: 0.217 | E22: 0.151
A23: 21:00:00 | B23: 0.215 | C23: 0.232 | D23: 0.218 | E23: 0.143
A24: 22:00:00 | B24: 0.213 | C24: 0.244 | D24: 0.218 | E24: 0.131
A25: 23:00:00 | B25: 0.214 | C25: 0.271 | D25: 0.223 | E25: 0.113

Sheet AMCI
A1: Month | B1: Average ROI Carbon Intensity (tCO2/MWh) | C1: Average NI Carbon Intensity (tCO2/MWh) | D1: Average AI Carbon Intensity (tCO2/MWh) | E1: Average GB Carbon Intensity (tCO2/MWh)
A2: January | B2: 0.221 | C2: 0.254 | D2: 0.226 | E2: 0.167
A3: February | B3: 0.198 | C3: 0.251 | D3: 0.206 | E3: 0.131
A4: March | B4: 0.192 | C4: 0.254 | D4: 0.201 | E4: 0.127
A5: April | B5: 0.213 | C5: 0.263 | D5: 0.221 | E5: 0.092
A6: May | B6: 0.242 | C6: 0.294 | D6: 0.251 | E6: 0.123
A7: June | B7: 0.226 | C7: 0.295 | D7: 0.238 | E7: 0.099
A8: July | B8: 0.244 | C8: 0.288 | D8: 0.251 | E8: 0.115
A9: August | B9: 0.179 | C9: 0.237 | D9: 0.188 | E9: 0.085
A10: September | B10: 0.222 | C10: 0.261 | D10: 0.228 | E10: 0.121
A11: October | B11: 0.225 | C11: 0.219 | D11: 0.223 | E11: 0.136
A12: November | B12: 0.250 | C12: 0.225 | D12: 0.244 | E12: 0.169
A13: December | B13: 0.176 | C13: 0.167 | D13: 0.173 | E13: 0.125

Sheet ICEGB
A1: DateTime | B1: Moyle Emissions (tCO2) | C1: EWIC Emissions (tCO2) | D1: AI Interconnector Emissions (tCO2)
A2: 2024-01-01 | B2: 3.216 | C2: 1.806 | D2: 5.022
A3: 2024-01-01T00:15:00 | B3: 2.720 | C3: 1.482 | D3: 4.202
A4: 2024-01-01T00:30:00 | B4: 1.450 | C4: 0.284 | D4: 1.734
A5: 2024-01-01T00:45:00 | B5: 0.447 | C5: 0.000 | D5: 0.447
A6: 2024-01-01T01:00:00 | B6: 1.364 | C6: 0.000 | D6: 1.364
A7: 2024-01-01T01:15:00 | B7: 2.669 | C7: 0.072 | D7: 2.741
A8: 2024-01-01T01:30:00 | B8: 3.825 | C8: 1.035 | D8: 4.860
A9: 2024-01-01T01:45:00 | B9: 5.040 | C9: 1.969 | D9: 7.009
A10: 2024-01-01T02:00:00 | B10: 6.186 | C10: 1.523 | D10: 7.709
A11: 2024-01-01T02:15:00 | B11: 6.186 | C11: 2.566 | D11: 8.752
A12: 2024-01-01T02:30:00 | B12: 5.852 | C12: 3.740 | D12: 9.592
A13: 2024-01-01T02:45:00 | B13: 5.850 | C13: 4.995 | D13: 10.845
A14: 2024-01-01T03:00:00 | B14: 5.765 | C14: 5.126 | D14: 10.891
A15: 2024-01-01T03:15:00 | B15: 5.765 | C15: 6.324 | D15: 12.090
A16: 2024-01-01T03:30:00 | B16: 5.598 | C16: 7.397 | D16: 12.995
A17: 2024-01-01T03:45:00 | B17: 5.598 | C17: 8.518 | D17: 14.116
A18: 2024-01-01T04:00:00 | B18: 5.264 | C18: 7.400 | D18: 12.663
A19: 2024-01-01T04:15:00 | B19: 5.264 | C19: 6.777 | D19: 12.041
A20: 2024-01-01T04:30:00 | B20: 4.930 | C20: 6.748 | D20: 11.678
A21: 2024-01-01T04:45:00 | B21: 4.930 | C21: 7.463 | D21: 12.393
A22: 2024-01-01T05:00:00 | B22: 4.846 | C22: 7.685 | D22: 12.531
A23: 2024-01-01T05:15:00 | B23: 4.846 | C23: 7.684 | D23: 12.531
A24: 2024-01-01T05:30:00 | B24: 5.097 | C24: 8.082 | D24: 13.179
A25: 2024-01-01T05:45:00 | B25: 5.097 | C25: 8.082 | D25: 13.179
A26: 2024-01-01T06:00:00 | B26: 5.013 | C26: 7.950 | D26: 12.963
A27: 2024-01-01T06:15:00 | B27: 5.013 | C27: 7.950 | D27: 12.963
A28: 2024-01-01T06:30:00 | B28: 5.264 | C28: 8.347 | D28: 13.612
A29: 2024-01-01T06:45:00 | B29: 5.264 | C29: 8.347 | D29: 13.611
A30: 2024-01-01T07:00:00 | B30: 5.097 | C30: 8.082 | D30: 13.179
A31: 2024-01-01T07:15:00 | B31: 5.097 | C31: 8.082 | D31: 13.179
A32: 2024-01-01T07:30:00 | B32: 5.698 | C32: 8.214 | D32: 13.911
A33: 2024-01-01T07:45:00 | B33: 6.702 | C33: 8.214 | D33: 14.916
A34: 2024-01-01T08:00:00 | B34: 6.186 | C34: 7.419 | D34: 13.605
A35: 2024-01-01T08:15:00 | B35: 6.186 | C35: 7.418 | D35: 13.604
A36: 2024-01-01T08:30:00 | B36: 5.412 | C36: 6.491 | D36: 11.904
A37: 2024-01-01T08:45:00 | B37: 5.413 | C37: 6.491 | D37: 11.904
A38: 2024-01-01T09:00:00 | B38: 5.302 | C38: 6.359 | D38: 11.661
A39: 2024-01-01T09:15:00 | B39: 5.302 | C39: 6.359 | D39: 11.661
A40: 2024-01-01T09:30:00 | B40: 5.523 | C40: 6.624 | D40: 12.147
A41: 2024-01-01T09:45:00 | B41: 5.523 | C41: 6.624 | D41: 12.147
A42: 2024-01-01T10:00:00 | B42: 5.307 | C42: 6.889 | D42: 12.196
A43: 2024-01-01T10:15:00 | B43: 4.533 | C43: 6.889 | D43: 11.423
A44: 2024-01-01T10:30:00 | B44: 4.895 | C44: 7.552 | D44: 12.446
A45: 2024-01-01T10:45:00 | B45: 4.895 | C45: 7.552 | D45: 12.446
A46: 2024-01-01T11:00:00 | B46: 5.496 | C46: 8.480 | D46: 13.976
A47: 2024-01-01T11:15:00 | B47: 5.034 | C47: 8.480 | D47: 13.514
A48: 2024-01-01T11:30:00 | B48: 5.579 | C48: 9.805 | D48: 15.384
A49: 2024-01-01T11:45:00 | B49: 5.597 | C49: 9.805 | D49: 15.402
A50: 2024-01-01T12:00:00 | B50: 6.702 | C50: 11.130 | D50: 17.831
A51: 2024-01-01T12:15:00 | B51: 6.726 | C51: 11.130 | D51: 17.855
A52: 2024-01-01T12:30:00 | B52: 7.722 | C52: 12.455 | D52: 20.176
A53: 2024-01-01T12:45:00 | B53: 7.546 | C53: 12.454 | D53: 20.000
A54: 2024-01-01T13:00:00 | B54: 7.001 | C54: 13.780 | D54: 20.781
A55: 2024-01-01T13:15:00 | B55: 6.748 | C55: 13.766 | D55: 20.514
A56: 2024-01-01T13:30:00 | B56: 6.129 | C56: 13.656 | D56: 19.785
A57: 2024-01-01T13:45:00 | B57: 5.982 | C57: 12.876 | D57: 18.858
A58: 2024-01-01T14:00:00 | B58: 6.668 | C58: 15.192 | D58: 21.861
A59: 2024-01-01T14:15:00 | B59: 6.798 | C59: 14.891 | D59: 21.689
A60: 2024-01-01T14:30:00 | B60: 8.017 | C60: 13.125 | D60: 21.141
A61: 2024-01-01T14:45:00 | B61: 8.035 | C61: 11.584 | D61: 19.619
A62: 2024-01-01T15:00:00 | B62: 6.592 | C62: 11.803 | D62: 18.395
A63: 2024-01-01T15:15:00 | B63: 6.616 | C63: 9.848 | D63: 16.464
A64: 2024-01-01T15:30:00 | B64: 6.654 | C64: 7.893 | D64: 14.547
A65: 2024-01-01T15:45:00 | B65: 4.481 | C65: 5.680 | D65: 10.161
A66: 2024-01-01T16:00:00 | B66: 2.249 | C66: 3.468 | D66: 5.716
A67: 2024-01-01T16:15:00 | B67: 1.281 | C67: 1.255 | D67: 2.536
A68: 2024-01-01T16:30:00 | B68: 3.353 | C68: 0.006 | D68: 3.359
A69: 2024-01-01T16:45:00 | B69: 5.213 | C69: 0.001 | D69: 5.214
A70: 2024-01-01T17:00:00 | B70: 5.289 | C70: 0.001 | D70: 5.289
A71: 2024-01-01T17:15:00 | B71: 5.293 | C71: 0.001 | D71: 5.293
A72: 2024-01-01T17:30:00 | B72: 5.877 | C72: 0.001 | D72: 5.877
A73: 2024-01-01T17:45:00 | B73: 4.694 | C73: 0.001 | D73: 4.695
A74: 2024-01-01T18:00:00 | B74: 2.452 | C74: 0.000 | D74: 2.452
A75: 2024-01-01T18:15:00 | B75: 2.795 | C75: 0.000 | D75: 2.795
A76: 2024-01-01T18:30:00 | B76: 4.462 | C76: 0.872 | D76: 5.335
A77: 2024-01-01T18:45:00 | B77: 4.615 | C77: 1.950 | D77: 6.565
A78: 2024-01-01T19:00:00 | B78: 2.467 | C78: 0.387 | D78: 2.854
A79: 2024-01-01T19:15:00 | B79: 2.560 | C79: 0.000 | D79: 2.561
A80: 2024-01-01T19:30:00 | B80: 3.684 | C80: 0.155 | D80: 3.840
A81: 2024-01-01T19:45:00 | B81: 4.058 | C81: 0.147 | D81: 4.205
A82: 2024-01-01T20:00:00 | B82: 2.466 | C82: 0.000 | D82: 2.466
A83: 2024-01-01T20:15:00 | B83: 2.315 | C83: 0.000 | D83: 2.316
A84: 2024-01-01T20:30:00 | B84: 2.053 | C84: 0.000 | D84: 2.054
A85: 2024-01-01T20:45:00 | B85: 2.056 | C85: 0.000 | D85: 2.056
A86: 2024-01-01T21:00:00 | B86: 1.467 | C86: 0.000 | D86: 1.468
A87: 2024-01-01T21:15:00 | B87: 1.976 | C87: 0.018 | D87: 1.994
A88: 2024-01-01T21:30:00 | B88: 2.422 | C88: 0.565 | D88: 2.987
A89: 2024-01-01T21:45:00 | B89: 1.834 | C89: 0.753 | D89: 2.587
A90: 2024-01-01T22:00:00 | B90: 1.045 | C90: 0.083 | D90: 1.129
A91: 2024-01-01T22:15:00 | B91: 0.298 | C91: 0.000 | D91: 0.298
A92: 2024-01-01T22:30:00 | B92: 0.766 | C92: 0.000 | D92: 0.766
A93: 2024-01-01T22:45:00 | B93: 1.574 | C93: 0.000 | D93: 1.574
A94: 2024-01-01T23:00:00 | B94: 2.066 | C94: 0.433 | D94: 2.499
A95: 2024-01-01T23:15:00 | B95: 2.976 | C95: 1.351 | D95: 4.326
A96: 2024-01-01T23:30:00 | B96: 3.001 | C96: 2.362 | D96: 5.363
A97: 2024-01-01T23:45:00 | B97: 3.324 | C97: 3.153 | D97: 6.477
A98: 2024-01-02 | B98: 3.887 | C98: 2.515 | D98: 6.401
A99: 2024-01-02T00:15:00 | B99: 4.058 | C99: 1.579 | D99: 5.637
A100: 2024-01-02T00:30:00 | B100: 4.382 | C100: 0.692 | D100: 5.075
A101: 2024-01-02T00:45:00 | B101: 4.382 | C101: 0.553 | D101: 4.936
A102: 2024-01-02T01:00:00 | B102: 4.626 | C102: 1.647 | D102: 6.274
A103: 2024-01-02T01:15:00 | B103: 4.625 | C103: 2.716 | D103: 7.342
A104: 2024-01-02T01:30:00 | B104: 4.356 | C104: 3.918 | D104: 8.274
A105: 2024-01-02T01:45:00 | B105: 4.148 | C105: 5.024 | D105: 9.172
A106: 2024-01-02T02:00:00 | B106: 4.370 | C106: 5.611 | D106: 9.980
A107: 2024-01-02T02:15:00 | B107: 4.337 | C107: 6.623 | D107: 10.960
A108: 2024-01-02T02:30:00 | B108: 3.741 | C108: 7.154 | D108: 10.895
A109: 2024-01-02T02:45:00 | B109: 4.256 | C109: 7.155 | D109: 11.411
A110: 2024-01-02T03:00:00 | B110: 4.543 | C110: 7.000 | D110: 11.544
A111: 2024-01-02T03:15:00 | B111: 4.543 | C111: 6.841 | D111: 11.384
A112: 2024-01-02T03:30:00 | B112: 4.625 | C112: 7.347 | D112: 11.971
A113: 2024-01-02T03:45:00 | B113: 4.624 | C113: 7.379 | D113: 12.003
A114: 2024-01-02T04:00:00 | B114: 4.624 | C114: 7.552 | D114: 12.176
A115: 2024-01-02T04:15:00 | B115: 4.624 | C115: 7.552 | D115: 12.177
A116: 2024-01-02T04:30:00 | B116: 4.787 | C116: 7.817 | D116: 12.604
A117: 2024-01-02T04:45:00 | B117: 4.787 | C117: 7.817 | D117: 12.604
A118: 2024-01-02T05:00:00 | B118: 5.193 | C118: 8.480 | D118: 13.672
A119: 2024-01-02T05:15:00 | B119: 5.193 | C119: 8.480 | D119: 13.672
A120: 2024-01-02T05:30:00 | B120: 5.356 | C120: 8.745 | D120: 14.100
A121: 2024-01-02T05:45:00 | B121: 5.356 | C121: 8.745 | D121: 14.100
A122: 2024-01-02T06:00:00 | B122: 5.760 | C122: 9.407 | D122: 15.167
A123: 2024-01-02T06:15:00 | B123: 5.759 | C123: 9.407 | D123: 15.167
A124: 2024-01-02T06:30:00 | B124: 6.733 | C124: 10.997 | D124: 17.730
A125: 2024-01-02T06:45:00 | B125: 7.027 | C125: 10.997 | D125: 18.024
A126: 2024-01-02T07:00:00 | B126: 9.775 | C126: 12.720 | D126: 22.494
A127: 2024-01-02T07:15:00 | B127: 10.604 | C127: 12.720 | D127: 23.324
A128: 2024-01-02T07:30:00 | B128: 11.929 | C128: 14.310 | D128: 26.239
A129: 2024-01-02T07:45:00 | B129: 11.929 | C129: 14.309 | D129: 26.238
A130: 2024-01-02T08:00:00 | B130: 11.375 | C130: 13.647 | D130: 25.022
A131: 2024-01-02T08:15:00 | B131: 11.374 | C131: 13.647 | D131: 25.022
A132: 2024-01-02T08:30:00 | B132: 12.478 | C132: 14.972 | D132: 27.450
A133: 2024-01-02T08:45:00 | B133: 12.478 | C133: 14.972 | D133: 27.450
A134: 2024-01-02T09:00:00 | B134: 13.251 | C134: 15.899 | D134: 29.151
A135: 2024-01-02T09:15:00 | B135: 13.251 | C135: 15.899 | D135: 29.150
A136: 2024-01-02T09:30:00 | B136: 14.245 | C136: 17.092 | D136: 31.336
A137: 2024-01-02T09:45:00 | B137: 14.245 | C137: 17.092 | D137: 31.337
A138: 2024-01-02T10:00:00 | B138: 15.019 | C138: 18.019 | D138: 33.038
A139: 2024-01-02T10:15:00 | B139: 15.018 | C139: 18.019 | D139: 33.037
A140: 2024-01-02T10:30:00 | B140: 15.570 | C140: 18.682 | D140: 34.252
A141: 2024-01-02T10:45:00 | B141: 15.570 | C141: 18.682 | D141: 34.252
A142: 2024-01-02T11:00:00 | B142: 16.230 | C142: 19.476 | D142: 35.707
A143: 2024-01-02T11:15:00 | B143: 16.231 | C143: 19.477 | D143: 35.708
A144: 2024-01-02T11:30:00 | B144: 16.121 | C144: 19.344 | D144: 35.466
A145: 2024-01-02T11:45:00 | B145: 16.122 | C145: 18.972 | D145: 35.094
A146: 2024-01-02T12:00:00 | B146: 16.452 | C146: 16.889 | D146: 33.341
A147: 2024-01-02T12:15:00 | B147: 16.452 | C147: 14.095 | D147: 30.548
A148: 2024-01-02T12:30:00 | B148: 16.894 | C148: 12.119 | D148: 29.013
A149: 2024-01-02T12:45:00 | B149: 16.895 | C149: 9.271 | D149: 26.166
A150: 2024-01-02T13:00:00 | B150: 17.005 | C150: 6.444 | D150: 23.448
A151: 2024-01-02T13:15:00 | B151: 16.879 | C151: 3.557 | D151: 20.435
A152: 2024-01-02T13:30:00 | B152: 16.070 | C152: 3.345 | D152: 19.415
A153: 2024-01-02T13:45:00 | B153: 15.998 | C153: 2.415 | D153: 18.412
A154: 2024-01-02T14:00:00 | B154: 15.427 | C154: 0.212 | D154: 15.640
A155: 2024-01-02T14:15:00 | B155: 15.009 | C155: 0.765 | D155: 15.774
A156: 2024-01-02T14:30:00 | B156: 12.487 | C156: 3.465 | D156: 15.951
A157: 2024-01-02T14:45:00 | B157: 11.916 | C157: 3.968 | D157: 15.884
A158: 2024-01-02T15:00:00 | B158: 12.075 | C158: 3.366 | D158: 15.441
A159: 2024-01-02T15:15:00 | B159: 12.103 | C159: 6.116 | D159: 18.220
A160: 2024-01-02T15:30:00 | B160: 11.588 | C160: 8.832 | D160: 20.420
A161: 2024-01-02T15:45:00 | B161: 13.445 | C161: 11.588 | D161: 25.033
A162: 2024-01-02T16:00:00 | B162: 15.540 | C162: 11.481 | D162: 27.021
A163: 2024-01-02T16:15:00 | B163: 15.911 | C163: 10.909 | D163: 26.819
A164: 2024-01-02T16:30:00 | B164: 14.496 | C164: 12.091 | D164: 26.588
A165: 2024-01-02T16:45:00 | B165: 13.843 | C165: 14.754 | D165: 28.597
A166: 2024-01-02T17:00:00 | B166: 15.516 | C166: 17.294 | D166: 32.810
A167: 2024-01-02T17:15:00 | B167: 15.576 | C167: 18.681 | D167: 34.257
A168: 2024-01-02T17:30:00 | B168: 15.354 | C168: 18.417 | D168: 33.771
A169: 2024-01-02T17:45:00 | B169: 15.354 | C169: 18.417 | D169: 33.771
A170: 2024-01-02T18:00:00 | B170: 14.801 | C170: 17.755 | D170: 32.556
A171: 2024-01-02T18:15:00 | B171: 14.801 | C171: 17.754 | D171: 32.555
A172: 2024-01-02T18:30:00 | B172: 14.359 | C172: 17.224 | D172: 31.583
A173: 2024-01-02T18:45:00 | B173: 14.359 | C173: 17.224 | D173: 31.583
A174: 2024-01-02T19:00:00 | B174: 14.028 | C174: 16.827 | D174: 30.854
A175: 2024-01-02T19:15:00 | B175: 14.027 | C175: 16.827 | D175: 30.854
A176: 2024-01-02T19:30:00 | B176: 13.364 | C176: 16.032 | D176: 29.396
A177: 2024-01-02T19:45:00 | B177: 13.365 | C177: 16.032 | D177: 29.397
A178: 2024-01-02T20:00:00 | B178: 12.371 | C178: 14.839 | D178: 27.211
A179: 2024-01-02T20:15:00 | B179: 12.371 | C179: 14.839 | D179: 27.210
A180: 2024-01-02T20:30:00 | B180: 11.266 | C180: 13.514 | D180: 24.780
A181: 2024-01-02T20:45:00 | B181: 11.266 | C181: 13.515 | D181: 24.780
A182: 2024-01-02T21:00:00 | B182: 10.603 | C182: 12.720 | D182: 23.322
A183: 2024-01-02T21:15:00 | B183: 10.603 | C183: 12.720 | D183: 23.323
A184: 2024-01-02T21:30:00 | B184: 9.498 | C184: 11.395 | D184: 20.893
A185: 2024-01-02T21:45:00 | B185: 9.498 | C185: 11.395 | D185: 20.893
A186: 2024-01-02T22:00:00 | B186: 8.284 | C186: 9.937 | D186: 18.221
A187: 2024-01-02T22:15:00 | B187: 8.284 | C187: 9.937 | D187: 18.222
A188: 2024-01-02T22:30:00 | B188: 7.622 | C188: 9.142 | D188: 16.764
A189: 2024-01-02T22:45:00 | B189: 7.621 | C189: 9.142 | D189: 16.764
A190: 2024-01-02T23:00:00 | B190: 7.953 | C190: 8.897 | D190: 16.850
A191: 2024-01-02T23:15:00 | B191: 7.953 | C191: 8.100 | D191: 16.053
A192: 2024-01-02T23:30:00 | B192: 7.732 | C192: 8.957 | D192: 16.689
A193: 2024-01-02T23:45:00 | B193: 7.150 | C193: 9.275 | D193: 16.425
A194: 2024-01-03 | B194: 5.855 | C194: 9.142 | D194: 14.997
A195: 2024-01-03T00:15:00 | B195: 5.587 | C195: 8.559 | D195: 14.146
A196: 2024-01-03T00:30:00 | B196: 5.587 | C196: 7.355 | D196: 12.942
A197: 2024-01-03T00:45:00 | B197: 5.589 | C197: 6.370 | D197: 11.958
A198: 2024-01-03T01:00:00 | B198: 5.508 | C198: 6.202 | D198: 11.710
A199: 2024-01-03T01:15:00 | B199: 5.508 | C199: 7.475 | D199: 12.983
A200: 2024-01-03T01:30:00 | B200: 5.346 | C200: 8.438 | D200: 13.784
... 4300 more rows

Sheet ICEIE
A1: DateTime | B1: Moyle Emissions (tCO2) | C1: EWIC Emissions (tCO2) | D1: AI Interconnector Emissions (tCO2)
A2: 2024-01-01 | B2: 14.662 | C2: 3.187 | D2: 17.849
A3: 2024-01-01T00:15:00 | B3: 13.159 | C3: 2.812 | D3: 15.971
A4: 2024-01-01T00:30:00 | B4: 7.312 | C4: 0.540 | D4: 7.852
A5: 2024-01-01T00:45:00 | B5: 2.265 | C5: 0.001 | D5: 2.266
A6: 2024-01-01T01:00:00 | B6: 6.998 | C6: 0.001 | D6: 6.999
A7: 2024-01-01T01:15:00 | B7: 12.795 | C7: 0.144 | D7: 12.939
A8: 2024-01-01T01:30:00 | B8: 19.471 | C8: 2.164 | D8: 21.635
A9: 2024-01-01T01:45:00 | B9: 25.584 | C9: 4.116 | D9: 29.700
A10: 2024-01-01T02:00:00 | B10: 28.506 | C10: 2.840 | D10: 31.346
A11: 2024-01-01T02:15:00 | B11: 28.924 | C11: 4.890 | D11: 33.814
A12: 2024-01-01T02:30:00 | B12: 29.509 | C12: 7.587 | D12: 37.096
A13: 2024-01-01T02:45:00 | B13: 29.751 | C13: 10.205 | D13: 39.955
A14: 2024-01-01T03:00:00 | B14: 31.165 | C14: 10.996 | D14: 42.161
A15: 2024-01-01T03:15:00 | B15: 31.584 | C15: 13.565 | D15: 45.149
A16: 2024-01-01T03:30:00 | B16: 31.833 | C16: 16.008 | D16: 47.841
A17: 2024-01-01T03:45:00 | B17: 32.169 | C17: 18.688 | D17: 50.857
A18: 2024-01-01T04:00:00 | B18: 32.167 | C18: 17.383 | D18: 49.551
A19: 2024-01-01T04:15:00 | B19: 32.586 | C19: 15.920 | D19: 48.506
A20: 2024-01-01T04:30:00 | B20: 33.087 | C20: 17.270 | D20: 50.357
A21: 2024-01-01T04:45:00 | B21: 32.502 | C21: 18.847 | D21: 51.349
A22: 2024-01-01T05:00:00 | B22: 33.005 | C22: 19.742 | D22: 52.747
A23: 2024-01-01T05:15:00 | B23: 33.254 | C23: 22.391 | D23: 55.645
A24: 2024-01-01T05:30:00 | B24: 33.088 | C24: 22.523 | D24: 55.611
A25: 2024-01-01T05:45:00 | B25: 32.585 | C25: 22.657 | D25: 55.242
A26: 2024-01-01T06:00:00 | B26: 31.667 | C26: 23.054 | D26: 54.722
A27: 2024-01-01T06:15:00 | B27: 28.576 | C27: 23.849 | D27: 52.425
A28: 2024-01-01T06:30:00 | B28: 29.664 | C28: 23.585 | D28: 53.248
A29: 2024-01-01T06:45:00 | B29: 28.827 | C29: 24.114 | D29: 52.940
A30: 2024-01-01T07:00:00 | B30: 27.492 | C30: 24.776 | D30: 52.267
A31: 2024-01-01T07:15:00 | B31: 26.488 | C31: 25.172 | D31: 51.660
A32: 2024-01-01T07:30:00 | B32: 29.223 | C32: 25.966 | D32: 55.189
A33: 2024-01-01T07:45:00 | B33: 32.321 | C33: 25.437 | D33: 57.758
A34: 2024-01-01T08:00:00 | B34: 32.476 | C34: 25.834 | D34: 58.311
A35: 2024-01-01T08:15:00 | B35: 32.033 | C35: 26.759 | D35: 58.792
A36: 2024-01-01T08:30:00 | B36: 31.370 | C36: 26.097 | D36: 57.467
A37: 2024-01-01T08:45:00 | B37: 29.273 | C37: 25.302 | D37: 54.575
A38: 2024-01-01T09:00:00 | B38: 30.267 | C38: 23.448 | D38: 53.715
A39: 2024-01-01T09:15:00 | B39: 29.935 | C39: 22.786 | D39: 52.721
A40: 2024-01-01T09:30:00 | B40: 28.608 | C40: 22.124 | D40: 50.732
A41: 2024-01-01T09:45:00 | B41: 27.945 | C41: 20.800 | D41: 48.744
A42: 2024-01-01T10:00:00 | B42: 25.513 | C42: 20.536 | D42: 46.049
A43: 2024-01-01T10:15:00 | B43: 21.883 | C43: 20.270 | D43: 42.153
A44: 2024-01-01T10:30:00 | B44: 20.781 | C44: 19.607 | D44: 40.389
A45: 2024-01-01T10:45:00 | B45: 20.094 | C45: 18.946 | D45: 39.040
A46: 2024-01-01T11:00:00 | B46: 19.666 | C46: 18.814 | D46: 38.481
A47: 2024-01-01T11:15:00 | B47: 17.620 | C47: 18.417 | D47: 36.037
A48: 2024-01-01T11:30:00 | B48: 17.039 | C48: 18.814 | D48: 35.853
A49: 2024-01-01T11:45:00 | B49: 16.111 | C49: 18.152 | D49: 34.263
A50: 2024-01-01T12:00:00 | B50: 16.435 | C50: 17.622 | D50: 34.057
A51: 2024-01-01T12:15:00 | B51: 16.814 | C51: 18.152 | D51: 34.966
A52: 2024-01-01T12:30:00 | B52: 16.923 | C52: 17.887 | D52: 34.809
A53: 2024-01-01T12:45:00 | B53: 15.814 | C53: 17.886 | D53: 33.701
A54: 2024-01-01T13:00:00 | B54: 13.464 | C54: 18.020 | D54: 31.484
A55: 2024-01-01T13:15:00 | B55: 12.263 | C55: 18.531 | D55: 30.794
A56: 2024-01-01T13:30:00 | B56: 10.414 | C56: 16.557 | D56: 26.971
A57: 2024-01-01T13:45:00 | B57: 10.323 | C57: 15.953 | D57: 26.276
A58: 2024-01-01T14:00:00 | B58: 10.772 | C58: 16.361 | D58: 27.133
A59: 2024-01-01T14:15:00 | B59: 11.562 | C59: 15.400 | D59: 26.962
A60: 2024-01-01T14:30:00 | B60: 13.227 | C60: 13.015 | D60: 26.243
A61: 2024-01-01T14:45:00 | B61: 13.592 | C61: 11.391 | D61: 24.983
A62: 2024-01-01T15:00:00 | B62: 11.693 | C62: 11.700 | D62: 23.394
A63: 2024-01-01T15:15:00 | B63: 11.218 | C63: 8.478 | D63: 19.696
A64: 2024-01-01T15:30:00 | B64: 10.771 | C64: 6.622 | D64: 17.393
A65: 2024-01-01T15:45:00 | B65: 7.063 | C65: 4.958 | D65: 12.022
A66: 2024-01-01T16:00:00 | B66: 3.640 | C66: 3.203 | D66: 6.843
A67: 2024-01-01T16:15:00 | B67: 1.986 | C67: 1.287 | D67: 3.273
A68: 2024-01-01T16:30:00 | B68: 5.073 | C68: 0.006 | D68: 5.079
A69: 2024-01-01T16:45:00 | B69: 7.664 | C69: 0.001 | D69: 7.665
A70: 2024-01-01T17:00:00 | B70: 7.910 | C70: 0.001 | D70: 7.911
A71: 2024-01-01T17:15:00 | B71: 7.781 | C71: 0.001 | D71: 7.782
A72: 2024-01-01T17:30:00 | B72: 9.078 | C72: 0.001 | D72: 9.078
A73: 2024-01-01T17:45:00 | B73: 7.543 | C73: 0.001 | D73: 7.544
A74: 2024-01-01T18:00:00 | B74: 4.280 | C74: 0.000 | D74: 4.280
A75: 2024-01-01T18:15:00 | B75: 4.852 | C75: 0.000 | D75: 4.852
A76: 2024-01-01T18:30:00 | B76: 8.606 | C76: 0.917 | D76: 9.523
A77: 2024-01-01T18:45:00 | B77: 9.182 | C77: 1.990 | D77: 11.172
A78: 2024-01-01T19:00:00 | B78: 5.956 | C78: 0.369 | D78: 6.325
A79: 2024-01-01T19:15:00 | B79: 6.268 | C79: 0.000 | D79: 6.268
A80: 2024-01-01T19:30:00 | B80: 10.277 | C80: 0.170 | D80: 10.447
A81: 2024-01-01T19:45:00 | B81: 11.373 | C81: 0.159 | D81: 11.532
A82: 2024-01-01T20:00:00 | B82: 8.144 | C82: 0.001 | D82: 8.145
A83: 2024-01-01T20:15:00 | B83: 7.858 | C83: 0.000 | D83: 7.859
A84: 2024-01-01T20:30:00 | B84: 8.594 | C84: 0.000 | D84: 8.594
A85: 2024-01-01T20:45:00 | B85: 8.718 | C85: 0.000 | D85: 8.719
A86: 2024-01-01T21:00:00 | B86: 7.212 | C86: 0.000 | D86: 7.212
A87: 2024-01-01T21:15:00 | B87: 9.837 | C87: 0.035 | D87: 9.872
A88: 2024-01-01T21:30:00 | B88: 13.179 | C88: 1.209 | D88: 14.388
A89: 2024-01-01T21:45:00 | B89: 10.276 | C89: 1.681 | D89: 11.958
A90: 2024-01-01T22:00:00 | B90: 6.010 | C90: 0.184 | D90: 6.194
A91: 2024-01-01T22:15:00 | B91: 1.693 | C91: 0.000 | D91: 1.693
A92: 2024-01-01T22:30:00 | B92: 4.296 | C92: 0.001 | D92: 4.297
A93: 2024-01-01T22:45:00 | B93: 8.724 | C93: 0.001 | D93: 8.725
A94: 2024-01-01T23:00:00 | B94: 11.512 | C94: 0.918 | D94: 12.430
A95: 2024-01-01T23:15:00 | B95: 16.578 | C95: 2.812 | D95: 19.390
A96: 2024-01-01T23:30:00 | B96: 16.945 | C96: 4.910 | D96: 21.854
A97: 2024-01-01T23:45:00 | B97: 19.551 | C97: 6.553 | D97: 26.104
A98: 2024-01-02 | B98: 23.941 | C98: 5.633 | D98: 29.574
A99: 2024-01-02T00:15:00 | B99: 25.648 | C99: 3.568 | D99: 29.216
A100: 2024-01-02T00:30:00 | B100: 26.213 | C100: 1.474 | D100: 27.688
A101: 2024-01-02T00:45:00 | B101: 27.187 | C101: 1.189 | D101: 28.375
A102: 2024-01-02T01:00:00 | B102: 27.108 | C102: 3.382 | D102: 30.490
A103: 2024-01-02T01:15:00 | B103: 26.616 | C103: 5.623 | D103: 32.239
A104: 2024-01-02T01:30:00 | B104: 24.735 | C104: 8.101 | D104: 32.836
A105: 2024-01-02T01:45:00 | B105: 23.835 | C105: 10.474 | D105: 34.309
A106: 2024-01-02T02:00:00 | B106: 28.080 | C106: 12.676 | D106: 40.755
A107: 2024-01-02T02:15:00 | B107: 27.870 | C107: 14.841 | D107: 42.710
A108: 2024-01-02T02:30:00 | B108: 24.177 | C108: 18.019 | D108: 42.195
A109: 2024-01-02T02:45:00 | B109: 28.454 | C109: 18.550 | D109: 47.003
A110: 2024-01-02T03:00:00 | B110: 29.370 | C110: 17.625 | D110: 46.995
A111: 2024-01-02T03:15:00 | B111: 29.450 | C111: 19.178 | D111: 48.628
A112: 2024-01-02T03:30:00 | B112: 29.938 | C112: 20.493 | D112: 50.431
A113: 2024-01-02T03:45:00 | B113: 30.099 | C113: 20.583 | D113: 50.682
A114: 2024-01-02T04:00:00 | B114: 30.179 | C114: 21.198 | D114: 51.377
A115: 2024-01-02T04:15:00 | B115: 30.424 | C115: 21.067 | D115: 51.491
A116: 2024-01-02T04:30:00 | B116: 30.101 | C116: 21.067 | D116: 51.168
A117: 2024-01-02T04:45:00 | B117: 29.939 | C117: 21.729 | D117: 51.668
A118: 2024-01-02T05:00:00 | B118: 30.669 | C118: 22.392 | D118: 53.061
A119: 2024-01-02T05:15:00 | B119: 30.426 | C119: 22.259 | D119: 52.685
A120: 2024-01-02T05:30:00 | B120: 29.861 | C120: 22.789 | D120: 52.650
A121: 2024-01-02T05:45:00 | B121: 29.699 | C121: 22.657 | D121: 52.356
A122: 2024-01-02T06:00:00 | B122: 27.744 | C122: 21.596 | D122: 49.340
A123: 2024-01-02T06:15:00 | B123: 24.416 | C123: 21.863 | D123: 46.278
A124: 2024-01-02T06:30:00 | B124: 23.605 | C124: 22.392 | D124: 45.997
A125: 2024-01-02T06:45:00 | B125: 24.298 | C125: 23.055 | D125: 47.352
A126: 2024-01-02T07:00:00 | B126: 26.982 | C126: 25.174 | D126: 52.156
A127: 2024-01-02T07:15:00 | B127: 28.278 | C127: 25.042 | D127: 53.320
A128: 2024-01-02T07:30:00 | B128: 25.957 | C128: 25.705 | D128: 51.662
A129: 2024-01-02T07:45:00 | B129: 25.514 | C129: 25.439 | D129: 50.953
A130: 2024-01-02T08:00:00 | B130: 24.737 | C130: 25.572 | D130: 50.309
A131: 2024-01-02T08:15:00 | B131: 23.632 | C131: 25.970 | D131: 49.601
A132: 2024-01-02T08:30:00 | B132: 22.638 | C132: 25.307 | D132: 47.944
A133: 2024-01-02T08:45:00 | B133: 22.417 | C133: 25.439 | D133: 47.856
A134: 2024-01-02T09:00:00 | B134: 22.086 | C134: 25.837 | D134: 47.922
A135: 2024-01-02T09:15:00 | B135: 20.870 | C135: 26.764 | D135: 47.634
A136: 2024-01-02T09:30:00 | B136: 20.208 | C136: 26.896 | D136: 47.104
A137: 2024-01-02T09:45:00 | B137: 23.079 | C137: 25.969 | D137: 49.048
A138: 2024-01-02T10:00:00 | B138: 20.430 | C138: 25.439 | D138: 45.869
A139: 2024-01-02T10:15:00 | B139: 20.429 | C139: 25.042 | D139: 45.470
A140: 2024-01-02T10:30:00 | B140: 19.656 | C140: 25.307 | D140: 44.963
A141: 2024-01-02T10:45:00 | B141: 20.098 | C141: 23.717 | D141: 43.814
A142: 2024-01-02T11:00:00 | B142: 20.978 | C142: 23.981 | D142: 44.959
A143: 2024-01-02T11:15:00 | B143: 19.433 | C143: 23.452 | D143: 42.885
A144: 2024-01-02T11:30:00 | B144: 19.213 | C144: 22.922 | D144: 42.135
A145: 2024-01-02T11:45:00 | B145: 18.772 | C145: 20.402 | D145: 39.174
A146: 2024-01-02T12:00:00 | B146: 19.212 | C146: 17.002 | D146: 36.215
A147: 2024-01-02T12:15:00 | B147: 19.544 | C147: 15.231 | D147: 34.774
A148: 2024-01-02T12:30:00 | B148: 20.648 | C148: 12.911 | D148: 33.559
A149: 2024-01-02T12:45:00 | B149: 18.551 | C149: 9.998 | D149: 28.549
A150: 2024-01-02T13:00:00 | B150: 18.550 | C150: 6.988 | D150: 25.538
A151: 2024-01-02T13:15:00 | B151: 18.413 | C151: 3.903 | D151: 22.316
A152: 2024-01-02T13:30:00 | B152: 17.833 | C152: 3.604 | D152: 21.436
A153: 2024-01-02T13:45:00 | B153: 17.443 | C153: 2.555 | D153: 19.998
A154: 2024-01-02T14:00:00 | B154: 17.119 | C154: 0.223 | D154: 17.343
A155: 2024-01-02T14:15:00 | B155: 17.333 | C155: 0.794 | D155: 18.127
A156: 2024-01-02T14:30:00 | B156: 14.364 | C156: 3.782 | D156: 18.146
A157: 2024-01-02T14:45:00 | B157: 13.630 | C157: 4.279 | D157: 17.909
A158: 2024-01-02T15:00:00 | B158: 14.767 | C158: 3.889 | D158: 18.656
A159: 2024-01-02T15:15:00 | B159: 14.311 | C159: 7.108 | D159: 21.420
A160: 2024-01-02T15:30:00 | B160: 13.322 | C160: 10.093 | D160: 23.416
A161: 2024-01-02T15:45:00 | B161: 15.275 | C161: 12.218 | D161: 27.493
A162: 2024-01-02T16:00:00 | B162: 18.130 | C162: 11.880 | D162: 30.010
A163: 2024-01-02T16:15:00 | B163: 18.010 | C163: 11.818 | D163: 29.828
A164: 2024-01-02T16:30:00 | B164: 17.150 | C164: 14.050 | D164: 31.200
A165: 2024-01-02T16:45:00 | B165: 16.085 | C165: 17.767 | D165: 33.852
A166: 2024-01-02T17:00:00 | B166: 17.607 | C166: 20.728 | D166: 38.335
A167: 2024-01-02T17:15:00 | B167: 17.675 | C167: 22.390 | D167: 40.066
A168: 2024-01-02T17:30:00 | B168: 17.785 | C168: 23.319 | D168: 41.104
A169: 2024-01-02T17:45:00 | B169: 18.116 | C169: 22.922 | D169: 41.038
A170: 2024-01-02T18:00:00 | B170: 18.446 | C170: 23.187 | D170: 41.633
A171: 2024-01-02T18:15:00 | B171: 19.219 | C171: 23.849 | D171: 43.068
A172: 2024-01-02T18:30:00 | B172: 20.323 | C172: 24.379 | D172: 44.702
A173: 2024-01-02T18:45:00 | B173: 20.102 | C173: 25.042 | D173: 45.144
A174: 2024-01-02T19:00:00 | B174: 20.434 | C174: 25.174 | D174: 45.608
A175: 2024-01-02T19:15:00 | B175: 20.323 | C175: 24.644 | D175: 44.966
A176: 2024-01-02T19:30:00 | B176: 20.875 | C176: 24.246 | D176: 45.121
A177: 2024-01-02T19:45:00 | B177: 21.759 | C177: 24.644 | D177: 46.403
A178: 2024-01-02T20:00:00 | B178: 20.876 | C178: 26.102 | D178: 46.978
A179: 2024-01-02T20:15:00 | B179: 21.317 | C179: 25.704 | D179: 47.021
A180: 2024-01-02T20:30:00 | B180: 21.758 | C180: 26.234 | D180: 47.992
A181: 2024-01-02T20:45:00 | B181: 22.090 | C181: 26.235 | D181: 48.324
A182: 2024-01-02T21:00:00 | B182: 22.531 | C182: 25.705 | D182: 48.235
A183: 2024-01-02T21:15:00 | B183: 22.641 | C183: 24.910 | D183: 47.551
A184: 2024-01-02T21:30:00 | B184: 23.855 | C184: 24.644 | D184: 48.499
A185: 2024-01-02T21:45:00 | B185: 24.408 | C185: 24.379 | D185: 48.787
A186: 2024-01-02T22:00:00 | B186: 24.741 | C186: 24.512 | D186: 49.253
A187: 2024-01-02T22:15:00 | B187: 25.074 | C187: 23.320 | D187: 48.394
A188: 2024-01-02T22:30:00 | B188: 26.510 | C188: 22.657 | D188: 49.167
A189: 2024-01-02T22:45:00 | B189: 25.626 | C189: 22.127 | D189: 47.753
A190: 2024-01-02T23:00:00 | B190: 26.732 | C190: 20.883 | D190: 47.615
A191: 2024-01-02T23:15:00 | B191: 27.615 | C191: 20.925 | D191: 48.541
A192: 2024-01-02T23:30:00 | B192: 29.051 | C192: 24.823 | D192: 53.874
A193: 2024-01-02T23:45:00 | B193: 27.785 | C193: 25.439 | D193: 53.224
A194: 2024-01-03 | B194: 23.590 | C194: 25.704 | D194: 49.294
A195: 2024-01-03T00:15:00 | B195: 22.913 | C195: 24.189 | D195: 47.102
A196: 2024-01-03T00:30:00 | B196: 23.887 | C196: 20.680 | D196: 44.567
A197: 2024-01-03T00:45:00 | B197: 24.460 | C197: 18.371 | D197: 42.831
A198: 2024-01-03T01:00:00 | B198: 24.623 | C198: 18.058 | D198: 42.681
A199: 2024-01-03T01:15:00 | B199: 24.057 | C199: 21.326 | D199: 45.383
A200: 2024-01-03T01:30:00 | B200: 24.380 | C200: 25.443 | D200: 49.823
... 4300 more rows

Sheet ICES
A1: DateTime | B1: Moyle Savings (tCO2) | C1: EWIC Savings (tCO2) | D1: AI Interconnector Savings (tCO2)
A2: 2024-01-01 | B2: 11.446 | C2: 1.381 | D2: 12.827
A3: 2024-01-01T00:15:00 | B3: 10.439 | C3: 1.33 | D3: 11.769
A4: 2024-01-01T00:30:00 | B4: 5.862 | C4: 0.255 | D4: 6.117
A5: 2024-01-01T00:45:00 | B5: 1.818 | C5: 0 | D5: 1.818
A6: 2024-01-01T01:00:00 | B6: 5.635 | C6: 0 | D6: 5.635
A7: 2024-01-01T01:15:00 | B7: 10.126 | C7: 0.071 | D7: 10.197
A8: 2024-01-01T01:30:00 | B8: 15.646 | C8: 1.129 | D8: 16.775
A9: 2024-01-01T01:45:00 | B9: 20.544 | C9: 2.148 | D9: 22.692
A10: 2024-01-01T02:00:00 | B10: 22.32 | C10: 1.317 | D10: 23.637
A11: 2024-01-01T02:15:00 | B11: 22.738 | C11: 2.324 | D11: 25.062
A12: 2024-01-01T02:30:00 | B12: 23.657 | C12: 3.847 | D12: 27.504
A13: 2024-01-01T02:45:00 | B13: 23.901 | C13: 5.209 | D13: 29.11
A14: 2024-01-01T03:00:00 | B14: 25.4 | C14: 5.869 | D14: 31.269
A15: 2024-01-01T03:15:00 | B15: 25.819 | C15: 7.241 | D15: 33.06
A16: 2024-01-01T03:30:00 | B16: 26.235 | C16: 8.611 | D16: 34.846
A17: 2024-01-01T03:45:00 | B17: 26.571 | C17: 10.17 | D17: 36.741
A18: 2024-01-01T04:00:00 | B18: 26.904 | C18: 9.984 | D18: 36.888
A19: 2024-01-01T04:15:00 | B19: 27.322 | C19: 9.143 | D19: 36.465
A20: 2024-01-01T04:30:00 | B20: 28.157 | C20: 10.522 | D20: 38.679
A21: 2024-01-01T04:45:00 | B21: 27.573 | C21: 11.384 | D21: 38.957
A22: 2024-01-01T05:00:00 | B22: 28.159 | C22: 12.057 | D22: 40.216
A23: 2024-01-01T05:15:00 | B23: 28.408 | C23: 14.706 | D23: 43.114
A24: 2024-01-01T05:30:00 | B24: 27.991 | C24: 14.441 | D24: 42.432
A25: 2024-01-01T05:45:00 | B25: 27.489 | C25: 14.574 | D25: 42.063
A26: 2024-01-01T06:00:00 | B26: 26.654 | C26: 15.104 | D26: 41.758
A27: 2024-01-01T06:15:00 | B27: 23.562 | C27: 15.899 | D27: 39.461
A28: 2024-01-01T06:30:00 | B28: 24.399 | C28: 15.237 | D28: 39.636
A29: 2024-01-01T06:45:00 | B29: 23.563 | C29: 15.767 | D29: 39.33
A30: 2024-01-01T07:00:00 | B30: 22.394 | C30: 16.694 | D30: 39.088
A31: 2024-01-01T07:15:00 | B31: 21.391 | C31: 17.091 | D31: 38.482
A32: 2024-01-01T07:30:00 | B32: 23.525 | C32: 17.752 | D32: 41.277
A33: 2024-01-01T07:45:00 | B33: 25.619 | C33: 17.223 | D33: 42.842
A34: 2024-01-01T08:00:00 | B34: 26.29 | C34: 18.415 | D34: 44.705
A35: 2024-01-01T08:15:00 | B35: 25.847 | C35: 19.341 | D35: 45.188
A36: 2024-01-01T08:30:00 | B36: 25.958 | C36: 19.606 | D36: 45.564
A37: 2024-01-01T08:45:00 | B37: 23.86 | C37: 18.811 | D37: 42.671
A38: 2024-01-01T09:00:00 | B38: 24.965 | C38: 17.089 | D38: 42.054
A39: 2024-01-01T09:15:00 | B39: 24.633 | C39: 16.427 | D39: 41.06
A40: 2024-01-01T09:30:00 | B40: 23.085 | C40: 15.5 | D40: 38.585
A41: 2024-01-01T09:45:00 | B41: 22.422 | C41: 14.176 | D41: 36.598
A42: 2024-01-01T10:00:00 | B42: 20.206 | C42: 13.646 | D42: 33.852
A43: 2024-01-01T10:15:00 | B43: 17.349 | C43: 13.381 | D43: 30.73
A44: 2024-01-01T10:30:00 | B44: 15.886 | C44: 12.056 | D44: 27.942
A45: 2024-01-01T10:45:00 | B45: 15.199 | C45: 11.394 | D45: 26.593
A46: 2024-01-01T11:00:00 | B46: 14.17 | C46: 10.335 | D46: 24.505
A47: 2024-01-01T11:15:00 | B47: 12.586 | C47: 9.937 | D47: 22.523
A48: 2024-01-01T11:30:00 | B48: 11.46 | C48: 9.01 | D48: 20.47
A49: 2024-01-01T11:45:00 | B49: 10.514 | C49: 8.347 | D49: 18.861
A50: 2024-01-01T12:00:00 | B50: 9.733 | C50: 6.492 | D50: 16.225
A51: 2024-01-01T12:15:00 | B51: 10.088 | C51: 7.022 | D51: 17.11
A52: 2024-01-01T12:30:00 | B52: 9.201 | C52: 5.432 | D52: 14.633
A53: 2024-01-01T12:45:00 | B53: 8.268 | C53: 5.432 | D53: 13.7
A54: 2024-01-01T13:00:00 | B54: 6.463 | C54: 4.24 | D54: 10.703
A55: 2024-01-01T13:15:00 | B55: 5.515 | C55: 4.765 | D55: 10.28
A56: 2024-01-01T13:30:00 | B56: 4.285 | C56: 2.9 | D56: 7.185
A57: 2024-01-01T13:45:00 | B57: 4.341 | C57: 3.077 | D57: 7.418
A58: 2024-01-01T14:00:00 | B58: 4.104 | C58: 1.169 | D58: 5.273
A59: 2024-01-01T14:15:00 | B59: 4.764 | C59: 0.509 | D59: 5.273
A60: 2024-01-01T14:30:00 | B60: 5.211 | C60: -0.109 | D60: 5.102
A61: 2024-01-01T14:45:00 | B61: 5.557 | C61: -0.193 | D61: 5.364
A62: 2024-01-01T15:00:00 | B62: 5.102 | C62: -0.103 | D62: 4.999
A63: 2024-01-01T15:15:00 | B63: 4.602 | C63: -1.37 | D63: 3.232
A64: 2024-01-01T15:30:00 | B64: 4.117 | C64: -1.271 | D64: 2.846
A65: 2024-01-01T15:45:00 | B65: 2.582 | C65: -0.722 | D65: 1.86
A66: 2024-01-01T16:00:00 | B66: 1.391 | C66: -0.264 | D66: 1.127
A67: 2024-01-01T16:15:00 | B67: 0.705 | C67: 0.032 | D67: 0.737
A68: 2024-01-01T16:30:00 | B68: 1.72 | C68: 0 | D68: 1.72
A69: 2024-01-01T16:45:00 | B69: 2.451 | C69: 0 | D69: 2.451
A70: 2024-01-01T17:00:00 | B70: 2.622 | C70: 0 | D70: 2.622
A71: 2024-01-01T17:15:00 | B71: 2.488 | C71: 0 | D71: 2.488
A72: 2024-01-01T17:30:00 | B72: 3.201 | C72: 0 | D72: 3.201
A73: 2024-01-01T17:45:00 | B73: 2.85 | C73: 0 | D73: 2.85
A74: 2024-01-01T18:00:00 | B74: 1.828 | C74: 0 | D74: 1.828
A75: 2024-01-01T18:15:00 | B75: 2.057 | C75: 0 | D75: 2.057
A76: 2024-01-01T18:30:00 | B76: 4.144 | C76: 0.044 | D76: 4.188
A77: 2024-01-01T18:45:00 | B77: 4.568 | C77: 0.04 | D77: 4.608
A78: 2024-01-01T19:00:00 | B78: 3.488 | C78: -0.018 | D78: 3.47
A79: 2024-01-01T19:15:00 | B79: 3.708 | C79: 0 | D79: 3.708
A80: 2024-01-01T19:30:00 | B80: 6.593 | C80: 0.014 | D80: 6.607
A81: 2024-01-01T19:45:00 | B81: 7.315 | C81: 0.012 | D81: 7.327
A82: 2024-01-01T20:00:00 | B82: 5.679 | C82: 0 | D82: 5.679
A83: 2024-01-01T20:15:00 | B83: 5.543 | C83: 0 | D83: 5.543
A84: 2024-01-01T20:30:00 | B84: 6.541 | C84: 0 | D84: 6.541
A85: 2024-01-01T20:45:00 | B85: 6.662 | C85: 0 | D85: 6.662
A86: 2024-01-01T21:00:00 | B86: 5.745 | C86: 0 | D86: 5.745
A87: 2024-01-01T21:15:00 | B87: 7.861 | C87: 0.017 | D87: 7.878
A88: 2024-01-01T21:30:00 | B88: 10.757 | C88: 0.644 | D88: 11.401
A89: 2024-01-01T21:45:00 | B89: 8.443 | C89: 0.928 | D89: 9.371
A90: 2024-01-01T22:00:00 | B90: 4.965 | C90: 0.101 | D90: 5.066
A91: 2024-01-01T22:15:00 | B91: 1.395 | C91: 0 | D91: 1.395
A92: 2024-01-01T22:30:00 | B92: 3.53 | C92: 0 | D92: 3.53
A93: 2024-01-01T22:45:00 | B93: 7.15 | C93: 0 | D93: 7.15
A94: 2024-01-01T23:00:00 | B94: 9.446 | C94: 0.486 | D94: 9.932
A95: 2024-01-01T23:15:00 | B95: 13.602 | C95: 1.461 | D95: 15.063
A96: 2024-01-01T23:30:00 | B96: 13.944 | C96: 2.548 | D96: 16.492
A97: 2024-01-01T23:45:00 | B97: 16.228 | C97: 3.4 | D97: 19.628
A98: 2024-01-02 | B98: 20.055 | C98: 3.118 | D98: 23.173
A99: 2024-01-02T00:15:00 | B99: 21.59 | C99: 1.989 | D99: 23.579
A100: 2024-01-02T00:30:00 | B100: 21.831 | C100: 0.782 | D100: 22.613
A101: 2024-01-02T00:45:00 | B101: 22.804 | C101: 0.635 | D101: 23.439
A102: 2024-01-02T01:00:00 | B102: 22.482 | C102: 1.734 | D102: 24.216
A103: 2024-01-02T01:15:00 | B103: 21.991 | C103: 2.907 | D103: 24.898
A104: 2024-01-02T01:30:00 | B104: 20.379 | C104: 4.183 | D104: 24.562
A105: 2024-01-02T01:45:00 | B105: 19.687 | C105: 5.45 | D105: 25.137
A106: 2024-01-02T02:00:00 | B106: 23.71 | C106: 7.065 | D106: 30.775
A107: 2024-01-02T02:15:00 | B107: 23.533 | C107: 8.218 | D107: 31.751
A108: 2024-01-02T02:30:00 | B108: 20.436 | C108: 10.864 | D108: 31.3
A109: 2024-01-02T02:45:00 | B109: 24.197 | C109: 11.395 | D109: 35.592
A110: 2024-01-02T03:00:00 | B110: 24.826 | C110: 10.625 | D110: 35.451
A111: 2024-01-02T03:15:00 | B111: 24.907 | C111: 12.338 | D111: 37.245
A112: 2024-01-02T03:30:00 | B112: 25.314 | C112: 13.147 | D112: 38.461
A113: 2024-01-02T03:45:00 | B113: 25.475 | C113: 13.204 | D113: 38.679
A114: 2024-01-02T04:00:00 | B114: 25.555 | C114: 13.646 | D114: 39.201
A115: 2024-01-02T04:15:00 | B115: 25.8 | C115: 13.514 | D115: 39.314
A116: 2024-01-02T04:30:00 | B116: 25.314 | C116: 13.25 | D116: 38.564
A117: 2024-01-02T04:45:00 | B117: 25.152 | C117: 13.912 | D117: 39.064
A118: 2024-01-02T05:00:00 | B118: 25.476 | C118: 13.912 | D118: 39.388
A119: 2024-01-02T05:15:00 | B119: 25.233 | C119: 13.779 | D119: 39.012
A120: 2024-01-02T05:30:00 | B120: 24.505 | C120: 14.044 | D120: 38.549
A121: 2024-01-02T05:45:00 | B121: 24.344 | C121: 13.912 | D121: 38.256
A122: 2024-01-02T06:00:00 | B122: 21.985 | C122: 12.189 | D122: 34.174
A123: 2024-01-02T06:15:00 | B123: 18.657 | C123: 12.455 | D123: 31.112
A124: 2024-01-02T06:30:00 | B124: 16.872 | C124: 11.395 | D124: 28.267
A125: 2024-01-02T06:45:00 | B125: 17.271 | C125: 12.057 | D125: 29.328
A126: 2024-01-02T07:00:00 | B126: 17.207 | C126: 12.455 | D126: 29.662
A127: 2024-01-02T07:15:00 | B127: 17.674 | C127: 12.322 | D127: 29.996
A128: 2024-01-02T07:30:00 | B128: 14.028 | C128: 11.395 | D128: 25.423
A129: 2024-01-02T07:45:00 | B129: 13.585 | C129: 11.13 | D129: 24.715
A130: 2024-01-02T08:00:00 | B130: 13.362 | C130: 11.925 | D130: 25.287
A131: 2024-01-02T08:15:00 | B131: 12.258 | C131: 12.322 | D131: 24.58
A132: 2024-01-02T08:30:00 | B132: 10.159 | C132: 10.335 | D132: 20.494
A133: 2024-01-02T08:45:00 | B133: 9.939 | C133: 10.467 | D133: 20.406
A134: 2024-01-02T09:00:00 | B134: 8.834 | C134: 9.937 | D134: 18.771
A135: 2024-01-02T09:15:00 | B135: 7.619 | C135: 10.865 | D135: 18.484
A136: 2024-01-02T09:30:00 | B136: 5.963 | C136: 9.805 | D136: 15.768
A137: 2024-01-02T09:45:00 | B137: 8.834 | C137: 8.877 | D137: 17.711
A138: 2024-01-02T10:00:00 | B138: 5.411 | C138: 7.42 | D138: 12.831
A139: 2024-01-02T10:15:00 | B139: 5.411 | C139: 7.022 | D139: 12.433
A140: 2024-01-02T10:30:00 | B140: 4.086 | C140: 6.625 | D140: 10.711
A141: 2024-01-02T10:45:00 | B141: 4.528 | C141: 5.035 | D141: 9.563
A142: 2024-01-02T11:00:00 | B142: 4.748 | C142: 4.505 | D142: 9.253
A143: 2024-01-02T11:15:00 | B143: 3.202 | C143: 3.975 | D143: 7.177
A144: 2024-01-02T11:30:00 | B144: 3.092 | C144: 3.577 | D144: 6.669
A145: 2024-01-02T11:45:00 | B145: 2.65 | C145: 1.429 | D145: 4.079
A146: 2024-01-02T12:00:00 | B146: 2.76 | C146: 0.113 | D146: 2.873
A147: 2024-01-02T12:15:00 | B147: 3.092 | C147: 1.135 | D147: 4.227
A148: 2024-01-02T12:30:00 | B148: 3.754 | C148: 0.792 | D148: 4.546
A149: 2024-01-02T12:45:00 | B149: 1.656 | C149: 0.727 | D149: 2.383
A150: 2024-01-02T13:00:00 | B150: 1.546 | C150: 0.544 | D150: 2.09
A151: 2024-01-02T13:15:00 | B151: 1.534 | C151: 0.346 | D151: 1.88
A152: 2024-01-02T13:30:00 | B152: 1.763 | C152: 0.259 | D152: 2.022
A153: 2024-01-02T13:45:00 | B153: 1.445 | C153: 0.14 | D153: 1.585
A154: 2024-01-02T14:00:00 | B154: 1.692 | C154: 0.011 | D154: 1.703
A155: 2024-01-02T14:15:00 | B155: 2.324 | C155: 0.03 | D155: 2.354
A156: 2024-01-02T14:30:00 | B156: 1.877 | C156: 0.317 | D156: 2.194
A157: 2024-01-02T14:45:00 | B157: 1.713 | C157: 0.311 | D157: 2.024
A158: 2024-01-02T15:00:00 | B158: 2.692 | C158: 0.523 | D158: 3.215
A159: 2024-01-02T15:15:00 | B159: 2.208 | C159: 0.992 | D159: 3.2
A160: 2024-01-02T15:30:00 | B160: 1.734 | C160: 1.262 | D160: 2.996
A161: 2024-01-02T15:45:00 | B161: 1.829 | C161: 0.631 | D161: 2.46
A162: 2024-01-02T16:00:00 | B162: 2.59 | C162: 0.399 | D162: 2.989
A163: 2024-01-02T16:15:00 | B163: 2.099 | C163: 0.909 | D163: 3.008
A164: 2024-01-02T16:30:00 | B164: 2.654 | C164: 1.958 | D164: 4.612
A165: 2024-01-02T16:45:00 | B165: 2.242 | C165: 3.013 | D165: 5.255
A166: 2024-01-02T17:00:00 | B166: 2.091 | C166: 3.434 | D166: 5.525
A167: 2024-01-02T17:15:00 | B167: 2.099 | C167: 3.71 | D167: 5.809
A168: 2024-01-02T17:30:00 | B168: 2.43 | C168: 4.902 | D168: 7.332
A169: 2024-01-02T17:45:00 | B169: 2.762 | C169: 4.505 | D169: 7.267
A170: 2024-01-02T18:00:00 | B170: 3.645 | C170: 5.432 | D170: 9.077
A171: 2024-01-02T18:15:00 | B171: 4.418 | C171: 6.095 | D171: 10.513
A172: 2024-01-02T18:30:00 | B172: 5.964 | C172: 7.155 | D172: 13.119
A173: 2024-01-02T18:45:00 | B173: 5.744 | C173: 7.817 | D173: 13.561
A174: 2024-01-02T19:00:00 | B174: 6.406 | C174: 8.347 | D174: 14.753
A175: 2024-01-02T19:15:00 | B175: 6.296 | C175: 7.817 | D175: 14.113
A176: 2024-01-02T19:30:00 | B176: 7.511 | C176: 8.215 | D176: 15.726
A177: 2024-01-02T19:45:00 | B177: 8.394 | C177: 8.612 | D177: 17.006
A178: 2024-01-02T20:00:00 | B178: 8.505 | C178: 11.262 | D178: 19.767
A179: 2024-01-02T20:15:00 | B179: 8.947 | C179: 10.864 | D179: 19.811
A180: 2024-01-02T20:30:00 | B180: 10.493 | C180: 12.72 | D180: 23.213
A181: 2024-01-02T20:45:00 | B181: 10.824 | C181: 12.72 | D181: 23.544
A182: 2024-01-02T21:00:00 | B182: 11.928 | C182: 12.985 | D182: 24.913
A183: 2024-01-02T21:15:00 | B183: 12.039 | C183: 12.19 | D183: 24.229
A184: 2024-01-02T21:30:00 | B184: 14.357 | C184: 13.25 | D184: 27.607
A185: 2024-01-02T21:45:00 | B185: 14.91 | C185: 12.985 | D185: 27.895
A186: 2024-01-02T22:00:00 | B186: 16.457 | C186: 14.574 | D186: 31.031
A187: 2024-01-02T22:15:00 | B187: 16.79 | C187: 13.382 | D187: 30.172
A188: 2024-01-02T22:30:00 | B188: 18.888 | C188: 13.515 | D188: 32.403
A189: 2024-01-02T22:45:00 | B189: 18.004 | C189: 12.985 | D189: 30.989
A190: 2024-01-02T23:00:00 | B190: 18.779 | C190: 11.986 | D190: 30.765
A191: 2024-01-02T23:15:00 | B191: 19.662 | C191: 12.825 | D191: 32.487
A192: 2024-01-02T23:30:00 | B192: 21.318 | C192: 15.866 | D192: 37.184
A193: 2024-01-02T23:45:00 | B193: 20.634 | C193: 16.164 | D193: 36.798
A194: 2024-01-03 | B194: 17.735 | C194: 16.562 | D194: 34.297
A195: 2024-01-03T00:15:00 | B195: 17.327 | C195: 15.63 | D195: 32.957
A196: 2024-01-03T00:30:00 | B196: 18.3 | C196: 13.325 | D196: 31.625
A197: 2024-01-03T00:45:00 | B197: 18.872 | C197: 12.001 | D197: 30.873
A198: 2024-01-03T01:00:00 | B198: 19.115 | C198: 11.856 | D198: 30.971
A199: 2024-01-03T01:15:00 | B199: 18.549 | C199: 13.851 | D199: 32.4
A200: 2024-01-03T01:30:00 | B200: 19.034 | C200: 17.004 | D200: 36.038
... 4300 more rows

Sheet ICEIEWC
A1: DateTime | B1: Moyle Emissions (tCO2) | C1: EWIC Emissions (tCO2) | D1: AI Interconnector Emissions (tCO2)
A2: 2024-01-01 | B2: 3.841 | C2: 0.000 | D2: 3.841
A3: 2024-01-01T00:15:00 | B3: 1.675 | C3: 0.000 | D3: 1.675
A4: 2024-01-01T00:30:00 | B4: 0.000 | C4: 0.000 | D4: 0.000
A5: 2024-01-01T00:45:00 | B5: 0.000 | C5: 0.000 | D5: 0.000
A6: 2024-01-01T01:00:00 | B6: 0.000 | C6: 0.000 | D6: 0.000
A7: 2024-01-01T01:15:00 | B7: 4.055 | C7: 0.000 | D7: 4.055
A8: 2024-01-01T01:30:00 | B8: 6.766 | C8: 0.000 | D8: 6.766
A9: 2024-01-01T01:45:00 | B9: 12.918 | C9: 0.000 | D9: 12.918
A10: 2024-01-01T02:00:00 | B10: 15.267 | C10: 0.000 | D10: 15.267
A11: 2024-01-01T02:15:00 | B11: 15.490 | C11: 0.000 | D11: 15.490
A12: 2024-01-01T02:30:00 | B12: 18.146 | C12: 0.000 | D12: 18.146
A13: 2024-01-01T02:45:00 | B13: 18.291 | C13: 0.000 | D13: 18.291
A14: 2024-01-01T03:00:00 | B14: 18.796 | C14: 0.000 | D14: 18.796
A15: 2024-01-01T03:15:00 | B15: 19.050 | C15: 0.000 | D15: 19.050
A16: 2024-01-01T03:30:00 | B16: 22.093 | C16: 0.516 | D16: 22.608
A17: 2024-01-01T03:45:00 | B17: 22.326 | C17: 2.982 | D17: 25.308
A18: 2024-01-01T04:00:00 | B18: 24.471 | C18: 2.996 | D18: 27.467
A19: 2024-01-01T04:15:00 | B19: 24.790 | C19: 1.533 | D19: 26.323
A20: 2024-01-01T04:30:00 | B20: 24.042 | C20: 7.428 | D20: 31.470
A21: 2024-01-01T04:45:00 | B21: 23.618 | C21: 9.135 | D21: 32.753
A22: 2024-01-01T05:00:00 | B22: 24.882 | C22: 13.683 | D22: 38.565
A23: 2024-01-01T05:15:00 | B23: 25.070 | C23: 15.518 | D23: 40.588
A24: 2024-01-01T05:30:00 | B24: 25.534 | C24: 20.672 | D24: 46.206
A25: 2024-01-01T05:45:00 | B25: 25.146 | C25: 20.794 | D25: 45.940
A26: 2024-01-01T06:00:00 | B26: 30.551 | C26: 23.054 | D26: 53.605
A27: 2024-01-01T06:15:00 | B27: 27.568 | C27: 23.849 | D27: 51.418
A28: 2024-01-01T06:30:00 | B28: 29.664 | C28: 23.585 | D28: 53.248
A29: 2024-01-01T06:45:00 | B29: 28.827 | C29: 24.114 | D29: 52.940
A30: 2024-01-01T07:00:00 | B30: 27.492 | C30: 24.776 | D30: 52.267
A31: 2024-01-01T07:15:00 | B31: 26.488 | C31: 25.172 | D31: 51.660
A32: 2024-01-01T07:30:00 | B32: 29.223 | C32: 25.966 | D32: 55.189
A33: 2024-01-01T07:45:00 | B33: 32.321 | C33: 25.437 | D33: 57.758
A34: 2024-01-01T08:00:00 | B34: 32.476 | C34: 25.834 | D34: 58.311
A35: 2024-01-01T08:15:00 | B35: 32.033 | C35: 26.759 | D35: 58.792
A36: 2024-01-01T08:30:00 | B36: 31.370 | C36: 26.097 | D36: 57.467
A37: 2024-01-01T08:45:00 | B37: 29.273 | C37: 25.302 | D37: 54.575
A38: 2024-01-01T09:00:00 | B38: 30.267 | C38: 23.448 | D38: 53.715
A39: 2024-01-01T09:15:00 | B39: 29.935 | C39: 22.786 | D39: 52.721
A40: 2024-01-01T09:30:00 | B40: 28.608 | C40: 22.124 | D40: 50.732
A41: 2024-01-01T09:45:00 | B41: 27.945 | C41: 20.800 | D41: 48.744
A42: 2024-01-01T10:00:00 | B42: 25.513 | C42: 20.536 | D42: 46.049
A43: 2024-01-01T10:15:00 | B43: 21.883 | C43: 20.270 | D43: 42.153
A44: 2024-01-01T10:30:00 | B44: 20.781 | C44: 19.607 | D44: 40.389
A45: 2024-01-01T10:45:00 | B45: 20.094 | C45: 18.946 | D45: 39.040
A46: 2024-01-01T11:00:00 | B46: 19.666 | C46: 18.814 | D46: 38.481
A47: 2024-01-01T11:15:00 | B47: 17.620 | C47: 18.417 | D47: 36.037
A48: 2024-01-01T11:30:00 | B48: 17.039 | C48: 18.814 | D48: 35.853
A49: 2024-01-01T11:45:00 | B49: 16.111 | C49: 18.152 | D49: 34.263
A50: 2024-01-01T12:00:00 | B50: 16.435 | C50: 17.622 | D50: 34.057
A51: 2024-01-01T12:15:00 | B51: 16.814 | C51: 18.152 | D51: 34.966
A52: 2024-01-01T12:30:00 | B52: 16.923 | C52: 17.887 | D52: 34.809
A53: 2024-01-01T12:45:00 | B53: 15.814 | C53: 17.886 | D53: 33.701
A54: 2024-01-01T13:00:00 | B54: 13.464 | C54: 18.020 | D54: 31.484
A55: 2024-01-01T13:15:00 | B55: 12.263 | C55: 18.531 | D55: 30.794
A56: 2024-01-01T13:30:00 | B56: 10.414 | C56: 16.557 | D56: 26.971
A57: 2024-01-01T13:45:00 | B57: 10.323 | C57: 15.953 | D57: 26.276
A58: 2024-01-01T14:00:00 | B58: 10.512 | C58: 12.111 | D58: 22.623
A59: 2024-01-01T14:15:00 | B59: 11.289 | C59: 11.319 | D59: 22.607
A60: 2024-01-01T14:30:00 | B60: 8.928 | C60: 5.631 | D60: 14.559
A61: 2024-01-01T14:45:00 | B61: 9.184 | C61: 4.068 | D61: 13.253
A62: 2024-01-01T15:00:00 | B62: 9.038 | C62: 10.521 | D62: 19.559
A63: 2024-01-01T15:15:00 | B63: 8.680 | C63: 7.454 | D63: 16.134
A64: 2024-01-01T15:30:00 | B64: 10.771 | C64: 6.447 | D64: 17.218
A65: 2024-01-01T15:45:00 | B65: 7.063 | C65: 4.776 | D65: 11.840
A66: 2024-01-01T16:00:00 | B66: 3.640 | C66: 3.203 | D66: 6.843
A67: 2024-01-01T16:15:00 | B67: 1.986 | C67: 1.287 | D67: 3.273
A68: 2024-01-01T16:30:00 | B68: 5.073 | C68: 0.006 | D68: 5.079
A69: 2024-01-01T16:45:00 | B69: 7.664 | C69: 0.001 | D69: 7.665
A70: 2024-01-01T17:00:00 | B70: 7.910 | C70: 0.001 | D70: 7.911
A71: 2024-01-01T17:15:00 | B71: 7.781 | C71: 0.001 | D71: 7.782
A72: 2024-01-01T17:30:00 | B72: 9.078 | C72: 0.001 | D72: 9.078
A73: 2024-01-01T17:45:00 | B73: 7.543 | C73: 0.001 | D73: 7.544
A74: 2024-01-01T18:00:00 | B74: 4.280 | C74: 0.000 | D74: 4.280
A75: 2024-01-01T18:15:00 | B75: 4.852 | C75: 0.000 | D75: 4.852
A76: 2024-01-01T18:30:00 | B76: 8.606 | C76: 0.917 | D76: 9.523
A77: 2024-01-01T18:45:00 | B77: 9.182 | C77: 1.990 | D77: 11.172
A78: 2024-01-01T19:00:00 | B78: 5.956 | C78: 0.000 | D78: 5.956
A79: 2024-01-01T19:15:00 | B79: 6.268 | C79: 0.000 | D79: 6.268
A80: 2024-01-01T19:30:00 | B80: 10.277 | C80: 0.000 | D80: 10.277
A81: 2024-01-01T19:45:00 | B81: 11.373 | C81: 0.000 | D81: 11.373
A82: 2024-01-01T20:00:00 | B82: 8.144 | C82: 0.000 | D82: 8.144
A83: 2024-01-01T20:15:00 | B83: 7.858 | C83: 0.000 | D83: 7.858
A84: 2024-01-01T20:30:00 | B84: 8.594 | C84: 0.000 | D84: 8.594
A85: 2024-01-01T20:45:00 | B85: 8.718 | C85: 0.000 | D85: 8.718
A86: 2024-01-01T21:00:00 | B86: 7.212 | C86: 0.000 | D86: 7.212
A87: 2024-01-01T21:15:00 | B87: 9.837 | C87: 0.000 | D87: 9.837
A88: 2024-01-01T21:30:00 | B88: 13.179 | C88: 0.000 | D88: 13.179
A89: 2024-01-01T21:45:00 | B89: 10.276 | C89: 0.000 | D89: 10.276
A90: 2024-01-01T22:00:00 | B90: 6.010 | C90: 0.000 | D90: 6.010
A91: 2024-01-01T22:15:00 | B91: 1.693 | C91: 0.000 | D91: 1.693
A92: 2024-01-01T22:30:00 | B92: 4.296 | C92: 0.000 | D92: 4.296
A93: 2024-01-01T22:45:00 | B93: 8.724 | C93: 0.000 | D93: 8.724
A94: 2024-01-01T23:00:00 | B94: 11.512 | C94: 0.000 | D94: 11.512
A95: 2024-01-01T23:15:00 | B95: 16.578 | C95: 0.000 | D95: 16.578
A96: 2024-01-01T23:30:00 | B96: 15.502 | C96: 0.000 | D96: 15.502
A97: 2024-01-01T23:45:00 | B97: 18.048 | C97: 0.000 | D97: 18.048
A98: 2024-01-02 | B98: 19.548 | C98: 0.000 | D98: 19.548
A99: 2024-01-02T00:15:00 | B99: 21.141 | C99: 0.000 | D99: 21.141
A100: 2024-01-02T00:30:00 | B100: 21.890 | C100: 0.000 | D100: 21.890
A101: 2024-01-02T00:45:00 | B101: 22.703 | C101: 0.000 | D101: 22.703
A102: 2024-01-02T01:00:00 | B102: 21.435 | C102: 0.000 | D102: 21.435
A103: 2024-01-02T01:15:00 | B103: 21.045 | C103: 0.000 | D103: 21.045
A104: 2024-01-02T01:30:00 | B104: 18.672 | C104: 0.000 | D104: 18.672
A105: 2024-01-02T01:45:00 | B105: 17.699 | C105: 0.000 | D105: 17.699
A106: 2024-01-02T02:00:00 | B106: 21.797 | C106: 0.000 | D106: 21.797
A107: 2024-01-02T02:15:00 | B107: 21.587 | C107: 0.000 | D107: 21.587
A108: 2024-01-02T02:30:00 | B108: 17.635 | C108: 0.000 | D108: 17.635
A109: 2024-01-02T02:45:00 | B109: 21.687 | C109: 0.000 | D109: 21.687
A110: 2024-01-02T03:00:00 | B110: 22.514 | C110: 0.000 | D110: 22.514
A111: 2024-01-02T03:15:00 | B111: 22.575 | C111: 0.000 | D111: 22.575
A112: 2024-01-02T03:30:00 | B112: 22.841 | C112: 0.000 | D112: 22.841
A113: 2024-01-02T03:45:00 | B113: 22.963 | C113: 0.000 | D113: 22.963
A114: 2024-01-02T04:00:00 | B114: 23.210 | C114: 0.000 | D114: 23.210
A115: 2024-01-02T04:15:00 | B115: 23.399 | C115: 0.000 | D115: 23.399
A116: 2024-01-02T04:30:00 | B116: 22.614 | C116: 0.000 | D116: 22.614
A117: 2024-01-02T04:45:00 | B117: 22.492 | C117: 0.000 | D117: 22.492
A118: 2024-01-02T05:00:00 | B118: 23.109 | C118: 0.000 | D118: 23.109
A119: 2024-01-02T05:15:00 | B119: 22.926 | C119: 0.000 | D119: 22.926
A120: 2024-01-02T05:30:00 | B120: 23.287 | C120: 0.000 | D120: 23.287
A121: 2024-01-02T05:45:00 | B121: 23.161 | C121: 0.000 | D121: 23.161
A122: 2024-01-02T06:00:00 | B122: 26.081 | C122: 11.987 | D122: 38.068
A123: 2024-01-02T06:15:00 | B123: 22.951 | C123: 12.136 | D123: 35.087
A124: 2024-01-02T06:30:00 | B124: 23.605 | C124: 19.149 | D124: 42.754
A125: 2024-01-02T06:45:00 | B125: 24.298 | C125: 19.716 | D125: 44.013
A126: 2024-01-02T07:00:00 | B126: 26.982 | C126: 23.645 | D126: 50.627
A127: 2024-01-02T07:15:00 | B127: 28.278 | C127: 23.521 | D127: 51.799
A128: 2024-01-02T07:30:00 | B128: 25.957 | C128: 25.536 | D128: 51.493
A129: 2024-01-02T07:45:00 | B129: 25.514 | C129: 25.272 | D129: 50.786
A130: 2024-01-02T08:00:00 | B130: 24.737 | C130: 25.572 | D130: 50.309
A131: 2024-01-02T08:15:00 | B131: 23.632 | C131: 25.970 | D131: 49.601
A132: 2024-01-02T08:30:00 | B132: 22.638 | C132: 25.307 | D132: 47.944
A133: 2024-01-02T08:45:00 | B133: 22.417 | C133: 25.439 | D133: 47.856
A134: 2024-01-02T09:00:00 | B134: 22.086 | C134: 25.837 | D134: 47.922
A135: 2024-01-02T09:15:00 | B135: 20.870 | C135: 26.764 | D135: 47.634
A136: 2024-01-02T09:30:00 | B136: 20.208 | C136: 26.896 | D136: 47.104
A137: 2024-01-02T09:45:00 | B137: 23.079 | C137: 25.969 | D137: 49.048
A138: 2024-01-02T10:00:00 | B138: 20.430 | C138: 25.439 | D138: 45.869
A139: 2024-01-02T10:15:00 | B139: 20.429 | C139: 25.042 | D139: 45.470
A140: 2024-01-02T10:30:00 | B140: 19.656 | C140: 25.307 | D140: 44.963
A141: 2024-01-02T10:45:00 | B141: 20.098 | C141: 23.717 | D141: 43.814
A142: 2024-01-02T11:00:00 | B142: 20.978 | C142: 23.981 | D142: 44.959
A143: 2024-01-02T11:15:00 | B143: 19.433 | C143: 23.452 | D143: 42.885
A144: 2024-01-02T11:30:00 | B144: 19.213 | C144: 22.922 | D144: 42.135
A145: 2024-01-02T11:45:00 | B145: 18.772 | C145: 20.402 | D145: 39.174
A146: 2024-01-02T12:00:00 | B146: 19.212 | C146: 17.002 | D146: 36.215
A147: 2024-01-02T12:15:00 | B147: 19.544 | C147: 15.231 | D147: 34.774
A148: 2024-01-02T12:30:00 | B148: 20.648 | C148: 12.911 | D148: 33.559
A149: 2024-01-02T12:45:00 | B149: 18.551 | C149: 9.998 | D149: 28.549
A150: 2024-01-02T13:00:00 | B150: 18.550 | C150: 6.988 | D150: 25.538
A151: 2024-01-02T13:15:00 | B151: 18.413 | C151: 3.903 | D151: 22.316
A152: 2024-01-02T13:30:00 | B152: 17.833 | C152: 3.604 | D152: 21.436
A153: 2024-01-02T13:45:00 | B153: 17.443 | C153: 2.555 | D153: 19.998
A154: 2024-01-02T14:00:00 | B154: 17.119 | C154: 0.223 | D154: 17.343
A155: 2024-01-02T14:15:00 | B155: 17.333 | C155: 0.794 | D155: 18.127
A156: 2024-01-02T14:30:00 | B156: 14.364 | C156: 3.782 | D156: 18.146
A157: 2024-01-02T14:45:00 | B157: 13.630 | C157: 4.279 | D157: 17.909
A158: 2024-01-02T15:00:00 | B158: 14.767 | C158: 3.889 | D158: 18.656
A159: 2024-01-02T15:15:00 | B159: 14.311 | C159: 7.108 | D159: 21.420
A160: 2024-01-02T15:30:00 | B160: 13.322 | C160: 10.093 | D160: 23.416
A161: 2024-01-02T15:45:00 | B161: 15.275 | C161: 12.218 | D161: 27.493
A162: 2024-01-02T16:00:00 | B162: 18.130 | C162: 11.880 | D162: 30.010
A163: 2024-01-02T16:15:00 | B163: 18.010 | C163: 11.818 | D163: 29.828
A164: 2024-01-02T16:30:00 | B164: 17.150 | C164: 14.050 | D164: 31.200
A165: 2024-01-02T16:45:00 | B165: 16.085 | C165: 17.767 | D165: 33.852
A166: 2024-01-02T17:00:00 | B166: 17.607 | C166: 20.728 | D166: 38.335
A167: 2024-01-02T17:15:00 | B167: 17.675 | C167: 22.390 | D167: 40.066
A168: 2024-01-02T17:30:00 | B168: 17.785 | C168: 23.319 | D168: 41.104
A169: 2024-01-02T17:45:00 | B169: 18.116 | C169: 22.922 | D169: 41.038
A170: 2024-01-02T18:00:00 | B170: 18.446 | C170: 23.187 | D170: 41.633
A171: 2024-01-02T18:15:00 | B171: 19.219 | C171: 23.849 | D171: 43.068
A172: 2024-01-02T18:30:00 | B172: 20.323 | C172: 24.379 | D172: 44.702
A173: 2024-01-02T18:45:00 | B173: 20.102 | C173: 25.042 | D173: 45.144
A174: 2024-01-02T19:00:00 | B174: 20.434 | C174: 25.174 | D174: 45.608
A175: 2024-01-02T19:15:00 | B175: 20.323 | C175: 24.644 | D175: 44.966
A176: 2024-01-02T19:30:00 | B176: 20.875 | C176: 24.246 | D176: 45.121
A177: 2024-01-02T19:45:00 | B177: 21.759 | C177: 24.644 | D177: 46.403
A178: 2024-01-02T20:00:00 | B178: 20.876 | C178: 26.102 | D178: 46.978
A179: 2024-01-02T20:15:00 | B179: 21.317 | C179: 25.704 | D179: 47.021
A180: 2024-01-02T20:30:00 | B180: 21.758 | C180: 26.234 | D180: 47.992
A181: 2024-01-02T20:45:00 | B181: 22.090 | C181: 26.235 | D181: 48.324
A182: 2024-01-02T21:00:00 | B182: 22.531 | C182: 25.705 | D182: 48.235
A183: 2024-01-02T21:15:00 | B183: 22.641 | C183: 24.910 | D183: 47.551
A184: 2024-01-02T21:30:00 | B184: 23.855 | C184: 24.644 | D184: 48.499
A185: 2024-01-02T21:45:00 | B185: 24.408 | C185: 24.379 | D185: 48.787
A186: 2024-01-02T22:00:00 | B186: 24.741 | C186: 24.512 | D186: 49.253
A187: 2024-01-02T22:15:00 | B187: 25.074 | C187: 23.320 | D187: 48.394
A188: 2024-01-02T22:30:00 | B188: 26.510 | C188: 22.657 | D188: 49.167
A189: 2024-01-02T22:45:00 | B189: 25.626 | C189: 22.127 | D189: 47.753
A190: 2024-01-02T23:00:00 | B190: 26.732 | C190: 20.883 | D190: 47.615
A191: 2024-01-02T23:15:00 | B191: 27.615 | C191: 20.925 | D191: 48.541
A192: 2024-01-02T23:30:00 | B192: 29.051 | C192: 24.823 | D192: 53.874
A193: 2024-01-02T23:45:00 | B193: 27.785 | C193: 25.439 | D193: 53.224
A194: 2024-01-03 | B194: 23.590 | C194: 25.704 | D194: 49.294
A195: 2024-01-03T00:15:00 | B195: 22.913 | C195: 24.189 | D195: 47.102
A196: 2024-01-03T00:30:00 | B196: 23.887 | C196: 20.680 | D196: 44.567
A197: 2024-01-03T00:45:00 | B197: 24.460 | C197: 18.371 | D197: 42.831
A198: 2024-01-03T01:00:00 | B198: 24.623 | C198: 18.058 | D198: 42.681
A199: 2024-01-03T01:15:00 | B199: 24.057 | C199: 21.326 | D199: 45.383
A200: 2024-01-03T01:30:00 | B200: 24.380 | C200: 25.443 | D200: 49.823
... 4300 more rows

Sheet ICESWC
A1: DateTime | B1: Moyle Savings (tCO2) | C1: EWIC Savings (tCO2) | D1: AI Interconnector Savings (tCO2)
A2: 2024-01-01 | B2: =ICEIEWC!B2-ICEGB!B2 -> 0.625 | C2: =ICEIEWC!C2-ICEGB!C2 -> -1.806 | D2: =B2+C2 -> -1.180
A3: 2024-01-01T00:15:00 | B3: =ICEIEWC!B3-ICEGB!B3 -> -1.045 | C3: =ICEIEWC!C3-ICEGB!C3 -> -1.482 | D3: =B3+C3 -> -2.527
A4: 2024-01-01T00:30:00 | B4: =ICEIEWC!B4-ICEGB!B4 -> -1.450 | C4: =ICEIEWC!C4-ICEGB!C4 -> -0.284 | D4: -1.734
A5: 2024-01-01T00:45:00 | B5: =ICEIEWC!B5-ICEGB!B5 -> -0.447 | C5: =ICEIEWC!C5-ICEGB!C5 -> -0.000 | D5: -0.447
A6: 2024-01-01T01:00:00 | B6: =ICEIEWC!B6-ICEGB!B6 -> -1.364 | C6: =ICEIEWC!C6-ICEGB!C6 -> -0.000 | D6: -1.364
A7: 2024-01-01T01:15:00 | B7: =ICEIEWC!B7-ICEGB!B7 -> 1.386 | C7: =ICEIEWC!C7-ICEGB!C7 -> -0.072 | D7: 1.314
A8: 2024-01-01T01:30:00 | B8: =ICEIEWC!B8-ICEGB!B8 -> 2.942 | C8: =ICEIEWC!C8-ICEGB!C8 -> -1.035 | D8: 1.907
A9: 2024-01-01T01:45:00 | B9: =ICEIEWC!B9-ICEGB!B9 -> 7.877 | C9: =ICEIEWC!C9-ICEGB!C9 -> -1.969 | D9: 5.909
A10: 2024-01-01T02:00:00 | B10: =ICEIEWC!B10-ICEGB!B10 -> 9.081 | C10: =ICEIEWC!C10-ICEGB!C10 -> -1.523 | D10: 7.558
A11: 2024-01-01T02:15:00 | B11: =ICEIEWC!B11-ICEGB!B11 -> 9.304 | C11: =ICEIEWC!C11-ICEGB!C11 -> -2.566 | D11: 6.738
A12: 2024-01-01T02:30:00 | B12: =ICEIEWC!B12-ICEGB!B12 -> 12.294 | C12: =ICEIEWC!C12-ICEGB!C12 -> -3.740 | D12: 8.554
A13: 2024-01-01T02:45:00 | B13: =ICEIEWC!B13-ICEGB!B13 -> 12.441 | C13: =ICEIEWC!C13-ICEGB!C13 -> -4.995 | D13: 7.446
A14: 2024-01-01T03:00:00 | B14: =ICEIEWC!B14-ICEGB!B14 -> 13.031 | C14: =ICEIEWC!C14-ICEGB!C14 -> -5.126 | D14: 7.905
A15: 2024-01-01T03:15:00 | B15: =ICEIEWC!B15-ICEGB!B15 -> 13.284 | C15: =ICEIEWC!C15-ICEGB!C15 -> -6.324 | D15: 6.960
A16: 2024-01-01T03:30:00 | B16: =ICEIEWC!B16-ICEGB!B16 -> 16.495 | C16: =ICEIEWC!C16-ICEGB!C16 -> -6.881 | D16: 9.614
A17: 2024-01-01T03:45:00 | B17: =ICEIEWC!B17-ICEGB!B17 -> 16.728 | C17: =ICEIEWC!C17-ICEGB!C17 -> -5.536 | D17: 11.192
A18: 2024-01-01T04:00:00 | B18: =ICEIEWC!B18-ICEGB!B18 -> 19.207 | C18: =ICEIEWC!C18-ICEGB!C18 -> -4.403 | D18: 14.804
A19: 2024-01-01T04:15:00 | B19: =ICEIEWC!B19-ICEGB!B19 -> 19.526 | C19: =ICEIEWC!C19-ICEGB!C19 -> -5.244 | D19: 14.282
A20: 2024-01-01T04:30:00 | B20: =ICEIEWC!B20-ICEGB!B20 -> 19.113 | C20: =ICEIEWC!C20-ICEGB!C20 -> 0.680 | D20: 19.793
A21: 2024-01-01T04:45:00 | B21: =ICEIEWC!B21-ICEGB!B21 -> 18.688 | C21: =ICEIEWC!C21-ICEGB!C21 -> 1.672 | D21: 20.360
A22: 2024-01-01T05:00:00 | B22: =ICEIEWC!B22-ICEGB!B22 -> 20.036 | C22: =ICEIEWC!C22-ICEGB!C22 -> 5.998 | D22: 26.034
A23: 2024-01-01T05:15:00 | B23: =ICEIEWC!B23-ICEGB!B23 -> 20.223 | C23: =ICEIEWC!C23-ICEGB!C23 -> 7.834 | D23: 28.057
A24: 2024-01-01T05:30:00 | B24: =ICEIEWC!B24-ICEGB!B24 -> 20.437 | C24: =ICEIEWC!C24-ICEGB!C24 -> 12.590 | D24: 33.027
A25: 2024-01-01T05:45:00 | B25: =ICEIEWC!B25-ICEGB!B25 -> 20.049 | C25: =ICEIEWC!C25-ICEGB!C25 -> 12.712 | D25: 32.762
A26: 2024-01-01T06:00:00 | B26: =ICEIEWC!B26-ICEGB!B26 -> 25.538 | C26: =ICEIEWC!C26-ICEGB!C26 -> 15.104 | D26: 40.642
A27: 2024-01-01T06:15:00 | B27: =ICEIEWC!B27-ICEGB!B27 -> 22.555 | C27: =ICEIEWC!C27-ICEGB!C27 -> 15.899 | D27: 38.455
A28: 2024-01-01T06:30:00 | B28: =ICEIEWC!B28-ICEGB!B28 -> 24.399 | C28: =ICEIEWC!C28-ICEGB!C28 -> 15.237 | D28: 39.637
A29: 2024-01-01T06:45:00 | B29: =ICEIEWC!B29-ICEGB!B29 -> 23.563 | C29: =ICEIEWC!C29-ICEGB!C29 -> 15.767 | D29: 39.329
A30: 2024-01-01T07:00:00 | B30: =ICEIEWC!B30-ICEGB!B30 -> 22.394 | C30: =ICEIEWC!C30-ICEGB!C30 -> 16.694 | D30: 39.088
A31: 2024-01-01T07:15:00 | B31: =ICEIEWC!B31-ICEGB!B31 -> 21.391 | C31: =ICEIEWC!C31-ICEGB!C31 -> 17.091 | D31: 38.481
A32: 2024-01-01T07:30:00 | B32: =ICEIEWC!B32-ICEGB!B32 -> 23.525 | C32: =ICEIEWC!C32-ICEGB!C32 -> 17.752 | D32: 41.278
A33: 2024-01-01T07:45:00 | B33: =ICEIEWC!B33-ICEGB!B33 -> 25.619 | C33: =ICEIEWC!C33-ICEGB!C33 -> 17.223 | D33: 42.842
A34: 2024-01-01T08:00:00 | B34: =ICEIEWC!B34-ICEGB!B34 -> 26.290 | C34: =ICEIEWC!C34-ICEGB!C34 -> 18.415 | D34: 44.705
A35: 2024-01-01T08:15:00 | B35: =ICEIEWC!B35-ICEGB!B35 -> 25.847 | C35: =ICEIEWC!C35-ICEGB!C35 -> 19.341 | D35: 45.188
A36: 2024-01-01T08:30:00 | B36: =ICEIEWC!B36-ICEGB!B36 -> 25.958 | C36: =ICEIEWC!C36-ICEGB!C36 -> 19.606 | D36: 45.563
A37: 2024-01-01T08:45:00 | B37: =ICEIEWC!B37-ICEGB!B37 -> 23.860 | C37: =ICEIEWC!C37-ICEGB!C37 -> 18.811 | D37: 42.671
A38: 2024-01-01T09:00:00 | B38: =ICEIEWC!B38-ICEGB!B38 -> 24.965 | C38: =ICEIEWC!C38-ICEGB!C38 -> 17.089 | D38: 42.054
A39: 2024-01-01T09:15:00 | B39: =ICEIEWC!B39-ICEGB!B39 -> 24.633 | C39: =ICEIEWC!C39-ICEGB!C39 -> 16.427 | D39: 41.060
A40: 2024-01-01T09:30:00 | B40: =ICEIEWC!B40-ICEGB!B40 -> 23.085 | C40: =ICEIEWC!C40-ICEGB!C40 -> 15.500 | D40: 38.586
A41: 2024-01-01T09:45:00 | B41: =ICEIEWC!B41-ICEGB!B41 -> 22.422 | C41: =ICEIEWC!C41-ICEGB!C41 -> 14.176 | D41: 36.598
A42: 2024-01-01T10:00:00 | B42: =ICEIEWC!B42-ICEGB!B42 -> 20.206 | C42: =ICEIEWC!C42-ICEGB!C42 -> 13.646 | D42: 33.853
A43: 2024-01-01T10:15:00 | B43: =ICEIEWC!B43-ICEGB!B43 -> 17.349 | C43: =ICEIEWC!C43-ICEGB!C43 -> 13.381 | D43: 30.730
A44: 2024-01-01T10:30:00 | B44: =ICEIEWC!B44-ICEGB!B44 -> 15.886 | C44: =ICEIEWC!C44-ICEGB!C44 -> 12.056 | D44: 27.942
A45: 2024-01-01T10:45:00 | B45: =ICEIEWC!B45-ICEGB!B45 -> 15.199 | C45: =ICEIEWC!C45-ICEGB!C45 -> 11.394 | D45: 26.593
A46: 2024-01-01T11:00:00 | B46: =ICEIEWC!B46-ICEGB!B46 -> 14.170 | C46: =ICEIEWC!C46-ICEGB!C46 -> 10.335 | D46: 24.505
A47: 2024-01-01T11:15:00 | B47: =ICEIEWC!B47-ICEGB!B47 -> 12.586 | C47: =ICEIEWC!C47-ICEGB!C47 -> 9.937 | D47: 22.523
A48: 2024-01-01T11:30:00 | B48: =ICEIEWC!B48-ICEGB!B48 -> 11.460 | C48: =ICEIEWC!C48-ICEGB!C48 -> 9.010 | D48: 20.469
A49: 2024-01-01T11:45:00 | B49: =ICEIEWC!B49-ICEGB!B49 -> 10.514 | C49: =ICEIEWC!C49-ICEGB!C49 -> 8.347 | D49: 18.861
A50: 2024-01-01T12:00:00 | B50: =ICEIEWC!B50-ICEGB!B50 -> 9.733 | C50: =ICEIEWC!C50-ICEGB!C50 -> 6.492 | D50: 16.226
A51: 2024-01-01T12:15:00 | B51: =ICEIEWC!B51-ICEGB!B51 -> 10.088 | C51: =ICEIEWC!C51-ICEGB!C51 -> 7.022 | D51: 17.111
A52: 2024-01-01T12:30:00 | B52: =ICEIEWC!B52-ICEGB!B52 -> 9.201 | C52: =ICEIEWC!C52-ICEGB!C52 -> 5.432 | D52: 14.633
A53: 2024-01-01T12:45:00 | B53: =ICEIEWC!B53-ICEGB!B53 -> 8.268 | C53: =ICEIEWC!C53-ICEGB!C53 -> 5.432 | D53: 13.701
A54: 2024-01-01T13:00:00 | B54: =ICEIEWC!B54-ICEGB!B54 -> 6.463 | C54: =ICEIEWC!C54-ICEGB!C54 -> 4.240 | D54: 10.703
A55: 2024-01-01T13:15:00 | B55: =ICEIEWC!B55-ICEGB!B55 -> 5.515 | C55: =ICEIEWC!C55-ICEGB!C55 -> 4.765 | D55: 10.280
A56: 2024-01-01T13:30:00 | B56: =ICEIEWC!B56-ICEGB!B56 -> 4.285 | C56: =ICEIEWC!C56-ICEGB!C56 -> 2.900 | D56: 7.185
A57: 2024-01-01T13:45:00 | B57: =ICEIEWC!B57-ICEGB!B57 -> 4.341 | C57: =ICEIEWC!C57-ICEGB!C57 -> 3.077 | D57: 7.418
A58: 2024-01-01T14:00:00 | B58: =ICEIEWC!B58-ICEGB!B58 -> 3.844 | C58: =ICEIEWC!C58-ICEGB!C58 -> -3.081 | D58: 0.762
A59: 2024-01-01T14:15:00 | B59: =ICEIEWC!B59-ICEGB!B59 -> 4.491 | C59: =ICEIEWC!C59-ICEGB!C59 -> -3.572 | D59: 0.919
A60: 2024-01-01T14:30:00 | B60: =ICEIEWC!B60-ICEGB!B60 -> 0.911 | C60: =ICEIEWC!C60-ICEGB!C60 -> -7.494 | D60: -6.583
A61: 2024-01-01T14:45:00 | B61: =ICEIEWC!B61-ICEGB!B61 -> 1.149 | C61: =ICEIEWC!C61-ICEGB!C61 -> -7.516 | D61: -6.366
A62: 2024-01-01T15:00:00 | B62: =ICEIEWC!B62-ICEGB!B62 -> 2.447 | C62: =ICEIEWC!C62-ICEGB!C62 -> -1.282 | D62: 1.165
A63: 2024-01-01T15:15:00 | B63: =ICEIEWC!B63-ICEGB!B63 -> 2.064 | C63: =ICEIEWC!C63-ICEGB!C63 -> -2.394 | D63: -0.330
A64: 2024-01-01T15:30:00 | B64: =ICEIEWC!B64-ICEGB!B64 -> 4.117 | C64: =ICEIEWC!C64-ICEGB!C64 -> -1.446 | D64: 2.671
A65: 2024-01-01T15:45:00 | B65: =ICEIEWC!B65-ICEGB!B65 -> 2.582 | C65: =ICEIEWC!C65-ICEGB!C65 -> -0.904 | D65: 1.678
A66: 2024-01-01T16:00:00 | B66: =ICEIEWC!B66-ICEGB!B66 -> 1.391 | C66: =ICEIEWC!C66-ICEGB!C66 -> -0.264 | D66: 1.127
A67: 2024-01-01T16:15:00 | B67: =ICEIEWC!B67-ICEGB!B67 -> 0.705 | C67: =ICEIEWC!C67-ICEGB!C67 -> 0.032 | D67: =B67+C67 -> 0.737
A68: 2024-01-01T16:30:00 | B68: =ICEIEWC!B68-ICEGB!B68 -> 1.720 | C68: =ICEIEWC!C68-ICEGB!C68 -> 0.000 | D68: 1.720
A69: 2024-01-01T16:45:00 | B69: =ICEIEWC!B69-ICEGB!B69 -> 2.451 | C69: =ICEIEWC!C69-ICEGB!C69 -> 0.000 | D69: 2.451
A70: 2024-01-01T17:00:00 | B70: =ICEIEWC!B70-ICEGB!B70 -> 2.622 | C70: =ICEIEWC!C70-ICEGB!C70 -> -0.000 | D70: 2.622
A71: 2024-01-01T17:15:00 | B71: =ICEIEWC!B71-ICEGB!B71 -> 2.488 | C71: =ICEIEWC!C71-ICEGB!C71 -> 0.000 | D71: 2.488
A72: 2024-01-01T17:30:00 | B72: =ICEIEWC!B72-ICEGB!B72 -> 3.201 | C72: =ICEIEWC!C72-ICEGB!C72 -> 0.000 | D72: 3.201
A73: 2024-01-01T17:45:00 | B73: =ICEIEWC!B73-ICEGB!B73 -> 2.850 | C73: =ICEIEWC!C73-ICEGB!C73 -> -0.000 | D73: 2.850
A74: 2024-01-01T18:00:00 | B74: =ICEIEWC!B74-ICEGB!B74 -> 1.828 | C74: =ICEIEWC!C74-ICEGB!C74 -> 0.000 | D74: 1.828
A75: 2024-01-01T18:15:00 | B75: =ICEIEWC!B75-ICEGB!B75 -> 2.057 | C75: =ICEIEWC!C75-ICEGB!C75 -> 0.000 | D75: 2.057
A76: 2024-01-01T18:30:00 | B76: =ICEIEWC!B76-ICEGB!B76 -> 4.144 | C76: =ICEIEWC!C76-ICEGB!C76 -> 0.045 | D76: 4.188
A77: 2024-01-01T18:45:00 | B77: =ICEIEWC!B77-ICEGB!B77 -> 4.568 | C77: =ICEIEWC!C77-ICEGB!C77 -> 0.040 | D77: 4.607
A78: 2024-01-01T19:00:00 | B78: =ICEIEWC!B78-ICEGB!B78 -> 3.488 | C78: =ICEIEWC!C78-ICEGB!C78 -> -0.387 | D78: 3.102
A79: 2024-01-01T19:15:00 | B79: =ICEIEWC!B79-ICEGB!B79 -> 3.708 | C79: =ICEIEWC!C79-ICEGB!C79 -> -0.000 | D79: 3.707
A80: 2024-01-01T19:30:00 | B80: =ICEIEWC!B80-ICEGB!B80 -> 6.593 | C80: =ICEIEWC!C80-ICEGB!C80 -> -0.155 | D80: 6.438
A81: 2024-01-01T19:45:00 | B81: =ICEIEWC!B81-ICEGB!B81 -> 7.315 | C81: =ICEIEWC!C81-ICEGB!C81 -> -0.147 | D81: 7.168
A82: 2024-01-01T20:00:00 | B82: =ICEIEWC!B82-ICEGB!B82 -> 5.679 | C82: =ICEIEWC!C82-ICEGB!C82 -> -0.000 | D82: 5.678
A83: 2024-01-01T20:15:00 | B83: =ICEIEWC!B83-ICEGB!B83 -> 5.543 | C83: =ICEIEWC!C83-ICEGB!C83 -> -0.000 | D83: 5.542
A84: 2024-01-01T20:30:00 | B84: =ICEIEWC!B84-ICEGB!B84 -> 6.541 | C84: =ICEIEWC!C84-ICEGB!C84 -> -0.000 | D84: 6.540
A85: 2024-01-01T20:45:00 | B85: =ICEIEWC!B85-ICEGB!B85 -> 6.662 | C85: =ICEIEWC!C85-ICEGB!C85 -> -0.000 | D85: 6.662
A86: 2024-01-01T21:00:00 | B86: =ICEIEWC!B86-ICEGB!B86 -> 5.745 | C86: =ICEIEWC!C86-ICEGB!C86 -> -0.000 | D86: 5.744
A87: 2024-01-01T21:15:00 | B87: =ICEIEWC!B87-ICEGB!B87 -> 7.861 | C87: =ICEIEWC!C87-ICEGB!C87 -> -0.018 | D87: 7.843
A88: 2024-01-01T21:30:00 | B88: =ICEIEWC!B88-ICEGB!B88 -> 10.757 | C88: =ICEIEWC!C88-ICEGB!C88 -> -0.565 | D88: 10.192
A89: 2024-01-01T21:45:00 | B89: =ICEIEWC!B89-ICEGB!B89 -> 8.443 | C89: =ICEIEWC!C89-ICEGB!C89 -> -0.753 | D89: 7.690
A90: 2024-01-01T22:00:00 | B90: =ICEIEWC!B90-ICEGB!B90 -> 4.965 | C90: =ICEIEWC!C90-ICEGB!C90 -> -0.083 | D90: 4.881
A91: 2024-01-01T22:15:00 | B91: =ICEIEWC!B91-ICEGB!B91 -> 1.395 | C91: =ICEIEWC!C91-ICEGB!C91 -> -0.000 | D91: 1.395
A92: 2024-01-01T22:30:00 | B92: =ICEIEWC!B92-ICEGB!B92 -> 3.530 | C92: =ICEIEWC!C92-ICEGB!C92 -> -0.000 | D92: 3.530
A93: 2024-01-01T22:45:00 | B93: =ICEIEWC!B93-ICEGB!B93 -> 7.150 | C93: =ICEIEWC!C93-ICEGB!C93 -> -0.000 | D93: 7.150
A94: 2024-01-01T23:00:00 | B94: =ICEIEWC!B94-ICEGB!B94 -> 9.446 | C94: =ICEIEWC!C94-ICEGB!C94 -> -0.433 | D94: 9.014
A95: 2024-01-01T23:15:00 | B95: =ICEIEWC!B95-ICEGB!B95 -> 13.602 | C95: =ICEIEWC!C95-ICEGB!C95 -> -1.351 | D95: 12.251
A96: 2024-01-01T23:30:00 | B96: =ICEIEWC!B96-ICEGB!B96 -> 12.501 | C96: =ICEIEWC!C96-ICEGB!C96 -> -2.362 | D96: 10.139
A97: 2024-01-01T23:45:00 | B97: =ICEIEWC!B97-ICEGB!B97 -> 14.725 | C97: =ICEIEWC!C97-ICEGB!C97 -> -3.153 | D97: 11.572
A98: 2024-01-02 | B98: =ICEIEWC!B98-ICEGB!B98 -> 15.661 | C98: =ICEIEWC!C98-ICEGB!C98 -> -2.515 | D98: 13.147
A99: 2024-01-02T00:15:00 | B99: =ICEIEWC!B99-ICEGB!B99 -> 17.082 | C99: =ICEIEWC!C99-ICEGB!C99 -> -1.579 | D99: 15.504
A100: 2024-01-02T00:30:00 | B100: =ICEIEWC!B100-ICEGB!B100 -> 17.508 | C100: =ICEIEWC!C100-ICEGB!C100 -> -0.692 | D100: 16.815
A101: 2024-01-02T00:45:00 | B101: =ICEIEWC!B101-ICEGB!B101 -> 18.320 | C101: =ICEIEWC!C101-ICEGB!C101 -> -0.553 | D101: 17.767
A102: 2024-01-02T01:00:00 | B102: =ICEIEWC!B102-ICEGB!B102 -> 16.809 | C102: =ICEIEWC!C102-ICEGB!C102 -> -1.647 | D102: 15.161
A103: 2024-01-02T01:15:00 | B103: =ICEIEWC!B103-ICEGB!B103 -> 16.419 | C103: =ICEIEWC!C103-ICEGB!C103 -> -2.716 | D103: 13.703
A104: 2024-01-02T01:30:00 | B104: =ICEIEWC!B104-ICEGB!B104 -> 14.315 | C104: =ICEIEWC!C104-ICEGB!C104 -> -3.918 | D104: 10.398
A105: 2024-01-02T01:45:00 | B105: =ICEIEWC!B105-ICEGB!B105 -> 13.551 | C105: =ICEIEWC!C105-ICEGB!C105 -> -5.024 | D105: 8.527
A106: 2024-01-02T02:00:00 | B106: =ICEIEWC!B106-ICEGB!B106 -> 17.427 | C106: =ICEIEWC!C106-ICEGB!C106 -> -5.611 | D106: 11.817
A107: 2024-01-02T02:15:00 | B107: =ICEIEWC!B107-ICEGB!B107 -> 17.250 | C107: =ICEIEWC!C107-ICEGB!C107 -> -6.623 | D107: 10.627
A108: 2024-01-02T02:30:00 | B108: =ICEIEWC!B108-ICEGB!B108 -> 13.894 | C108: =ICEIEWC!C108-ICEGB!C108 -> -7.154 | D108: 6.739
A109: 2024-01-02T02:45:00 | B109: =ICEIEWC!B109-ICEGB!B109 -> 17.430 | C109: =ICEIEWC!C109-ICEGB!C109 -> -7.155 | D109: 10.276
A110: 2024-01-02T03:00:00 | B110: =ICEIEWC!B110-ICEGB!B110 -> 17.970 | C110: =ICEIEWC!C110-ICEGB!C110 -> -7.000 | D110: 10.970
A111: 2024-01-02T03:15:00 | B111: =ICEIEWC!B111-ICEGB!B111 -> 18.032 | C111: =ICEIEWC!C111-ICEGB!C111 -> -6.841 | D111: 11.191
A112: 2024-01-02T03:30:00 | B112: =ICEIEWC!B112-ICEGB!B112 -> 18.216 | C112: =ICEIEWC!C112-ICEGB!C112 -> -7.347 | D112: 10.869
A113: 2024-01-02T03:45:00 | B113: =ICEIEWC!B113-ICEGB!B113 -> 18.339 | C113: =ICEIEWC!C113-ICEGB!C113 -> -7.379 | D113: 10.960
A114: 2024-01-02T04:00:00 | B114: =ICEIEWC!B114-ICEGB!B114 -> 18.585 | C114: =ICEIEWC!C114-ICEGB!C114 -> -7.552 | D114: 11.033
A115: 2024-01-02T04:15:00 | B115: =ICEIEWC!B115-ICEGB!B115 -> 18.774 | C115: =ICEIEWC!C115-ICEGB!C115 -> -7.552 | D115: 11.222
A116: 2024-01-02T04:30:00 | B116: =ICEIEWC!B116-ICEGB!B116 -> 17.827 | C116: =ICEIEWC!C116-ICEGB!C116 -> -7.817 | D116: 10.010
A117: 2024-01-02T04:45:00 | B117: =ICEIEWC!B117-ICEGB!B117 -> 17.705 | C117: =ICEIEWC!C117-ICEGB!C117 -> -7.817 | D117: 9.888
A118: 2024-01-02T05:00:00 | B118: =ICEIEWC!B118-ICEGB!B118 -> 17.916 | C118: =ICEIEWC!C118-ICEGB!C118 -> -8.480 | D118: 9.436
A119: 2024-01-02T05:15:00 | B119: =ICEIEWC!B119-ICEGB!B119 -> 17.733 | C119: =ICEIEWC!C119-ICEGB!C119 -> -8.480 | D119: 9.253
A120: 2024-01-02T05:30:00 | B120: =ICEIEWC!B120-ICEGB!B120 -> 17.931 | C120: =ICEIEWC!C120-ICEGB!C120 -> -8.745 | D120: 9.186
A121: 2024-01-02T05:45:00 | B121: =ICEIEWC!B121-ICEGB!B121 -> 17.805 | C121: =ICEIEWC!C121-ICEGB!C121 -> -8.745 | D121: 9.060
A122: 2024-01-02T06:00:00 | B122: =ICEIEWC!B122-ICEGB!B122 -> 20.321 | C122: =ICEIEWC!C122-ICEGB!C122 -> 2.580 | D122: 22.901
A123: 2024-01-02T06:15:00 | B123: =ICEIEWC!B123-ICEGB!B123 -> 17.192 | C123: =ICEIEWC!C123-ICEGB!C123 -> 2.728 | D123: 19.921
A124: 2024-01-02T06:30:00 | B124: =ICEIEWC!B124-ICEGB!B124 -> 16.872 | C124: =ICEIEWC!C124-ICEGB!C124 -> 8.151 | D124: 25.024
A125: 2024-01-02T06:45:00 | B125: =ICEIEWC!B125-ICEGB!B125 -> 17.271 | C125: =ICEIEWC!C125-ICEGB!C125 -> 8.718 | D125: 25.989
A126: 2024-01-02T07:00:00 | B126: =ICEIEWC!B126-ICEGB!B126 -> 17.207 | C126: =ICEIEWC!C126-ICEGB!C126 -> 10.925 | D126: 28.132
A127: 2024-01-02T07:15:00 | B127: =ICEIEWC!B127-ICEGB!B127 -> 17.674 | C127: =ICEIEWC!C127-ICEGB!C127 -> 10.801 | D127: 28.475
A128: 2024-01-02T07:30:00 | B128: =ICEIEWC!B128-ICEGB!B128 -> 14.028 | C128: =ICEIEWC!C128-ICEGB!C128 -> 11.226 | D128: 25.254
A129: 2024-01-02T07:45:00 | B129: =ICEIEWC!B129-ICEGB!B129 -> 13.585 | C129: =ICEIEWC!C129-ICEGB!C129 -> 10.963 | D129: 24.548
A130: 2024-01-02T08:00:00 | B130: =ICEIEWC!B130-ICEGB!B130 -> 13.362 | C130: =ICEIEWC!C130-ICEGB!C130 -> 11.925 | D130: 25.287
A131: 2024-01-02T08:15:00 | B131: =ICEIEWC!B131-ICEGB!B131 -> 12.258 | C131: =ICEIEWC!C131-ICEGB!C131 -> 12.322 | D131: =B131+C131 -> 24.580
A132: 2024-01-02T08:30:00 | B132: =ICEIEWC!B132-ICEGB!B132 -> 10.159 | C132: =ICEIEWC!C132-ICEGB!C132 -> 10.335 | D132: 20.494
A133: 2024-01-02T08:45:00 | B133: =ICEIEWC!B133-ICEGB!B133 -> 9.939 | C133: =ICEIEWC!C133-ICEGB!C133 -> 10.467 | D133: 20.406
A134: 2024-01-02T09:00:00 | B134: =ICEIEWC!B134-ICEGB!B134 -> 8.834 | C134: =ICEIEWC!C134-ICEGB!C134 -> 9.937 | D134: 18.771
A135: 2024-01-02T09:15:00 | B135: =ICEIEWC!B135-ICEGB!B135 -> 7.619 | C135: =ICEIEWC!C135-ICEGB!C135 -> 10.865 | D135: 18.484
A136: 2024-01-02T09:30:00 | B136: =ICEIEWC!B136-ICEGB!B136 -> 5.963 | C136: =ICEIEWC!C136-ICEGB!C136 -> 9.805 | D136: 15.767
A137: 2024-01-02T09:45:00 | B137: =ICEIEWC!B137-ICEGB!B137 -> 8.834 | C137: =ICEIEWC!C137-ICEGB!C137 -> 8.877 | D137: 17.711
A138: 2024-01-02T10:00:00 | B138: =ICEIEWC!B138-ICEGB!B138 -> 5.411 | C138: =ICEIEWC!C138-ICEGB!C138 -> 7.420 | D138: 12.831
A139: 2024-01-02T10:15:00 | B139: =ICEIEWC!B139-ICEGB!B139 -> 5.411 | C139: =ICEIEWC!C139-ICEGB!C139 -> 7.022 | D139: 12.433
A140: 2024-01-02T10:30:00 | B140: =ICEIEWC!B140-ICEGB!B140 -> 4.086 | C140: =ICEIEWC!C140-ICEGB!C140 -> 6.625 | D140: 10.711
A141: 2024-01-02T10:45:00 | B141: =ICEIEWC!B141-ICEGB!B141 -> 4.528 | C141: =ICEIEWC!C141-ICEGB!C141 -> 5.035 | D141: 9.562
A142: 2024-01-02T11:00:00 | B142: =ICEIEWC!B142-ICEGB!B142 -> 4.748 | C142: =ICEIEWC!C142-ICEGB!C142 -> 4.505 | D142: 9.252
A143: 2024-01-02T11:15:00 | B143: =ICEIEWC!B143-ICEGB!B143 -> 3.202 | C143: =ICEIEWC!C143-ICEGB!C143 -> 3.975 | D143: 7.177
A144: 2024-01-02T11:30:00 | B144: =ICEIEWC!B144-ICEGB!B144 -> 3.092 | C144: =ICEIEWC!C144-ICEGB!C144 -> 3.577 | D144: 6.669
A145: 2024-01-02T11:45:00 | B145: =ICEIEWC!B145-ICEGB!B145 -> 2.650 | C145: =ICEIEWC!C145-ICEGB!C145 -> 1.429 | D145: 4.080
A146: 2024-01-02T12:00:00 | B146: =ICEIEWC!B146-ICEGB!B146 -> 2.760 | C146: =ICEIEWC!C146-ICEGB!C146 -> 0.113 | D146: 2.874
A147: 2024-01-02T12:15:00 | B147: =ICEIEWC!B147-ICEGB!B147 -> 3.092 | C147: =ICEIEWC!C147-ICEGB!C147 -> 1.135 | D147: 4.227
A148: 2024-01-02T12:30:00 | B148: =ICEIEWC!B148-ICEGB!B148 -> 3.754 | C148: =ICEIEWC!C148-ICEGB!C148 -> 0.792 | D148: 4.546
A149: 2024-01-02T12:45:00 | B149: =ICEIEWC!B149-ICEGB!B149 -> 1.656 | C149: =ICEIEWC!C149-ICEGB!C149 -> 0.727 | D149: 2.384
A150: 2024-01-02T13:00:00 | B150: =ICEIEWC!B150-ICEGB!B150 -> 1.546 | C150: =ICEIEWC!C150-ICEGB!C150 -> 0.544 | D150: 2.090
A151: 2024-01-02T13:15:00 | B151: =ICEIEWC!B151-ICEGB!B151 -> 1.534 | C151: =ICEIEWC!C151-ICEGB!C151 -> 0.346 | D151: 1.881
A152: 2024-01-02T13:30:00 | B152: =ICEIEWC!B152-ICEGB!B152 -> 1.763 | C152: =ICEIEWC!C152-ICEGB!C152 -> 0.259 | D152: 2.021
A153: 2024-01-02T13:45:00 | B153: =ICEIEWC!B153-ICEGB!B153 -> 1.445 | C153: =ICEIEWC!C153-ICEGB!C153 -> 0.140 | D153: 1.585
A154: 2024-01-02T14:00:00 | B154: =ICEIEWC!B154-ICEGB!B154 -> 1.692 | C154: =ICEIEWC!C154-ICEGB!C154 -> 0.011 | D154: 1.703
A155: 2024-01-02T14:15:00 | B155: =ICEIEWC!B155-ICEGB!B155 -> 2.324 | C155: =ICEIEWC!C155-ICEGB!C155 -> 0.030 | D155: 2.354
A156: 2024-01-02T14:30:00 | B156: =ICEIEWC!B156-ICEGB!B156 -> 1.877 | C156: =ICEIEWC!C156-ICEGB!C156 -> 0.317 | D156: 2.194
A157: 2024-01-02T14:45:00 | B157: =ICEIEWC!B157-ICEGB!B157 -> 1.713 | C157: =ICEIEWC!C157-ICEGB!C157 -> 0.311 | D157: 2.025
A158: 2024-01-02T15:00:00 | B158: =ICEIEWC!B158-ICEGB!B158 -> 2.692 | C158: =ICEIEWC!C158-ICEGB!C158 -> 0.523 | D158: 3.215
A159: 2024-01-02T15:15:00 | B159: =ICEIEWC!B159-ICEGB!B159 -> 2.208 | C159: =ICEIEWC!C159-ICEGB!C159 -> 0.992 | D159: 3.200
A160: 2024-01-02T15:30:00 | B160: =ICEIEWC!B160-ICEGB!B160 -> 1.734 | C160: =ICEIEWC!C160-ICEGB!C160 -> 1.262 | D160: 2.996
A161: 2024-01-02T15:45:00 | B161: =ICEIEWC!B161-ICEGB!B161 -> 1.829 | C161: =ICEIEWC!C161-ICEGB!C161 -> 0.631 | D161: 2.460
A162: 2024-01-02T16:00:00 | B162: =ICEIEWC!B162-ICEGB!B162 -> 2.590 | C162: =ICEIEWC!C162-ICEGB!C162 -> 0.399 | D162: 2.989
A163: 2024-01-02T16:15:00 | B163: =ICEIEWC!B163-ICEGB!B163 -> 2.099 | C163: =ICEIEWC!C163-ICEGB!C163 -> 0.909 | D163: 3.008
A164: 2024-01-02T16:30:00 | B164: =ICEIEWC!B164-ICEGB!B164 -> 2.654 | C164: =ICEIEWC!C164-ICEGB!C164 -> 1.958 | D164: 4.613
A165: 2024-01-02T16:45:00 | B165: =ICEIEWC!B165-ICEGB!B165 -> 2.242 | C165: =ICEIEWC!C165-ICEGB!C165 -> 3.013 | D165: 5.255
A166: 2024-01-02T17:00:00 | B166: =ICEIEWC!B166-ICEGB!B166 -> 2.091 | C166: =ICEIEWC!C166-ICEGB!C166 -> 3.434 | D166: 5.525
A167: 2024-01-02T17:15:00 | B167: =ICEIEWC!B167-ICEGB!B167 -> 2.099 | C167: =ICEIEWC!C167-ICEGB!C167 -> 3.710 | D167: 5.809
A168: 2024-01-02T17:30:00 | B168: =ICEIEWC!B168-ICEGB!B168 -> 2.430 | C168: =ICEIEWC!C168-ICEGB!C168 -> 4.902 | D168: 7.333
A169: 2024-01-02T17:45:00 | B169: =ICEIEWC!B169-ICEGB!B169 -> 2.762 | C169: =ICEIEWC!C169-ICEGB!C169 -> 4.505 | D169: 7.266
A170: 2024-01-02T18:00:00 | B170: =ICEIEWC!B170-ICEGB!B170 -> 3.645 | C170: =ICEIEWC!C170-ICEGB!C170 -> 5.432 | D170: 9.077
A171: 2024-01-02T18:15:00 | B171: =ICEIEWC!B171-ICEGB!B171 -> 4.418 | C171: =ICEIEWC!C171-ICEGB!C171 -> 6.095 | D171: 10.513
A172: 2024-01-02T18:30:00 | B172: =ICEIEWC!B172-ICEGB!B172 -> 5.964 | C172: =ICEIEWC!C172-ICEGB!C172 -> 7.155 | D172: 13.119
A173: 2024-01-02T18:45:00 | B173: =ICEIEWC!B173-ICEGB!B173 -> 5.744 | C173: =ICEIEWC!C173-ICEGB!C173 -> 7.817 | D173: 13.561
A174: 2024-01-02T19:00:00 | B174: =ICEIEWC!B174-ICEGB!B174 -> 6.406 | C174: =ICEIEWC!C174-ICEGB!C174 -> 8.347 | D174: 14.753
A175: 2024-01-02T19:15:00 | B175: =ICEIEWC!B175-ICEGB!B175 -> 6.296 | C175: =ICEIEWC!C175-ICEGB!C175 -> 7.817 | D175: 14.113
A176: 2024-01-02T19:30:00 | B176: =ICEIEWC!B176-ICEGB!B176 -> 7.511 | C176: =ICEIEWC!C176-ICEGB!C176 -> 8.215 | D176: 15.725
A177: 2024-01-02T19:45:00 | B177: =ICEIEWC!B177-ICEGB!B177 -> 8.394 | C177: =ICEIEWC!C177-ICEGB!C177 -> 8.612 | D177: 17.006
A178: 2024-01-02T20:00:00 | B178: =ICEIEWC!B178-ICEGB!B178 -> 8.505 | C178: =ICEIEWC!C178-ICEGB!C178 -> 11.262 | D178: 19.767
A179: 2024-01-02T20:15:00 | B179: =ICEIEWC!B179-ICEGB!B179 -> 8.947 | C179: =ICEIEWC!C179-ICEGB!C179 -> 10.864 | D179: 19.811
A180: 2024-01-02T20:30:00 | B180: =ICEIEWC!B180-ICEGB!B180 -> 10.493 | C180: =ICEIEWC!C180-ICEGB!C180 -> 12.720 | D180: 23.212
A181: 2024-01-02T20:45:00 | B181: =ICEIEWC!B181-ICEGB!B181 -> 10.824 | C181: =ICEIEWC!C181-ICEGB!C181 -> 12.720 | D181: 23.544
A182: 2024-01-02T21:00:00 | B182: =ICEIEWC!B182-ICEGB!B182 -> 11.928 | C182: =ICEIEWC!C182-ICEGB!C182 -> 12.985 | D182: 24.913
A183: 2024-01-02T21:15:00 | B183: =ICEIEWC!B183-ICEGB!B183 -> 12.039 | C183: =ICEIEWC!C183-ICEGB!C183 -> 12.190 | D183: 24.229
A184: 2024-01-02T21:30:00 | B184: =ICEIEWC!B184-ICEGB!B184 -> 14.357 | C184: =ICEIEWC!C184-ICEGB!C184 -> 13.250 | D184: 27.607
A185: 2024-01-02T21:45:00 | B185: =ICEIEWC!B185-ICEGB!B185 -> 14.910 | C185: =ICEIEWC!C185-ICEGB!C185 -> 12.985 | D185: 27.894
A186: 2024-01-02T22:00:00 | B186: =ICEIEWC!B186-ICEGB!B186 -> 16.457 | C186: =ICEIEWC!C186-ICEGB!C186 -> 14.574 | D186: 31.032
A187: 2024-01-02T22:15:00 | B187: =ICEIEWC!B187-ICEGB!B187 -> 16.790 | C187: =ICEIEWC!C187-ICEGB!C187 -> 13.382 | D187: 30.172
A188: 2024-01-02T22:30:00 | B188: =ICEIEWC!B188-ICEGB!B188 -> 18.888 | C188: =ICEIEWC!C188-ICEGB!C188 -> 13.515 | D188: 32.403
A189: 2024-01-02T22:45:00 | B189: =ICEIEWC!B189-ICEGB!B189 -> 18.004 | C189: =ICEIEWC!C189-ICEGB!C189 -> 12.985 | D189: 30.989
A190: 2024-01-02T23:00:00 | B190: =ICEIEWC!B190-ICEGB!B190 -> 18.779 | C190: =ICEIEWC!C190-ICEGB!C190 -> 11.986 | D190: 30.765
A191: 2024-01-02T23:15:00 | B191: =ICEIEWC!B191-ICEGB!B191 -> 19.662 | C191: =ICEIEWC!C191-ICEGB!C191 -> 12.825 | D191: 32.487
A192: 2024-01-02T23:30:00 | B192: =ICEIEWC!B192-ICEGB!B192 -> 21.318 | C192: =ICEIEWC!C192-ICEGB!C192 -> 15.866 | D192: 37.185
A193: 2024-01-02T23:45:00 | B193: =ICEIEWC!B193-ICEGB!B193 -> 20.634 | C193: =ICEIEWC!C193-ICEGB!C193 -> 16.164 | D193: 36.799
A194: 2024-01-03 | B194: =ICEIEWC!B194-ICEGB!B194 -> 17.735 | C194: =ICEIEWC!C194-ICEGB!C194 -> 16.562 | D194: 34.296
A195: 2024-01-03T00:15:00 | B195: =ICEIEWC!B195-ICEGB!B195 -> 17.327 | C195: =ICEIEWC!C195-ICEGB!C195 -> 15.630 | D195: =B195+C195 -> 32.956
A196: 2024-01-03T00:30:00 | B196: =ICEIEWC!B196-ICEGB!B196 -> 18.300 | C196: =ICEIEWC!C196-ICEGB!C196 -> 13.325 | D196: 31.624
A197: 2024-01-03T00:45:00 | B197: =ICEIEWC!B197-ICEGB!B197 -> 18.872 | C197: =ICEIEWC!C197-ICEGB!C197 -> 12.001 | D197: 30.873
A198: 2024-01-03T01:00:00 | B198: =ICEIEWC!B198-ICEGB!B198 -> 19.115 | C198: =ICEIEWC!C198-ICEGB!C198 -> 11.856 | D198: 30.971
A199: 2024-01-03T01:15:00 | B199: =ICEIEWC!B199-ICEGB!B199 -> 18.549 | C199: =ICEIEWC!C199-ICEGB!C199 -> 13.851 | D199: 32.400
A200: 2024-01-03T01:30:00 | B200: =ICEIEWC!B200-ICEGB!B200 -> 19.034 | C200: =ICEIEWC!C200-ICEGB!C200 -> 17.004 | D200: 36.039
... 4300 more rows

Sheet ICESWCVWC
A1: DateTime | B1: Moyle Savings (tCO2) | C1: EWIC Savings (tCO2) | D1: AI Interconnector Savings (tCO2)
A2: 2024-01-01 | B2: =ICEIE!B2-ICEIEWC!B2 -> 10.821 | C2: =ICEIE!C2-ICEIEWC!C2 -> 3.187 | D2: =ICEIE!D2-ICEIEWC!D2 -> 14.007
A3: 2024-01-01T00:15:00 | B3: =ICEIE!B3-ICEIEWC!B3 -> 11.484 | C3: =ICEIE!C3-ICEIEWC!C3 -> 2.812 | D3: =ICEIE!D3-ICEIEWC!D3 -> 14.296
A4: 2024-01-01T00:30:00 | B4: =ICEIE!B4-ICEIEWC!B4 -> 7.312 | C4: =ICEIE!C4-ICEIEWC!C4 -> 0.540 | D4: =ICEIE!D4-ICEIEWC!D4 -> 7.852
A5: 2024-01-01T00:45:00 | B5: =ICEIE!B5-ICEIEWC!B5 -> 2.265 | C5: =ICEIE!C5-ICEIEWC!C5 -> 0.001 | D5: =ICEIE!D5-ICEIEWC!D5 -> 2.266
A6: 2024-01-01T01:00:00 | B6: =ICEIE!B6-ICEIEWC!B6 -> 6.998 | C6: =ICEIE!C6-ICEIEWC!C6 -> 0.001 | D6: =ICEIE!D6-ICEIEWC!D6 -> 6.999
A7: 2024-01-01T01:15:00 | B7: =ICEIE!B7-ICEIEWC!B7 -> 8.740 | C7: =ICEIE!C7-ICEIEWC!C7 -> 0.144 | D7: =ICEIE!D7-ICEIEWC!D7 -> 8.884
A8: 2024-01-01T01:30:00 | B8: =ICEIE!B8-ICEIEWC!B8 -> 12.704 | C8: =ICEIE!C8-ICEIEWC!C8 -> 2.164 | D8: =ICEIE!D8-ICEIEWC!D8 -> 14.868
A9: 2024-01-01T01:45:00 | B9: =ICEIE!B9-ICEIEWC!B9 -> 12.666 | C9: =ICEIE!C9-ICEIEWC!C9 -> 4.116 | D9: =ICEIE!D9-ICEIEWC!D9 -> 16.783
A10: 2024-01-01T02:00:00 | B10: =ICEIE!B10-ICEIEWC!B10 -> 13.239 | C10: =ICEIE!C10-ICEIEWC!C10 -> 2.840 | D10: =ICEIE!D10-ICEIEWC!D10 -> 16.079
A11: 2024-01-01T02:15:00 | B11: =ICEIE!B11-ICEIEWC!B11 -> 13.433 | C11: =ICEIE!C11-ICEIEWC!C11 -> 4.890 | D11: =ICEIE!D11-ICEIEWC!D11 -> 18.323
A12: 2024-01-01T02:30:00 | B12: =ICEIE!B12-ICEIEWC!B12 -> 11.363 | C12: =ICEIE!C12-ICEIEWC!C12 -> 7.587 | D12: =ICEIE!D12-ICEIEWC!D12 -> 18.950
A13: 2024-01-01T02:45:00 | B13: =ICEIE!B13-ICEIEWC!B13 -> 11.460 | C13: =ICEIE!C13-ICEIEWC!C13 -> 10.205 | D13: =ICEIE!D13-ICEIEWC!D13 -> 21.664
A14: 2024-01-01T03:00:00 | B14: =ICEIE!B14-ICEIEWC!B14 -> 12.369 | C14: =ICEIE!C14-ICEIEWC!C14 -> 10.996 | D14: =ICEIE!D14-ICEIEWC!D14 -> 23.364
A15: 2024-01-01T03:15:00 | B15: =ICEIE!B15-ICEIEWC!B15 -> 12.534 | C15: =ICEIE!C15-ICEIEWC!C15 -> 13.565 | D15: =ICEIE!D15-ICEIEWC!D15 -> 26.099
A16: 2024-01-01T03:30:00 | B16: =ICEIE!B16-ICEIEWC!B16 -> 9.740 | C16: =ICEIE!C16-ICEIEWC!C16 -> 15.493 | D16: =ICEIE!D16-ICEIEWC!D16 -> 25.233
A17: 2024-01-01T03:45:00 | B17: =ICEIE!B17-ICEIEWC!B17 -> 9.843 | C17: =ICEIE!C17-ICEIEWC!C17 -> 15.706 | D17: =ICEIE!D17-ICEIEWC!D17 -> 25.549
A18: 2024-01-01T04:00:00 | B18: =ICEIE!B18-ICEIEWC!B18 -> 7.696 | C18: =ICEIE!C18-ICEIEWC!C18 -> 14.387 | D18: =ICEIE!D18-ICEIEWC!D18 -> 22.083
A19: 2024-01-01T04:15:00 | B19: =ICEIE!B19-ICEIEWC!B19 -> 7.796 | C19: =ICEIE!C19-ICEIEWC!C19 -> 14.387 | D19: =ICEIE!D19-ICEIEWC!D19 -> 22.183
A20: 2024-01-01T04:30:00 | B20: =ICEIE!B20-ICEIEWC!B20 -> 9.045 | C20: =ICEIE!C20-ICEIEWC!C20 -> 9.842 | D20: =ICEIE!D20-ICEIEWC!D20 -> 18.887
A21: 2024-01-01T04:45:00 | B21: =ICEIE!B21-ICEIEWC!B21 -> 8.885 | C21: =ICEIE!C21-ICEIEWC!C21 -> 9.712 | D21: =ICEIE!D21-ICEIEWC!D21 -> 18.597
A22: 2024-01-01T05:00:00 | B22: =ICEIE!B22-ICEIEWC!B22 -> 8.123 | C22: =ICEIE!C22-ICEIEWC!C22 -> 6.059 | D22: =ICEIE!D22-ICEIEWC!D22 -> 14.182
A23: 2024-01-01T05:15:00 | B23: =ICEIE!B23-ICEIEWC!B23 -> 8.185 | C23: =ICEIE!C23-ICEIEWC!C23 -> 6.872 | D23: =ICEIE!D23-ICEIEWC!D23 -> 15.057
A24: 2024-01-01T05:30:00 | B24: =ICEIE!B24-ICEIEWC!B24 -> 7.554 | C24: =ICEIE!C24-ICEIEWC!C24 -> 1.851 | D24: =ICEIE!D24-ICEIEWC!D24 -> 9.405
A25: 2024-01-01T05:45:00 | B25: =ICEIE!B25-ICEIEWC!B25 -> 7.439 | C25: =ICEIE!C25-ICEIEWC!C25 -> 1.862 | D25: =ICEIE!D25-ICEIEWC!D25 -> 9.301
A26: 2024-01-01T06:00:00 | B26: =ICEIE!B26-ICEIEWC!B26 -> 1.116 | C26: =ICEIE!C26-ICEIEWC!C26 -> 0.000 | D26: =ICEIE!D26-ICEIEWC!D26 -> 1.116
A27: 2024-01-01T06:15:00 | B27: =ICEIE!B27-ICEIEWC!B27 -> 1.007 | C27: =ICEIE!C27-ICEIEWC!C27 -> 0.000 | D27: =ICEIE!D27-ICEIEWC!D27 -> 1.007
A28: 2024-01-01T06:30:00 | B28: =ICEIE!B28-ICEIEWC!B28 -> 0.000 | C28: =ICEIE!C28-ICEIEWC!C28 -> 0.000 | D28: =ICEIE!D28-ICEIEWC!D28 -> 0.000
A29: 2024-01-01T06:45:00 | B29: =ICEIE!B29-ICEIEWC!B29 -> 0.000 | C29: =ICEIE!C29-ICEIEWC!C29 -> 0.000 | D29: =ICEIE!D29-ICEIEWC!D29 -> 0.000
A30: 2024-01-01T07:00:00 | B30: =ICEIE!B30-ICEIEWC!B30 -> 0.000 | C30: =ICEIE!C30-ICEIEWC!C30 -> 0.000 | D30: =ICEIE!D30-ICEIEWC!D30 -> 0.000
A31: 2024-01-01T07:15:00 | B31: =ICEIE!B31-ICEIEWC!B31 -> 0.000 | C31: =ICEIE!C31-ICEIEWC!C31 -> 0.000 | D31: =ICEIE!D31-ICEIEWC!D31 -> 0.000
A32: 2024-01-01T07:30:00 | B32: =ICEIE!B32-ICEIEWC!B32 -> 0.000 | C32: =ICEIE!C32-ICEIEWC!C32 -> 0.000 | D32: =ICEIE!D32-ICEIEWC!D32 -> 0.000
A33: 2024-01-01T07:45:00 | B33: =ICEIE!B33-ICEIEWC!B33 -> 0.000 | C33: =ICEIE!C33-ICEIEWC!C33 -> 0.000 | D33: =ICEIE!D33-ICEIEWC!D33 -> 0.000
A34: 2024-01-01T08:00:00 | B34: =ICEIE!B34-ICEIEWC!B34 -> 0.000 | C34: =ICEIE!C34-ICEIEWC!C34 -> 0.000 | D34: =ICEIE!D34-ICEIEWC!D34 -> 0.000
A35: 2024-01-01T08:15:00 | B35: =ICEIE!B35-ICEIEWC!B35 -> 0.000 | C35: =ICEIE!C35-ICEIEWC!C35 -> 0.000 | D35: =ICEIE!D35-ICEIEWC!D35 -> 0.000
A36: 2024-01-01T08:30:00 | B36: =ICEIE!B36-ICEIEWC!B36 -> 0.000 | C36: =ICEIE!C36-ICEIEWC!C36 -> 0.000 | D36: =ICEIE!D36-ICEIEWC!D36 -> 0.000
A37: 2024-01-01T08:45:00 | B37: =ICEIE!B37-ICEIEWC!B37 -> 0.000 | C37: =ICEIE!C37-ICEIEWC!C37 -> 0.000 | D37: =ICEIE!D37-ICEIEWC!D37 -> 0.000
A38: 2024-01-01T09:00:00 | B38: =ICEIE!B38-ICEIEWC!B38 -> 0.000 | C38: =ICEIE!C38-ICEIEWC!C38 -> 0.000 | D38: =ICEIE!D38-ICEIEWC!D38 -> 0.000
A39: 2024-01-01T09:15:00 | B39: =ICEIE!B39-ICEIEWC!B39 -> 0.000 | C39: =ICEIE!C39-ICEIEWC!C39 -> 0.000 | D39: =ICEIE!D39-ICEIEWC!D39 -> 0.000
A40: 2024-01-01T09:30:00 | B40: =ICEIE!B40-ICEIEWC!B40 -> 0.000 | C40: =ICEIE!C40-ICEIEWC!C40 -> 0.000 | D40: =ICEIE!D40-ICEIEWC!D40 -> 0.000
A41: 2024-01-01T09:45:00 | B41: =ICEIE!B41-ICEIEWC!B41 -> 0.000 | C41: =ICEIE!C41-ICEIEWC!C41 -> 0.000 | D41: =ICEIE!D41-ICEIEWC!D41 -> 0.000
A42: 2024-01-01T10:00:00 | B42: =ICEIE!B42-ICEIEWC!B42 -> 0.000 | C42: =ICEIE!C42-ICEIEWC!C42 -> 0.000 | D42: =ICEIE!D42-ICEIEWC!D42 -> 0.000
A43: 2024-01-01T10:15:00 | B43: =ICEIE!B43-ICEIEWC!B43 -> 0.000 | C43: =ICEIE!C43-ICEIEWC!C43 -> 0.000 | D43: =ICEIE!D43-ICEIEWC!D43 -> 0.000
A44: 2024-01-01T10:30:00 | B44: =ICEIE!B44-ICEIEWC!B44 -> 0.000 | C44: =ICEIE!C44-ICEIEWC!C44 -> 0.000 | D44: =ICEIE!D44-ICEIEWC!D44 -> 0.000
A45: 2024-01-01T10:45:00 | B45: =ICEIE!B45-ICEIEWC!B45 -> 0.000 | C45: =ICEIE!C45-ICEIEWC!C45 -> 0.000 | D45: =ICEIE!D45-ICEIEWC!D45 -> 0.000
A46: 2024-01-01T11:00:00 | B46: =ICEIE!B46-ICEIEWC!B46 -> 0.000 | C46: =ICEIE!C46-ICEIEWC!C46 -> 0.000 | D46: =ICEIE!D46-ICEIEWC!D46 -> 0.000
A47: 2024-01-01T11:15:00 | B47: =ICEIE!B47-ICEIEWC!B47 -> 0.000 | C47: =ICEIE!C47-ICEIEWC!C47 -> 0.000 | D47: =ICEIE!D47-ICEIEWC!D47 -> 0.000
A48: 2024-01-01T11:30:00 | B48: =ICEIE!B48-ICEIEWC!B48 -> 0.000 | C48: =ICEIE!C48-ICEIEWC!C48 -> 0.000 | D48: =ICEIE!D48-ICEIEWC!D48 -> 0.000
A49: 2024-01-01T11:45:00 | B49: =ICEIE!B49-ICEIEWC!B49 -> 0.000 | C49: =ICEIE!C49-ICEIEWC!C49 -> 0.000 | D49: =ICEIE!D49-ICEIEWC!D49 -> 0.000
A50: 2024-01-01T12:00:00 | B50: =ICEIE!B50-ICEIEWC!B50 -> 0.000 | C50: =ICEIE!C50-ICEIEWC!C50 -> 0.000 | D50: =ICEIE!D50-ICEIEWC!D50 -> 0.000
A51: 2024-01-01T12:15:00 | B51: =ICEIE!B51-ICEIEWC!B51 -> 0.000 | C51: =ICEIE!C51-ICEIEWC!C51 -> 0.000 | D51: =ICEIE!D51-ICEIEWC!D51 -> 0.000
A52: 2024-01-01T12:30:00 | B52: =ICEIE!B52-ICEIEWC!B52 -> 0.000 | C52: =ICEIE!C52-ICEIEWC!C52 -> 0.000 | D52: =ICEIE!D52-ICEIEWC!D52 -> 0.000
A53: 2024-01-01T12:45:00 | B53: =ICEIE!B53-ICEIEWC!B53 -> 0.000 | C53: =ICEIE!C53-ICEIEWC!C53 -> 0.000 | D53: =ICEIE!D53-ICEIEWC!D53 -> 0.000
A54: 2024-01-01T13:00:00 | B54: =ICEIE!B54-ICEIEWC!B54 -> 0.000 | C54: =ICEIE!C54-ICEIEWC!C54 -> 0.000 | D54: =ICEIE!D54-ICEIEWC!D54 -> 0.000
A55: 2024-01-01T13:15:00 | B55: =ICEIE!B55-ICEIEWC!B55 -> 0.000 | C55: =ICEIE!C55-ICEIEWC!C55 -> 0.000 | D55: =ICEIE!D55-ICEIEWC!D55 -> 0.000
A56: 2024-01-01T13:30:00 | B56: =ICEIE!B56-ICEIEWC!B56 -> 0.000 | C56: =ICEIE!C56-ICEIEWC!C56 -> 0.000 | D56: =ICEIE!D56-ICEIEWC!D56 -> 0.000
A57: 2024-01-01T13:45:00 | B57: =ICEIE!B57-ICEIEWC!B57 -> 0.000 | C57: =ICEIE!C57-ICEIEWC!C57 -> 0.000 | D57: =ICEIE!D57-ICEIEWC!D57 -> 0.000
A58: 2024-01-01T14:00:00 | B58: =ICEIE!B58-ICEIEWC!B58 -> 0.260 | C58: =ICEIE!C58-ICEIEWC!C58 -> 4.250 | D58: =ICEIE!D58-ICEIEWC!D58 -> 4.510
A59: 2024-01-01T14:15:00 | B59: =ICEIE!B59-ICEIEWC!B59 -> 0.274 | C59: =ICEIE!C59-ICEIEWC!C59 -> 4.081 | D59: =ICEIE!D59-ICEIEWC!D59 -> 4.355
A60: 2024-01-01T14:30:00 | B60: =ICEIE!B60-ICEIEWC!B60 -> 4.300 | C60: =ICEIE!C60-ICEIEWC!C60 -> 7.385 | D60: =ICEIE!D60-ICEIEWC!D60 -> 11.684
A61: 2024-01-01T14:45:00 | B61: =ICEIE!B61-ICEIEWC!B61 -> 4.408 | C61: =ICEIE!C61-ICEIEWC!C61 -> 7.322 | D61: =ICEIE!D61-ICEIEWC!D61 -> 11.731
A62: 2024-01-01T15:00:00 | B62: =ICEIE!B62-ICEIEWC!B62 -> 2.655 | C62: =ICEIE!C62-ICEIEWC!C62 -> 1.179 | D62: =ICEIE!D62-ICEIEWC!D62 -> 3.834
A63: 2024-01-01T15:15:00 | B63: =ICEIE!B63-ICEIEWC!B63 -> 2.538 | C63: =ICEIE!C63-ICEIEWC!C63 -> 1.024 | D63: =ICEIE!D63-ICEIEWC!D63 -> 3.562
A64: 2024-01-01T15:30:00 | B64: =ICEIE!B64-ICEIEWC!B64 -> 0.000 | C64: =ICEIE!C64-ICEIEWC!C64 -> 0.175 | D64: =ICEIE!D64-ICEIEWC!D64 -> 0.175
A65: 2024-01-01T15:45:00 | B65: =ICEIE!B65-ICEIEWC!B65 -> 0.000 | C65: =ICEIE!C65-ICEIEWC!C65 -> 0.182 | D65: =ICEIE!D65-ICEIEWC!D65 -> 0.182
A66: 2024-01-01T16:00:00 | B66: =ICEIE!B66-ICEIEWC!B66 -> 0.000 | C66: =ICEIE!C66-ICEIEWC!C66 -> 0.000 | D66: =ICEIE!D66-ICEIEWC!D66 -> 0.000
A67: 2024-01-01T16:15:00 | B67: =ICEIE!B67-ICEIEWC!B67 -> 0.000 | C67: =ICEIE!C67-ICEIEWC!C67 -> 0.000 | D67: =ICEIE!D67-ICEIEWC!D67 -> 0.000
A68: 2024-01-01T16:30:00 | B68: =ICEIE!B68-ICEIEWC!B68 -> 0.000 | C68: =ICEIE!C68-ICEIEWC!C68 -> 0.000 | D68: =ICEIE!D68-ICEIEWC!D68 -> 0.000
A69: 2024-01-01T16:45:00 | B69: =ICEIE!B69-ICEIEWC!B69 -> 0.000 | C69: =ICEIE!C69-ICEIEWC!C69 -> 0.000 | D69: =ICEIE!D69-ICEIEWC!D69 -> 0.000
A70: 2024-01-01T17:00:00 | B70: =ICEIE!B70-ICEIEWC!B70 -> 0.000 | C70: =ICEIE!C70-ICEIEWC!C70 -> 0.000 | D70: =ICEIE!D70-ICEIEWC!D70 -> 0.000
A71: 2024-01-01T17:15:00 | B71: =ICEIE!B71-ICEIEWC!B71 -> 0.000 | C71: =ICEIE!C71-ICEIEWC!C71 -> 0.000 | D71: =ICEIE!D71-ICEIEWC!D71 -> 0.000
A72: 2024-01-01T17:30:00 | B72: =ICEIE!B72-ICEIEWC!B72 -> 0.000 | C72: =ICEIE!C72-ICEIEWC!C72 -> 0.000 | D72: =ICEIE!D72-ICEIEWC!D72 -> 0.000
A73: 2024-01-01T17:45:00 | B73: =ICEIE!B73-ICEIEWC!B73 -> 0.000 | C73: =ICEIE!C73-ICEIEWC!C73 -> 0.000 | D73: =ICEIE!D73-ICEIEWC!D73 -> 0.000
A74: 2024-01-01T18:00:00 | B74: =ICEIE!B74-ICEIEWC!B74 -> 0.000 | C74: =ICEIE!C74-ICEIEWC!C74 -> 0.000 | D74: =ICEIE!D74-ICEIEWC!D74 -> 0.000
A75: 2024-01-01T18:15:00 | B75: =ICEIE!B75-ICEIEWC!B75 -> 0.000 | C75: =ICEIE!C75-ICEIEWC!C75 -> 0.000 | D75: =ICEIE!D75-ICEIEWC!D75 -> 0.000
A76: 2024-01-01T18:30:00 | B76: =ICEIE!B76-ICEIEWC!B76 -> 0.000 | C76: =ICEIE!C76-ICEIEWC!C76 -> 0.000 | D76: =ICEIE!D76-ICEIEWC!D76 -> 0.000
A77: 2024-01-01T18:45:00 | B77: =ICEIE!B77-ICEIEWC!B77 -> 0.000 | C77: =ICEIE!C77-ICEIEWC!C77 -> 0.000 | D77: =ICEIE!D77-ICEIEWC!D77 -> 0.000
A78: 2024-01-01T19:00:00 | B78: =ICEIE!B78-ICEIEWC!B78 -> 0.000 | C78: =ICEIE!C78-ICEIEWC!C78 -> 0.369 | D78: =ICEIE!D78-ICEIEWC!D78 -> 0.369
A79: 2024-01-01T19:15:00 | B79: =ICEIE!B79-ICEIEWC!B79 -> 0.000 | C79: =ICEIE!C79-ICEIEWC!C79 -> 0.000 | D79: =ICEIE!D79-ICEIEWC!D79 -> 0.000
A80: 2024-01-01T19:30:00 | B80: =ICEIE!B80-ICEIEWC!B80 -> 0.000 | C80: =ICEIE!C80-ICEIEWC!C80 -> 0.170 | D80: =ICEIE!D80-ICEIEWC!D80 -> 0.170
A81: 2024-01-01T19:45:00 | B81: =ICEIE!B81-ICEIEWC!B81 -> 0.000 | C81: =ICEIE!C81-ICEIEWC!C81 -> 0.159 | D81: =ICEIE!D81-ICEIEWC!D81 -> 0.159
A82: 2024-01-01T20:00:00 | B82: =ICEIE!B82-ICEIEWC!B82 -> 0.000 | C82: =ICEIE!C82-ICEIEWC!C82 -> 0.001 | D82: =ICEIE!D82-ICEIEWC!D82 -> 0.001
A83: 2024-01-01T20:15:00 | B83: =ICEIE!B83-ICEIEWC!B83 -> 0.000 | C83: =ICEIE!C83-ICEIEWC!C83 -> 0.000 | D83: =ICEIE!D83-ICEIEWC!D83 -> 0.000
A84: 2024-01-01T20:30:00 | B84: =ICEIE!B84-ICEIEWC!B84 -> 0.000 | C84: =ICEIE!C84-ICEIEWC!C84 -> 0.000 | D84: =ICEIE!D84-ICEIEWC!D84 -> 0.000
A85: 2024-01-01T20:45:00 | B85: =ICEIE!B85-ICEIEWC!B85 -> 0.000 | C85: =ICEIE!C85-ICEIEWC!C85 -> 0.000 | D85: =ICEIE!D85-ICEIEWC!D85 -> 0.000
A86: 2024-01-01T21:00:00 | B86: =ICEIE!B86-ICEIEWC!B86 -> 0.000 | C86: =ICEIE!C86-ICEIEWC!C86 -> 0.000 | D86: =ICEIE!D86-ICEIEWC!D86 -> 0.000
A87: 2024-01-01T21:15:00 | B87: =ICEIE!B87-ICEIEWC!B87 -> 0.000 | C87: =ICEIE!C87-ICEIEWC!C87 -> 0.035 | D87: =ICEIE!D87-ICEIEWC!D87 -> 0.035
A88: 2024-01-01T21:30:00 | B88: =ICEIE!B88-ICEIEWC!B88 -> 0.000 | C88: =ICEIE!C88-ICEIEWC!C88 -> 1.209 | D88: =ICEIE!D88-ICEIEWC!D88 -> 1.209
A89: 2024-01-01T21:45:00 | B89: =ICEIE!B89-ICEIEWC!B89 -> 0.000 | C89: =ICEIE!C89-ICEIEWC!C89 -> 1.681 | D89: =ICEIE!D89-ICEIEWC!D89 -> 1.681
A90: 2024-01-01T22:00:00 | B90: =ICEIE!B90-ICEIEWC!B90 -> 0.000 | C90: =ICEIE!C90-ICEIEWC!C90 -> 0.184 | D90: =ICEIE!D90-ICEIEWC!D90 -> 0.184
A91: 2024-01-01T22:15:00 | B91: =ICEIE!B91-ICEIEWC!B91 -> 0.000 | C91: =ICEIE!C91-ICEIEWC!C91 -> 0.000 | D91: =ICEIE!D91-ICEIEWC!D91 -> 0.000
A92: 2024-01-01T22:30:00 | B92: =ICEIE!B92-ICEIEWC!B92 -> 0.000 | C92: =ICEIE!C92-ICEIEWC!C92 -> 0.001 | D92: =ICEIE!D92-ICEIEWC!D92 -> 0.000
A93: 2024-01-01T22:45:00 | B93: =ICEIE!B93-ICEIEWC!B93 -> 0.000 | C93: =ICEIE!C93-ICEIEWC!C93 -> 0.001 | D93: =ICEIE!D93-ICEIEWC!D93 -> 0.001
A94: 2024-01-01T23:00:00 | B94: =ICEIE!B94-ICEIEWC!B94 -> 0.000 | C94: =ICEIE!C94-ICEIEWC!C94 -> 0.918 | D94: =ICEIE!D94-ICEIEWC!D94 -> 0.918
A95: 2024-01-01T23:15:00 | B95: =ICEIE!B95-ICEIEWC!B95 -> 0.000 | C95: =ICEIE!C95-ICEIEWC!C95 -> 2.812 | D95: =ICEIE!D95-ICEIEWC!D95 -> 2.812
A96: 2024-01-01T23:30:00 | B96: =ICEIE!B96-ICEIEWC!B96 -> 1.443 | C96: =ICEIE!C96-ICEIEWC!C96 -> 4.910 | D96: =ICEIE!D96-ICEIEWC!D96 -> 6.353
A97: 2024-01-01T23:45:00 | B97: =ICEIE!B97-ICEIEWC!B97 -> 1.503 | C97: =ICEIE!C97-ICEIEWC!C97 -> 6.553 | D97: =ICEIE!D97-ICEIEWC!D97 -> 8.056
A98: 2024-01-02 | B98: =ICEIE!B98-ICEIEWC!B98 -> 4.394 | C98: =ICEIE!C98-ICEIEWC!C98 -> 5.633 | D98: =ICEIE!D98-ICEIEWC!D98 -> 10.026
A99: 2024-01-02T00:15:00 | B99: =ICEIE!B99-ICEIEWC!B99 -> 4.508 | C99: =ICEIE!C99-ICEIEWC!C99 -> 3.568 | D99: =ICEIE!D99-ICEIEWC!D99 -> 8.075
A100: 2024-01-02T00:30:00 | B100: =ICEIE!B100-ICEIEWC!B100 -> 4.323 | C100: =ICEIE!C100-ICEIEWC!C100 -> 1.474 | D100: =ICEIE!D100-ICEIEWC!D100 -> 5.798
A101: 2024-01-02T00:45:00 | B101: =ICEIE!B101-ICEIEWC!B101 -> 4.484 | C101: =ICEIE!C101-ICEIEWC!C101 -> 1.189 | D101: =ICEIE!D101-ICEIEWC!D101 -> 5.673
A102: 2024-01-02T01:00:00 | B102: =ICEIE!B102-ICEIEWC!B102 -> 5.673 | C102: =ICEIE!C102-ICEIEWC!C102 -> 3.382 | D102: =ICEIE!D102-ICEIEWC!D102 -> 9.055
A103: 2024-01-02T01:15:00 | B103: =ICEIE!B103-ICEIEWC!B103 -> 5.571 | C103: =ICEIE!C103-ICEIEWC!C103 -> 5.623 | D103: =ICEIE!D103-ICEIEWC!D103 -> 11.194
A104: 2024-01-02T01:30:00 | B104: =ICEIE!B104-ICEIEWC!B104 -> 6.064 | C104: =ICEIE!C104-ICEIEWC!C104 -> 8.101 | D104: =ICEIE!D104-ICEIEWC!D104 -> 14.164
A105: 2024-01-02T01:45:00 | B105: =ICEIE!B105-ICEIEWC!B105 -> 6.136 | C105: =ICEIE!C105-ICEIEWC!C105 -> 10.474 | D105: =ICEIE!D105-ICEIEWC!D105 -> 16.610
A106: 2024-01-02T02:00:00 | B106: =ICEIE!B106-ICEIEWC!B106 -> 6.282 | C106: =ICEIE!C106-ICEIEWC!C106 -> 12.676 | D106: =ICEIE!D106-ICEIEWC!D106 -> 18.958
A107: 2024-01-02T02:15:00 | B107: =ICEIE!B107-ICEIEWC!B107 -> 6.282 | C107: =ICEIE!C107-ICEIEWC!C107 -> 14.841 | D107: =ICEIE!D107-ICEIEWC!D107 -> 21.123
A108: 2024-01-02T02:30:00 | B108: =ICEIE!B108-ICEIEWC!B108 -> 6.542 | C108: =ICEIE!C108-ICEIEWC!C108 -> 18.019 | D108: =ICEIE!D108-ICEIEWC!D108 -> 24.561
A109: 2024-01-02T02:45:00 | B109: =ICEIE!B109-ICEIEWC!B109 -> 6.767 | C109: =ICEIE!C109-ICEIEWC!C109 -> 18.550 | D109: =ICEIE!D109-ICEIEWC!D109 -> 25.317
A110: 2024-01-02T03:00:00 | B110: =ICEIE!B110-ICEIEWC!B110 -> 6.856 | C110: =ICEIE!C110-ICEIEWC!C110 -> 17.625 | D110: =ICEIE!D110-ICEIEWC!D110 -> 24.482
A111: 2024-01-02T03:15:00 | B111: =ICEIE!B111-ICEIEWC!B111 -> 6.875 | C111: =ICEIE!C111-ICEIEWC!C111 -> 19.178 | D111: =ICEIE!D111-ICEIEWC!D111 -> 26.054
A112: 2024-01-02T03:30:00 | B112: =ICEIE!B112-ICEIEWC!B112 -> 7.098 | C112: =ICEIE!C112-ICEIEWC!C112 -> 20.493 | D112: =ICEIE!D112-ICEIEWC!D112 -> 27.591
A113: 2024-01-02T03:45:00 | B113: =ICEIE!B113-ICEIEWC!B113 -> 7.136 | C113: =ICEIE!C113-ICEIEWC!C113 -> 20.583 | D113: =ICEIE!D113-ICEIEWC!D113 -> 27.719
A114: 2024-01-02T04:00:00 | B114: =ICEIE!B114-ICEIEWC!B114 -> 6.969 | C114: =ICEIE!C114-ICEIEWC!C114 -> 21.198 | D114: =ICEIE!D114-ICEIEWC!D114 -> 28.168
A115: 2024-01-02T04:15:00 | B115: =ICEIE!B115-ICEIEWC!B115 -> 7.026 | C115: =ICEIE!C115-ICEIEWC!C115 -> 21.067 | D115: =ICEIE!D115-ICEIEWC!D115 -> 28.092
A116: 2024-01-02T04:30:00 | B116: =ICEIE!B116-ICEIEWC!B116 -> 7.487 | C116: =ICEIE!C116-ICEIEWC!C116 -> 21.067 | D116: =ICEIE!D116-ICEIEWC!D116 -> 28.553
A117: 2024-01-02T04:45:00 | B117: =ICEIE!B117-ICEIEWC!B117 -> 7.446 | C117: =ICEIE!C117-ICEIEWC!C117 -> 21.729 | D117: =ICEIE!D117-ICEIEWC!D117 -> 29.176
A118: 2024-01-02T05:00:00 | B118: =ICEIE!B118-ICEIEWC!B118 -> 7.560 | C118: =ICEIE!C118-ICEIEWC!C118 -> 22.392 | D118: =ICEIE!D118-ICEIEWC!D118 -> 29.952
A119: 2024-01-02T05:15:00 | B119: =ICEIE!B119-ICEIEWC!B119 -> 7.500 | C119: =ICEIE!C119-ICEIEWC!C119 -> 22.259 | D119: =ICEIE!D119-ICEIEWC!D119 -> 29.759
A120: 2024-01-02T05:30:00 | B120: =ICEIE!B120-ICEIEWC!B120 -> 6.574 | C120: =ICEIE!C120-ICEIEWC!C120 -> 22.789 | D120: =ICEIE!D120-ICEIEWC!D120 -> 29.363
A121: 2024-01-02T05:45:00 | B121: =ICEIE!B121-ICEIEWC!B121 -> 6.539 | C121: =ICEIE!C121-ICEIEWC!C121 -> 22.657 | D121: =ICEIE!D121-ICEIEWC!D121 -> 29.195
A122: 2024-01-02T06:00:00 | B122: =ICEIE!B122-ICEIEWC!B122 -> 1.664 | C122: =ICEIE!C122-ICEIEWC!C122 -> 9.609 | D122: =ICEIE!D122-ICEIEWC!D122 -> 11.273
A123: 2024-01-02T06:15:00 | B123: =ICEIE!B123-ICEIEWC!B123 -> 1.464 | C123: =ICEIE!C123-ICEIEWC!C123 -> 9.727 | D123: =ICEIE!D123-ICEIEWC!D123 -> 11.191
A124: 2024-01-02T06:30:00 | B124: =ICEIE!B124-ICEIEWC!B124 -> 0.000 | C124: =ICEIE!C124-ICEIEWC!C124 -> 3.243 | D124: =ICEIE!D124-ICEIEWC!D124 -> 3.243
A125: 2024-01-02T06:45:00 | B125: =ICEIE!B125-ICEIEWC!B125 -> 0.000 | C125: =ICEIE!C125-ICEIEWC!C125 -> 3.339 | D125: =ICEIE!D125-ICEIEWC!D125 -> 3.339
A126: 2024-01-02T07:00:00 | B126: =ICEIE!B126-ICEIEWC!B126 -> 0.000 | C126: =ICEIE!C126-ICEIEWC!C126 -> 1.530 | D126: =ICEIE!D126-ICEIEWC!D126 -> 1.530
A127: 2024-01-02T07:15:00 | B127: =ICEIE!B127-ICEIEWC!B127 -> 0.000 | C127: =ICEIE!C127-ICEIEWC!C127 -> 1.521 | D127: =ICEIE!D127-ICEIEWC!D127 -> 1.521
A128: 2024-01-02T07:30:00 | B128: =ICEIE!B128-ICEIEWC!B128 -> 0.000 | C128: =ICEIE!C128-ICEIEWC!C128 -> 0.169 | D128: =ICEIE!D128-ICEIEWC!D128 -> 0.169
A129: 2024-01-02T07:45:00 | B129: =ICEIE!B129-ICEIEWC!B129 -> 0.000 | C129: =ICEIE!C129-ICEIEWC!C129 -> 0.167 | D129: =ICEIE!D129-ICEIEWC!D129 -> 0.167
A130: 2024-01-02T08:00:00 | B130: =ICEIE!B130-ICEIEWC!B130 -> 0.000 | C130: =ICEIE!C130-ICEIEWC!C130 -> 0.000 | D130: =ICEIE!D130-ICEIEWC!D130 -> 0.000
A131: 2024-01-02T08:15:00 | B131: =ICEIE!B131-ICEIEWC!B131 -> 0.000 | C131: =ICEIE!C131-ICEIEWC!C131 -> 0.000 | D131: =ICEIE!D131-ICEIEWC!D131 -> 0.000
A132: 2024-01-02T08:30:00 | B132: =ICEIE!B132-ICEIEWC!B132 -> 0.000 | C132: =ICEIE!C132-ICEIEWC!C132 -> 0.000 | D132: =ICEIE!D132-ICEIEWC!D132 -> 0.000
A133: 2024-01-02T08:45:00 | B133: =ICEIE!B133-ICEIEWC!B133 -> 0.000 | C133: =ICEIE!C133-ICEIEWC!C133 -> 0.000 | D133: =ICEIE!D133-ICEIEWC!D133 -> 0.000
A134: 2024-01-02T09:00:00 | B134: =ICEIE!B134-ICEIEWC!B134 -> 0.000 | C134: =ICEIE!C134-ICEIEWC!C134 -> 0.000 | D134: =ICEIE!D134-ICEIEWC!D134 -> 0.000
A135: 2024-01-02T09:15:00 | B135: =ICEIE!B135-ICEIEWC!B135 -> 0.000 | C135: =ICEIE!C135-ICEIEWC!C135 -> 0.000 | D135: =ICEIE!D135-ICEIEWC!D135 -> 0.000
A136: 2024-01-02T09:30:00 | B136: =ICEIE!B136-ICEIEWC!B136 -> 0.000 | C136: =ICEIE!C136-ICEIEWC!C136 -> 0.000 | D136: =ICEIE!D136-ICEIEWC!D136 -> 0.000
A137: 2024-01-02T09:45:00 | B137: =ICEIE!B137-ICEIEWC!B137 -> 0.000 | C137: =ICEIE!C137-ICEIEWC!C137 -> 0.000 | D137: =ICEIE!D137-ICEIEWC!D137 -> 0.000
A138: 2024-01-02T10:00:00 | B138: =ICEIE!B138-ICEIEWC!B138 -> 0.000 | C138: =ICEIE!C138-ICEIEWC!C138 -> 0.000 | D138: =ICEIE!D138-ICEIEWC!D138 -> 0.000
A139: 2024-01-02T10:15:00 | B139: =ICEIE!B139-ICEIEWC!B139 -> 0.000 | C139: =ICEIE!C139-ICEIEWC!C139 -> 0.000 | D139: =ICEIE!D139-ICEIEWC!D139 -> 0.000
A140: 2024-01-02T10:30:00 | B140: =ICEIE!B140-ICEIEWC!B140 -> 0.000 | C140: =ICEIE!C140-ICEIEWC!C140 -> 0.000 | D140: =ICEIE!D140-ICEIEWC!D140 -> 0.000
A141: 2024-01-02T10:45:00 | B141: =ICEIE!B141-ICEIEWC!B141 -> 0.000 | C141: =ICEIE!C141-ICEIEWC!C141 -> 0.000 | D141: =ICEIE!D141-ICEIEWC!D141 -> 0.000
A142: 2024-01-02T11:00:00 | B142: =ICEIE!B142-ICEIEWC!B142 -> 0.000 | C142: =ICEIE!C142-ICEIEWC!C142 -> 0.000 | D142: =ICEIE!D142-ICEIEWC!D142 -> 0.000
A143: 2024-01-02T11:15:00 | B143: =ICEIE!B143-ICEIEWC!B143 -> 0.000 | C143: =ICEIE!C143-ICEIEWC!C143 -> 0.000 | D143: =ICEIE!D143-ICEIEWC!D143 -> 0.000
A144: 2024-01-02T11:30:00 | B144: =ICEIE!B144-ICEIEWC!B144 -> 0.000 | C144: =ICEIE!C144-ICEIEWC!C144 -> 0.000 | D144: =ICEIE!D144-ICEIEWC!D144 -> 0.000
A145: 2024-01-02T11:45:00 | B145: =ICEIE!B145-ICEIEWC!B145 -> 0.000 | C145: =ICEIE!C145-ICEIEWC!C145 -> 0.000 | D145: =ICEIE!D145-ICEIEWC!D145 -> 0.000
A146: 2024-01-02T12:00:00 | B146: =ICEIE!B146-ICEIEWC!B146 -> 0.000 | C146: =ICEIE!C146-ICEIEWC!C146 -> 0.000 | D146: =ICEIE!D146-ICEIEWC!D146 -> 0.000
A147: 2024-01-02T12:15:00 | B147: =ICEIE!B147-ICEIEWC!B147 -> 0.000 | C147: =ICEIE!C147-ICEIEWC!C147 -> 0.000 | D147: =ICEIE!D147-ICEIEWC!D147 -> 0.000
A148: 2024-01-02T12:30:00 | B148: =ICEIE!B148-ICEIEWC!B148 -> 0.000 | C148: =ICEIE!C148-ICEIEWC!C148 -> 0.000 | D148: =ICEIE!D148-ICEIEWC!D148 -> 0.000
A149: 2024-01-02T12:45:00 | B149: =ICEIE!B149-ICEIEWC!B149 -> 0.000 | C149: =ICEIE!C149-ICEIEWC!C149 -> 0.000 | D149: =ICEIE!D149-ICEIEWC!D149 -> 0.000
A150: 2024-01-02T13:00:00 | B150: =ICEIE!B150-ICEIEWC!B150 -> 0.000 | C150: =ICEIE!C150-ICEIEWC!C150 -> 0.000 | D150: =ICEIE!D150-ICEIEWC!D150 -> 0.000
A151: 2024-01-02T13:15:00 | B151: =ICEIE!B151-ICEIEWC!B151 -> 0.000 | C151: =ICEIE!C151-ICEIEWC!C151 -> 0.000 | D151: =ICEIE!D151-ICEIEWC!D151 -> 0.000
A152: 2024-01-02T13:30:00 | B152: =ICEIE!B152-ICEIEWC!B152 -> 0.000 | C152: =ICEIE!C152-ICEIEWC!C152 -> 0.000 | D152: =ICEIE!D152-ICEIEWC!D152 -> 0.000
A153: 2024-01-02T13:45:00 | B153: =ICEIE!B153-ICEIEWC!B153 -> 0.000 | C153: =ICEIE!C153-ICEIEWC!C153 -> 0.000 | D153: =ICEIE!D153-ICEIEWC!D153 -> 0.000
A154: 2024-01-02T14:00:00 | B154: =ICEIE!B154-ICEIEWC!B154 -> 0.000 | C154: =ICEIE!C154-ICEIEWC!C154 -> 0.000 | D154: =ICEIE!D154-ICEIEWC!D154 -> 0.000
A155: 2024-01-02T14:15:00 | B155: =ICEIE!B155-ICEIEWC!B155 -> 0.000 | C155: =ICEIE!C155-ICEIEWC!C155 -> 0.000 | D155: =ICEIE!D155-ICEIEWC!D155 -> 0.000
A156: 2024-01-02T14:30:00 | B156: =ICEIE!B156-ICEIEWC!B156 -> 0.000 | C156: =ICEIE!C156-ICEIEWC!C156 -> 0.000 | D156: =ICEIE!D156-ICEIEWC!D156 -> 0.000
A157: 2024-01-02T14:45:00 | B157: =ICEIE!B157-ICEIEWC!B157 -> 0.000 | C157: =ICEIE!C157-ICEIEWC!C157 -> 0.000 | D157: =ICEIE!D157-ICEIEWC!D157 -> 0.000
A158: 2024-01-02T15:00:00 | B158: =ICEIE!B158-ICEIEWC!B158 -> 0.000 | C158: =ICEIE!C158-ICEIEWC!C158 -> 0.000 | D158: =ICEIE!D158-ICEIEWC!D158 -> 0.000
A159: 2024-01-02T15:15:00 | B159: =ICEIE!B159-ICEIEWC!B159 -> 0.000 | C159: =ICEIE!C159-ICEIEWC!C159 -> 0.000 | D159: =ICEIE!D159-ICEIEWC!D159 -> 0.000
A160: 2024-01-02T15:30:00 | B160: =ICEIE!B160-ICEIEWC!B160 -> 0.000 | C160: =ICEIE!C160-ICEIEWC!C160 -> 0.000 | D160: =ICEIE!D160-ICEIEWC!D160 -> 0.000
A161: 2024-01-02T15:45:00 | B161: =ICEIE!B161-ICEIEWC!B161 -> 0.000 | C161: =ICEIE!C161-ICEIEWC!C161 -> 0.000 | D161: =ICEIE!D161-ICEIEWC!D161 -> 0.000
A162: 2024-01-02T16:00:00 | B162: =ICEIE!B162-ICEIEWC!B162 -> 0.000 | C162: =ICEIE!C162-ICEIEWC!C162 -> 0.000 | D162: =ICEIE!D162-ICEIEWC!D162 -> 0.000
A163: 2024-01-02T16:15:00 | B163: =ICEIE!B163-ICEIEWC!B163 -> 0.000 | C163: =ICEIE!C163-ICEIEWC!C163 -> 0.000 | D163: =ICEIE!D163-ICEIEWC!D163 -> 0.000
A164: 2024-01-02T16:30:00 | B164: =ICEIE!B164-ICEIEWC!B164 -> 0.000 | C164: =ICEIE!C164-ICEIEWC!C164 -> 0.000 | D164: =ICEIE!D164-ICEIEWC!D164 -> 0.000
A165: 2024-01-02T16:45:00 | B165: =ICEIE!B165-ICEIEWC!B165 -> 0.000 | C165: =ICEIE!C165-ICEIEWC!C165 -> 0.000 | D165: =ICEIE!D165-ICEIEWC!D165 -> 0.000
A166: 2024-01-02T17:00:00 | B166: =ICEIE!B166-ICEIEWC!B166 -> 0.000 | C166: =ICEIE!C166-ICEIEWC!C166 -> 0.000 | D166: =ICEIE!D166-ICEIEWC!D166 -> 0.000
A167: 2024-01-02T17:15:00 | B167: =ICEIE!B167-ICEIEWC!B167 -> 0.000 | C167: =ICEIE!C167-ICEIEWC!C167 -> 0.000 | D167: =ICEIE!D167-ICEIEWC!D167 -> 0.000
A168: 2024-01-02T17:30:00 | B168: =ICEIE!B168-ICEIEWC!B168 -> 0.000 | C168: =ICEIE!C168-ICEIEWC!C168 -> 0.000 | D168: =ICEIE!D168-ICEIEWC!D168 -> 0.000
A169: 2024-01-02T17:45:00 | B169: =ICEIE!B169-ICEIEWC!B169 -> 0.000 | C169: =ICEIE!C169-ICEIEWC!C169 -> 0.000 | D169: =ICEIE!D169-ICEIEWC!D169 -> 0.000
A170: 2024-01-02T18:00:00 | B170: =ICEIE!B170-ICEIEWC!B170 -> 0.000 | C170: =ICEIE!C170-ICEIEWC!C170 -> 0.000 | D170: =ICEIE!D170-ICEIEWC!D170 -> 0.000
A171: 2024-01-02T18:15:00 | B171: =ICEIE!B171-ICEIEWC!B171 -> 0.000 | C171: =ICEIE!C171-ICEIEWC!C171 -> 0.000 | D171: =ICEIE!D171-ICEIEWC!D171 -> 0.000
A172: 2024-01-02T18:30:00 | B172: =ICEIE!B172-ICEIEWC!B172 -> 0.000 | C172: =ICEIE!C172-ICEIEWC!C172 -> 0.000 | D172: =ICEIE!D172-ICEIEWC!D172 -> 0.000
A173: 2024-01-02T18:45:00 | B173: =ICEIE!B173-ICEIEWC!B173 -> 0.000 | C173: =ICEIE!C173-ICEIEWC!C173 -> 0.000 | D173: =ICEIE!D173-ICEIEWC!D173 -> 0.000
A174: 2024-01-02T19:00:00 | B174: =ICEIE!B174-ICEIEWC!B174 -> 0.000 | C174: =ICEIE!C174-ICEIEWC!C174 -> 0.000 | D174: =ICEIE!D174-ICEIEWC!D174 -> 0.000
A175: 2024-01-02T19:15:00 | B175: =ICEIE!B175-ICEIEWC!B175 -> 0.000 | C175: =ICEIE!C175-ICEIEWC!C175 -> 0.000 | D175: =ICEIE!D175-ICEIEWC!D175 -> 0.000
A176: 2024-01-02T19:30:00 | B176: =ICEIE!B176-ICEIEWC!B176 -> 0.000 | C176: =ICEIE!C176-ICEIEWC!C176 -> 0.000 | D176: =ICEIE!D176-ICEIEWC!D176 -> 0.000
A177: 2024-01-02T19:45:00 | B177: =ICEIE!B177-ICEIEWC!B177 -> 0.000 | C177: =ICEIE!C177-ICEIEWC!C177 -> 0.000 | D177: =ICEIE!D177-ICEIEWC!D177 -> 0.000
A178: 2024-01-02T20:00:00 | B178: =ICEIE!B178-ICEIEWC!B178 -> 0.000 | C178: =ICEIE!C178-ICEIEWC!C178 -> 0.000 | D178: =ICEIE!D178-ICEIEWC!D178 -> 0.000
A179: 2024-01-02T20:15:00 | B179: =ICEIE!B179-ICEIEWC!B179 -> 0.000 | C179: =ICEIE!C179-ICEIEWC!C179 -> 0.000 | D179: =ICEIE!D179-ICEIEWC!D179 -> 0.000
A180: 2024-01-02T20:30:00 | B180: =ICEIE!B180-ICEIEWC!B180 -> 0.000 | C180: =ICEIE!C180-ICEIEWC!C180 -> 0.000 | D180: =ICEIE!D180-ICEIEWC!D180 -> 0.000
A181: 2024-01-02T20:45:00 | B181: =ICEIE!B181-ICEIEWC!B181 -> 0.000 | C181: =ICEIE!C181-ICEIEWC!C181 -> 0.000 | D181: =ICEIE!D181-ICEIEWC!D181 -> 0.000
A182: 2024-01-02T21:00:00 | B182: =ICEIE!B182-ICEIEWC!B182 -> 0.000 | C182: =ICEIE!C182-ICEIEWC!C182 -> 0.000 | D182: =ICEIE!D182-ICEIEWC!D182 -> 0.000
A183: 2024-01-02T21:15:00 | B183: =ICEIE!B183-ICEIEWC!B183 -> 0.000 | C183: =ICEIE!C183-ICEIEWC!C183 -> 0.000 | D183: =ICEIE!D183-ICEIEWC!D183 -> 0.000
A184: 2024-01-02T21:30:00 | B184: =ICEIE!B184-ICEIEWC!B184 -> 0.000 | C184: =ICEIE!C184-ICEIEWC!C184 -> 0.000 | D184: =ICEIE!D184-ICEIEWC!D184 -> 0.000
A185: 2024-01-02T21:45:00 | B185: =ICEIE!B185-ICEIEWC!B185 -> 0.000 | C185: =ICEIE!C185-ICEIEWC!C185 -> 0.000 | D185: =ICEIE!D185-ICEIEWC!D185 -> 0.000
A186: 2024-01-02T22:00:00 | B186: =ICEIE!B186-ICEIEWC!B186 -> 0.000 | C186: =ICEIE!C186-ICEIEWC!C186 -> 0.000 | D186: =ICEIE!D186-ICEIEWC!D186 -> 0.000
A187: 2024-01-02T22:15:00 | B187: =ICEIE!B187-ICEIEWC!B187 -> 0.000 | C187: =ICEIE!C187-ICEIEWC!C187 -> 0.000 | D187: =ICEIE!D187-ICEIEWC!D187 -> 0.000
A188: 2024-01-02T22:30:00 | B188: =ICEIE!B188-ICEIEWC!B188 -> 0.000 | C188: =ICEIE!C188-ICEIEWC!C188 -> 0.000 | D188: =ICEIE!D188-ICEIEWC!D188 -> 0.000
A189: 2024-01-02T22:45:00 | B189: =ICEIE!B189-ICEIEWC!B189 -> 0.000 | C189: =ICEIE!C189-ICEIEWC!C189 -> 0.000 | D189: =ICEIE!D189-ICEIEWC!D189 -> 0.000
A190: 2024-01-02T23:00:00 | B190: =ICEIE!B190-ICEIEWC!B190 -> 0.000 | C190: =ICEIE!C190-ICEIEWC!C190 -> 0.000 | D190: =ICEIE!D190-ICEIEWC!D190 -> 0.000
A191: 2024-01-02T23:15:00 | B191: =ICEIE!B191-ICEIEWC!B191 -> 0.000 | C191: =ICEIE!C191-ICEIEWC!C191 -> 0.000 | D191: =ICEIE!D191-ICEIEWC!D191 -> 0.000
A192: 2024-01-02T23:30:00 | B192: =ICEIE!B192-ICEIEWC!B192 -> 0.000 | C192: =ICEIE!C192-ICEIEWC!C192 -> 0.000 | D192: =ICEIE!D192-ICEIEWC!D192 -> 0.000
A193: 2024-01-02T23:45:00 | B193: =ICEIE!B193-ICEIEWC!B193 -> 0.000 | C193: =ICEIE!C193-ICEIEWC!C193 -> 0.000 | D193: =ICEIE!D193-ICEIEWC!D193 -> 0.000
A194: 2024-01-03 | B194: =ICEIE!B194-ICEIEWC!B194 -> 0.000 | C194: =ICEIE!C194-ICEIEWC!C194 -> 0.000 | D194: =ICEIE!D194-ICEIEWC!D194 -> 0.000
A195: 2024-01-03T00:15:00 | B195: =ICEIE!B195-ICEIEWC!B195 -> 0.000 | C195: =ICEIE!C195-ICEIEWC!C195 -> 0.000 | D195: =ICEIE!D195-ICEIEWC!D195 -> 0.000
A196: 2024-01-03T00:30:00 | B196: =ICEIE!B196-ICEIEWC!B196 -> 0.000 | C196: =ICEIE!C196-ICEIEWC!C196 -> 0.000 | D196: =ICEIE!D196-ICEIEWC!D196 -> 0.000
A197: 2024-01-03T00:45:00 | B197: =ICEIE!B197-ICEIEWC!B197 -> 0.000 | C197: =ICEIE!C197-ICEIEWC!C197 -> 0.000 | D197: =ICEIE!D197-ICEIEWC!D197 -> 0.000
A198: 2024-01-03T01:00:00 | B198: =ICEIE!B198-ICEIEWC!B198 -> 0.000 | C198: =ICEIE!C198-ICEIEWC!C198 -> 0.000 | D198: =ICEIE!D198-ICEIEWC!D198 -> 0.000
A199: 2024-01-03T01:15:00 | B199: =ICEIE!B199-ICEIEWC!B199 -> 0.000 | C199: =ICEIE!C199-ICEIEWC!C199 -> 0.000 | D199: =ICEIE!D199-ICEIEWC!D199 -> 0.000
A200: 2024-01-03T01:30:00 | B200: =ICEIE!B200-ICEIEWC!B200 -> 0.000 | C200: =ICEIE!C200-ICEIEWC!C200 -> 0.000 | D200: =ICEIE!D200-ICEIEWC!D200 -> 0.000
... 4300 more rows

Sheet GEP
A1: Category | B1: Generation (%) | C1: Emissions (%)
A2: ROI | B2: 69.2 | C2: 71.2
A3: NI | B3: 17.5 | C3: 20.7
A4: Moyle | B4: 6.4 | C4: 4.0
A5: EWIC | B5: 6.8 | C5: 4.2
B8: =B4+B5 -> 13.23 | C8: =C4+C5 -> 8.14

Sheet WSP
A1: DateTime | B1: Price (€) | C1: ROI Cumulative Renewables Unnused (MWh) | D1: Cost
A2: 2024-01-01 | B2: 52.98 | C2: 152.8495 | D2: =B2*C2 -> 8097.96651
A3: 2024-01-01T00:15:00 | B3: 52.98 | C3: 152.8495 | D3: =B3*C3 -> 8097.96651
A4: 2024-01-01T00:30:00 | B4: 52.98 | C4: 145.181 | D4: 7691.68938
A5: 2024-01-01T00:45:00 | B5: 52.98 | C5: 145.181 | D5: 7691.68938
A6: 2024-01-01T01:00:00 | B6: 52.33 | C6: 124.776 | D6: 6529.52808
A7: 2024-01-01T01:15:00 | B7: 52.33 | C7: 124.776 | D7: 6529.52808
A8: 2024-01-01T01:30:00 | B8: 52.33 | C8: 117.73 | D8: 6160.8109
A9: 2024-01-01T01:45:00 | B9: 52.33 | C9: 117.73 | D9: 6160.8109
A10: 2024-01-01T02:00:00 | B10: 36.02 | C10: 99.366 | D10: 3579.16332
A11: 2024-01-01T02:15:00 | B11: 36.02 | C11: 99.366 | D11: 3579.16332
A12: 2024-01-01T02:30:00 | B12: 36.02 | C12: 99.5905 | D12: 3587.24981
A13: 2024-01-01T02:45:00 | B13: 36.02 | C13: 99.5905 | D13: 3587.24981
A14: 2024-01-01T03:00:00 | B14: 31.15 | C14: 115.3365 | D14: 3592.731975
A15: 2024-01-01T03:15:00 | B15: 31.15 | C15: 115.3365 | D15: 3592.731975
A16: 2024-01-01T03:30:00 | B16: 31.15 | C16: 107.083 | D16: 3335.63545
A17: 2024-01-01T03:45:00 | B17: 31.15 | C17: 107.083 | D17: 3335.63545
A18: 2024-01-01T04:00:00 | B18: 30.98 | C18: 98.827 | D18: 3061.66046
A19: 2024-01-01T04:15:00 | B19: 30.98 | C19: 98.827 | D19: 3061.66046
A20: 2024-01-01T04:30:00 | B20: 30.98 | C20: 68.173 | D20: 2111.99954
A21: 2024-01-01T04:45:00 | B21: 30.98 | C21: 68.173 | D21: 2111.99954
A22: 2024-01-01T05:00:00 | B22: 45.87 | C22: 42.249 | D22: 1937.96163
A23: 2024-01-01T05:15:00 | B23: 45.87 | C23: 42.249 | D23: 1937.96163
A24: 2024-01-01T05:30:00 | B24: 45.87 | C24: 12.1335 | D24: 556.563645
A25: 2024-01-01T05:45:00 | B25: 45.87 | C25: 12.1335 | D25: 556.563645
A26: 2024-01-01T06:00:00 | B26: 68.81 | C26: 0 | D26: 0
A27: 2024-01-01T06:15:00 | B27: 68.81 | C27: 0 | D27: 0
A28: 2024-01-01T06:30:00 | B28: 68.81 | C28: 0 | D28: 0
A29: 2024-01-01T06:45:00 | B29: 68.81 | C29: 0 | D29: 0
A30: 2024-01-01T07:00:00 | B30: 78.3 | C30: 0 | D30: 0
A31: 2024-01-01T07:15:00 | B31: 78.3 | C31: 0 | D31: 0
A32: 2024-01-01T07:30:00 | B32: 78.3 | C32: 0 | D32: 0
A33: 2024-01-01T07:45:00 | B33: 78.3 | C33: 0 | D33: 0
A34: 2024-01-01T08:00:00 | B34: 82.76 | C34: 0 | D34: 0
A35: 2024-01-01T08:15:00 | B35: 82.76 | C35: 0 | D35: 0
A36: 2024-01-01T08:30:00 | B36: 82.76 | C36: 0 | D36: 0
A37: 2024-01-01T08:45:00 | B37: 82.76 | C37: 0 | D37: 0
A38: 2024-01-01T09:00:00 | B38: 97.91 | C38: 0 | D38: 0
A39: 2024-01-01T09:15:00 | B39: 97.91 | C39: 0 | D39: 0
A40: 2024-01-01T09:30:00 | B40: 97.91 | C40: 0 | D40: 0
A41: 2024-01-01T09:45:00 | B41: 97.91 | C41: 0 | D41: 0
A42: 2024-01-01T10:00:00 | B42: 139.58 | C42: 0 | D42: 0
A43: 2024-01-01T10:15:00 | B43: 139.58 | C43: 0 | D43: 0
A44: 2024-01-01T10:30:00 | B44: 139.58 | C44: 0 | D44: 0
A45: 2024-01-01T10:45:00 | B45: 139.58 | C45: 0 | D45: 0
A46: 2024-01-01T11:00:00 | B46: 115 | C46: 0 | D46: 0
A47: 2024-01-01T11:15:00 | B47: 115 | C47: 0 | D47: 0
A48: 2024-01-01T11:30:00 | B48: 115 | C48: 0 | D48: 0
A49: 2024-01-01T11:45:00 | B49: 115 | C49: 0 | D49: 0
A50: 2024-01-01T12:00:00 | B50: 125.58 | C50: 0 | D50: 0
A51: 2024-01-01T12:15:00 | B51: 125.58 | C51: 0 | D51: 0
A52: 2024-01-01T12:30:00 | B52: 125.58 | C52: 0 | D52: 0
A53: 2024-01-01T12:45:00 | B53: 125.58 | C53: 0 | D53: 0
A54: 2024-01-01T13:00:00 | B54: 118.72 | C54: 0 | D54: 0
A55: 2024-01-01T13:15:00 | B55: 118.72 | C55: 0 | D55: 0
A56: 2024-01-01T13:30:00 | B56: 118.72 | C56: 0 | D56: 0
A57: 2024-01-01T13:45:00 | B57: 118.72 | C57: 0 | D57: 0
A58: 2024-01-01T14:00:00 | B58: 106.43 | C58: 33.73 | D58: 3589.8839
A59: 2024-01-01T14:15:00 | B59: 106.43 | C59: 33.73 | D59: 3589.8839
A60: 2024-01-01T14:30:00 | B60: 106.43 | C60: 62.055 | D60: 6604.51365
A61: 2024-01-01T14:45:00 | B61: 106.43 | C61: 62.055 | D61: 6604.51365
A62: 2024-01-01T15:00:00 | B62: 100 | C62: 10.345 | D62: 1034.5
A63: 2024-01-01T15:15:00 | B63: 100 | C63: 10.345 | D63: 1034.5
A64: 2024-01-01T15:30:00 | B64: 100 | C64: 1.765 | D64: 176.5
A65: 2024-01-01T15:45:00 | B65: 100 | C65: 1.765 | D65: 176.5
A66: 2024-01-01T16:00:00 | B66: 115 | C66: 0 | D66: 0
A67: 2024-01-01T16:15:00 | B67: 115 | C67: 0 | D67: =B67*C67 -> 0
A68: 2024-01-01T16:30:00 | B68: 115 | C68: 0.876 | D68: 100.74
A69: 2024-01-01T16:45:00 | B69: 115 | C69: 0.876 | D69: 100.74
A70: 2024-01-01T17:00:00 | B70: 125 | C70: 3.3505 | D70: 418.8125
A71: 2024-01-01T17:15:00 | B71: 125 | C71: 3.3505 | D71: 418.8125
A72: 2024-01-01T17:30:00 | B72: 125 | C72: 9.1805 | D72: 1147.5625
A73: 2024-01-01T17:45:00 | B73: 125 | C73: 9.1805 | D73: 1147.5625
A74: 2024-01-01T18:00:00 | B74: 102.53 | C74: 8.5125 | D74: 872.786625
A75: 2024-01-01T18:15:00 | B75: 102.53 | C75: 8.5125 | D75: 872.786625
A76: 2024-01-01T18:30:00 | B76: 102.53 | C76: 7.498 | D76: 768.76994
A77: 2024-01-01T18:45:00 | B77: 102.53 | C77: 7.498 | D77: 768.76994
A78: 2024-01-01T19:00:00 | B78: 85.61 | C78: 40.396 | D78: 3458.30156
A79: 2024-01-01T19:15:00 | B79: 85.61 | C79: 40.396 | D79: 3458.30156
A80: 2024-01-01T19:30:00 | B80: 85.61 | C80: 101.8755 | D80: 8721.561555
A81: 2024-01-01T19:45:00 | B81: 85.61 | C81: 101.8755 | D81: 8721.561555
A82: 2024-01-01T20:00:00 | B82: 74.12 | C82: 95.5085 | D82: 7079.09002
A83: 2024-01-01T20:15:00 | B83: 74.12 | C83: 95.5085 | D83: 7079.09002
A84: 2024-01-01T20:30:00 | B84: 74.12 | C84: 127.1525 | D84: 9424.5433
A85: 2024-01-01T20:45:00 | B85: 74.12 | C85: 127.1525 | D85: 9424.5433
A86: 2024-01-01T21:00:00 | B86: 65.97 | C86: 167.997 | D86: 11082.76209
A87: 2024-01-01T21:15:00 | B87: 65.97 | C87: 167.997 | D87: 11082.76209
A88: 2024-01-01T21:30:00 | B88: 65.97 | C88: 209.6125 | D88: 13828.13662
A89: 2024-01-01T21:45:00 | B89: 65.97 | C89: 209.6125 | D89: 13828.13662
A90: 2024-01-01T22:00:00 | B90: 40.7 | C90: 196.778 | D90: 8008.8646
A91: 2024-01-01T22:15:00 | B91: 40.7 | C91: 196.778 | D91: 8008.8646
A92: 2024-01-01T22:30:00 | B92: 40.7 | C92: 198.345 | D92: 8072.6415
A93: 2024-01-01T22:45:00 | B93: 40.7 | C93: 198.345 | D93: 8072.6415
A94: 2024-01-01T23:00:00 | B94: 30 | C94: 225.352 | D94: 6760.56
A95: 2024-01-01T23:15:00 | B95: 30 | C95: 225.352 | D95: 6760.56
A96: 2024-01-01T23:30:00 | B96: 30 | C96: 287.7475 | D96: 8632.425
A97: 2024-01-01T23:45:00 | B97: 30 | C97: 287.7475 | D97: 8632.425
A98: 2024-01-02 | B98: 28.39 | C98: 309.69 | D98: 8792.0991
A99: 2024-01-02T00:15:00 | B99: 28.39 | C99: 309.69 | D99: 8792.0991
A100: 2024-01-02T00:30:00 | B100: 28.39 | C100: 297.16 | D100: 8436.3724
A101: 2024-01-02T00:45:00 | B101: 28.39 | C101: 297.16 | D101: 8436.3724
A102: 2024-01-02T01:00:00 | B102: 35 | C102: 324.055 | D102: 11341.925
A103: 2024-01-02T01:15:00 | B103: 35 | C103: 324.055 | D103: 11341.925
A104: 2024-01-02T01:30:00 | B104: 35 | C104: 341.705 | D104: 11959.675
A105: 2024-01-02T01:45:00 | B105: 35 | C105: 341.705 | D105: 11959.675
A106: 2024-01-02T02:00:00 | B106: 44.82 | C106: 348.455 | D106: 15617.7531
A107: 2024-01-02T02:15:00 | B107: 44.82 | C107: 348.455 | D107: 15617.7531
A108: 2024-01-02T02:30:00 | B108: 44.82 | C108: 356.79 | D108: 15991.3278
A109: 2024-01-02T02:45:00 | B109: 44.82 | C109: 356.79 | D109: 15991.3278
A110: 2024-01-02T03:00:00 | B110: 51.87 | C110: 333.62 | D110: 17304.8694
A111: 2024-01-02T03:15:00 | B111: 51.87 | C111: 333.62 | D111: 17304.8694
A112: 2024-01-02T03:30:00 | B112: 51.87 | C112: 322.635 | D112: 16735.07745
A113: 2024-01-02T03:45:00 | B113: 51.87 | C113: 322.635 | D113: 16735.07745
A114: 2024-01-02T04:00:00 | B114: 68.94 | C114: 288.68 | D114: 19901.5992
A115: 2024-01-02T04:15:00 | B115: 68.94 | C115: 288.68 | D115: 19901.5992
A116: 2024-01-02T04:30:00 | B116: 68.94 | C116: 254.175 | D116: 17522.8245
A117: 2024-01-02T04:45:00 | B117: 68.94 | C117: 254.175 | D117: 17522.8245
A118: 2024-01-02T05:00:00 | B118: 90 | C118: 227.31 | D118: 20457.9
A119: 2024-01-02T05:15:00 | B119: 90 | C119: 227.31 | D119: 20457.9
A120: 2024-01-02T05:30:00 | B120: 90 | C120: 183.14 | D120: 16482.6
A121: 2024-01-02T05:45:00 | B121: 90 | C121: 183.14 | D121: 16482.6
A122: 2024-01-02T06:00:00 | B122: 110 | C122: 58.95 | D122: 6484.5
A123: 2024-01-02T06:15:00 | B123: 110 | C123: 58.95 | D123: 6484.5
A124: 2024-01-02T06:30:00 | B124: 110 | C124: 19.19 | D124: 2110.9
A125: 2024-01-02T06:45:00 | B125: 110 | C125: 19.19 | D125: 2110.9
A126: 2024-01-02T07:00:00 | B126: 121.02 | C126: 8.05 | D126: 974.211
A127: 2024-01-02T07:15:00 | B127: 121.02 | C127: 8.05 | D127: 974.211
A128: 2024-01-02T07:30:00 | B128: 121.02 | C128: 0.87 | D128: 105.2874
A129: 2024-01-02T07:45:00 | B129: 121.02 | C129: 0.87 | D129: 105.2874
A130: 2024-01-02T08:00:00 | B130: 140.4 | C130: 0 | D130: 0
A131: 2024-01-02T08:15:00 | B131: 140.4 | C131: 0 | D131: =B131*C131 -> 0
A132: 2024-01-02T08:30:00 | B132: 140.4 | C132: 0 | D132: 0
A133: 2024-01-02T08:45:00 | B133: 140.4 | C133: 0 | D133: 0
A134: 2024-01-02T09:00:00 | B134: 150 | C134: 0 | D134: 0
A135: 2024-01-02T09:15:00 | B135: 150 | C135: 0 | D135: 0
A136: 2024-01-02T09:30:00 | B136: 150 | C136: 0 | D136: 0
A137: 2024-01-02T09:45:00 | B137: 150 | C137: 0 | D137: 0
A138: 2024-01-02T10:00:00 | B138: 135.7 | C138: 0 | D138: 0
A139: 2024-01-02T10:15:00 | B139: 135.7 | C139: 0 | D139: 0
A140: 2024-01-02T10:30:00 | B140: 135.7 | C140: 0 | D140: 0
A141: 2024-01-02T10:45:00 | B141: 135.7 | C141: 0 | D141: 0
A142: 2024-01-02T11:00:00 | B142: 119.66 | C142: 0 | D142: 0
A143: 2024-01-02T11:15:00 | B143: 119.66 | C143: 0 | D143: 0
A144: 2024-01-02T11:30:00 | B144: 119.66 | C144: 0 | D144: 0
A145: 2024-01-02T11:45:00 | B145: 119.66 | C145: 0 | D145: 0
A146: 2024-01-02T12:00:00 | B146: 115 | C146: 0 | D146: 0
A147: 2024-01-02T12:15:00 | B147: 115 | C147: 0 | D147: 0
A148: 2024-01-02T12:30:00 | B148: 115 | C148: 0 | D148: 0
A149: 2024-01-02T12:45:00 | B149: 115 | C149: 0 | D149: 0
A150: 2024-01-02T13:00:00 | B150: 109 | C150: 2.855 | D150: 311.195
A151: 2024-01-02T13:15:00 | B151: 109 | C151: 2.855 | D151: 311.195
A152: 2024-01-02T13:30:00 | B152: 109 | C152: 4.516 | D152: 492.244
A153: 2024-01-02T13:45:00 | B153: 109 | C153: 4.516 | D153: 492.244
A154: 2024-01-02T14:00:00 | B154: 99 | C154: 3.142 | D154: 311.058
A155: 2024-01-02T14:15:00 | B155: 99 | C155: 3.142 | D155: 311.058
A156: 2024-01-02T14:30:00 | B156: 99 | C156: 4.4835 | D156: 443.8665
A157: 2024-01-02T14:45:00 | B157: 99 | C157: 4.4835 | D157: 443.8665
A158: 2024-01-02T15:00:00 | B158: 95.73 | C158: 5.4595 | D158: 522.637935
A159: 2024-01-02T15:15:00 | B159: 95.73 | C159: 5.4595 | D159: 522.637935
A160: 2024-01-02T15:30:00 | B160: 95.73 | C160: 5.234 | D160: 501.05082
A161: 2024-01-02T15:45:00 | B161: 95.73 | C161: 5.234 | D161: 501.05082
A162: 2024-01-02T16:00:00 | B162: 110 | C162: 5.7505 | D162: 632.555
A163: 2024-01-02T16:15:00 | B163: 110 | C163: 5.7505 | D163: 632.555
A164: 2024-01-02T16:30:00 | B164: 110 | C164: 6.0565 | D164: 666.215
A165: 2024-01-02T16:45:00 | B165: 110 | C165: 6.0565 | D165: 666.215
A166: 2024-01-02T17:00:00 | B166: 125.63 | C166: 6.7375 | D166: 846.432125
A167: 2024-01-02T17:15:00 | B167: 125.63 | C167: 6.7375 | D167: 846.432125
A168: 2024-01-02T17:30:00 | B168: 125.63 | C168: 7.0065 | D168: 880.226595
A169: 2024-01-02T17:45:00 | B169: 125.63 | C169: 7.0065 | D169: 880.226595
A170: 2024-01-02T18:00:00 | B170: 115 | C170: 7.305 | D170: 840.075
A171: 2024-01-02T18:15:00 | B171: 115 | C171: 7.305 | D171: 840.075
A172: 2024-01-02T18:30:00 | B172: 115 | C172: 7.5385 | D172: 866.9275
A173: 2024-01-02T18:45:00 | B173: 115 | C173: 7.5385 | D173: 866.9275
A174: 2024-01-02T19:00:00 | B174: 101.43 | C174: 7.4515 | D174: 755.805645
A175: 2024-01-02T19:15:00 | B175: 101.43 | C175: 7.4515 | D175: 755.805645
A176: 2024-01-02T19:30:00 | B176: 101.43 | C176: 7.5775 | D176: 768.585825
A177: 2024-01-02T19:45:00 | B177: 101.43 | C177: 7.5775 | D177: 768.585825
A178: 2024-01-02T20:00:00 | B178: 97.09 | C178: 7.378 | D178: 716.33002
A179: 2024-01-02T20:15:00 | B179: 97.09 | C179: 7.378 | D179: 716.33002
A180: 2024-01-02T20:30:00 | B180: 97.09 | C180: 8.1105 | D180: 787.448445
A181: 2024-01-02T20:45:00 | B181: 97.09 | C181: 8.1105 | D181: 787.448445
A182: 2024-01-02T21:00:00 | B182: 87.16 | C182: 7.2035 | D182: 627.85706
A183: 2024-01-02T21:15:00 | B183: 87.16 | C183: 7.2035 | D183: 627.85706
A184: 2024-01-02T21:30:00 | B184: 87.16 | C184: 8.418 | D184: 733.71288
A185: 2024-01-02T21:45:00 | B185: 87.16 | C185: 8.418 | D185: 733.71288
A186: 2024-01-02T22:00:00 | B186: 76.9 | C186: 8.1945 | D186: 630.15705
A187: 2024-01-02T22:15:00 | B187: 76.9 | C187: 8.1945 | D187: 630.15705
A188: 2024-01-02T22:30:00 | B188: 76.9 | C188: 8.1625 | D188: 627.69625
A189: 2024-01-02T22:45:00 | B189: 76.9 | C189: 8.1625 | D189: 627.69625
A190: 2024-01-02T23:00:00 | B190: 77.41 | C190: 11.5495 | D190: 894.046795
A191: 2024-01-02T23:15:00 | B191: 77.41 | C191: 11.5495 | D191: 894.046795
A192: 2024-01-02T23:30:00 | B192: 77.41 | C192: 10.821 | D192: 837.65361
A193: 2024-01-02T23:45:00 | B193: 77.41 | C193: 10.821 | D193: 837.65361
A194: 2024-01-03 | B194: 81.12 | C194: 0 | D194: 0
A195: 2024-01-03T00:15:00 | B195: 81.12 | C195: 0 | D195: =B195*C195 -> 0
A196: 2024-01-03T00:30:00 | B196: 81.12 | C196: 0 | D196: 0
A197: 2024-01-03T00:45:00 | B197: 81.12 | C197: 0 | D197: 0
A198: 2024-01-03T01:00:00 | B198: 79.58 | C198: 0 | D198: 0
A199: 2024-01-03T01:15:00 | B199: 79.58 | C199: 0 | D199: 0
A200: 2024-01-03T01:30:00 | B200: 79.58 | C200: 0 | D200: 0
... 4300 more rows

Sheet ICEUCC
A1: DateTime | B1: Moyle Replacement Emissions (tCO2) | C1: EWIC Replacement Emissions (tCO2) | D1: AI Replacement Emissions (tCO2)
A2: 2024-01-01 | B2: 0.000 | C2: 0.000 | D2: 0.000
A3: 2024-01-01T00:15:00 | B3: 0.000 | C3: 0.000 | D3: 0.000
A4: 2024-01-01T00:30:00 | B4: 0.000 | C4: 0.000 | D4: 0.000
A5: 2024-01-01T00:45:00 | B5: 0.000 | C5: 0.000 | D5: 0.000
A6: 2024-01-01T01:00:00 | B6: 0.000 | C6: 0.000 | D6: 0.000
A7: 2024-01-01T01:15:00 | B7: 0.000 | C7: 0.000 | D7: 0.000
A8: 2024-01-01T01:30:00 | B8: 0.000 | C8: 0.000 | D8: 0.000
A9: 2024-01-01T01:45:00 | B9: 0.000 | C9: 0.000 | D9: 0.000
A10: 2024-01-01T02:00:00 | B10: 0.000 | C10: 0.000 | D10: 0.000
A11: 2024-01-01T02:15:00 | B11: 0.000 | C11: 0.000 | D11: 0.000
A12: 2024-01-01T02:30:00 | B12: 0.000 | C12: 0.000 | D12: 0.000
A13: 2024-01-01T02:45:00 | B13: 0.000 | C13: 0.000 | D13: 0.000
A14: 2024-01-01T03:00:00 | B14: 0.000 | C14: 0.000 | D14: 0.000
A15: 2024-01-01T03:15:00 | B15: 0.000 | C15: 0.000 | D15: 0.000
A16: 2024-01-01T03:30:00 | B16: 0.000 | C16: 0.222 | D16: 0.222
A17: 2024-01-01T03:45:00 | B17: 0.000 | C17: 1.343 | D17: 1.343
A18: 2024-01-01T04:00:00 | B18: 0.000 | C18: 1.174 | D18: 1.174
A19: 2024-01-01T04:15:00 | B19: 0.000 | C19: 0.551 | D19: 0.551
A20: 2024-01-01T04:30:00 | B20: 0.000 | C20: 2.726 | D20: 2.726
A21: 2024-01-01T04:45:00 | B21: 0.000 | C21: 3.441 | D21: 3.441
A22: 2024-01-01T05:00:00 | B22: 0.000 | C22: 5.234 | D22: 5.234
A23: 2024-01-01T05:15:00 | B23: 0.000 | C23: 5.234 | D23: 5.234
A24: 2024-01-01T05:30:00 | B24: 0.046 | C24: 7.342 | D24: 7.388
A25: 2024-01-01T05:45:00 | B25: 0.046 | C25: 7.342 | D25: 7.388
A26: 2024-01-01T06:00:00 | B26: 1.326 | C26: 7.950 | D26: 9.276
A27: 2024-01-01T06:15:00 | B27: 1.326 | C27: 7.950 | D27: 9.276
A28: 2024-01-01T06:30:00 | B28: 1.998 | C28: 8.347 | D28: 10.345
A29: 2024-01-01T06:45:00 | B29: 1.997 | C29: 8.347 | D29: 10.344
A30: 2024-01-01T07:00:00 | B30: 3.151 | C30: 8.082 | D30: 11.233
A31: 2024-01-01T07:15:00 | B31: 3.151 | C31: 8.082 | D31: 11.233
A32: 2024-01-01T07:30:00 | B32: 3.976 | C32: 8.214 | D32: 12.190
A33: 2024-01-01T07:45:00 | B33: 4.981 | C33: 8.214 | D33: 13.195
A34: 2024-01-01T08:00:00 | B34: 3.803 | C34: 7.419 | D34: 11.222
A35: 2024-01-01T08:15:00 | B35: 3.802 | C35: 7.418 | D35: 11.221
A36: 2024-01-01T08:30:00 | B36: 3.326 | C36: 6.491 | D36: 9.817
A37: 2024-01-01T08:45:00 | B37: 3.326 | C37: 6.491 | D37: 9.817
A38: 2024-01-01T09:00:00 | B38: 3.504 | C38: 6.359 | D38: 9.863
A39: 2024-01-01T09:15:00 | B39: 3.504 | C39: 6.359 | D39: 9.863
A40: 2024-01-01T09:30:00 | B40: 4.620 | C40: 6.624 | D40: 11.244
A41: 2024-01-01T09:45:00 | B41: 4.620 | C41: 6.624 | D41: 11.244
A42: 2024-01-01T10:00:00 | B42: 5.034 | C42: 6.889 | D42: 11.923
A43: 2024-01-01T10:15:00 | B43: 4.261 | C43: 6.889 | D43: 11.150
A44: 2024-01-01T10:30:00 | B44: 4.895 | C44: 7.552 | D44: 12.446
A45: 2024-01-01T10:45:00 | B45: 4.895 | C45: 7.552 | D45: 12.446
A46: 2024-01-01T11:00:00 | B46: 5.496 | C46: 8.480 | D46: 13.976
A47: 2024-01-01T11:15:00 | B47: 5.034 | C47: 8.480 | D47: 13.514
A48: 2024-01-01T11:30:00 | B48: 5.579 | C48: 9.805 | D48: 15.384
A49: 2024-01-01T11:45:00 | B49: 5.597 | C49: 9.805 | D49: 15.402
A50: 2024-01-01T12:00:00 | B50: 6.702 | C50: 11.130 | D50: 17.831
A51: 2024-01-01T12:15:00 | B51: 6.726 | C51: 11.130 | D51: 17.855
A52: 2024-01-01T12:30:00 | B52: 7.722 | C52: 12.455 | D52: 20.176
A53: 2024-01-01T12:45:00 | B53: 7.546 | C53: 12.454 | D53: 20.000
A54: 2024-01-01T13:00:00 | B54: 7.001 | C54: 13.780 | D54: 20.781
A55: 2024-01-01T13:15:00 | B55: 6.748 | C55: 13.766 | D55: 20.514
A56: 2024-01-01T13:30:00 | B56: 6.129 | C56: 13.656 | D56: 19.785
A57: 2024-01-01T13:45:00 | B57: 5.982 | C57: 12.876 | D57: 18.858
A58: 2024-01-01T14:00:00 | B58: 6.507 | C58: 11.246 | D58: 17.753
A59: 2024-01-01T14:15:00 | B59: 6.637 | C59: 10.944 | D59: 17.582
A60: 2024-01-01T14:30:00 | B60: 5.411 | C60: 5.678 | D60: 11.089
A61: 2024-01-01T14:45:00 | B61: 5.429 | C61: 4.137 | D61: 9.566
A62: 2024-01-01T15:00:00 | B62: 5.095 | C62: 10.613 | D62: 15.709
A63: 2024-01-01T15:15:00 | B63: 5.119 | C63: 8.659 | D63: 13.778
A64: 2024-01-01T15:30:00 | B64: 6.654 | C64: 7.685 | D64: 14.339
A65: 2024-01-01T15:45:00 | B65: 4.481 | C65: 5.472 | D65: 9.953
A66: 2024-01-01T16:00:00 | B66: 2.249 | C66: 3.468 | D66: 5.716
A67: 2024-01-01T16:15:00 | B67: 1.281 | C67: 1.255 | D67: 2.536
A68: 2024-01-01T16:30:00 | B68: 3.353 | C68: 0.000 | D68: 3.353
A69: 2024-01-01T16:45:00 | B69: 5.213 | C69: 0.000 | D69: 5.213
A70: 2024-01-01T17:00:00 | B70: 2.998 | C70: 0.000 | D70: 2.998
A71: 2024-01-01T17:15:00 | B71: 3.002 | C71: 0.000 | D71: 3.002
A72: 2024-01-01T17:30:00 | B72: 1.657 | C72: 0.000 | D72: 1.657
A73: 2024-01-01T17:45:00 | B73: 0.474 | C73: 0.000 | D73: 0.474
A74: 2024-01-01T18:00:00 | B74: 0.000 | C74: 0.000 | D74: 0.000
A75: 2024-01-01T18:15:00 | B75: 0.000 | C75: 0.000 | D75: 0.000
A76: 2024-01-01T18:30:00 | B76: 0.000 | C76: 0.137 | D76: 0.137
A77: 2024-01-01T18:45:00 | B77: 0.000 | C77: 1.215 | D77: 1.215
A78: 2024-01-01T19:00:00 | B78: 0.000 | C78: 0.000 | D78: 0.000
A79: 2024-01-01T19:15:00 | B79: 0.000 | C79: 0.000 | D79: 0.000
A80: 2024-01-01T19:30:00 | B80: 0.000 | C80: 0.000 | D80: 0.000
A81: 2024-01-01T19:45:00 | B81: 0.000 | C81: 0.000 | D81: 0.000
A82: 2024-01-01T20:00:00 | B82: 0.000 | C82: 0.000 | D82: 0.000
A83: 2024-01-01T20:15:00 | B83: 0.000 | C83: 0.000 | D83: 0.000
A84: 2024-01-01T20:30:00 | B84: 0.000 | C84: 0.000 | D84: 0.000
A85: 2024-01-01T20:45:00 | B85: 0.000 | C85: 0.000 | D85: 0.000
A86: 2024-01-01T21:00:00 | B86: 0.000 | C86: 0.000 | D86: 0.000
A87: 2024-01-01T21:15:00 | B87: 0.000 | C87: 0.000 | D87: 0.000
A88: 2024-01-01T21:30:00 | B88: 0.373 | C88: 0.000 | D88: 0.373
A89: 2024-01-01T21:45:00 | B89: 0.000 | C89: 0.000 | D89: 0.000
A90: 2024-01-01T22:00:00 | B90: 0.706 | C90: 0.000 | D90: 0.706
A91: 2024-01-01T22:15:00 | B91: 0.000 | C91: 0.000 | D91: 0.000
A92: 2024-01-01T22:30:00 | B92: 0.679 | C92: 0.000 | D92: 0.679
A93: 2024-01-01T22:45:00 | B93: 1.487 | C93: 0.000 | D93: 1.487
A94: 2024-01-01T23:00:00 | B94: 1.613 | C94: 0.000 | D94: 1.613
A95: 2024-01-01T23:15:00 | B95: 2.523 | C95: 0.000 | D95: 2.523
A96: 2024-01-01T23:30:00 | B96: 0.431 | C96: 0.000 | D96: 0.431
A97: 2024-01-01T23:45:00 | B97: 0.754 | C97: 0.000 | D97: 0.754
A98: 2024-01-02 | B98: 0.000 | C98: 0.000 | D98: 0.000
A99: 2024-01-02T00:15:00 | B99: 0.000 | C99: 0.000 | D99: 0.000
A100: 2024-01-02T00:30:00 | B100: 0.000 | C100: 0.000 | D100: 0.000
A101: 2024-01-02T00:45:00 | B101: 0.000 | C101: 0.000 | D101: 0.000
A102: 2024-01-02T01:00:00 | B102: 0.000 | C102: 0.000 | D102: 0.000
A103: 2024-01-02T01:15:00 | B103: 0.000 | C103: 0.000 | D103: 0.000
A104: 2024-01-02T01:30:00 | B104: 0.000 | C104: 0.000 | D104: 0.000
A105: 2024-01-02T01:45:00 | B105: 0.000 | C105: 0.000 | D105: 0.000
A106: 2024-01-02T02:00:00 | B106: 0.000 | C106: 0.000 | D106: 0.000
A107: 2024-01-02T02:15:00 | B107: 0.000 | C107: 0.000 | D107: 0.000
A108: 2024-01-02T02:30:00 | B108: 0.000 | C108: 0.000 | D108: 0.000
A109: 2024-01-02T02:45:00 | B109: 0.000 | C109: 0.000 | D109: 0.000
A110: 2024-01-02T03:00:00 | B110: 0.000 | C110: 0.000 | D110: 0.000
A111: 2024-01-02T03:15:00 | B111: 0.000 | C111: 0.000 | D111: 0.000
A112: 2024-01-02T03:30:00 | B112: 0.000 | C112: 0.000 | D112: 0.000
A113: 2024-01-02T03:45:00 | B113: 0.000 | C113: 0.000 | D113: 0.000
A114: 2024-01-02T04:00:00 | B114: 0.000 | C114: 0.000 | D114: 0.000
A115: 2024-01-02T04:15:00 | B115: 0.000 | C115: 0.000 | D115: 0.000
A116: 2024-01-02T04:30:00 | B116: 0.107 | C116: 0.000 | D116: 0.107
A117: 2024-01-02T04:45:00 | B117: 0.107 | C117: 0.000 | D117: 0.107
A118: 2024-01-02T05:00:00 | B118: 1.520 | C118: 0.000 | D118: 1.520
A119: 2024-01-02T05:15:00 | B119: 1.520 | C119: 0.000 | D119: 1.520
A120: 2024-01-02T05:30:00 | B120: 3.371 | C120: 0.000 | D120: 3.371
A121: 2024-01-02T05:45:00 | B121: 3.371 | C121: 0.000 | D121: 3.371
A122: 2024-01-02T06:00:00 | B122: 5.414 | C122: 5.221 | D122: 10.636
A123: 2024-01-02T06:15:00 | B123: 5.414 | C123: 5.222 | D123: 10.636
A124: 2024-01-02T06:30:00 | B124: 6.733 | C124: 9.404 | D124: 16.137
A125: 2024-01-02T06:45:00 | B125: 7.027 | C125: 9.405 | D125: 16.431
A126: 2024-01-02T07:00:00 | B126: 9.775 | C126: 11.947 | D126: 21.721
A127: 2024-01-02T07:15:00 | B127: 10.604 | C127: 11.947 | D127: 22.551
A128: 2024-01-02T07:30:00 | B128: 11.929 | C128: 14.216 | D128: 26.145
A129: 2024-01-02T07:45:00 | B129: 11.929 | C129: 14.216 | D129: 26.144
A130: 2024-01-02T08:00:00 | B130: 11.375 | C130: 13.647 | D130: 25.022
A131: 2024-01-02T08:15:00 | B131: 11.374 | C131: 13.647 | D131: 25.022
A132: 2024-01-02T08:30:00 | B132: 12.478 | C132: 14.972 | D132: 27.450
A133: 2024-01-02T08:45:00 | B133: 12.478 | C133: 14.972 | D133: 27.450
A134: 2024-01-02T09:00:00 | B134: 13.251 | C134: 15.899 | D134: 29.151
A135: 2024-01-02T09:15:00 | B135: 13.251 | C135: 15.899 | D135: 29.150
A136: 2024-01-02T09:30:00 | B136: 14.245 | C136: 17.092 | D136: 31.336
A137: 2024-01-02T09:45:00 | B137: 14.245 | C137: 17.092 | D137: 31.337
A138: 2024-01-02T10:00:00 | B138: 15.019 | C138: 18.019 | D138: 33.038
A139: 2024-01-02T10:15:00 | B139: 15.018 | C139: 18.019 | D139: 33.037
A140: 2024-01-02T10:30:00 | B140: 15.570 | C140: 18.682 | D140: 34.252
A141: 2024-01-02T10:45:00 | B141: 15.570 | C141: 18.682 | D141: 34.252
A142: 2024-01-02T11:00:00 | B142: 16.230 | C142: 19.476 | D142: 35.707
A143: 2024-01-02T11:15:00 | B143: 16.231 | C143: 19.477 | D143: 35.708
A144: 2024-01-02T11:30:00 | B144: 15.831 | C144: 19.344 | D144: 35.175
A145: 2024-01-02T11:45:00 | B145: 15.832 | C145: 18.972 | D145: 34.804
A146: 2024-01-02T12:00:00 | B146: 14.719 | C146: 16.889 | D146: 31.609
A147: 2024-01-02T12:15:00 | B147: 14.720 | C147: 14.095 | D147: 28.815
A148: 2024-01-02T12:30:00 | B148: 16.128 | C148: 12.119 | D148: 28.247
A149: 2024-01-02T12:45:00 | B149: 16.129 | C149: 9.271 | D149: 25.400
A150: 2024-01-02T13:00:00 | B150: 16.447 | C150: 6.004 | D150: 22.451
A151: 2024-01-02T13:15:00 | B151: 16.321 | C151: 3.117 | D151: 19.438
A152: 2024-01-02T13:30:00 | B152: 14.837 | C152: 2.645 | D152: 17.482
A153: 2024-01-02T13:45:00 | B153: 14.764 | C153: 1.715 | D153: 16.479
A154: 2024-01-02T14:00:00 | B154: 14.242 | C154: 0.000 | D154: 14.242
A155: 2024-01-02T14:15:00 | B155: 13.824 | C155: 0.278 | D155: 14.101
A156: 2024-01-02T14:30:00 | B156: 11.119 | C156: 2.779 | D156: 13.898
A157: 2024-01-02T14:45:00 | B157: 10.549 | C157: 3.282 | D157: 13.831
A158: 2024-01-02T15:00:00 | B158: 9.856 | C158: 2.558 | D158: 12.414
A159: 2024-01-02T15:15:00 | B159: 9.884 | C159: 5.308 | D159: 15.193
A160: 2024-01-02T15:30:00 | B160: 9.380 | C160: 8.062 | D160: 17.443
A161: 2024-01-02T15:45:00 | B161: 11.238 | C161: 10.818 | D161: 22.056
A162: 2024-01-02T16:00:00 | B162: 13.072 | C162: 10.653 | D162: 23.725
A163: 2024-01-02T16:15:00 | B163: 13.443 | C163: 10.081 | D163: 23.523
A164: 2024-01-02T16:30:00 | B164: 11.661 | C164: 11.231 | D164: 22.892
A165: 2024-01-02T16:45:00 | B165: 11.007 | C165: 13.894 | D165: 24.901
A166: 2024-01-02T17:00:00 | B166: 13.202 | C166: 16.344 | D166: 29.545
A167: 2024-01-02T17:15:00 | B167: 13.262 | C167: 17.731 | D167: 30.992
A168: 2024-01-02T17:30:00 | B168: 12.664 | C168: 17.443 | D168: 30.107
A169: 2024-01-02T17:45:00 | B169: 12.664 | C169: 17.443 | D169: 30.107
A170: 2024-01-02T18:00:00 | B170: 11.833 | C170: 16.776 | D170: 28.609
A171: 2024-01-02T18:15:00 | B171: 11.833 | C171: 16.775 | D171: 28.608
A172: 2024-01-02T18:30:00 | B172: 11.079 | C172: 16.244 | D172: 27.323
A173: 2024-01-02T18:45:00 | B173: 11.079 | C173: 16.244 | D173: 27.324
A174: 2024-01-02T19:00:00 | B174: 10.575 | C174: 15.881 | D174: 26.456
A175: 2024-01-02T19:15:00 | B175: 10.575 | C175: 15.880 | D175: 26.455
A176: 2024-01-02T19:30:00 | B176: 9.923 | C176: 15.115 | D176: 25.038
A177: 2024-01-02T19:45:00 | B177: 9.923 | C177: 15.115 | D177: 25.038
A178: 2024-01-02T20:00:00 | B178: 9.382 | C178: 14.013 | D178: 23.395
A179: 2024-01-02T20:15:00 | B179: 9.382 | C179: 14.013 | D179: 23.394
A180: 2024-01-02T20:30:00 | B180: 8.499 | C180: 12.687 | D180: 21.186
A181: 2024-01-02T20:45:00 | B181: 8.499 | C181: 12.687 | D181: 21.186
A182: 2024-01-02T21:00:00 | B182: 8.089 | C182: 12.028 | D182: 20.117
A183: 2024-01-02T21:15:00 | B183: 8.089 | C183: 12.028 | D183: 20.118
A184: 2024-01-02T21:30:00 | B184: 7.144 | C184: 10.671 | D184: 17.815
A185: 2024-01-02T21:45:00 | B185: 7.144 | C185: 10.671 | D185: 17.815
A186: 2024-01-02T22:00:00 | B186: 6.282 | C186: 9.323 | D186: 15.605
A187: 2024-01-02T22:15:00 | B187: 6.283 | C187: 9.323 | D187: 15.605
A188: 2024-01-02T22:30:00 | B188: 5.686 | C188: 8.579 | D188: 14.265
A189: 2024-01-02T22:45:00 | B189: 5.686 | C189: 8.579 | D189: 14.265
A190: 2024-01-02T23:00:00 | B190: 3.663 | C190: 8.065 | D190: 11.728
A191: 2024-01-02T23:15:00 | B191: 3.662 | C191: 7.269 | D191: 10.931
A192: 2024-01-02T23:30:00 | B192: 3.366 | C192: 8.199 | D192: 11.565
A193: 2024-01-02T23:45:00 | B193: 2.784 | C193: 8.517 | D193: 11.301
A194: 2024-01-03 | B194: 4.834 | C194: 9.142 | D194: 13.976
A195: 2024-01-03T00:15:00 | B195: 4.566 | C195: 8.559 | D195: 13.125
A196: 2024-01-03T00:30:00 | B196: 5.071 | C196: 7.355 | D196: 12.426
A197: 2024-01-03T00:45:00 | B197: 5.073 | C197: 6.370 | D197: 11.443
A198: 2024-01-03T01:00:00 | B198: 4.865 | C198: 6.202 | D198: 11.067
A199: 2024-01-03T01:15:00 | B199: 4.866 | C199: 7.475 | D199: 12.341
A200: 2024-01-03T01:30:00 | B200: 4.834 | C200: 8.438 | D200: 13.272
... 4300 more rows

Sheet ROI Codes
B2: WCI | D2: Weekly Average Carbon Intensity for gb, roi and tie line imports. Note that for the tieline, this is just what emissions would be if we imported, this does not mean we are importing
B3: HCI | D3: Hourly Average Carbon Intensity for gb, roi and tie line imports. Note that for the tieline
B4: WIAF | D4: Average interconnector weekly flows for EWIC and Tie-line.
B5: EFTLEW | D5: Carbon emissions embedded in ewic and tie line flows
B6: DEETLEW | D6: Carbon emissions from equivalent domestic gen replacing the interconnectors
B7: ESEWTL | D7: emissions saved from using ewic and tie line compared to domestic equivalent
B8: EWCRRTL | D8: Emissions from scenario where tie line flow is replaced by domestic renewable curtailed and constrained where possible, then they replace the ewic, and then any extra is picked up by the ICs
B9: ECTLVCEDG | D9: Comparison of the emissions from the tie line vs substiuting tie line flows with curtailed and constrained elec, and replacing the rest with domestic gen
B10: ECEWVCEDG | D10: Comparison of the emissions from the ewic vs substiuting ewic line flows with curtailed and constrained elec, and replacing the rest with domestic gen
B11: GEPS | D11: Percent of generation by source and percent of emissions by source

Sheet WCI
A1: Week | B1: ROI Carbon Intensity (gCO2/kWh) | C1: GB Carbon Intensity (gCO2/kWh) | D1: Tie-Line Imports Carbon Intensity (gCO2/kWh)
A2: 2024-01-01 | B2: 228 | C2: 148 | D2: 159
A3: 2024-01-08 | B3: 265 | C3: 230 | D3: 232
A4: 2024-01-15 | B4: 249 | C4: 191 | D4: 232
A5: 2024-01-22 | B5: 146 | C5: 98 | D5: 188
A6: 2024-01-29 | B6: 183 | C6: 116 | D6: 158
A7: 2024-02-05 | B7: 212 | C7: 146 | D7: 181
A8: 2024-02-12 | B8: 227 | C8: 140 | D8: 152
A9: 2024-02-19 | B9: 180 | C9: 125 | D9: 173
A10: 2024-02-26 | B10: 188 | C10: 150 | D10: 196
A11: 2024-03-04 | B11: 154 | C11: 143 | D11: 191
A12: 2024-03-11 | B12: 208 | C12: 129 | D12: 151
A13: 2024-03-18 | B13: 195 | C13: 116 | D13: 162
A14: 2024-03-25 | B14: 217 | C14: 111 | D14: 150
A15: 2024-04-01 | B15: 195 | C15: 79 | D15: 155
A16: 2024-04-08 | B16: 158 | C16: 66 | D16: 108
A17: 2024-04-15 | B17: 229 | C17: 78 | D17: 101
A18: 2024-04-22 | B18: 265 | C18: 152 | D18: 162
A19: 2024-04-29 | B19: 261 | C19: 105 | D19: 111
A20: 2024-05-06 | B20: 282 | C20: 135 | D20: 158
A21: 2024-05-13 | B21: 241 | C21: 140 | D21: 156
A22: 2024-05-20 | B22: 219 | C22: 125 | D22: 187
A23: 2024-05-27 | B23: 199 | C23: 78 | D23: 125
A24: 2024-06-03 | B24: 198 | C24: 77 | D24: 124
A25: 2024-06-10 | B25: 226 | C25: 100 | D25: 122
A26: 2024-06-17 | B26: 251 | C26: 114 | D26: 152
A27: 2024-06-24 | B27: 229 | C27: 112 | D27: 162
A28: 2024-07-01 | B28: 219 | C28: 79 | D28: 113
A29: 2024-07-08 | B29: 244 | C29: 112 | D29: 163
A30: 2024-07-15 | B30: 249 | C30: 129 | D30: 157
A31: 2024-07-22 | B31: 243 | C31: 133 | D31: 147
A32: 2024-07-29 | B32: 233 | C32: 120 | D32: 158
A33: 2024-08-05 | B33: 185 | C33: 70 | D33: 109
A34: 2024-08-12 | B34: 186 | C34: 87 | D34: 125
A35: 2024-08-19 | B35: 132 | C35: 59 | D35: 100
A36: 2024-08-26 | B36: 216 | C36: 108 | D36: 174
A37: 2024-09-02 | B37: 232 | C37: 142 | D37: 171
A38: 2024-09-09 | B38: 179 | C38: 91 | D38: 121
A39: 2024-09-16 | B39: 272 | C39: 137 | D39: 148
A40: 2024-09-23 | B40: 211 | C40: 125 | D40: 167
A41: 2024-09-30 | B41: 180 | C41: 106 | D41: 144
A42: 2024-10-07 | B42: 240 | C42: 125 | D42: 146
A43: 2024-10-14 | B43: 220 | C43: 143 | D43: 192
A44: 2024-10-21 | B44: 208 | C44: 141 | D44: 187
A45: 2024-10-28 | B45: 313 | C45: 185 | D45: 193
A46: 2024-11-04 | B46: 259 | C46: 222 | D46: 200
A47: 2024-11-11 | B47: 296 | C47: 158 | D47: 165
A48: 2024-11-18 | B48: 216 | C48: 130 | D48: 172
A49: 2024-11-25 | B49: 185 | C49: 146 | D49: 188
A50: 2024-12-02 | B50: 190 | C50: 128 | D50: 154
A51: 2024-12-09 | B51: 254 | C51: 192 | D51: 197
A52: 2024-12-16 | B52: 128 | C52: 73 | D52: 109
A53: 2024-12-23 | B53: 169 | C53: 130 | D53: 154
A54: 2024-12-30 | B54: 102 | C54: 63 | D54: 141

Sheet HCI
A1: Hour | B1: ROI Carbon Intensity (gCO2/kWh) | C1: GB Carbon Intensity (gCO2/kWh) | D1: Tie-Line Imports Carbon Intensity (gCO2/kWh)
A2: 0 | B2: 220 | C2: 108 | D2: 176
A3: 1 | B3: 224 | C3: 106 | D3: 175
A4: 2 | B4: 223 | C4: 105 | D4: 176
A5: 3 | B5: 223 | C5: 104 | D5: 181
A6: 4 | B6: 226 | C6: 105 | D6: 188
A7: 5 | B7: 231 | C7: 111 | D7: 185
A8: 6 | B8: 231 | C8: 125 | D8: 167
A9: 7 | B9: 227 | C9: 134 | D9: 154
A10: 8 | B10: 223 | C10: 132 | D10: 146
A11: 9 | B11: 216 | C11: 127 | D11: 139
A12: 10 | B12: 211 | C12: 121 | D12: 136
A13: 11 | B13: 207 | C13: 117 | D13: 134
A14: 12 | B14: 204 | C14: 115 | D14: 134
A15: 13 | B15: 203 | C15: 115 | D15: 134
A16: 14 | B16: 203 | C16: 117 | D16: 137
A17: 15 | B17: 205 | C17: 122 | D17: 142
A18: 16 | B18: 210 | C18: 132 | D18: 147
A19: 17 | B19: 213 | C19: 144 | D19: 155
A20: 18 | B20: 215 | C20: 151 | D20: 162
A21: 19 | B21: 215 | C21: 153 | D21: 166
A22: 20 | B22: 216 | C22: 151 | D22: 164
A23: 21 | B23: 216 | C23: 143 | D23: 160
A24: 22 | B24: 213 | C24: 131 | D24: 161
A25: 23 | B25: 214 | C25: 113 | D25: 164

Sheet WIAF
A1: Week | B1: EWIC Flow (MW) | C1: Tie-Line Flow (MW)
A2: 2024-01-01 | B2: 332.63 | C2: 224.49
A3: 2024-01-08 | B3: 308.99 | C3: 208.47
A4: 2024-01-15 | B4: 219.02 | C4: 173.64
A5: 2024-01-22 | B5: 40.69 | C5: 237.47
A6: 2024-01-29 | B6: 239.12 | C6: 260.51
A7: 2024-02-05 | B7: 299.68 | C7: 224.64
A8: 2024-02-12 | B8: 326.89 | C8: 232.17
A9: 2024-02-19 | B9: 177.96 | C9: 204.22
A10: 2024-02-26 | B10: 233.59 | C10: 283.85
A11: 2024-03-04 | B11: 121.21 | C11: 193.01
A12: 2024-03-11 | B12: 294.58 | C12: 182.80
A13: 2024-03-18 | B13: 221.11 | C13: 261.10
A14: 2024-03-25 | B14: 291.78 | C14: 300.71
A15: 2024-04-01 | B15: 274.32 | C15: 273.88
A16: 2024-04-08 | B16: 337.19 | C16: 268.97
A17: 2024-04-15 | B17: 173.54 | C17: 303.42
A18: 2024-04-22 | B18: 421.57 | C18: 316.39
A19: 2024-04-29 | B19: 463.15 | C19: 311.48
A20: 2024-05-06 | B20: 425.45 | C20: 258.68
A21: 2024-05-13 | B21: 284.26 | C21: 348.62
A22: 2024-05-20 | B22: 336.41 | C22: 312.70
A23: 2024-05-27 | B23: 376.91 | C23: 363.74
A24: 2024-06-03 | B24: 439.74 | C24: 374.58
A25: 2024-06-10 | B25: 397.27 | C25: 344.44
A26: 2024-06-17 | B26: 353.25 | C26: 334.26
A27: 2024-06-24 | B27: 296.86 | C27: 329.66
A28: 2024-07-01 | B28: 411.33 | C28: 310.79
A29: 2024-07-08 | B29: 436.48 | C29: 340.93
A30: 2024-07-15 | B30: 355.41 | C30: 355.43
A31: 2024-07-22 | B31: 388.49 | C31: 325.07
A32: 2024-07-29 | B32: 345.53 | C32: 359.61
A33: 2024-08-05 | B33: 384.22 | C33: 315.10
A34: 2024-08-12 | B34: 378.08 | C34: 356.74
A35: 2024-08-19 | B35: 423.95 | C35: 388.68
A36: 2024-08-26 | B36: 409.96 | C36: 156.16
A37: 2024-09-02 | B37: 197.67 | C37: 258.43
A38: 2024-09-09 | B38: 323.55 | C38: 342.51
A39: 2024-09-16 | B39: 444.86 | C39: 309.57
A40: 2024-09-23 | B40: 279.67 | C40: 248.42
A41: 2024-09-30 | B41: 257.02 | C41: 197.43
A42: 2024-10-07 | B42: 365.17 | C42: 281.24
A43: 2024-10-14 | B43: 227.50 | C43: 231.39
A44: 2024-10-21 | B44: 160.31 | C44: 190.83
A45: 2024-10-28 | B45: 454.98 | C45: 187.03
A46: 2024-11-04 | B46: 223.71 | C46: 88.16
A47: 2024-11-11 | B47: 444.56 | C47: 246.89
A48: 2024-11-18 | B48: 249.26 | C48: 214.61
A49: 2024-11-25 | B49: 209.08 | C49: 225.74
A50: 2024-12-02 | B50: 197.99 | C50: 268.95
A51: 2024-12-09 | B51: 455.51 | C51: 257.67
A52: 2024-12-16 | B52: 136.52 | C52: 312.08
A53: 2024-12-23 | B53: 209.79 | C53: 356.30
A54: 2024-12-30 | B54: -80.22 | C54: 314.47

Sheet EFTLEW
A1: DateTime | B1: EWIC Emissions (tCO2) | C1: Tie-Line Emissions (tCO2)
A2: 2024-01-01 | B2: 1.806 | C2: 12.862
A3: 2024-01-01T00:15:00 | B3: 1.482 | C3: 13.007
A4: 2024-01-01T00:30:00 | B4: 0.284 | C4: 21.061
A5: 2024-01-01T00:45:00 | B5: 0.000 | C5: 26.797
A6: 2024-01-01T01:00:00 | B6: 0.000 | C6: 26.229
A7: 2024-01-01T01:15:00 | B7: 0.072 | C7: 19.510
A8: 2024-01-01T01:30:00 | B8: 1.035 | C8: 14.809
A9: 2024-01-01T01:45:00 | B9: 1.969 | C9: 10.533
A10: 2024-01-01T02:00:00 | B10: 1.523 | C10: 10.636
A11: 2024-01-01T02:15:00 | B11: 2.566 | C11: 10.367
A12: 2024-01-01T02:30:00 | B12: 3.740 | C12: 10.081
A13: 2024-01-01T02:45:00 | B13: 4.995 | C13: 8.762
A14: 2024-01-01T03:00:00 | B14: 5.126 | C14: 8.204
A15: 2024-01-01T03:15:00 | B15: 6.324 | C15: 8.337
A16: 2024-01-01T03:30:00 | B16: 7.397 | C16: 8.473
A17: 2024-01-01T03:45:00 | B17: 8.518 | C17: 8.724
A18: 2024-01-01T04:00:00 | B18: 7.400 | C18: 8.792
A19: 2024-01-01T04:15:00 | B19: 6.777 | C19: 9.876
A20: 2024-01-01T04:30:00 | B20: 6.748 | C20: 9.338
A21: 2024-01-01T04:45:00 | B21: 7.463 | C21: 9.388
A22: 2024-01-01T05:00:00 | B22: 7.685 | C22: 9.919
A23: 2024-01-01T05:15:00 | B23: 7.684 | C23: 10.251
A24: 2024-01-01T05:30:00 | B24: 8.082 | C24: 9.890
A25: 2024-01-01T05:45:00 | B25: 8.082 | C25: 7.696
A26: 2024-01-01T06:00:00 | B26: 7.950 | C26: 9.227
A27: 2024-01-01T06:15:00 | B27: 7.950 | C27: 9.027
A28: 2024-01-01T06:30:00 | B28: 8.347 | C28: 9.752
A29: 2024-01-01T06:45:00 | B29: 8.347 | C29: 9.319
A30: 2024-01-01T07:00:00 | B30: 8.082 | C30: 9.648
A31: 2024-01-01T07:15:00 | B31: 8.082 | C31: 8.888
A32: 2024-01-01T07:30:00 | B32: 8.214 | C32: 8.428
A33: 2024-01-01T07:45:00 | B33: 8.214 | C33: 7.094
A34: 2024-01-01T08:00:00 | B34: 7.419 | C34: 5.481
A35: 2024-01-01T08:15:00 | B35: 7.418 | C35: 5.310
A36: 2024-01-01T08:30:00 | B36: 6.491 | C36: 4.274
A37: 2024-01-01T08:45:00 | B37: 6.491 | C37: 4.087
A38: 2024-01-01T09:00:00 | B38: 6.359 | C38: 4.063
A39: 2024-01-01T09:15:00 | B39: 6.359 | C39: 4.083
A40: 2024-01-01T09:30:00 | B40: 6.624 | C40: 4.567
A41: 2024-01-01T09:45:00 | B41: 6.624 | C41: 4.686
A42: 2024-01-01T10:00:00 | B42: 6.889 | C42: 4.703
A43: 2024-01-01T10:15:00 | B43: 6.889 | C43: 4.145
A44: 2024-01-01T10:30:00 | B44: 7.552 | C44: 3.621
A45: 2024-01-01T10:45:00 | B45: 7.552 | C45: 2.908
A46: 2024-01-01T11:00:00 | B46: 8.480 | C46: 2.652
A47: 2024-01-01T11:15:00 | B47: 8.480 | C47: 1.913
A48: 2024-01-01T11:30:00 | B48: 9.805 | C48: 1.381
A49: 2024-01-01T11:45:00 | B49: 9.805 | C49: 0.409
A50: 2024-01-01T12:00:00 | B50: 11.130 | C50: 0.644
A51: 2024-01-01T12:15:00 | B51: 11.130 | C51: 0.424
A52: 2024-01-01T12:30:00 | B52: 12.455 | C52: 0.755
A53: 2024-01-01T12:45:00 | B53: 12.454 | C53: 0.646
A54: 2024-01-01T13:00:00 | B54: 13.780 | C54: 0.000
A55: 2024-01-01T13:15:00 | B55: 13.766 | C55: 0.251
A56: 2024-01-01T13:30:00 | B56: 13.656 | C56: 0.000
A57: 2024-01-01T13:45:00 | B57: 12.876 | C57: 0.000
A58: 2024-01-01T14:00:00 | B58: 15.192 | C58: 0.817
A59: 2024-01-01T14:15:00 | B59: 14.891 | C59: 2.895
A60: 2024-01-01T14:30:00 | B60: 13.125 | C60: 4.414
A61: 2024-01-01T14:45:00 | B61: 11.584 | C61: 5.021
A62: 2024-01-01T15:00:00 | B62: 11.803 | C62: 5.320
A63: 2024-01-01T15:15:00 | B63: 9.848 | C63: 8.133
A64: 2024-01-01T15:30:00 | B64: 7.893 | C64: 11.332
A65: 2024-01-01T15:45:00 | B65: 5.680 | C65: 11.722
A66: 2024-01-01T16:00:00 | B66: 3.468 | C66: 9.600
A67: 2024-01-01T16:15:00 | B67: 1.255 | C67: 10.120
A68: 2024-01-01T16:30:00 | B68: 0.006 | C68: 13.429
A69: 2024-01-01T16:45:00 | B69: 0.001 | C69: 15.753
A70: 2024-01-01T17:00:00 | B70: 0.001 | C70: 15.598
A71: 2024-01-01T17:15:00 | B71: 0.001 | C71: 13.615
A72: 2024-01-01T17:30:00 | B72: 0.001 | C72: 14.320
A73: 2024-01-01T17:45:00 | B73: 0.001 | C73: 13.447
A74: 2024-01-01T18:00:00 | B74: 0.000 | C74: 12.591
A75: 2024-01-01T18:15:00 | B75: 0.000 | C75: 13.068
A76: 2024-01-01T18:30:00 | B76: 0.872 | C76: 14.860
A77: 2024-01-01T18:45:00 | B77: 1.950 | C77: 13.715
A78: 2024-01-01T19:00:00 | B78: 0.387 | C78: 13.473
A79: 2024-01-01T19:15:00 | B79: 0.000 | C79: 14.080
A80: 2024-01-01T19:30:00 | B80: 0.155 | C80: 15.217
A81: 2024-01-01T19:45:00 | B81: 0.147 | C81: 14.039
A82: 2024-01-01T20:00:00 | B82: 0.000 | C82: 12.857
A83: 2024-01-01T20:15:00 | B83: 0.000 | C83: 12.998
A84: 2024-01-01T20:30:00 | B84: 0.000 | C84: 13.049
A85: 2024-01-01T20:45:00 | B85: 0.000 | C85: 13.068
A86: 2024-01-01T21:00:00 | B86: 0.000 | C86: 12.723
A87: 2024-01-01T21:15:00 | B87: 0.018 | C87: 11.981
A88: 2024-01-01T21:30:00 | B88: 0.565 | C88: 10.942
A89: 2024-01-01T21:45:00 | B89: 0.753 | C89: 9.762
A90: 2024-01-01T22:00:00 | B90: 0.083 | C90: 14.429
A91: 2024-01-01T22:15:00 | B91: 0.000 | C91: 13.804
A92: 2024-01-01T22:30:00 | B92: 0.000 | C92: 13.578
A93: 2024-01-01T22:45:00 | B93: 0.000 | C93: 13.851
A94: 2024-01-01T23:00:00 | B94: 0.433 | C94: 15.831
A95: 2024-01-01T23:15:00 | B95: 1.351 | C95: 11.351
A96: 2024-01-01T23:30:00 | B96: 2.362 | C96: 7.629
A97: 2024-01-01T23:45:00 | B97: 3.153 | C97: 5.128
A98: 2024-01-02 | B98: 2.515 | C98: 4.831
A99: 2024-01-02T00:15:00 | B99: 1.579 | C99: 6.072
A100: 2024-01-02T00:30:00 | B100: 0.692 | C100: 7.379
A101: 2024-01-02T00:45:00 | B101: 0.553 | C101: 7.874
A102: 2024-01-02T01:00:00 | B102: 1.647 | C102: 6.723
A103: 2024-01-02T01:15:00 | B103: 2.716 | C103: 5.841
A104: 2024-01-02T01:30:00 | B104: 3.918 | C104: 6.883
A105: 2024-01-02T01:45:00 | B105: 5.024 | C105: 6.991
A106: 2024-01-02T02:00:00 | B106: 5.611 | C106: 8.742
A107: 2024-01-02T02:15:00 | B107: 6.623 | C107: 5.655
A108: 2024-01-02T02:30:00 | B108: 7.154 | C108: 4.817
A109: 2024-01-02T02:45:00 | B109: 7.155 | C109: 5.718
A110: 2024-01-02T03:00:00 | B110: 7.000 | C110: 6.340
A111: 2024-01-02T03:15:00 | B111: 6.841 | C111: 7.060
A112: 2024-01-02T03:30:00 | B112: 7.347 | C112: 7.595
A113: 2024-01-02T03:45:00 | B113: 7.379 | C113: 7.868
A114: 2024-01-02T04:00:00 | B114: 7.552 | C114: 8.117
A115: 2024-01-02T04:15:00 | B115: 7.552 | C115: 8.423
A116: 2024-01-02T04:30:00 | B116: 7.817 | C116: 8.254
A117: 2024-01-02T04:45:00 | B117: 7.817 | C117: 7.177
A118: 2024-01-02T05:00:00 | B118: 8.480 | C118: 7.304
A119: 2024-01-02T05:15:00 | B119: 8.480 | C119: 6.443
A120: 2024-01-02T05:30:00 | B120: 8.745 | C120: 6.055
A121: 2024-01-02T05:45:00 | B121: 8.745 | C121: 8.329
A122: 2024-01-02T06:00:00 | B122: 9.407 | C122: 10.421
A123: 2024-01-02T06:15:00 | B123: 9.407 | C123: 7.537
A124: 2024-01-02T06:30:00 | B124: 10.997 | C124: 7.184
A125: 2024-01-02T06:45:00 | B125: 10.997 | C125: 6.190
A126: 2024-01-02T07:00:00 | B126: 12.720 | C126: 8.108
A127: 2024-01-02T07:15:00 | B127: 12.720 | C127: 9.107
A128: 2024-01-02T07:30:00 | B128: 14.310 | C128: 9.833
A129: 2024-01-02T07:45:00 | B129: 14.309 | C129: 10.536
A130: 2024-01-02T08:00:00 | B130: 13.647 | C130: 10.001
A131: 2024-01-02T08:15:00 | B131: 13.647 | C131: 9.891
A132: 2024-01-02T08:30:00 | B132: 14.972 | C132: 10.012
A133: 2024-01-02T08:45:00 | B133: 14.972 | C133: 9.335
A134: 2024-01-02T09:00:00 | B134: 15.899 | C134: 8.394
A135: 2024-01-02T09:15:00 | B135: 15.899 | C135: 7.058
A136: 2024-01-02T09:30:00 | B136: 17.092 | C136: 8.498
A137: 2024-01-02T09:45:00 | B137: 17.092 | C137: 6.958
A138: 2024-01-02T10:00:00 | B138: 18.019 | C138: 5.406
A139: 2024-01-02T10:15:00 | B139: 18.019 | C139: 5.126
A140: 2024-01-02T10:30:00 | B140: 18.682 | C140: 4.578
A141: 2024-01-02T10:45:00 | B141: 18.682 | C141: 5.556
A142: 2024-01-02T11:00:00 | B142: 19.476 | C142: 5.276
A143: 2024-01-02T11:15:00 | B143: 19.477 | C143: 4.187
A144: 2024-01-02T11:30:00 | B144: 19.344 | C144: 2.431
A145: 2024-01-02T11:45:00 | B145: 18.972 | C145: 1.730
A146: 2024-01-02T12:00:00 | B146: 16.889 | C146: 2.207
A147: 2024-01-02T12:15:00 | B147: 14.095 | C147: 2.637
A148: 2024-01-02T12:30:00 | B148: 12.119 | C148: 1.642
A149: 2024-01-02T12:45:00 | B149: 9.271 | C149: 1.272
A150: 2024-01-02T13:00:00 | B150: 6.444 | C150: 1.843
A151: 2024-01-02T13:15:00 | B151: 3.557 | C151: 1.775
A152: 2024-01-02T13:30:00 | B152: 3.345 | C152: 1.676
A153: 2024-01-02T13:45:00 | B153: 2.415 | C153: 1.453
A154: 2024-01-02T14:00:00 | B154: 0.212 | C154: 0.915
A155: 2024-01-02T14:15:00 | B155: 0.765 | C155: 1.018
A156: 2024-01-02T14:30:00 | B156: 3.465 | C156: 0.000
A157: 2024-01-02T14:45:00 | B157: 3.968 | C157: 0.000
A158: 2024-01-02T15:00:00 | B158: 3.366 | C158: 0.000
A159: 2024-01-02T15:15:00 | B159: 6.116 | C159: 0.000
A160: 2024-01-02T15:30:00 | B160: 8.832 | C160: 0.000
A161: 2024-01-02T15:45:00 | B161: 11.588 | C161: 0.564
A162: 2024-01-02T16:00:00 | B162: 11.481 | C162: 2.142
A163: 2024-01-02T16:15:00 | B163: 10.909 | C163: 1.309
A164: 2024-01-02T16:30:00 | B164: 12.091 | C164: 0.000
A165: 2024-01-02T16:45:00 | B165: 14.754 | C165: 0.000
A166: 2024-01-02T17:00:00 | B166: 17.294 | C166: 0.000
A167: 2024-01-02T17:15:00 | B167: 18.681 | C167: 0.000
A168: 2024-01-02T17:30:00 | B168: 18.417 | C168: 0.000
A169: 2024-01-02T17:45:00 | B169: 18.417 | C169: 0.988
A170: 2024-01-02T18:00:00 | B170: 17.755 | C170: 1.973
A171: 2024-01-02T18:15:00 | B171: 17.754 | C171: 3.721
A172: 2024-01-02T18:30:00 | B172: 17.224 | C172: 5.196
A173: 2024-01-02T18:45:00 | B173: 17.224 | C173: 5.069
A174: 2024-01-02T19:00:00 | B174: 16.827 | C174: 5.709
A175: 2024-01-02T19:15:00 | B175: 16.827 | C175: 6.707
A176: 2024-01-02T19:30:00 | B176: 16.032 | C176: 7.506
A177: 2024-01-02T19:45:00 | B177: 16.032 | C177: 7.610
A178: 2024-01-02T20:00:00 | B178: 14.839 | C178: 6.809
A179: 2024-01-02T20:15:00 | B179: 14.839 | C179: 7.213
A180: 2024-01-02T20:30:00 | B180: 13.514 | C180: 6.901
A181: 2024-01-02T20:45:00 | B181: 13.515 | C181: 7.789
A182: 2024-01-02T21:00:00 | B182: 12.720 | C182: 7.460
A183: 2024-01-02T21:15:00 | B183: 12.720 | C183: 7.409
A184: 2024-01-02T21:30:00 | B184: 11.395 | C184: 7.162
A185: 2024-01-02T21:45:00 | B185: 11.395 | C185: 7.312
A186: 2024-01-02T22:00:00 | B186: 9.937 | C186: 5.958
A187: 2024-01-02T22:15:00 | B187: 9.937 | C187: 6.554
A188: 2024-01-02T22:30:00 | B188: 9.142 | C188: 6.544
A189: 2024-01-02T22:45:00 | B189: 9.142 | C189: 6.734
A190: 2024-01-02T23:00:00 | B190: 8.897 | C190: 8.660
A191: 2024-01-02T23:15:00 | B191: 8.100 | C191: 7.101
A192: 2024-01-02T23:30:00 | B192: 8.957 | C192: 6.228
A193: 2024-01-02T23:45:00 | B193: 9.275 | C193: 5.661
A194: 2024-01-03 | B194: 9.142 | C194: 4.640
A195: 2024-01-03T00:15:00 | B195: 8.559 | C195: 4.676
A196: 2024-01-03T00:30:00 | B196: 7.355 | C196: 5.093
A197: 2024-01-03T00:45:00 | B197: 6.370 | C197: 8.087
A198: 2024-01-03T01:00:00 | B198: 6.202 | C198: 7.212
A199: 2024-01-03T01:15:00 | B199: 7.475 | C199: 7.099
A200: 2024-01-03T01:30:00 | B200: 8.438 | C200: 7.687
... 4300 more rows

Sheet DEETLEW
A1: DateTime | B1: EWIC Domestic Equivalent Emissions (tCO2) | C1: Tie-Line Domestic Equivalent Emissions (tCO2)
A2: 2024-01-01 | B2: 3.1866 | C2: 9.2418
A3: 2024-01-01T00:15:00 | B3: 2.8122 | C3: 9.016455
A4: 2024-01-01T00:30:00 | B4: 0.53972 | C4: 10.040495
A5: 2024-01-01T00:45:00 | B5: 0.00068 | C5: 11.08876
A6: 2024-01-01T01:00:00 | B6: 0.00067 | C6: 12.16251
A7: 2024-01-01T01:15:00 | B7: 0.143775 | C7: 12.14325
A8: 2024-01-01T01:30:00 | B8: 2.164185 | C8: 12.296835
A9: 2024-01-01T01:45:00 | B9: 4.116195 | C9: 12.458295
A10: 2024-01-01T02:00:00 | B10: 2.839695 | C10: 13.034445
A11: 2024-01-01T02:15:00 | B11: 4.88988 | C11: 13.1824425
A12: 2024-01-01T02:30:00 | B12: 7.587415 | C12: 13.24363
A13: 2024-01-01T02:45:00 | B13: 10.2048375 | C13: 12.7881325
A14: 2024-01-01T03:00:00 | B14: 10.99566 | C14: 12.97479
A15: 2024-01-01T03:15:00 | B15: 13.56494 | C15: 12.96443
A16: 2024-01-01T03:30:00 | B16: 16.0083625 | C16: 12.8441
A17: 2024-01-01T03:45:00 | B17: 18.68811 | C17: 13.1561325
A18: 2024-01-01T04:00:00 | B18: 17.38334 | C18: 13.36255
A19: 2024-01-01T04:15:00 | B19: 15.91999 | C19: 13.76548
A20: 2024-01-01T04:30:00 | B20: 17.2702475 | C20: 13.968255
A21: 2024-01-01T04:45:00 | B21: 18.84701 | C21: 13.76164
A22: 2024-01-01T05:00:00 | B22: 19.741755 | C22: 14.0451125
A23: 2024-01-01T05:15:00 | B23: 22.39081 | C23: 16.0359875
A24: 2024-01-01T05:30:00 | B24: 22.522875 | C24: 15.871625
A25: 2024-01-01T05:45:00 | B25: 22.656645 | C25: 15.03603
A26: 2024-01-01T06:00:00 | B26: 23.05413 | C26: 16.024095
A27: 2024-01-01T06:15:00 | B27: 23.8491 | C27: 16.7058
A28: 2024-01-01T06:30:00 | B28: 23.584555 | C28: 16.58782
A29: 2024-01-01T06:45:00 | B29: 24.113635 | C29: 16.829995
A30: 2024-01-01T07:00:00 | B30: 24.77563 | C30: 17.7402225
A31: 2024-01-01T07:15:00 | B31: 25.17215 | C31: 17.629625
A32: 2024-01-01T07:30:00 | B32: 25.96608 | C32: 19.11784
A33: 2024-01-01T07:45:00 | B33: 25.43664 | C33: 20.43936
A34: 2024-01-01T08:00:00 | B34: 25.8340875 | C34: 19.08465
A35: 2024-01-01T08:15:00 | B35: 26.759445 | C35: 19.155155
A36: 2024-01-01T08:30:00 | B36: 26.0970825 | C36: 17.18431
A37: 2024-01-01T08:45:00 | B37: 25.30177 | C37: 15.9327425
A38: 2024-01-01T09:00:00 | B38: 23.4476325 | C38: 14.983935
A39: 2024-01-01T09:15:00 | B39: 22.78613 | C39: 14.63032
A40: 2024-01-01T09:30:00 | B40: 22.12416 | C40: 15.2533625
A41: 2024-01-01T09:45:00 | B41: 20.7997525 | C41: 14.7144325
A42: 2024-01-01T10:00:00 | B42: 20.53595 | C42: 14.0178125
A43: 2024-01-01T10:15:00 | B43: 20.270205 | C43: 12.194865
A44: 2024-01-01T10:30:00 | B44: 19.60741 | C44: 9.40244
A45: 2024-01-01T10:45:00 | B45: 18.9457125 | C45: 7.29443
A46: 2024-01-01T11:00:00 | B46: 18.81429 | C46: 5.883415
A47: 2024-01-01T11:15:00 | B47: 18.416805 | C47: 4.1543625
A48: 2024-01-01T11:30:00 | B48: 18.81429 | C48: 2.64972
A49: 2024-01-01T11:45:00 | B49: 18.1521575 | C49: 0.7579525
A50: 2024-01-01T12:00:00 | B50: 17.621835 | C50: 1.0204425
A51: 2024-01-01T12:15:00 | B51: 18.151815 | C51: 0.69185
A52: 2024-01-01T12:30:00 | B52: 17.886825 | C52: 1.084725
A53: 2024-01-01T12:45:00 | B53: 17.8864875 | C53: 0.92745
A54: 2024-01-01T13:00:00 | B54: 18.02 | C54: 0
A55: 2024-01-01T13:15:00 | B55: 18.53075 | C55: 0.3381
A56: 2024-01-01T13:30:00 | B56: 16.5567925 | C56: 0
A57: 2024-01-01T13:45:00 | B57: 15.95265 | C57: 0
A58: 2024-01-01T14:00:00 | B58: 16.360785 | C58: 0.88011
A59: 2024-01-01T14:15:00 | B59: 15.3999725 | C59: 2.99354
A60: 2024-01-01T14:30:00 | B60: 13.0153275 | C60: 4.377415
A61: 2024-01-01T14:45:00 | B61: 11.390835 | C61: 4.93771
A62: 2024-01-01T15:00:00 | B62: 11.70039 | C62: 5.273355
A63: 2024-01-01T15:15:00 | B63: 8.4781125 | C63: 6.34293
A64: 2024-01-01T15:30:00 | B64: 6.62211 | C64: 7.9385625
A65: 2024-01-01T15:45:00 | B65: 4.9581625 | C65: 7.866625
A66: 2024-01-01T16:00:00 | B66: 3.2032375 | C66: 6.22608
A67: 2024-01-01T16:15:00 | B67: 1.286835 | C67: 7.1284125
A68: 2024-01-01T16:30:00 | B68: 0.006 | C68: 10.218
A69: 2024-01-01T16:45:00 | B69: 0.000595 | C69: 12.5426
A70: 2024-01-01T17:00:00 | B70: 0.00056 | C70: 11.61216
A71: 2024-01-01T17:15:00 | B71: 0.000585 | C71: 10.907325
A72: 2024-01-01T17:30:00 | B72: 0.00057 | C72: 11.477235
A73: 2024-01-01T17:45:00 | B73: 0.0008325 | C73: 9.99111
A74: 2024-01-01T18:00:00 | B74: 0 | C74: 8.839275
A75: 2024-01-01T18:15:00 | B75: 0 | C75: 9.07092
A76: 2024-01-01T18:30:00 | B76: 0.9167 | C76: 10.27425
A77: 2024-01-01T18:45:00 | B77: 1.98975 | C77: 9.30175
A78: 2024-01-01T19:00:00 | B78: 0.368935 | C78: 6.652865
A79: 2024-01-01T19:15:00 | B79: 0.000415 | C79: 6.8726075
A80: 2024-01-01T19:30:00 | B80: 0.1695275 | C80: 8.4624725
A81: 2024-01-01T19:45:00 | B81: 0.15908 | C81: 8.15121
A82: 2024-01-01T20:00:00 | B82: 0.0006225 | C82: 6.97698
A83: 2024-01-01T20:15:00 | B83: 0.00042 | C83: 6.8733
A84: 2024-01-01T20:30:00 | B84: 0.00043 | C84: 7.36934
A85: 2024-01-01T20:45:00 | B85: 0.000445 | C85: 7.590365
A86: 2024-01-01T21:00:00 | B86: 0.00045 | C86: 7.112925
A87: 2024-01-01T21:15:00 | B87: 0.0348075 | C87: 7.6050975
A88: 2024-01-01T21:30:00 | B88: 1.20911 | C88: 8.40581
A89: 2024-01-01T21:45:00 | B89: 1.68144 | C89: 7.13616
A90: 2024-01-01T22:00:00 | B90: 0.1840575 | C90: 7.3489625
A91: 2024-01-01T22:15:00 | B91: 0.000485 | C91: 5.8692275
A92: 2024-01-01T22:30:00 | B92: 0.0005 | C92: 6.55175
A93: 2024-01-01T22:45:00 | B93: 0.0005 | C93: 8.108
A94: 2024-01-01T23:00:00 | B94: 0.91806 | C94: 9.51028
A95: 2024-01-01T23:15:00 | B95: 2.81214 | C95: 9.161385
A96: 2024-01-01T23:30:00 | B96: 4.90992 | C96: 7.711765
A97: 2024-01-01T23:45:00 | B97: 6.553185 | C97: 7.280875
A98: 2024-01-02 | B98: 5.63276 | C98: 8.73936
A99: 2024-01-02T00:15:00 | B99: 3.5676925 | C99: 9.5725125
A100: 2024-01-02T00:30:00 | B100: 1.4743 | C100: 10.1294875
A101: 2024-01-02T00:45:00 | B101: 1.18871 | C101: 10.34546
A102: 2024-01-02T01:00:00 | B102: 3.3815925 | C102: 9.92394
A103: 2024-01-02T01:15:00 | B103: 5.622995 | C103: 9.735295
A104: 2024-01-02T01:30:00 | B104: 8.1008 | C104: 9.6258
A105: 2024-01-02T01:45:00 | B105: 10.4737575 | C105: 9.3409275
A106: 2024-01-02T02:00:00 | B106: 12.6758 | C106: 11.12396
A107: 2024-01-02T02:15:00 | B107: 14.84065 | C107: 9.8678525
A108: 2024-01-02T02:30:00 | B108: 18.01864 | C108: 9.45744
A109: 2024-01-02T02:45:00 | B109: 18.54965 | C109: 11.1825
A110: 2024-01-02T03:00:00 | B110: 17.6253525 | C110: 11.7491775
A111: 2024-01-02T03:15:00 | B111: 19.178335 | C111: 13.40937
A112: 2024-01-02T03:30:00 | B112: 20.4931125 | C112: 13.77735
A113: 2024-01-02T03:45:00 | B113: 20.5829475 | C113: 13.8453225
A114: 2024-01-02T04:00:00 | B114: 21.1984 | C114: 14.0896
A115: 2024-01-02T04:15:00 | B115: 21.066705 | C115: 14.1299325
A116: 2024-01-02T04:30:00 | B116: 21.066705 | C116: 13.967355
A117: 2024-01-02T04:45:00 | B117: 21.72918 | C117: 13.9933
A118: 2024-01-02T05:00:00 | B118: 22.3920775 | C118: 14.235715
A119: 2024-01-02T05:15:00 | B119: 22.25916 | C119: 13.72896
A120: 2024-01-02T05:30:00 | B120: 22.78914 | C120: 13.86965
A121: 2024-01-02T05:45:00 | B121: 22.656645 | C121: 14.888115
A122: 2024-01-02T06:00:00 | B122: 21.59587 | C122: 15.1235475
A123: 2024-01-02T06:15:00 | B123: 21.8625 | C123: 14.0039625
A124: 2024-01-02T06:30:00 | B124: 22.391655 | C124: 13.62985
A125: 2024-01-02T06:45:00 | B125: 23.054565 | C125: 12.976485
A126: 2024-01-02T07:00:00 | B126: 25.17405 | C126: 16.0474
A127: 2024-01-02T07:15:00 | B127: 25.0420275 | C127: 17.9299575
A128: 2024-01-02T07:30:00 | B128: 25.704515 | C128: 17.66273
A129: 2024-01-02T07:45:00 | B129: 25.43904 | C129: 18.73008
A130: 2024-01-02T08:00:00 | B130: 25.571535 | C130: 18.7388525
A131: 2024-01-02T08:15:00 | B131: 25.96951 | C131: 18.82139
A132: 2024-01-02T08:30:00 | B132: 25.306545 | C132: 16.9221225
A133: 2024-01-02T08:45:00 | B133: 25.43904 | C133: 15.8616
A134: 2024-01-02T09:00:00 | B134: 25.836525 | C134: 13.6397625
A135: 2024-01-02T09:15:00 | B135: 26.76399 | C135: 11.880125
A136: 2024-01-02T09:30:00 | B136: 26.896485 | C136: 13.3721175
A137: 2024-01-02T09:45:00 | B137: 25.96902 | C137: 10.57126
A138: 2024-01-02T10:00:00 | B138: 25.43904 | C138: 7.63152
A139: 2024-01-02T10:15:00 | B139: 25.041555 | C139: 7.1229375
A140: 2024-01-02T10:30:00 | B140: 25.3070225 | C140: 6.2012925
A141: 2024-01-02T10:45:00 | B141: 23.716605 | C141: 7.0539425
A142: 2024-01-02T11:00:00 | B142: 23.9811425 | C142: 6.49609
A143: 2024-01-02T11:15:00 | B143: 23.4520575 | C143: 5.0414025
A144: 2024-01-02T11:30:00 | B144: 22.921635 | C144: 2.8800175
A145: 2024-01-02T11:45:00 | B145: 20.4017575 | C145: 1.8608425
A146: 2024-01-02T12:00:00 | B146: 17.0025 | C146: 2.221875
A147: 2024-01-02T12:15:00 | B147: 15.2306 | C147: 2.8497
A148: 2024-01-02T12:30:00 | B148: 12.9108225 | C148: 1.7493975
A149: 2024-01-02T12:45:00 | B149: 9.998175 | C149: 1.3715625
A150: 2024-01-02T13:00:00 | B150: 6.9876975 | C150: 1.9985725
A151: 2024-01-02T13:15:00 | B151: 3.903055 | C151: 1.9481475
A152: 2024-01-02T13:30:00 | B152: 3.60386 | C152: 1.806105
A153: 2024-01-02T13:45:00 | B153: 2.55471 | C153: 1.5375
A154: 2024-01-02T14:00:00 | B154: 0.22331 | C154: 0.9617
A155: 2024-01-02T14:15:00 | B155: 0.7941325 | C155: 1.0573675
A156: 2024-01-02T14:30:00 | B156: 3.781715 | C156: 0
A157: 2024-01-02T14:45:00 | B157: 4.279275 | C157: 0
A158: 2024-01-02T15:00:00 | B158: 3.889395 | C158: 0
A159: 2024-01-02T15:15:00 | B159: 7.10833 | C159: 0
A160: 2024-01-02T15:30:00 | B160: 10.09344 | C160: 0
A161: 2024-01-02T15:45:00 | B161: 12.2182625 | C161: 0.594425
A162: 2024-01-02T16:00:00 | B162: 11.8801425 | C162: 2.2167475
A163: 2024-01-02T16:15:00 | B163: 11.81778 | C163: 1.41765
A164: 2024-01-02T16:30:00 | B164: 14.04975 | C164: 0
A165: 2024-01-02T16:45:00 | B165: 17.7669 | C165: 0
A166: 2024-01-02T17:00:00 | B166: 20.72785 | C166: 0
A167: 2024-01-02T17:15:00 | B167: 22.3903875 | C167: 0
A168: 2024-01-02T17:30:00 | B168: 23.31912 | C168: 0
A169: 2024-01-02T17:45:00 | B169: 22.921635 | C169: 1.2295975
A170: 2024-01-02T18:00:00 | B170: 23.1870625 | C170: 2.5773125
A171: 2024-01-02T18:15:00 | B171: 23.8491 | C171: 4.99815
A172: 2024-01-02T18:30:00 | B172: 24.37908 | C172: 7.35494
A173: 2024-01-02T18:45:00 | B173: 25.041555 | C173: 7.36911
A174: 2024-01-02T19:00:00 | B174: 25.17405 | C174: 8.5405
A175: 2024-01-02T19:15:00 | B175: 24.643605 | C175: 9.823125
A176: 2024-01-02T19:30:00 | B176: 24.2461275 | C176: 11.35149
A177: 2024-01-02T19:45:00 | B177: 24.64407 | C177: 11.69847
A178: 2024-01-02T20:00:00 | B178: 26.101515 | C178: 11.9771075
A179: 2024-01-02T20:15:00 | B179: 25.703545 | C179: 12.494085
A180: 2024-01-02T20:30:00 | B180: 26.23401 | C180: 13.39569
A181: 2024-01-02T20:45:00 | B181: 26.234505 | C181: 15.12027
A182: 2024-01-02T21:00:00 | B182: 25.704515 | C182: 15.07477
A183: 2024-01-02T21:15:00 | B183: 24.91 | C183: 14.5089
A184: 2024-01-02T21:30:00 | B184: 24.64407 | C184: 15.489615
A185: 2024-01-02T21:45:00 | B185: 24.37908 | C185: 15.64506
A186: 2024-01-02T22:00:00 | B186: 24.511575 | C186: 14.695475
A187: 2024-01-02T22:15:00 | B187: 23.31956 | C187: 15.38108
A188: 2024-01-02T22:30:00 | B188: 22.6570725 | C188: 16.2189225
A189: 2024-01-02T22:45:00 | B189: 22.1270825 | C189: 16.298365
A190: 2024-01-02T23:00:00 | B190: 20.8829075 | C190: 18.9470125
A191: 2024-01-02T23:15:00 | B191: 20.925465 | C191: 18.344715
A192: 2024-01-02T23:30:00 | B192: 24.82327 | C192: 17.259695
A193: 2024-01-02T23:45:00 | B193: 25.43904 | C193: 15.52608
A194: 2024-01-03 | B194: 25.70403 | C194: 13.045045
A195: 2024-01-03T00:15:00 | B195: 24.188775 | C195: 13.2156375
